Workbook

Sheet Design Regulator
A1: LM(2)5145/46-Q1 DC-DC Controller Design Tool
A3: About | C3: xx | F3: = Input Box | O3: TERMS OF USE
A5: Step 1: Operating Specifications
D6: Input Voltage ‒ Min, VIN(min) | E6: 25 | F6: V
D7: Input Voltage ‒ Nom, VIN(nom) | E7: 27.5 | F7: V
D8: Input Voltage ‒ Max, VIN(max) | E8: 30 | F8: V
D9: Output Voltage, VOUT | E9: 4.5 | F9: V
D10: Maximum Output Current, IOUT | E10: 16 | F10: A
D11: Free-running Switching Frequency, FSW | E11: 250 | F11: kHz
D12: SYNC Frequency (if used), FSW-SYNC | E12: 250 | F12: kHz
D13: Frequency Set Resistor, RRT | E13: ='Standard Value Calculator'!S4/1000 -> 40.2 | F13: kΩ
A15: Step 2: Filter Inductor
D16: Recommended Filter Inductance | E16: =Lout1*1000000 -> 2.825552826 | F16: µH
D17: Inductance, LF | E17: 3.3 | F17: µH
D18: Inductor DCR | E18: 4.4 | F18: mΩ
D19: Pk-to-Pk Ripple Current at VIN(nom), DIL | E19: =Iripple1 -> 4.673388516 | F19: Apk-pk
D20: Inductor Ripple Current as a % of Max IOUT | E20: =Iripple1/Iout*100 -> 29.20867823 | F20: %
A22: Step 3: RDS(on) or Shunt-Based Current Limit
D23: Shunt, RS | E23: 6 | F23: mΩ | S23: \
D24: Required Current Limit Setpoint | E24: 21 | F24: A
D25: Current Limit Set Resistor, RILIM | E25: =IF(RDSON_sense=1, Rilim_Rdson, Rilim_shunt) -> 205 | F25: Ω
D26: Min Inductor Sat Current, IL(SAT) | E26: ='Variable Management'!B51 -> 27.6 | F26: A
D27: Power Loss in RS at Full Load, Max VIN | E27: =_Rs3 -> 1.11 | F27: W
A29: Step 4: Output Capacitance
D30: Output Voltage Ripple Specification | E30: 20 | F30: mVpk-pk
D31: Minimum Ideal Output Capacitance | E31: =Coutmin*1000000 -> 116.8347129 | F31: µF
D32: Total Output Capacitance (Derated), COUT | E32: 220 | F32: µF
D33: Maximum Permitted ESR | E33: =IF(ISERROR(Resrmax*1000),"N/A",Resrmax*1000) -> 3.626190738 | F33: mΩ
D34: Output Capacitor ESR | E34: 25 | F34: mΩ
D35: Resulting Output Voltage Ripple | E35: =Vripple2*1000 -> 117.3165076 | F35: mVpk-pk
D36: Output Capacitor Ripple Current | E36: =Icoutrms -> 1.349091059 | F36: A (rms)
A38: Step 5: Input Capacitance
D39: Input Voltage Ripple Specification | E39: 800 | F39: mVpk-pk
D40: Minimum Ideal Input Capacitance | E40: ='Variable Management'!B80*1000000 -> 11.16254303 | F40: µF
D41: Total Input Capacitance (Derated), CIN | E41: 30 | F41: µF
D42: Maximum Permitted ESR | E42: =IF(CinEsrMax*1000<0,"N/A",CinEsrMax*1000) -> 27.39491529 | F42: mΩ
D43: Input Capacitor ESR | E43: 1 | F43: mΩ
D44: Resulting Input Voltage Ripple | E44: =Vinripple2*1000 -> 316.0045084 | F44: mVpk-pk
D45: Input Capacitor Ripple Current | E45: =Icinrms -> 5.976632639 | F45: A (rms)
A47: Step 6: Soft-start, UVLO
D48: Soft-Start Time, tSS | E48: 4 | F48: ms
D49: Soft-Start Capacitance, CSS | E49: =Css_u*1000000000 -> 47 | F49: nF
D50: Input Voltage UVLO Turn-On | E50: 15 | F50: V
D51: Input Voltage UVLO Turn-Off | E51: 13 | F51: V
D52: UVLO Upper Resistor, RUV1 | E52: ='Variable Management'!F97 -> 200 | F52: kΩ
D53: UVLO Lower Resistor, RUV2 | E53: ='Variable Management'!F98 -> 17.4 | F53: kΩ
A54: If the SYNC feature is not required, connect SYNCIN to GND
A55: or VCC for DCM or CCM operation, respectively
A57: Step 7: Compensation Design
D58: LC Complex Pole Frequency | E58: =Fo/1000 -> 5.704672656 | F58: kHz
D59: ESR Zero Frequency | E59: =Fesr/1000 -> 28.93726241 | F59: kHz
D60: Desired Crossover Frequency | E60: 45 | F60: kHz
D61: Appropriate Midband Gain | E61: =Kmidband -> 0.525884688 | F61: V/V
D62: Upper Feedback Resistor, RFB1 | E62: 21 | F62: kΩ
D63: Lower Feedback Resistor, RFB2 | E63: =IF(Vout=Vref,"OPEN",Rfb2_u/1000) -> 4.53 | F63: =IF(Vout=Vref,"","kΩ") -> kΩ
D64: Actual Output Voltage, VOUT | E64: ='Variable Management'!B129 -> 4.508609272 | F64: V
A66: Pole & Zero Placement | D66: FZ1 | E66: =Fo/1000*0.7 -> 3.99327086 | F66: =" kHz " -> kHz
A67: =" Baseline P/Z Frequencies:" -> Baseline P/Z Frequencies: | D67: FZ2 | E67: =Fo/1000*0.9 -> 5.134205391 | F67: =" kHz" -> kHz
D68: FP1 | E68: =Fesr/1000 -> 28.93726241 | F68: =" kHz" -> kHz
D69: FP2 | E69: =Fsw/2000 -> 125 | F69: =" kHz" -> kHz
A71: Compensation Components
B72: Calculated / | C72: Std Values | D72: =" Selected" -> Selected | F72: Actual P/Z Frequencies
A73: RC1 | B73: =Rcea1/1000 -> 11.04357845 | C73: ='Standard Value Calculator'!S27 -> 11 | D73: =C73 -> 11 | E73: kΩ | F73: =Fz1_u/1000 -> 3.709905438 | G73: kHz (FZ1)
A74: CC1 | B74: =Cc1ea*1000000000000 -> 3608.95563 | C74: ='Standard Value Calculator'!S28 -> 3900 | D74: =C74 -> 3900 | E74: pF | F74: =Fz2_u/1000 -> 5.195030137 | G74: kHz (FZ2)
A75: CC2 | B75: =Cc2ea*1000000000000 -> 119.0969912 | C75: ='Standard Value Calculator'!S29 -> 120 | D75: =C75 -> 120 | E75: pF | F75: =Fp1_u/1000 -> 29.2779513 | G75: kHz (FP1)
A76: RC2 | B76: =Rcea2 -> 4529.599417 | C76: ='Standard Value Calculator'!S30 -> 4530 | D76: =C76 -> 4530 | E76: Ω | F76: =Fp2_u/1000 -> 124.2818322 | G76: kHz (FP2)
A77: CC3 | B77: =Cc3ea*1000000000000 -> 1214.235409 | C77: ='Standard Value Calculator'!S31 -> 1200 | D77: =C77 -> 1200 | E77: pF | L77: ** Specify Inductor Core Loss ** | M77: 0.2 | N77: W
A79: Efficiency / Power Loss Analyzer
A81: Step 8: Efficiency
D83: High-Side MOSFET (Q1) Specifications | E83: SM4032
D84: On-State Resistance, RDS(on) | E84: 3.8 | F84: mΩ
D85: Total Gate Charge, QG | E85: 42.6 | F85: nC
D86: Gate-Drain Charge, QGD | E86: 4.8 | F86: nC
D87: Gate-Source Charge, QGS | E87: 8.4 | F87: nC
D88: Output Capacitance, COSS | E88: 675 | F88: pF
D89: Gate Resistance, RG | E89: 2 | F89: Ω
D90: Transconductance, gFS | E90: 30 | F90: S
D91: Gate-Source Threshold Voltage, VGS(TH) | E91: 3 | F91: V
D92: Body Diode Forward Voltage, VBD1 | E92: 0.7 | F92: V
D93: Thermal Resistance, θJA | E93: 60 | F93: °C/W
D95: Low-Side MOSFET (Q2) Specifications | E95: SM4036
D96: On-State Resistance, RDS(on) | E96: 2.2 | F96: mΩ
D97: Total Gate Charge, QG | E97: 50 | F97: nC
D98: Output Charge, QOSS | E98: 36 | F98: nC
D99: Output Capacitance, COSS | E99: 772 | F99: pF
D100: Body Diode Forward Voltage, VBD2 | E100: 0.75 | F100: V
D101: Body Diode Recovery Charge, QRR | E101: 33.2 | F101: nC
D102: Thermal Resistance, θJA | E102: 60 | F102: °C/W
D103: Antiparallel Schottky Diode (if applicable)
D104: Schottky Diode Forward Voltage, VSD | E104: 0 | F104: V
D105: Schottky Diode Recovery Charge, QRR2 | E105: 0 | F105: nC

Sheet Schematic & BOM
B34: ** Tie SYNCIN to VCC and GND for CCM and DCM operation, respectively **
A35: ="VIN = "&Vin&" V, VOUT = "& Vout &" V, IOUT = " &Iout & " A, Fsw = " & Fsw/1000 &" kHz, Current Limit = "&ROUNDUP(DC_Current_Limit_Setpoint,0)&" A" -> VIN = 27.5 V, VOUT = 4.5 V, IOUT = 16 A, Fsw = 250 kHz, Current Limit = 21 A
A36: Wide VIN, High Efficiency Synchronous Buck Regulator BOM
A37: Count | B37: Ref Des | C37: Value | D37: Description | H37: Size | I37: Part Number | J37: MFR | K37: Footprint (mm) | L37: Area (mm2)
A38: 1 | B38: CBOOT | C38: 0.1 | D38: =C38 -> 0.1 | I38: Std | J38: Std | K38: =CHOOSE(Q38, 'Variable Management'!N69,'Variable Management'!N70,'Variable Management'!N71) -> 1.6 x 0.8 | L38: =CHOOSE(Q38, 'Variable Management'!O69,'Variable Management'!O70,'Variable Management'!O71) -> 1.3 | Q38: 2
A39: 1 | B39: CC1 | C39: ='Design Regulator'!D74 -> 3900 | D39: 3900 | I39: Std | J39: Std | K39: =CHOOSE(Q39, 'Variable Management'!N69,'Variable Management'!N70,'Variable Management'!N71) -> 1.0 x 0.5 | L39: =CHOOSE(Q39, 'Variable Management'!O69,'Variable Management'!O70,'Variable Management'!O71) -> 0.5 | Q39: 1
A40: 1 | B40: CC2 | C40: ='Design Regulator'!D75 -> 120 | D40: 120 | I40: Std | J40: Std | K40: =CHOOSE(Q40, 'Variable Management'!N69,'Variable Management'!N70,'Variable Management'!N71) -> 1.0 x 0.5 | L40: =CHOOSE(Q40, 'Variable Management'!O69,'Variable Management'!O70,'Variable Management'!O71) -> 0.5 | Q40: 1
A41: 1 | B41: CC3 | C41: ='Design Regulator'!D77 -> 1200 | D41: 1200 | I41: Std | J41: Std | K41: =CHOOSE(Q41, 'Variable Management'!N69,'Variable Management'!N70,'Variable Management'!N71) -> 1.0 x 0.5 | L41: =CHOOSE(Q41, 'Variable Management'!O69,'Variable Management'!O70,'Variable Management'!O71) -> 0.5 | Q41: 1
A42: 1 | B42: CS | C42: ='Variable Management'!B270 -> 27pF | D42: ="Capacitor, Ceramic, "&'Variable Management'!B270&", 100V, X7R, 20%" -> Capacitor, Ceramic, 27pF, 100V, X7R, 20% | I42: Std | J42: Std | K42: =CHOOSE(Q42, 'Variable Management'!N69,'Variable Management'!N70,'Variable Management'!N71) -> 1.6 x 0.8 | L42: =CHOOSE(RDSON_sense,CHOOSE(Q42,'Variable Management'!O69,'Variable Management'!O70,'Variable Management'!O71),0) -> 1.3 | Q42: 2
A43: =ROUNDUP('Design Regulator'!E41/10,0) -> 3 | B43: CIN | C43: ='Variable Management'!B249 -> 4.7µF | D43: =CHOOSE(Cin_Voltage_Rating, "Capacitor, Ceramic, "&'Variable Management'!B249&", 10V, X7R, 10%", "Capacitor, Ceramic, "&'Variable Management'!B249&", 16V, X7R, 10%", "Capacitor, Ceramic, "&'Variable Management'!B249&", 25V, X7R, 10%", "Capacitor, Ceramic, "&'Variable Management'!B249&", 50V, X7R, 10%", "Capacitor, Ceramic, "&'Variable Management'!B249&", 100V, X7S, 10%") -> Capacitor, Ceramic, 4.7µF, 50V, X7R, 10% | I43: Std | J43: Std | K43: =CHOOSE(Q43, 'Variable Management'!N69,'Variable Management'!N70,'Variable Management'!N71,'Variable Management'!N72,'Variable Management'!N73) -> 3.2 x 2.5 | L43: =CHOOSE(Q43, 'Variable Management'!O69,'Variable Management'!O70,'Variable Management'!O71,'Variable Management'!O72,'Variable Management'!O73)*A43 -> 24 | Q43: 5
A44: ='Variable Management'!D242 -> 3 | B44: COUT | C44: ='Variable Management'!F243 -> 100µF | D44: =CHOOSE(Cout_Voltage_Rating, "Capacitor, Ceramic, "&'Variable Management'!B244&", 6.3V, X7R, 10%", "Capacitor, Ceramic, "&'Variable Management'!B244&", 10V, X7R, 10%", "Capacitor, Ceramic, "&'Variable Management'!B244&", 16V, X7R, 10%", "Capacitor, Ceramic, "&'Variable Management'!B244&", 25V, X7R, 10%", "Capacitor, Ceramic, "&'Variable Management'!B244&", 50V, X7R, 10%", "Capacitor, Ceramic, "&'Variable Management'!B244&", 100V, X7R, 10%") -> Capacitor, Ceramic, 100µF, 6.3V, X7R, 10% | I44: Std | J44: Std | K44: =CHOOSE(Q44, 'Variable Management'!N69,'Variable Management'!N70,'Variable Management'!N71,'Variable Management'!N72,'Variable Management'!N73) -> 3.2 x 2.5 | L44: =CHOOSE(Q44, 'Variable Management'!O69,'Variable Management'!O70,'Variable Management'!O71,'Variable Management'!O72,'Variable Management'!O73)*A44 -> 24 | Q44: 5
A45: 1 | B45: CSS | C45: ='Design Regulator'!E49 -> 47 | D45: =C45 -> 47 | I45: Std | J45: Std | K45: =CHOOSE(Q45, 'Variable Management'!N69,'Variable Management'!N70,'Variable Management'!N71) -> 1.6 x 0.8 | L45: =CHOOSE(Q45, 'Variable Management'!O69,'Variable Management'!O70,'Variable Management'!O71) -> 1.3 | Q45: 2
A46: 1 | B46: CVCC | C46: 2.2 | D46: 2.2 | I46: Std | J46: Std | K46: =CHOOSE(Q46, 'Variable Management'!N69,'Variable Management'!N70,'Variable Management'!N71) -> 2.0 x 1.25 | L46: =CHOOSE(Q46, 'Variable Management'!O69,'Variable Management'!O70,'Variable Management'!O71) -> 2.5 | Q46: 3
A47: 1 | B47: CVIN | C47: 0.1 | D47: 0.1 | I47: Std | J47: Std | K47: =CHOOSE(Q47, 'Variable Management'!N69,'Variable Management'!N70,'Variable Management'!N71) -> 1.6 x 0.8 | L47: =CHOOSE(Q47, 'Variable Management'!O69,'Variable Management'!O70,'Variable Management'!O71) -> 1.3 | Q47: 2
A48: 1 | B48: LF | C48: ='Design Regulator'!E17 -> 3.3 | D48: ="Inductor, "&Lout2*1000000&"µH, "&Rdcr*1000&"mΩ, >"&ROUNDUP(Ilsat,0)&"A" -> Inductor, 3.3µH, 4.4mΩ, >28A | I48: Various | J48: Various | K48: =CHOOSE(Q48, 'Variable Management'!N78,'Variable Management'!N79,'Variable Management'!N80, 'Variable Management'!N81, 'Variable Management'!N82, 'Variable Management'!N83, 'Variable Management'!N84, 'Variable Management'!N85) -> 10.0 x 10.0 | L48: =CHOOSE(Q48, 'Variable Management'!O78,'Variable Management'!O79,'Variable Management'!O80, 'Variable Management'!O81, 'Variable Management'!O82, 'Variable Management'!O83, 'Variable Management'!O84, 'Variable Management'!O85) -> 100 | Q48: 7
A49: =R49 -> 1 | B49: Q1 | C49: See description | D49: ='Design Regulator'!E84 -> 3.8 | I49: ='Design Regulator'!E83 -> SM4032 | J49: TI | K49: =CHOOSE(Q49, 'Variable Management'!N48,'Variable Management'!N49,'Variable Management'!N50,'Variable Management'!N51) -> 5.0 x 6.0 | L49: =CHOOSE(Q49, 'Variable Management'!O48,'Variable Management'!O49,'Variable Management'!O50,'Variable Management'!O51)*R49 -> 30 | Q49: 1 | R49: 1
A50: =R50 -> 1 | B50: Q2 | C50: See description | D50: ='Design Regulator'!E96 -> 2.2 | I50: ='Design Regulator'!E95 -> SM4036 | J50: TI | K50: =CHOOSE(Q50, 'Variable Management'!N48,'Variable Management'!N49,'Variable Management'!N50,'Variable Management'!N51) -> 5.0 x 6.0 | L50: =CHOOSE(Q50, 'Variable Management'!O48,'Variable Management'!O49,'Variable Management'!O50,'Variable Management'!O51)*R50 -> 30 | Q50: 1 | R50: 1
A52: 1 | B52: RC1 | C52: ='Design Regulator'!D73 -> 11 | D52: =C52 -> 11 | I52: Std | J52: Std | K52: =CHOOSE(Q52, 'Variable Management'!N69,'Variable Management'!N70,'Variable Management'!N71) -> 1.0 x 0.5 | L52: =CHOOSE(Q52, 'Variable Management'!O69,'Variable Management'!O70,'Variable Management'!O71) -> 0.5 | Q52: 1
A53: 1 | B53: RC2 | C53: ='Design Regulator'!D76 -> 4530 | D53: 4530 | I53: Std | J53: Std | K53: =CHOOSE(Q52, 'Variable Management'!N69,'Variable Management'!N70,'Variable Management'!N71) -> 1.0 x 0.5 | L53: =CHOOSE(Q53, 'Variable Management'!O69,'Variable Management'!O70,'Variable Management'!O71) -> 0.5 | Q53: 1
A54: 1 | B54: RILIM | C54: ='Design Regulator'!E25 -> 205 | D54: 205 | I54: Std | J54: Std | K54: =CHOOSE(Q52, 'Variable Management'!N69,'Variable Management'!N70,'Variable Management'!N71) -> 1.0 x 0.5 | L54: =CHOOSE(Q54, 'Variable Management'!O69,'Variable Management'!O70,'Variable Management'!O71) -> 2.5 | Q54: 3
A55: 1 | B55: RRT | C55: ='Design Regulator'!E13 -> 40.2 | D55: 40.2 | I55: Std | J55: Std | K55: =CHOOSE(Q55, 'Variable Management'!N69,'Variable Management'!N70,'Variable Management'!N71) -> 1.0 x 0.5 | L55: =CHOOSE(Q55, 'Variable Management'!O69,'Variable Management'!O70,'Variable Management'!O71) -> 0.5 | Q55: 1
A56: 1 | B56: RFB1 | C56: ='Design Regulator'!E62 -> 21 | D56: 21 | I56: Std | J56: Std | K56: =CHOOSE(Q56, 'Variable Management'!N69,'Variable Management'!N70,'Variable Management'!N71) -> 1.0 x 0.5 | L56: =CHOOSE(Q56, 'Variable Management'!O69,'Variable Management'!O70,'Variable Management'!O71) -> 0.5 | Q56: 1
A57: 1 | B57: RFB2 | C57: ='Design Regulator'!E63 -> 4.53 | D57: 4.53 | I57: Std | J57: Std | K57: =CHOOSE(Q57, 'Variable Management'!N69,'Variable Management'!N70,'Variable Management'!N71) -> 1.0 x 0.5 | L57: =CHOOSE(Q57, 'Variable Management'!O69,'Variable Management'!O70,'Variable Management'!O71) -> 0.5 | Q57: 1
A58: 1 | B58: RPGOOD | C58: 20 | D58: 20 | I58: Std | J58: Std | K58: =CHOOSE(Q58, 'Variable Management'!N69,'Variable Management'!N70,'Variable Management'!N71) -> 1.0 x 0.5 | L58: =CHOOSE(Q58, 'Variable Management'!O69,'Variable Management'!O70,'Variable Management'!O71) -> 0.5 | Q58: 1
A59: 1 | B59: RS | C59: ='Design Regulator'!E23 -> 6 | D59: 6 | H59: 1206 | I59: Std | J59: Std | K59: 3.2 x 1.6 | L59: =CHOOSE(RDSON_sense, 0,5.1) -> 0
A60: 1 | B60: RUV1 | C60: ='Design Regulator'!E52 -> 200 | D60: 200 | I60: Std | J60: Std | K60: =CHOOSE(Q60, 'Variable Management'!N69,'Variable Management'!N70,'Variable Management'!N71) -> 1.6 x 0.8 | L60: =CHOOSE(Q60, 'Variable Management'!O69,'Variable Management'!O70,'Variable Management'!O71) -> 1.3 | Q60: 2
A61: 1 | B61: RUV2 | C61: ='Design Regulator'!E53 -> 17.4 | D61: 17.4 | I61: Std | J61: Std | K61: =CHOOSE(Q61, 'Variable Management'!N69,'Variable Management'!N70,'Variable Management'!N71) -> 1.0 x 0.5 | L61: =CHOOSE(Q61, 'Variable Management'!O69,'Variable Management'!O70,'Variable Management'!O71) -> 0.5 | Q61: 1
A62: 1 | B62: RVIN | C62: 2.2 | D62: 2.2 | I62: Std | J62: Std | K62: =CHOOSE(Q62, 'Variable Management'!N69,'Variable Management'!N70,'Variable Management'!N71) -> 1.0 x 0.5 | L62: =CHOOSE(Q62, 'Variable Management'!O69,'Variable Management'!O70,'Variable Management'!O71) -> 0.5 | Q62: 1
A63: 1 | B63: U1 | C63: =CHOOSE(VARIANT, "LM5145", "LM5145-Q1", "LM25145", "LM5146", "LM5146-Q1") -> LM25145 | D63: =CHOOSE(VARIANT, "IC, LM5145, PWM Controller, 6V-75V Input", "IC, LM5145-Q1, PWM Controller, 6V-75V Input", "IC, LM25145, PWM Controller, 6V-42V Input", "IC, LM5146 PWM Controller, 5.5V-100V Input", "IC, LM5146-Q1, PWM Controller, 5.5V-100V Input") -> IC, LM25145, PWM Controller, 6V-42V Input | H63: VQFN-20 | I63: =CHOOSE(VARIANT, "LM5145RGYR", "LM5145QRGYRQ1", "LM25145RGYR", "LM5146RGYR", "LM5146QRGYRQ1",) -> LM25145RGYR | J63: TI | K63: 3.5 x 4.5 x 1.0 | L63: 15.75
I65: Total Solution Size (buffered by 25%) | L65: =SUM(L38:L63)*1.25 -> 300.9375 | M65: mm2 = | N65: =L65/25.4/25.4 -> 0.4664540579 | O65: in2
A66: NOTES:
A67: ** Inductor saturation current should be higher than the current limit setpoint at all operating temperatures **
A68: ** Effective output capacitance should be appropriately derated for applied voltage and temperature, particularly with ceramics **
Q455: 2

Sheet EVMs
A1: LM(2)5145/6/-Q1 Quickstart Calculator
B3: LM5146-Q1-EVM12V
B46: LM5145EVM-HD-20A PCB Layout
O50: Top
O51: Layer | Y51: x
O76: Layer 2
O102: Layer 3
O129: Bottom

Sheet Variable Management (hidden)
A1: Excel Variables Names/Calculations
B2: Input from user =
B3: Output =
B4: Constant
A5: Variable Name | B5: Value | C5: STD Units | D5: Notes | H5: iteration
A6: Step 1: Operational Specs
A7: Vin | B7: ='Design Regulator'!E7 -> 27.5 | C7: V | D7: Nominal input voltage | H7: 1 | U7: LM5145 | V7: 1
A8: Vinmin | B8: ='Design Regulator'!E6 -> 25 | C8: V | D8: Min input voltage | U8: LM5145-Q1 | V8: 2
A9: Vinmax | B9: ='Design Regulator'!E8 -> 30 | C9: V | D9: Max input voltage | U9: LM25145 | V9: 3
A10: Vout | B10: ='Design Regulator'!E9 -> 4.5 | C10: V | D10: Output Voltage | H10: 1 | U10: LM5146 | V10: 4
A11: Iout | B11: ='Design Regulator'!E10 -> 16 | C11: A | D11: Maximum output Current | H11: 1 | U11: LM5146-Q1 | V11: 5
A12: Fsw | B12: =IF(AND('Design Regulator'!E12<='Design Regulator'!E11*1.5, 'Design Regulator'!E12>='Design Regulator'!E11*0.8), 'Design Regulator'!E12*1000, 'Design Regulator'!E11*1000) -> 250000 | C12: Hz | D12: Nominal Operational Frequency | H12: 1 | T12: VARIANT | U12: =CHOOSE(VARIANT, "LM5145", "LM5145-Q1", "LM25145", "LM5146", "LM5146-Q1") -> LM25145 | V12: 3
A13: Fsw_freerunning | B13: ='Design Regulator'!E11*1000 -> 250000 | C13: Hz | D13: Free-running switching frequency | T13: VIN-MAX | U13: =CHOOSE(VARIANT, 75, 75, 42, 100, 100) -> 42 | V13: V
A14: Vref | B14: 0.8 | C14: V | D14: Reference Voltage | T14: VIN-MIN | U14: =CHOOSE(VARIANT, 6, 6, 6, 5.5, 5.5) -> 6 | V14: V
A15: R_RT | B15: =1/(B13*0.0000000001) -> 40000 | C15: W | T15: VOUT-MAX | U15: =CHOOSE(VARIANT, 60, 60, 42, 60, 60) -> 42 | V15: V
A17: Ton at Vin-max | B17: =B38/Fsw*1000000000 -> 614.6044625 | C17: ns
A18: Toff at Vin-min | B18: =B37/Fsw*1000000000 -> 3262.348645 | C18: ns
A22: Step 2: Inductor
A23: Don1 | B23: =Vout/Vin -> 0.1636363636 | C23: index | D23: ideal Duty Cycle | H23: 1
A24: Doff1 | B24: =1-23:23 -> 0.8363636364 | C24: index | D24: Ideal 1- Duty Cycle | H24: 1
A25: Don_Vinmin | B25: =Vout/Vinmin -> 0.18
A26: Doff_Vinmin | B26: =1-B25 -> 0.82
A27: Don_Vinmax | B27: =Vout/Vinmax -> 0.15
A28: Doff_Vinmax | B28: =1-B27 -> 0.85
A30: Lout1 | B30: =(Vin-Vout)*_Don1/(Fsw*Iout*0.333) -> 2.825552826e-06 | C30: H | D30: Calculated Inductor value for 30% ripple | H30: 1
A31: Lout2 | B31: ='Design Regulator'!E17/1000000 -> 3.3e-06 | C31: H | D31: Chosen Inductor Value | H31: 2
A32: Rdcr | B32: ='Design Regulator'!E18/1000 -> 0.0044 | C32: W | D32: DCR | H32: 1
A34: Don2 | B34: =(Vout+(Rdcr+RdsonBot)*Iout)/(Vin+(RdsonBot-RdsonTop)*Iout) -> 0.1676324142 | D34: Duty Cycle with DCR accounted for | H34: 2
A35: Doff2 | B35: =1-_Don2 -> 0.8323675858 | D35: 1-Duty Cycle with DCR accounted for | H35: 2
A36: Don2_Vinmin | B36: =(Vout+(Rdcr+RdsonBot)*Iout)/(Vinmin+(RdsonBot-RdsonTop)*Iout) -> 0.1844128387
A37: Doff2_Vinmin | B37: =1-B36 -> 0.8155871613
A38: Don2_Vinmax | B38: =(Vout+(Rdcr+RdsonBot)*Iout)/(Vinmax+(RdsonBot-RdsonTop)*Iout) -> 0.1536511156 | L38: Vout<5V | M38: 100 | N38: 1
A39: Doff2_Vinmax | B39: =1-B38 -> 0.8463488844 | L39: Vout<=8V | M39: 47 | N39: 2
L40: Vout<=12V | M40: 22 | N40: 3
A41: Vripple1 | B41: ='Design Regulator'!E30/1000 -> 0.02 | C41: V | D41: Choosen Initial Voltage ripple Value | H41: 1 | L41: Vout<=20V | M41: 22 | N41: 4
A42: Irripple1 | B42: =(Vin-Vout)*_Don2/(Fsw*Lout2) -> 4.673388516 | C42: A | D42: Ripple Current after Chosen inductor (p-p) | H42: 1 | L42: Vout<=42V | M42: 10 | N42: 5
A43: DCR at hot | B43: =Rdcr*(1+0.0039*(F43-25)) -> 0.005687 | C43: Ohms | E43: Temp | F43: 100 | L43: Vout<60V | M43: 4.7 | N43: 6
A44: TL | B44: =Lout2/Rdcr -> 0.00075 | C44: s | D44: L/R Time Constant | L44: Cout Capacitance | M44: =CHOOSE(N44,"100", "47","22","22","10", "4.7") -> 100 | N44: =IF(Vout<5, 1, IF(Vout<=8, 2, IF(Vout<=12, 3, IF(Vout<=20, 4, IF(Vout<=42, 5, 6))))) -> 1 | Q44: Quantity: 1 | R44: 1
Q45: Quantity: 2 | R45: 2
A46: Step 3: Current Limit
L48: SON 5 x 6 | M48: 1 | N48: 5.0 x 6.0 | O48: 30
A49: DC Current Limit Setpoint | B49: ='Design Regulator'!E24 -> 21 | L49: SON 3 x 3 | M49: 2 | N49: 3.3 x 3.3 | O49: 10.9
A50: Ilimit | B50: ='Design Regulator'!E24-Iripple1/2 -> 18.66330574 | C50: A | D50: Chosen current limit level - valley current | L50: DPAK, TO-252 | M50: 3 | N50: 10.0 x 6.6 | O50: 66
A51: Ilsat | B51: =ROUND('Design Regulator'!E24+Iripple1/2,0)*1.2 -> 27.6 | C51: A | L51: D2PAK, TO-263 | M51: 4 | N51: 15.0 x 10.0 | O51: 150
K52: MOSFET package | L52: =CHOOSE(M52, L48, L49, L50, L51) -> SON 5 x 6 | M52: 1
A53: Ilim1 | B53: 0.0002 | C53: A | D53: Current Limit Current Source - Rdson sensing
A54: Ilim2 | B54: 0.0001 | C54: A | D54: Current Limit Current Source - shunt sensing | L54: RDS(on) sensing | M54: 1
A55: Rilim_Rdson_ideal | B55: =ILimit*RdsonBot/Ilim1 -> 205.2963632 | C55: W | D55: Ideal Rset for the chosen current limit | L55: Shunt sensing | M55: 2
A56: Rilim_Rdson | B56: ='Standard Value Calculator'!S6 -> 205 | C56: W | D56: Standard value current limit set resistor | K56: Current Sensing | L56: =CHOOSE(RDSON_sense, L54,L55) -> RDS(on) sensing | M56: 1 | N56: 1 = Yes, 2 = No
A58: Rshunt | B58: ='Design Regulator'!E23/1000 -> 0.006 | C58: W
A59: Rilim_shunt_ideal | B59: =ILimit*Rshunt/Ilim2 -> 1119.798345 | C59: W | K59: Vout<5V | L59: 6.3V | M59: 1
A60: Rilim_shunt | B60: ='Standard Value Calculator'!S22 -> 1130 | C60: W | D60: Standard value current limit set resistor | K60: Vout<=8V | L60: 10V | M60: 2 | Q60: Vin(max)<=8V | R60: 10V | S60: 1
K61: Vout<=12V | L61: 16V | M61: 3 | Q61: Vin(max)<=12V | R61: 16V | S61: 2
A62: Power dissipation in the shunt | B62: =ROUND(((1-Don_Vinmax)*Iout)^2*Rshunt,2) -> 1.11 | C62: W | K62: Vout<=20V | L62: 25V | M62: 4 | Q62: Vin(max)<=20V | R62: 25V | S62: 3
A64: Cilim | B64: =0.000000006/Rilim_Rdson_ideal - 0.000000000002 -> 2.722604136e-11 | C64: F | D64: Choose cap for 6ns time constant | K64: Vout<=42V | L64: 50V | M64: 5 | Q64: Vin(max)<=42V | R64: 50V | S64: 4
A65: Cilim_ideal | B65: ='Standard Value Calculator'!S23 -> 27 | C65: pF | K65: Vout<60V | L65: 100V | M65: 6 | Q65: Vin(max)<100V | R65: 100V | S65: 5
A66: Ilimit2 | B66: =Ics*Rset/Rdcr-Iripple1/2 ->  | C66: A | D66: Current limit setpoint after standard components are selected | K66: Cout Voltage Rating | L66: =CHOOSE(M66,"6.3V","10V","16V","25V","50V","100V") -> 6.3V | M66: =IF(Vout<5, 1, IF(Vout<=8, 2, IF(Vout<=12, 3, IF(Vout<=20, 4, IF(Vout<=42, 5, 6))))) -> 1 | Q66: Cin Voltage Rating | R66: =CHOOSE(S66,"10V","16V","25V","50V","100V") -> 50V | S66: =IF(Vinmax<=8,1,IF(Vinmax<=12,2,IF(Vinmax<=20,3,IF(Vinmax<=42,4,5)))) -> 4
A68: Step 4: Output Capacitor
A69: Icoutrms | B69: =Iripple1/SQRT(3)/2 -> 1.349091059 | C69: A | D69: Output Cap rms current | L69: 0402 | M69: 1 | N69: 1.0 x 0.5 | O69: 0.5
A70: Coutmin | B70: =(Iripple1/(Vripple1*Fsw*8)) -> 0.0001168347129 | C70: F | D70: Minimum Output Capacitnace | H70: 1 | L70: 0603 | M70: 2 | N70: 1.6 x 0.8 | O70: 1.3
A71: Cout | B71: ='Design Regulator'!E32/1000000 -> 0.00022 | C71: F | D71: Choosen Output Capacitor | H71: 1 | L71: 0805 | M71: 3 | N71: 2.0 x 1.25 | O71: 2.5
A72: Resrmax | B72: =SQRT((Vripple1/Iripple1)^2-(1/(Fsw*Cout*8))^2) -> 0.003626190738 | C72: W | D72: Max ESR before ripple exceeds Vripple1 | H72: 1 | L72: 1206 | M72: 4 | N72: 3.2 x 1.6 | O72: 5.1
A73: CoutEsr | B73: ='Design Regulator'!E34/1000 -> 0.025 | C73: W | D73: Chosen ESR | H73: 1 | L73: 1210 | M73: 5 | N73: 3.2 x 2.5 | O73: 8
A74: Vripple | B74: =Iripple1*SQRT(CoutEsr^2+(1/(8*Fsw*Cout))^2) -> 0.1173165076 | C74: Vp-p | K74: Component Size | L74: =CHOOSE(M74,"0402","0603","0805","1206","1210") -> 1210 | M74: 5 | N74: =CHOOSE(M74,N69,N70, N71,N72,N73) -> 3.2 x 2.5
A77: Step 5: Input Capacitor
A78: Vinripple1 | B78: ='Design Regulator'!E39/1000 -> 0.8 | C78: Vp-p | L78: 3mm x 3mm | M78: 1 | N78: 3.0 x 3.0 | O78: 9
A79: Icinrms | B79: =Iout*SQRT(_Don2*Doff2) -> 5.976632639 | C79: A | L79: 4mm x 4mm | M79: 2 | N79: 4.0 x 4.0 | O79: 16
A80: Cinmin | B80: =Iout*_Don2*(1-_Don2)/(Vinripple1*Fsw) -> 1.116254303e-05 | C80: F | L80: 5mm x 5mm | M80: 3 | N80: 5.0 x 5.0 | O80: 25
A81: Cin | B81: ='Design Regulator'!E41/1000000 -> 3e-05 | C81: F | D81: Input capacitance | L81: 6mm x 6mm | M81: 4 | N81: 6.0 x 6.0 | O81: 36
A82: CinEsrMax | B82: =-(Iout*_Don2*(1-_Don2)/(Cin*Fsw)-Vinripple1)/(Iout+Iripple1/2) -> 0.02739491529 | C82: W | L82: 7mm x 7mm | M82: 5 | N82: 7.0 x 7.0 | O82: 49
A83: RCinEsr | B83: ='Design Regulator'!E43/1000 -> 0.001 | C83: W | D83: Input capacitance series resistance (ESR) | L83: 8mm x 8mm | M83: 6 | N83: 8.0 x 8.0 | O83: 64
A84: Vinripple2 | B84: =Iout*_Don2*(1-_Don2)/(Cin*Fsw)+(Iout +Iripple1/2)*RCinEsr -> 0.3160045084 | C84: Vp-p | L84: 10mm x 10mm | M84: 7 | N84: 10.0 x 10.0 | O84: 100
B85: =Iout*_Don1*(1-_Don1)/(Cin*Fsw) -> 0.2919669421 | L85: 12mm x 12mm | M85: 8 | N85: 12.0 x 12.0 | O85: 144
K86: Inductor Size | L86: =CHOOSE(M86,L78,L79, L80, L81, L82, L83, L84, L85) -> 12mm x 12mm | M86: 8 | N86: =CHOOSE(M86,N78,N79, N80,N81,N82, N83, N84, N85) -> 12.0 x 12.0
A87: Step 6: Soft Start
A88: Tss | B88: ='Design Regulator'!E48/1000 -> 0.004 | C88: s | D88: Soft Start Time
A89: Iss | B89: =Cout*Vout/Tss -> 0.2475 | C89: A | D89: Load Cap current during soft start
A90: Css | B90: =0.00001*Tss/0.8 -> 5e-08 | C90: F
A91: Css_u | B91: ='Standard Value Calculator'!B4 -> 4.7e-08 | C91: F
A93: Step 7: Other Components
A95: VINUVLO_ON | B95: ='Design Regulator'!E50 -> 15 | C95: V
A96: VINUVLO_OFF | B96: ='Design Regulator'!E51 -> 13 | C96: V
A97: RUV1 | B97: =(VINuvlo_off-VINuvlo_on*Vuvlo_off/Vuvlo_on)/(Iuvlo1*Vuvlo_off/Vuvlo_on-Iuvlo2) -> 200 | C97: kΩ | D97: ='Standard Value Calculator'!S16 -> 200 | E97: kΩ | F97: =IF(Ruvlo1<0,"N/A",D97) -> 200 | G97: =IF(Ruvlo1<0,"N/A",D97&"kΩ") -> 200kΩ
A98: RUV2 | B98: =D97*Vuvlo_on/(VINuvlo_on-Vuvlo_on+Ruvlo1*Iuvlo1) -> 17.39130435 | C98: kΩ | D98: ='Standard Value Calculator'!S17 -> 17.4 | E98: kΩ | F98: =IF(F97="N/A","N/A",D98) -> 17.4 | G98: =IF(G97="N/A","N/A",D98&"kΩ") -> 17.4kΩ
A100: VINUVLO_ON_ACTUAL | B100: =(D97+D98)/D98*Vuvlo_on-Iuvlo1*D97 -> 14.99310345
A101: VINUVLO_OFF_ACTUAL | B101: =(D97+D98)/D98*Vuvlo_off-Iuvlo2*D97 -> 12.99310345
A104: Rising UVLO/EN Threshold | B104: 1.2
A105: Falling UVLO/EN Threshold | B105: 1.2
A106: Falling UVLO/EN Threshold | B106: =B104-B105 -> 0
A107: UVLO/EN Current Hysteresis | B107: 0
A108: Falling UVLO/EN Falling | B108: 0.01
A109: Rising UVLO/EN Hysteresis | B109: =B108-B107 -> 0.01
A111: RPG | C111: W
A112: RSB | C112: W
A113: Rh | C113: W
A114: Rotp | B114: =80700/(Totp+273)*398 ->  | C114: W
A117: CSBY | B117: 100 | C117: pF
A121: Step 8: Compensation
A122: Eadcg | B122: 10000 | C122: V/V | D122: Error Amplifier Finite DC Gain (AOL)
A123: GBP | B123: 5000000 | C123: Hz | D123: Error Amplifier Gain Bandwidth Product (GBW)
A124: Chosen Crossover | B124: ='Design Regulator'!E60*1000 -> 45000 | C124: Hz
A125: Kmidband | B125: =Fcross/Fo/15 -> 0.525884688 | C125: V/V | D125: Midband Gain For the Error Amplifier | H125: 1
A126: Rfb1 | B126: ='Design Regulator'!E62*1000 -> 21000 | C126: W | D126: Top Feedback Resistor | H126: 1
A127: Rfb2 | B127: =IF(Vout=Vref,100000000,Vref/((Vout-Vref)/_Rfb1)) -> 4540.540541 | C127: W | D127: Lower Feedback Resistor
A128: Rfb2_u | B128: =IF(Vout=Vref,"N/A",'Standard Value Calculator'!S11) -> 4530 | C128: W | D128: Calculated Lower Feedback Resistor
A129: Vout_actual | B129: =0.8/Rfb2_u*(Rfb2_u+_Rfb1) -> 4.508609272 | C129: V | D129: Actual VOUT
A131: Vramp | B131: =Vin/15 -> 1.833333333 | C131: Vp-p | D131: Peak-to-Peak Ramp Voltage of PWM
A132: Rcea1 | B132: =Kmidband*_Rfb1 -> 11043.57845 | C132: W | D132: This component will first set the midband gain | H132: 1
A133: Cc1ea | B133: =1/(Rcea1*('Design Regulator'!E66*1000)*2*Pi) -> 3.60895563e-09 | C133: F | D133: This along with Rcea1 will set a zero | H133: 1
A134: Cc2ea | B134: =1/((Rcea1*2*Pi*'Design Regulator'!E69*1000)-1/Cc1ea) -> 1.190969912e-10 | C134: F | H134: 1
A135: Rcea2 | B135: =(1/(1000*2*Pi*'Design Regulator'!E68))*_Rfb1/(1/('Design Regulator'!E67*1000*2*Pi)-(1/(1000*2*Pi*'Design Regulator'!E68))) -> 4529.599417 | C135: W | H135: 1
A136: Cc3ea | B136: =(1/(1000*2*Pi*'Design Regulator'!E68))/Rcea2 -> 1.214235409e-09 | C136: F | H136: 1
A138: Choosen Compensation Components from the standard value sheet
A139: Rcea1_u | B139: ='Design Regulator'!D73*1000 -> 11000 | C139: W | H139: 2
A140: Cc1ea_u | B140: ='Design Regulator'!D74*0.000000000001 -> 3.9e-09 | C140: F | H140: 2
A141: Cc2ea_u | B141: ='Design Regulator'!D75*0.000000000001 -> 1.2e-10 | C141: F | H141: 2
A142: Rcea2_u | B142: ='Design Regulator'!D76 -> 4530 | C142: W | H142: 2
A143: Cc3ea_u | B143: ='Design Regulator'!D77*0.000000000001 -> 1.2e-09 | C143: F | H143: 2
A145: Resulting Poles/Zero/Q Locations | D145: =Cout -> 0.00022 | E145: =CoutEsr -> 0.025
A146: Fo | B146: =SQRT((Rfets+Rdcr+Ro)/(Cout*Lout2*(CoutEsr+Ro)))/(2*Pi) -> 5704.672656 | C146: Hz | D146: LC Double Pole Location
A147: Q | B147: =(Rfets+Rdcr+Ro)/(Lout2+Cout*(Rdcr+Rfets)*(CoutEsr+Ro)+Cout*CoutEsr*Ro)/(Fo*2*Pi) -> 1.549446719 | C147: V/V | D147: Quality Factor of LC output Filter
A148: Fesr | B148: =1/(2*Pi*Cout*CoutEsr) -> 28937.26241 | C148: Hz | D148: Cout ESR Zero Location
A149: Fz1 | B149: =1/(2*Pi*Rcea1_u*Cc1ea_u) -> 3709.905438 | C149: Hz | D149: This zero is set at or below the double pole location
A150: Fz2 | B150: =1/(2*Pi*Cc3ea_u*(_Rfb1+Rcea2_u)) -> 5195.030137 | C150: Hz | D150: This zero is set at or below the double pole location
A151: Fp1 | B151: =1/(2*Pi*Rcea2_u*Cc3ea_u) -> 29277.9513 | C151: Hz | D151: This pole cancels the zero from the Output Cap ESR
A152: Fp2 | B152: =1/(2*Pi*Rcea1_u*(Cc1ea_u*Cc2ea_u/(Cc1ea_u+Cc2ea_u))) -> 124281.8322 | C152: Hz | D152: This pole is set at half the switching frequency
A153: Ro | B153: =Vout/(Iout+Vref/_Rfb2) -> 0.2812469029 | D153: Output Resistance
A154: Pi | B154: 3.14159265 | D154: PI
A155: Other Input Variables
A156: Rfets | B156: 0 | C156: W | D156: Series resistance due to FETs | G156: =_Don2*RdsonTop+Doff2*RdsonBot+B161*Vin^2*Fsw/2/(((Iripple1/SQRT(3))^2)) -> 0.06739185555
A158: Diode loss eq res | B158: =0.00000002*Fsw*0.6*4/Iripple1 -> 0.002567730022
A159: Fet loss eq res | B159: =_Don2*RdsonTop+Doff2*RdsonBot -> 0.002468211863
A160: cap loss eq res | B160: =B161*Vin^2*Fsw/2/(((Iripple1/SQRT(3))^2)) -> 0.06492364369
A161: Sw cap | B161: 5e-09
A164: Step 8: Efficiency
A166: Design
A167: Ta | B167: 25 | D167: Ambient Temperature
A168: Components
A169: LTc | B169: =4000/1000000 -> 0.004 | C169: %/°C | D169: Inductor Series Resistance Temp Co
A170: ThetaCa | B170: 20 | C170: °C/W | D170: Core to Ambient Thermal Resistance
A171: RCinEsr | B171: =RCinEsr -> 0.001 | C171: W | D171: Input Capacitor Series Resistance
A172: Part Characteristics
A173: Vcc | B173: 7.5
A174: Top Driver
A175: RdsonDRT | B175: 1 | C175: W | D175: Drain to Source Resistance of pull up Top FET Driver
A176: RdsonDRT2 | B176: 0.9 | C176: W | D176: Drain to Source Resistance of pull down Top FET Driver
A177: Bottom Driver
A178: RdsonDRB | B178: 1 | C178: W | D178: Drain to Source Resistance of pull up Top FET Driver
A179: RdsonDRB2 | B179: 0.9 | C179: W | D179: Drain to Source Resistance of pull down Top FET Driver
A180: Deadtime | D180: Output Capacitor Capcitance
A181: Deadtime | B181: 3e-08 | C181: s | D181: Total Deadtime
A182: IQ
A183: IQ | B183: 0.003 | C183: A | D183: Quiescent Current Of Controller (Not Switching!)
A184: Top FET
A185: RdsonTop | B185: ='Design Regulator'!E84/1000 -> 0.0038 | C185: W | D185: Drain to Source Resistance of Top FET
A186: RdsonTopTc | B186: =4000/1000000 -> 0.004 | C186: %/°C | D186: Drain to Source Resistance Temp Co
A187: QgTop | B187: ='Design Regulator'!E85/1000000000 -> 4.26e-08 | C187: C | D187: Gate Charge Of Top FET
A188: QgdTop | B188: ='Design Regulator'!E86/1000000000 -> 4.8e-09 | C188: C | D188: Gate to Drain Charge
A189: QgsTop | B189: ='Design Regulator'!E87/1000000000 -> 8.4e-09 | C189: C | D189: Gate to Source Charge
A190: CossTop | B190: ='Design Regulator'!E88/1000000000000 -> 6.75e-10 | C190: F | D190: Output Capacitance of High-side FET
A191: RGateTop | B191: ='Design Regulator'!E89 -> 2 | C191: W | D191: Gate Resistance of High-side FET
A192: GfsTop | B192: ='Design Regulator'!E90 -> 30 | C192: S | D192: Transconductance of Top FET
A193: VthTop | B193: ='Design Regulator'!E91 -> 3 | C193: V | D193: Threshold Voltage of Top FET
A194: VspTop | B194: =VthTop+Iout/GmTop -> 3.533333333 | C194: V | D194: Switch Point Voltage of Top FET
A195: VsdTop | B195: ='Design Regulator'!E92 -> 0.7 | C195: V | D195: Diode Forward Voltage of Top FET Body diode
A196: ThetaJaTop | B196: ='Design Regulator'!E93 -> 60 | C196: °C/W | D196: Junction to Ambient Resistance
A197: Bottom FET
A198: RdsonBot | B198: ='Design Regulator'!E96/1000 -> 0.0022 | C198: W | D198: Drain To Source Resistance of Bottom FET Driver
A199: RdsonBotTc | B199: =4000/1000000 -> 0.004 | C199: %/°C | D199: Drain To Source Resitance Temp Co
A200: QgBot | B200: ='Design Regulator'!E97/1000000000 -> 5e-08 | C200: C | D200: Gate Charge Of Bottom FET | J200: =RGateTop -> 2
A201: QossBot | B201: ='Design Regulator'!E98/1000000000 -> 3.6e-08 | C201: C | D201: Output Charge Of Bottom FET
A202: CossBot | B202: ='Design Regulator'!E99/1000000000000 -> 7.72e-10 | C202: F | D202: Output Capacitance Of Bottom FET
A203: RGateBot | B203: 1 | C203: W | D203: Gate Resistance
A204: VsdBot | B204: ='Design Regulator'!E100 -> 0.75 | C204: V | D204: Diode Forward Voltage of Bottom FET Body Diode
A205: QrrBot | B205: ='Design Regulator'!E101/1000000000 -> 3.32e-08 | C205: C | D205: Reverse Recovery Charge of Body Diode
A206: TrrBot | B206: 4e-08 | C206: s | D206: Reverse Recovery Time of Body Diode
A207: ThetaJaBot | B207: ='Design Regulator'!E102 -> 60 | C207: °C/W | D207: Junction to Ambient Resistance
A208: Bottom Schottky
A209: VfdSky | B209: ='Design Regulator'!E104 -> 0 | C209: V | D209: Diode Forward Voltage
A210: QrrSky | B210: ='Design Regulator'!E105/1000000000 -> 0 | C210: C | D210: Diode Reverse Recovery Charge
A211: Ireverse | B211: 0 | C211: A | D211: Reverse Leakage Current
A212: Controller
A213: ThetaJaCtrl | B213: 30
A214: Outputs
A215: Top FET
A216: Tr | B216: =(QgdTop+QgsTop/2)*(RdsonDRT+RGateTop)/(Vdd-VspTop) -> 6.806722689e-09 | C216: s
A217: Tf | B217: =(QgdTop+QgsTop/2)*(RdsonDRT+RGateTop)/(VspTop) -> 7.641509434e-09 | C217: s
A220: Part Power Disipation | B220: Value | C220: Units
A221: Power Dis | B221: ='Power Calculations'!AN9 -> 0.719125 | C221: W
A222: Temp rise | B222: =B221*ThetaJaCtrl -> 21.57375 | C222: °C
A223: Current (switching) | B223: =(QgBot+QgTop)*Fsw+Iq -> 0.02615 | C223: A
A224: Qrr Current | B224: =QrrBot*Fsw -> 0.0083 | C224: A
A225: Diode Current | B225: =C225/Vin -> 0.0001649770207 | C225: =Deadtime*Fsw*(Ipp/2)*(VsdTop+VsdBot) -> 0.00453686807
A226: Total Application Switching IQ | B226: =SUM(B223:B225) -> 0.03461497702 | C226: A
A232: Bottom FET/Diode
A233: Part Power
A234: Power Dis
A236: SCHEMATIC LABELS
A237: ="RC1 = "&'Design Regulator'!D73&"kΩ" -> RC1 = 11kΩ | B237: ='Design Regulator'!D73&"kΩ" -> 11kΩ
A238: ="LOUT = "&'Design Regulator'!E17&"uH" -> LOUT = 3.3uH | B238: ='Design Regulator'!E17&"µH" -> 3.3µH
... 59 more rows

Sheet Standard Value Calculator (hidden)
A2: Capacitors | B2: Css | C2: Cc1ea | D2: Cc2ea | E2: Cc3ea | F2: Cout | G2: Cin | H2: Cilim | I2: Cdd | J2: Csb | K2: Csby | L2: Cby | M2: Cb | N2: Sugested Cs
A3: Inputs | B3: =Css -> 5e-08 | C3: =Cc1ea -> 3.60895563e-09 | D3: =Cc2ea -> 1.190969912e-10 | E3: =Cc3ea -> 1.214235409e-09 | F3: =Cout -> 0.00022 | G3: =Cin -> 3e-05 | H3: =Cilim -> 2.722604136e-11 | I3: =Cdd -> 0 | J3: =Csb -> 0 | K3: =Csby -> 100 | L3: =Cby -> 0 | M3: =Cb -> 0 | N3: ='Variable Management'!#REF! ->  | Q3: Resistors | R3: inputs | S3: Standard Result
A4: Standard Result | B4: =SUM(B6:B158)/1000000000000 -> 4.7e-08 | C4: =SUM(C6:C158)/1000000000000 -> 3.9e-09 | D4: 1.2e-10 | E4: 1.2e-09 | F4: 0.00022 | G4: 3.3e-05 | H4: 2.7e-11 | I4: =IF(I3="OPEN","OPEN",SUM(I6:I158)/1000000000000) -> 0 | J4: 0 | K4: 0 | L4: 0 | M4: 0 | Q4: Radj | R4: =Rfadj -> 40000 | S4: =IF(R4>(INT(0.5+100*POWER(10,IF(96*(LOG(R4)-INT(LOG(R4)))-ROUND(96*(LOG(R4)-INT(LOG(R4))),0)<0,ROUND(96*(LOG(R4)-INT(LOG(R4))),0)-1,ROUND(96*(LOG(R4)-INT(LOG(R4))),0))/96))*POWER(10,INT(LOG(R4))-2)+INT(0.5+100*POWER(10,(IF(96*(LOG(R4)-INT(LOG(R4)))-ROUND(96*(LOG(R4)-INT(LOG(R4))),0)<0,ROUND(96*(LOG(R4)-INT(LOG(R4))),0)-1,ROUND(96*(LOG(R4)-INT(LOG(R4))),0))+1)/96))*POWER(10,INT(LOG(R4))-2))/2,INT(0.5+100*POWER(10,(IF(96*(LOG(R4)-INT(LOG(R4)))-ROUND(96*(LOG(R4)-INT(LOG(R4))),0)<0,ROUND(96*(LOG(R4)-INT(LOG(R4))),0)-1,ROUND(96*(LOG(R4)-INT(LOG(R4))),0))+1)/96))*POWER(10,INT(LOG(R4))-2),INT(0.5+100*POWER(10,IF(96*(LOG(R4)-INT(LOG(R4)))-ROUND(96*(LOG(R4)-INT(LOG(R4))),0)<0,ROUND(96*(LOG(R4)-INT(LOG(R4))),0)-1,ROUND(96*(LOG(R4)-INT(LOG(R4))),0))/96))*POWER(10,INT(LOG(R4))-2)) -> 40200 | T4: Ω
A5: (pF) | Q5: Rilim_Rdson | R5: =Rilim_Rdson_ideal -> 205.2963632 | S5: 205 | T5: Ω
A6: 0.47 | B6: =IF(IF((B$3*10^12-$A7)*(B$3*10^12-$A6)*-1<0,0,1)*IF(ABS(B$3*10^12-$A7)>(B$3*10^12-$A6),$A6,$A7)=B7,0,IF((B$3*10^12-$A7)*(B$3*10^12-$A6)*-1<0,0,1)*IF(ABS(B$3*10^12-$A7)>(B$3*10^12-$A6),$A6,$A7)) -> 0 | C6: =IF(IF((C$3*10^12-$A7)*(C$3*10^12-$A6)*-1<0,0,1)*IF(ABS(C$3*10^12-$A7)>(C$3*10^12-$A6),$A6,$A7)=C7,0,IF((C$3*10^12-$A7)*(C$3*10^12-$A6)*-1<0,0,1)*IF(ABS(C$3*10^12-$A7)>(C$3*10^12-$A6),$A6,$A7)) -> 0 | D6: =IF(IF((D$3*10^12-$A7)*(D$3*10^12-$A6)*-1<0,0,1)*IF(ABS(D$3*10^12-$A7)>(D$3*10^12-$A6),$A6,$A7)=D7,0,IF((D$3*10^12-$A7)*(D$3*10^12-$A6)*-1<0,0,1)*IF(ABS(D$3*10^12-$A7)>(D$3*10^12-$A6),$A6,$A7)) -> 0 | E6: =IF(IF((E$3*10^12-$A7)*(E$3*10^12-$A6)*-1<0,0,1)*IF(ABS(E$3*10^12-$A7)>(E$3*10^12-$A6),$A6,$A7)=E7,0,IF((E$3*10^12-$A7)*(E$3*10^12-$A6)*-1<0,0,1)*IF(ABS(E$3*10^12-$A7)>(E$3*10^12-$A6),$A6,$A7)) -> 0 | F6: =IF(IF((F$3*10^12-$A7)*(F$3*10^12-$A6)*-1<0,0,1)*IF(ABS(F$3*10^12-$A7)>(F$3*10^12-$A6),$A6,$A7)=F7,0,IF((F$3*10^12-$A7)*(F$3*10^12-$A6)*-1<0,0,1)*IF(ABS(F$3*10^12-$A7)>(F$3*10^12-$A6),$A6,$A7)) -> 0 | G6: =IF(IF((G$3*10^12-$A7)*(G$3*10^12-$A6)*-1<0,0,1)*IF(ABS(G$3*10^12-$A7)>(G$3*10^12-$A6),$A6,$A7)=G7,0,IF((G$3*10^12-$A7)*(G$3*10^12-$A6)*-1<0,0,1)*IF(ABS(G$3*10^12-$A7)>(G$3*10^12-$A6),$A6,$A7)) -> 0 | H6: =IF(IF((H$3*10^12-$A7)*(H$3*10^12-$A6)*-1<0,0,1)*IF(ABS(H$3*10^12-$A7)>(H$3*10^12-$A6),$A6,$A7)=H7,0,IF((H$3*10^12-$A7)*(H$3*10^12-$A6)*-1<0,0,1)*IF(ABS(H$3*10^12-$A7)>(H$3*10^12-$A6),$A6,$A7)) -> 0 | I6: 0 | J6: 0 | K6: 0 | L6: =IF(IF((L$3*10^12-$A7)*(L$3*10^12-$A6)*-1<0,0,1)*IF(ABS(L$3*10^12-$A7)>(L$3*10^12-$A6),$A6,$A7)=L7,0,IF((L$3*10^12-$A7)*(L$3*10^12-$A6)*-1<0,0,1)*IF(ABS(L$3*10^12-$A7)>(L$3*10^12-$A6),$A6,$A7)) -> 0 | M6: =IF(IF((M$3*10^12-$A7)*(M$3*10^12-$A6)*-1<0,0,1)*IF(ABS(M$3*10^12-$A7)>(M$3*10^12-$A6),$A6,$A7)=M7,0,IF((M$3*10^12-$A7)*(M$3*10^12-$A6)*-1<0,0,1)*IF(ABS(M$3*10^12-$A7)>(M$3*10^12-$A6),$A6,$A7)) -> 0 | N6: =IF(IF((N$3*10^12-$A7)*(N$3*10^12-$A6)*-1<0,0,1)*IF(ABS(N$3*10^12-$A7)>(N$3*10^12-$A6),$A6,$A7)=N7,0,IF((N$3*10^12-$A7)*(N$3*10^12-$A6)*-1<0,0,1)*IF(ABS(N$3*10^12-$A7)>(N$3*10^12-$A6),$A6,$A7)) ->  | Q6: Rilim_Rdson | R6: =Rilim_Rdson_ideal -> 205.2963632 | S6: 205 | T6: Ω
A7: 0.56 | B7: =IF(IF((B$3*10^12-$A8)*(B$3*10^12-$A7)*-1<0,0,1)*IF(ABS(B$3*10^12-$A8)>(B$3*10^12-$A7),$A7,$A8)=B8,0,IF((B$3*10^12-$A8)*(B$3*10^12-$A7)*-1<0,0,1)*IF(ABS(B$3*10^12-$A8)>(B$3*10^12-$A7),$A7,$A8)) -> 0 | C7: =IF(IF((C$3*10^12-$A8)*(C$3*10^12-$A7)*-1<0,0,1)*IF(ABS(C$3*10^12-$A8)>(C$3*10^12-$A7),$A7,$A8)=C8,0,IF((C$3*10^12-$A8)*(C$3*10^12-$A7)*-1<0,0,1)*IF(ABS(C$3*10^12-$A8)>(C$3*10^12-$A7),$A7,$A8)) -> 0 | D7: 0 | E7: 0 | F7: 0 | G7: 0 | H7: 0 | I7: 0 | J7: 0 | K7: 0 | L7: 0 | M7: 0
A8: 0.68 | B8: 0 | C8: 0 | D8: 0 | E8: 0 | F8: 0 | G8: 0 | H8: 0 | I8: 0 | J8: 0 | K8: 0 | L8: 0 | M8: 0 | Q8: Rc1ea | R8: =Rcea1 -> 11043.57845 | S8: =IF(R8>(INT(0.5+100*POWER(10,IF(96*(LOG(R8)-INT(LOG(R8)))-ROUND(96*(LOG(R8)-INT(LOG(R8))),0)<0,ROUND(96*(LOG(R8)-INT(LOG(R8))),0)-1,ROUND(96*(LOG(R8)-INT(LOG(R8))),0))/96))*POWER(10,INT(LOG(R8))-2)+INT(0.5+100*POWER(10,(IF(96*(LOG(R8)-INT(LOG(R8)))-ROUND(96*(LOG(R8)-INT(LOG(R8))),0)<0,ROUND(96*(LOG(R8)-INT(LOG(R8))),0)-1,ROUND(96*(LOG(R8)-INT(LOG(R8))),0))+1)/96))*POWER(10,INT(LOG(R8))-2))/2,INT(0.5+100*POWER(10,(IF(96*(LOG(R8)-INT(LOG(R8)))-ROUND(96*(LOG(R8)-INT(LOG(R8))),0)<0,ROUND(96*(LOG(R8)-INT(LOG(R8))),0)-1,ROUND(96*(LOG(R8)-INT(LOG(R8))),0))+1)/96))*POWER(10,INT(LOG(R8))-2),INT(0.5+100*POWER(10,IF(96*(LOG(R8)-INT(LOG(R8)))-ROUND(96*(LOG(R8)-INT(LOG(R8))),0)<0,ROUND(96*(LOG(R8)-INT(LOG(R8))),0)-1,ROUND(96*(LOG(R8)-INT(LOG(R8))),0))/96))*POWER(10,INT(LOG(R8))-2)) -> 11000 | T8: Ω
A9: 0.82 | B9: 0 | C9: 0 | D9: 0 | E9: 0 | F9: 0 | G9: 0 | H9: 0 | I9: 0 | J9: 0 | K9: 0 | L9: 0 | M9: 0 | Q9: Rc2ea | R9: =Rcea2 -> 4529.599417 | S9: =IF(R9>(INT(0.5+100*POWER(10,IF(96*(LOG(R9)-INT(LOG(R9)))-ROUND(96*(LOG(R9)-INT(LOG(R9))),0)<0,ROUND(96*(LOG(R9)-INT(LOG(R9))),0)-1,ROUND(96*(LOG(R9)-INT(LOG(R9))),0))/96))*POWER(10,INT(LOG(R9))-2)+INT(0.5+100*POWER(10,(IF(96*(LOG(R9)-INT(LOG(R9)))-ROUND(96*(LOG(R9)-INT(LOG(R9))),0)<0,ROUND(96*(LOG(R9)-INT(LOG(R9))),0)-1,ROUND(96*(LOG(R9)-INT(LOG(R9))),0))+1)/96))*POWER(10,INT(LOG(R9))-2))/2,INT(0.5+100*POWER(10,(IF(96*(LOG(R9)-INT(LOG(R9)))-ROUND(96*(LOG(R9)-INT(LOG(R9))),0)<0,ROUND(96*(LOG(R9)-INT(LOG(R9))),0)-1,ROUND(96*(LOG(R9)-INT(LOG(R9))),0))+1)/96))*POWER(10,INT(LOG(R9))-2),INT(0.5+100*POWER(10,IF(96*(LOG(R9)-INT(LOG(R9)))-ROUND(96*(LOG(R9)-INT(LOG(R9))),0)<0,ROUND(96*(LOG(R9)-INT(LOG(R9))),0)-1,ROUND(96*(LOG(R9)-INT(LOG(R9))),0))/96))*POWER(10,INT(LOG(R9))-2)) -> 4530 | T9: Ω
A10: 1 | B10: 0 | C10: 0 | D10: 0 | E10: 0 | F10: 0 | G10: 0 | H10: 0 | I10: 0 | J10: 0 | K10: 0 | L10: 0 | M10: 0 | Q10: Rfb1 | R10: =_Rfb1 -> 21000 | S10: =IF(R10>(INT(0.5+100*POWER(10,IF(96*(LOG(R10)-INT(LOG(R10)))-ROUND(96*(LOG(R10)-INT(LOG(R10))),0)<0,ROUND(96*(LOG(R10)-INT(LOG(R10))),0)-1,ROUND(96*(LOG(R10)-INT(LOG(R10))),0))/96))*POWER(10,INT(LOG(R10))-2)+INT(0.5+100*POWER(10,(IF(96*(LOG(R10)-INT(LOG(R10)))-ROUND(96*(LOG(R10)-INT(LOG(R10))),0)<0,ROUND(96*(LOG(R10)-INT(LOG(R10))),0)-1,ROUND(96*(LOG(R10)-INT(LOG(R10))),0))+1)/96))*POWER(10,INT(LOG(R10))-2))/2,INT(0.5+100*POWER(10,(IF(96*(LOG(R10)-INT(LOG(R10)))-ROUND(96*(LOG(R10)-INT(LOG(R10))),0)<0,ROUND(96*(LOG(R10)-INT(LOG(R10))),0)-1,ROUND(96*(LOG(R10)-INT(LOG(R10))),0))+1)/96))*POWER(10,INT(LOG(R10))-2),INT(0.5+100*POWER(10,IF(96*(LOG(R10)-INT(LOG(R10)))-ROUND(96*(LOG(R10)-INT(LOG(R10))),0)<0,ROUND(96*(LOG(R10)-INT(LOG(R10))),0)-1,ROUND(96*(LOG(R10)-INT(LOG(R10))),0))/96))*POWER(10,INT(LOG(R10))-2)) -> 21000 | T10: Ω
A11: 1.2 | B11: 0 | C11: 0 | D11: 0 | E11: 0 | F11: 0 | G11: 0 | H11: 0 | I11: 0 | J11: 0 | K11: 0 | L11: 0 | M11: 0 | Q11: Rfb2 | R11: =_Rfb2 -> 4540.540541 | S11: =IF(R11="OPEN","OPEN",IF(R11>(INT(0.5+100*POWER(10,IF(96*(LOG(R11)-INT(LOG(R11)))-ROUND(96*(LOG(R11)-INT(LOG(R11))),0)<0,ROUND(96*(LOG(R11)-INT(LOG(R11))),0)-1,ROUND(96*(LOG(R11)-INT(LOG(R11))),0))/96))*POWER(10,INT(LOG(R11))-2)+INT(0.5+100*POWER(10,(IF(96*(LOG(R11)-INT(LOG(R11)))-ROUND(96*(LOG(R11)-INT(LOG(R11))),0)<0,ROUND(96*(LOG(R11)-INT(LOG(R11))),0)-1,ROUND(96*(LOG(R11)-INT(LOG(R11))),0))+1)/96))*POWER(10,INT(LOG(R11))-2))/2,INT(0.5+100*POWER(10,(IF(96*(LOG(R11)-INT(LOG(R11)))-ROUND(96*(LOG(R11)-INT(LOG(R11))),0)<0,ROUND(96*(LOG(R11)-INT(LOG(R11))),0)-1,ROUND(96*(LOG(R11)-INT(LOG(R11))),0))+1)/96))*POWER(10,INT(LOG(R11))-2),INT(0.5+100*POWER(10,IF(96*(LOG(R11)-INT(LOG(R11)))-ROUND(96*(LOG(R11)-INT(LOG(R11))),0)<0,ROUND(96*(LOG(R11)-INT(LOG(R11))),0)-1,ROUND(96*(LOG(R11)-INT(LOG(R11))),0))/96))*POWER(10,INT(LOG(R11))-2))) -> 4530 | T11: Ω
A12: 1.5 | B12: 0 | C12: 0 | D12: 0 | E12: 0 | F12: 0 | G12: 0 | H12: 0 | I12: 0 | J12: 0 | K12: 0 | L12: 0 | M12: 0 | Q12: Rs1 | R12: =_Rs1 -> 27
A13: 1.8 | B13: 0 | C13: 0 | D13: 0 | E13: 0 | F13: 0 | G13: 0 | H13: 0 | I13: 0 | J13: 0 | K13: 0 | L13: 0 | M13: 0 | Q13: Rs2 | R13: =_Rs2 -> 2.722604136e-11
A14: 2.2 | B14: 0 | C14: 0 | D14: 0 | E14: 0 | F14: 0 | G14: 0 | H14: 0 | I14: 0 | J14: 0 | K14: 0 | L14: 0 | M14: 0 | Q14: Rs3 | R14: =_Rs3 -> 1.11
A15: 2.7 | B15: 0 | C15: 0 | D15: 0 | E15: 0 | F15: 0 | G15: 0 | H15: 0 | I15: 0 | J15: 0 | K15: 0 | L15: 0 | M15: 0
A16: 3.3 | B16: 0 | C16: 0 | D16: 0 | E16: 0 | F16: 0 | G16: 0 | H16: 0 | I16: 0 | J16: 0 | K16: 0 | L16: 0 | M16: 0 | Q16: Ruv1 | R16: =Ruvlo1 -> 200 | S16: =IF(R16="OPEN","OPEN",IF(R16>(INT(0.5+100*POWER(10,IF(96*(LOG(R16)-INT(LOG(R16)))-ROUND(96*(LOG(R16)-INT(LOG(R16))),0)<0,ROUND(96*(LOG(R16)-INT(LOG(R16))),0)-1,ROUND(96*(LOG(R16)-INT(LOG(R16))),0))/96))*POWER(10,INT(LOG(R16))-2)+INT(0.5+100*POWER(10,(IF(96*(LOG(R16)-INT(LOG(R16)))-ROUND(96*(LOG(R16)-INT(LOG(R16))),0)<0,ROUND(96*(LOG(R16)-INT(LOG(R16))),0)-1,ROUND(96*(LOG(R16)-INT(LOG(R16))),0))+1)/96))*POWER(10,INT(LOG(R16))-2))/2,INT(0.5+100*POWER(10,(IF(96*(LOG(R16)-INT(LOG(R16)))-ROUND(96*(LOG(R16)-INT(LOG(R16))),0)<0,ROUND(96*(LOG(R16)-INT(LOG(R16))),0)-1,ROUND(96*(LOG(R16)-INT(LOG(R16))),0))+1)/96))*POWER(10,INT(LOG(R16))-2),INT(0.5+100*POWER(10,IF(96*(LOG(R16)-INT(LOG(R16)))-ROUND(96*(LOG(R16)-INT(LOG(R16))),0)<0,ROUND(96*(LOG(R16)-INT(LOG(R16))),0)-1,ROUND(96*(LOG(R16)-INT(LOG(R16))),0))/96))*POWER(10,INT(LOG(R16))-2))) -> 200 | T16: kΩ
A17: 3.9 | B17: 0 | C17: 0 | D17: 0 | E17: 0 | F17: 0 | G17: 0 | H17: 0 | I17: 0 | J17: 0 | K17: 0 | L17: 0 | M17: 0 | Q17: Ruv2 | R17: =Ruvlo2 -> 17.39130435 | S17: 17.4 | T17: kΩ
A18: 4.7 | B18: 0 | C18: 0 | D18: 0 | E18: 0 | F18: 0 | G18: 0 | H18: 0 | I18: 0 | J18: 0 | K18: 0 | L18: 0 | M18: 0
A19: 5.6 | B19: 0 | C19: 0 | D19: 0 | E19: 0 | F19: 0 | G19: 0 | H19: 0 | I19: 0 | J19: 0 | K19: 0 | L19: 0 | M19: 0
A20: 6.8 | B20: 0 | C20: 0 | D20: 0 | E20: 0 | F20: 0 | G20: 0 | H20: 0 | I20: 0 | J20: 0 | K20: 0 | L20: 0 | M20: 0
A21: 8.2 | B21: 0 | C21: 0 | D21: 0 | E21: 0 | F21: 0 | G21: 0 | H21: 0 | I21: 0 | J21: 0 | K21: 0 | L21: 0 | M21: 0
A22: 10 | B22: 0 | C22: 0 | D22: 0 | E22: 0 | F22: 0 | G22: 0 | H22: 0 | I22: 0 | J22: 0 | K22: 0 | L22: 0 | M22: 0 | Q22: Rilim_shunt | R22: =Rilim_shunt_ideal -> 1119.798345 | S22: =IF(R22=0,0,IF(R22>(INT(0.5+100*POWER(10,IF(96*(LOG(R22)-INT(LOG(R22)))-ROUND(96*(LOG(R22)-INT(LOG(R22))),0)<0,ROUND(96*(LOG(R22)-INT(LOG(R22))),0)-1,ROUND(96*(LOG(R22)-INT(LOG(R22))),0))/96))*POWER(10,INT(LOG(R22))-2)+INT(0.5+100*POWER(10,(IF(96*(LOG(R22)-INT(LOG(R22)))-ROUND(96*(LOG(R22)-INT(LOG(R22))),0)<0,ROUND(96*(LOG(R22)-INT(LOG(R22))),0)-1,ROUND(96*(LOG(R22)-INT(LOG(R22))),0))+1)/96))*POWER(10,INT(LOG(R22))-2))/2,INT(0.5+100*POWER(10,(IF(96*(LOG(R22)-INT(LOG(R22)))-ROUND(96*(LOG(R22)-INT(LOG(R22))),0)<0,ROUND(96*(LOG(R22)-INT(LOG(R22))),0)-1,ROUND(96*(LOG(R22)-INT(LOG(R22))),0))+1)/96))*POWER(10,INT(LOG(R22))-2),INT(0.5+100*POWER(10,IF(96*(LOG(R22)-INT(LOG(R22)))-ROUND(96*(LOG(R22)-INT(LOG(R22))),0)<0,ROUND(96*(LOG(R22)-INT(LOG(R22))),0)-1,ROUND(96*(LOG(R22)-INT(LOG(R22))),0))/96))*POWER(10,INT(LOG(R22))-2))) -> 1130 | T22: Ω
A23: 12 | B23: 0 | C23: 0 | D23: 0 | E23: 0 | F23: 0 | G23: 0 | H23: 0 | I23: 0 | J23: 0 | K23: 0 | L23: 0 | M23: 0 | Q23: Cilim | R23: =Cilim -> 2.722604136e-11 | S23: =H4*1000000000000 -> 27 | T23: pF
A24: 15 | B24: 0 | C24: 0 | D24: 0 | E24: 0 | F24: 0 | G24: 0 | H24: 0 | I24: 0 | J24: 0 | K24: 0 | L24: 0 | M24: 0
A25: 18 | B25: 0 | C25: 0 | D25: 0 | E25: 0 | F25: 0 | G25: 0 | H25: 0 | I25: 0 | J25: 0 | K25: 0 | L25: 0 | M25: 0
A26: 22 | B26: 0 | C26: 0 | D26: 0 | E26: 0 | F26: 0 | G26: 0 | H26: 0 | I26: 0 | J26: 0 | K26: 0 | L26: 0 | M26: 0
A27: 27 | B27: 0 | C27: 0 | D27: 0 | E27: 0 | F27: 0 | G27: 0 | H27: 27 | I27: 0 | J27: 0 | K27: 0 | L27: 0 | M27: 0 | Q27: Rc1 | R27: =S8/1000&" kΩ" -> 11 kΩ | S27: =S8/1000 -> 11 | T27: kΩ
A28: 33 | B28: 0 | C28: 0 | D28: 0 | E28: 0 | F28: 0 | G28: 0 | H28: 0 | I28: 0 | J28: 0 | K28: 0 | L28: 0 | M28: 0 | Q28: Cc1 | R28: =C4*1000000000000&" pF" -> 3900 pF | S28: =C4*1000000000000 -> 3900 | T28: pF
A29: 39 | B29: 0 | C29: 0 | D29: 0 | E29: 0 | F29: 0 | G29: 0 | H29: 0 | I29: 0 | J29: 0 | K29: 0 | L29: 0 | M29: 0 | Q29: Cc2 | R29: =D4*1000000000000&" pF" -> 120 pF | S29: =D4*1000000000000 -> 120 | T29: pF
A30: 47 | B30: 0 | C30: 0 | D30: 0 | E30: 0 | F30: 0 | G30: 0 | H30: 0 | I30: 0 | J30: 0 | K30: 0 | L30: 0 | M30: 0 | Q30: Rc2 | R30: =S9&" Ω" -> 4530 Ω | S30: =S9 -> 4530 | T30: Ω
A31: 56 | B31: 0 | C31: 0 | D31: 0 | E31: 0 | F31: 0 | G31: 0 | H31: 0 | I31: 0 | J31: 0 | K31: 0 | L31: 0 | M31: 0 | Q31: Cc3 | R31: =E4*1000000000000&" pF" -> 1200 pF | S31: =E4*1000000000000 -> 1200 | T31: pF
A32: 68 | B32: 0 | C32: 0 | D32: 0 | E32: 0 | F32: 0 | G32: 0 | H32: 0 | I32: 0 | J32: 0 | K32: 0 | L32: 0 | M32: 0
A33: 82 | B33: 0 | C33: 0 | D33: 0 | E33: 0 | F33: 0 | G33: 0 | H33: 0 | I33: 0 | J33: 0 | K33: 0 | L33: 0 | M33: 0
A34: =A22*10 -> 100 | B34: 0 | C34: 0 | D34: 120 | E34: 0 | F34: 0 | G34: 0 | H34: 0 | I34: 0 | J34: 0 | K34: 0 | L34: 0 | M34: 0
A35: =A23*10 -> 120 | B35: 0 | C35: 0 | D35: 0 | E35: 0 | F35: 0 | G35: 0 | H35: 0 | I35: 0 | J35: 0 | K35: 0 | L35: 0 | M35: 0
A36: 150 | B36: 0 | C36: 0 | D36: 0 | E36: 0 | F36: 0 | G36: 0 | H36: 0 | I36: 0 | J36: 0 | K36: 0 | L36: 0 | M36: 0
A37: 180 | B37: 0 | C37: 0 | D37: 0 | E37: 0 | F37: 0 | G37: 0 | H37: 0 | I37: 0 | J37: 0 | K37: 0 | L37: 0 | M37: 0
A38: 220 | B38: 0 | C38: 0 | D38: 0 | E38: 0 | F38: 0 | G38: 0 | H38: 0 | I38: 0 | J38: 0 | K38: 0 | L38: 0 | M38: =IF(IF((M$3*10^12-$A39)*(M$3*10^12-$A38)*-1<0,0,1)*IF(ABS(M$3*10^12-$A39)>(M$3*10^12-$A38),$A38,$A39)=M39,0,IF((M$3*10^12-$A39)*(M$3*10^12-$A38)*-1<0,0,1)*IF(ABS(M$3*10^12-$A39)>(M$3*10^12-$A38),$A38,$A39)) -> 0 | N38: =IF(IF((N$3*10^12-$A39)*(N$3*10^12-$A38)*-1<0,0,1)*IF(ABS(N$3*10^12-$A39)>(N$3*10^12-$A38),$A38,$A39)=N39,0,IF((N$3*10^12-$A39)*(N$3*10^12-$A38)*-1<0,0,1)*IF(ABS(N$3*10^12-$A39)>(N$3*10^12-$A38),$A38,$A39)) -> 
A39: 270 | B39: 0 | C39: =IF(IF((C$3*10^12-$A40)*(C$3*10^12-$A39)*-1<0,0,1)*IF(ABS(C$3*10^12-$A40)>(C$3*10^12-$A39),$A39,$A40)=C40,0,IF((C$3*10^12-$A40)*(C$3*10^12-$A39)*-1<0,0,1)*IF(ABS(C$3*10^12-$A40)>(C$3*10^12-$A39),$A39,$A40)) -> 0 | D39: 0 | E39: 0 | F39: 0 | G39: 0 | H39: 0 | I39: 0 | J39: 0 | K39: 0 | L39: 0 | M39: 0
A40: 330 | B40: 0 | C40: 0 | D40: 0 | E40: 0 | F40: 0 | G40: 0 | H40: 0 | I40: 0 | J40: 0 | K40: 0 | L40: 0 | M40: 0
A41: 390 | B41: 0 | C41: 0 | D41: 0 | E41: 0 | F41: 0 | G41: 0 | H41: 0 | I41: 0 | J41: 0 | K41: 0 | L41: 0 | M41: 0
A42: 470 | B42: 0 | C42: 0 | D42: 0 | E42: 0 | F42: 0 | G42: 0 | H42: 0 | I42: 0 | J42: 0 | K42: 0 | L42: 0 | M42: 0
A43: 560 | B43: 0 | C43: 0 | D43: 0 | E43: 0 | F43: 0 | G43: 0 | H43: 0 | I43: 0 | J43: 0 | K43: 0 | L43: 0 | M43: 0
A44: 680 | B44: 0 | C44: 0 | D44: 0 | E44: 0 | F44: 0 | G44: 0 | H44: 0 | I44: 0 | J44: 0 | K44: 0 | L44: 0 | M44: 0
A45: =A33*10 -> 820 | B45: 0 | C45: 0 | D45: 0 | E45: 0 | F45: 0 | G45: 0 | H45: 0 | I45: 0 | J45: 0 | K45: 0 | L45: 0 | M45: 0
A46: 1000 | B46: 0 | C46: 0 | D46: 0 | E46: 0 | F46: 0 | G46: 0 | H46: 0 | I46: 0 | J46: 0 | K46: 0 | L46: 0 | M46: 0
A47: 1200 | B47: 0 | C47: 0 | D47: 0 | E47: 1200 | F47: 0 | G47: 0 | H47: 0 | I47: 0 | J47: 0 | K47: 0 | L47: 0 | M47: 0
A48: 1500 | B48: 0 | C48: 0 | D48: 0 | E48: 0 | F48: 0 | G48: 0 | H48: 0 | I48: 0 | J48: 0 | K48: 0 | L48: 0 | M48: 0
A49: 1800 | B49: 0 | C49: 0 | D49: 0 | E49: 0 | F49: 0 | G49: 0 | H49: 0 | I49: 0 | J49: 0 | K49: 0 | L49: 0 | M49: 0
A50: 2200 | B50: 0 | C50: 0 | D50: 0 | E50: 0 | F50: 0 | G50: 0 | H50: 0 | I50: 0 | J50: 0 | K50: 0 | L50: 0 | M50: 0
A51: 2700 | B51: 0 | C51: 0 | D51: 0 | E51: 0 | F51: 0 | G51: 0 | H51: 0 | I51: 0 | J51: 0 | K51: 0 | L51: 0 | M51: 0
A52: 3300 | B52: 0 | C52: 3900 | D52: 0 | E52: 0 | F52: 0 | G52: 0 | H52: 0 | I52: 0 | J52: 0 | K52: 0 | L52: 0 | M52: 0
A53: 3900 | B53: 0 | C53: 0 | D53: 0 | E53: 0 | F53: 0 | G53: 0 | H53: 0 | I53: 0 | J53: 0 | K53: 0 | L53: 0 | M53: 0
A54: 4700 | B54: 0 | C54: 0 | D54: 0 | E54: 0 | F54: 0 | G54: 0 | H54: 0 | I54: 0 | J54: 0 | K54: 0 | L54: 0 | M54: 0
A55: 5600 | B55: 0 | C55: 0 | D55: 0 | E55: 0 | F55: 0 | G55: 0 | H55: 0 | I55: 0 | J55: 0 | K55: 0 | L55: 0 | M55: 0
A56: 6800 | B56: 0 | C56: 0 | D56: 0 | E56: 0 | F56: 0 | G56: 0 | H56: 0 | I56: 0 | J56: 0 | K56: 0 | L56: 0 | M56: 0
A57: 8200 | B57: 0 | C57: 0 | D57: 0 | E57: 0 | F57: 0 | G57: 0 | H57: 0 | I57: 0 | J57: 0 | K57: 0 | L57: 0 | M57: 0
A58: 10000 | B58: 0 | C58: 0 | D58: 0 | E58: 0 | F58: 0 | G58: 0 | H58: 0 | I58: 0 | J58: 0 | K58: 0 | L58: 0 | M58: 0
A59: 12000 | B59: 0 | C59: 0 | D59: 0 | E59: 0 | F59: 0 | G59: 0 | H59: 0 | I59: 0 | J59: 0 | K59: 0 | L59: 0 | M59: 0
A60: 15000 | B60: 0 | C60: 0 | D60: 0 | E60: 0 | F60: 0 | G60: 0 | H60: 0 | I60: 0 | J60: 0 | K60: 0 | L60: 0 | M60: 0
A61: 18000 | B61: 0 | C61: 0 | D61: 0 | E61: 0 | F61: 0 | G61: 0 | H61: 0 | I61: 0 | J61: 0 | K61: 0 | L61: 0 | M61: 0
A62: 22000 | B62: 0 | C62: 0 | D62: 0 | E62: 0 | F62: 0 | G62: 0 | H62: 0 | I62: 0 | J62: 0 | K62: 0 | L62: 0 | M62: 0
A63: 27000 | B63: 0 | C63: 0 | D63: 0 | E63: 0 | F63: 0 | G63: 0 | H63: 0 | I63: 0 | J63: 0 | K63: 0 | L63: 0 | M63: 0
A64: 33000 | B64: 0 | C64: 0 | D64: 0 | E64: 0 | F64: 0 | G64: 0 | H64: 0 | I64: 0 | J64: 0 | K64: 0 | L64: 0 | M64: 0
A65: 39000 | B65: 0 | C65: 0 | D65: 0 | E65: 0 | F65: 0 | G65: 0 | H65: 0 | I65: 0 | J65: 0 | K65: 0 | L65: 0 | M65: 0
A66: 47000 | B66: 47000 | C66: 0 | D66: 0 | E66: 0 | F66: 0 | G66: 0 | H66: 0 | I66: 0 | J66: 0 | K66: 0 | L66: 0 | M66: 0
A67: 56000 | B67: 0 | C67: 0 | D67: 0 | E67: 0 | F67: 0 | G67: 0 | H67: 0 | I67: 0 | J67: 0 | K67: 0 | L67: 0 | M67: 0
A68: 68000 | B68: 0 | C68: 0 | D68: 0 | E68: 0 | F68: 0 | G68: 0 | H68: 0 | I68: 0 | J68: 0 | K68: 0 | L68: 0 | M68: 0
A69: 82000 | B69: 0 | C69: 0 | D69: 0 | E69: 0 | F69: 0 | G69: 0 | H69: 0 | I69: 0 | J69: 0 | K69: =IF(IF((K$3*10^12-$A70)*(K$3*10^12-$A69)*-1<0,0,1)*IF(ABS(K$3*10^12-$A70)>(K$3*10^12-$A69),$A69,$A70)=K70,0,IF((K$3*10^12-$A70)*(K$3*10^12-$A69)*-1<0,0,1)*IF(ABS(K$3*10^12-$A70)>(K$3*10^12-$A69),$A69,$A70)) -> 0 | L69: 0 | M69: 0
A70: 100000 | B70: 0 | C70: 0 | D70: =IF(IF((D$3*10^12-$A71)*(D$3*10^12-$A70)*-1<0,0,1)*IF(ABS(D$3*10^12-$A71)>(D$3*10^12-$A70),$A70,$A71)=D71,0,IF((D$3*10^12-$A71)*(D$3*10^12-$A70)*-1<0,0,1)*IF(ABS(D$3*10^12-$A71)>(D$3*10^12-$A70),$A70,$A71)) -> 0 | E70: 0 | F70: 0 | G70: 0 | H70: 0 | I70: 0 | J70: 0 | K70: 0 | L70: 0 | M70: =IF(IF((M$3*10^12-$A71)*(M$3*10^12-$A70)*-1<0,0,1)*IF(ABS(M$3*10^12-$A71)>(M$3*10^12-$A70),$A70,$A71)=M71,0,IF((M$3*10^12-$A71)*(M$3*10^12-$A70)*-1<0,0,1)*IF(ABS(M$3*10^12-$A71)>(M$3*10^12-$A70),$A70,$A71)) -> 0 | N70: =IF(IF((N$3*10^12-$A71)*(N$3*10^12-$A70)*-1<0,0,1)*IF(ABS(N$3*10^12-$A71)>(N$3*10^12-$A70),$A70,$A71)=N71,0,IF((N$3*10^12-$A71)*(N$3*10^12-$A70)*-1<0,0,1)*IF(ABS(N$3*10^12-$A71)>(N$3*10^12-$A70),$A70,$A71)) -> 
A71: 120000 | B71: =IF(IF((B$3*10^12-$A72)*(B$3*10^12-$A71)*-1<0,0,1)*IF(ABS(B$3*10^12-$A72)>(B$3*10^12-$A71),$A71,$A72)=B72,0,IF((B$3*10^12-$A72)*(B$3*10^12-$A71)*-1<0,0,1)*IF(ABS(B$3*10^12-$A72)>(B$3*10^12-$A71),$A71,$A72)) -> 0 | C71: =IF(IF((C$3*10^12-$A72)*(C$3*10^12-$A71)*-1<0,0,1)*IF(ABS(C$3*10^12-$A72)>(C$3*10^12-$A71),$A71,$A72)=C72,0,IF((C$3*10^12-$A72)*(C$3*10^12-$A71)*-1<0,0,1)*IF(ABS(C$3*10^12-$A72)>(C$3*10^12-$A71),$A71,$A72)) -> 0 | D71: 0 | E71: 0 | F71: 0 | G71: =IF(IF((G$3*10^12-$A72)*(G$3*10^12-$A71)*-1<0,0,1)*IF(ABS(G$3*10^12-$A72)>(G$3*10^12-$A71),$A71,$A72)=G72,0,IF((G$3*10^12-$A72)*(G$3*10^12-$A71)*-1<0,0,1)*IF(ABS(G$3*10^12-$A72)>(G$3*10^12-$A71),$A71,$A72)) -> 0 | H71: =IF(IF((H$3*10^12-$A72)*(H$3*10^12-$A71)*-1<0,0,1)*IF(ABS(H$3*10^12-$A72)>(H$3*10^12-$A71),$A71,$A72)=H72,0,IF((H$3*10^12-$A72)*(H$3*10^12-$A71)*-1<0,0,1)*IF(ABS(H$3*10^12-$A72)>(H$3*10^12-$A71),$A71,$A72)) -> 0 | I71: =IF(IF((I$3*10^12-$A72)*(I$3*10^12-$A71)*-1<0,0,1)*IF(ABS(I$3*10^12-$A72)>(I$3*10^12-$A71),$A71,$A72)=I72,0,IF((I$3*10^12-$A72)*(I$3*10^12-$A71)*-1<0,0,1)*IF(ABS(I$3*10^12-$A72)>(I$3*10^12-$A71),$A71,$A72)) -> 0 | J71: =IF(IF((J$3*10^12-$A72)*(J$3*10^12-$A71)*-1<0,0,1)*IF(ABS(J$3*10^12-$A72)>(J$3*10^12-$A71),$A71,$A72)=J72,0,IF((J$3*10^12-$A72)*(J$3*10^12-$A71)*-1<0,0,1)*IF(ABS(J$3*10^12-$A72)>(J$3*10^12-$A71),$A71,$A72)) -> 0 | K71: 0 | L71: 0 | M71: 0
A72: 150000 | B72: 0 | C72: 0 | D72: 0 | E72: 0 | F72: 0 | G72: 0 | H72: 0 | I72: 0 | J72: 0 | K72: 0 | L72: 0 | M72: 0
A73: 180000 | B73: 0 | C73: 0 | D73: 0 | E73: 0 | F73: 0 | G73: 0 | H73: 0 | I73: 0 | J73: 0 | K73: 0 | L73: 0 | M73: 0
A74: 220000 | B74: 0 | C74: 0 | D74: 0 | E74: 0 | F74: 0 | G74: 0 | H74: 0 | I74: 0 | J74: 0 | K74: 0 | L74: 0 | M74: 0
A75: 270000 | B75: 0 | C75: 0 | D75: 0 | E75: 0 | F75: 0 | G75: 0 | H75: 0 | I75: 0 | J75: 0 | K75: 0 | L75: 0 | M75: 0
A76: 330000 | B76: 0 | C76: 0 | D76: 0 | E76: 0 | F76: 0 | G76: 0 | H76: 0 | I76: 0 | J76: 0 | K76: 0 | L76: 0 | M76: 0
A77: 390000 | B77: 0 | C77: 0 | D77: 0 | E77: 0 | F77: 0 | G77: 0 | H77: 0 | I77: 0 | J77: 0 | K77: 0 | L77: 0 | M77: 0
A78: 470000 | B78: 0 | C78: 0 | D78: 0 | E78: 0 | F78: 0 | G78: 0 | H78: 0 | I78: 0 | J78: 0 | K78: 0 | L78: 0 | M78: 0
A79: 560000 | B79: 0 | C79: 0 | D79: 0 | E79: 0 | F79: 0 | G79: 0 | H79: 0 | I79: 0 | J79: 0 | K79: 0 | L79: 0 | M79: 0
A80: 680000 | B80: 0 | C80: 0 | D80: 0 | E80: 0 | F80: 0 | G80: 0 | H80: 0 | I80: 0 | J80: 0 | K80: 0 | L80: 0 | M80: 0
A81: 820000 | B81: 0 | C81: 0 | D81: 0 | E81: 0 | F81: 0 | G81: 0 | H81: 0 | I81: 0 | J81: 0 | K81: 0 | L81: 0 | M81: 0
A82: 1000000 | B82: 0 | C82: 0 | D82: 0 | E82: 0 | F82: 0 | G82: 0 | H82: 0 | I82: 0 | J82: 0 | K82: 0 | L82: 0 | M82: 0
A83: 1200000 | B83: 0 | C83: 0 | D83: 0 | E83: 0 | F83: 0 | G83: 0 | H83: 0 | I83: 0 | J83: 0 | K83: 0 | L83: 0 | M83: 0
A84: 1500000 | B84: 0 | C84: 0 | D84: 0 | E84: 0 | F84: 0 | G84: 0 | H84: 0 | I84: 0 | J84: 0 | K84: 0 | L84: 0 | M84: 0
A85: 1800000 | B85: 0 | C85: 0 | D85: 0 | E85: 0 | F85: 0 | G85: 0 | H85: 0 | I85: 0 | J85: 0 | K85: 0 | L85: 0 | M85: 0
A86: 2200000 | B86: 0 | C86: 0 | D86: 0 | E86: 0 | F86: 0 | G86: 0 | H86: 0 | I86: 0 | J86: 0 | K86: 0 | L86: 0 | M86: 0
A87: 2700000 | B87: 0 | C87: 0 | D87: 0 | E87: 0 | F87: 0 | G87: 0 | H87: 0 | I87: 0 | J87: 0 | K87: 0 | L87: 0 | M87: 0
A88: 3300000 | B88: 0 | C88: 0 | D88: 0 | E88: 0 | F88: 0 | G88: 0 | H88: 0 | I88: 0 | J88: 0 | K88: 0 | L88: 0 | M88: 0
A89: 3900000 | B89: 0 | C89: 0 | D89: 0 | E89: 0 | F89: 0 | G89: 0 | H89: 0 | I89: 0 | J89: 0 | K89: 0 | L89: 0 | M89: 0
A90: 4700000 | B90: 0 | C90: 0 | D90: 0 | E90: 0 | F90: 0 | G90: 0 | H90: 0 | I90: 0 | J90: 0 | K90: 0 | L90: 0 | M90: 0
A91: 5600000 | B91: 0 | C91: 0 | D91: 0 | E91: 0 | F91: 0 | G91: 0 | H91: 0 | I91: 0 | J91: 0 | K91: 0 | L91: 0 | M91: 0
A92: 6800000 | B92: 0 | C92: 0 | D92: 0 | E92: 0 | F92: 0 | G92: 0 | H92: 0 | I92: 0 | J92: 0 | K92: 0 | L92: 0 | M92: 0
A93: 8200000 | B93: 0 | C93: 0 | D93: 0 | E93: 0 | F93: 0 | G93: 0 | H93: 0 | I93: 0 | J93: 0 | K93: 0 | L93: 0 | M93: 0
A94: 10000000 | B94: 0 | C94: 0 | D94: 0 | E94: 0 | F94: 0 | G94: 0 | H94: 0 | I94: 0 | J94: 0 | K94: 0 | L94: 0 | M94: 0
A95: 12000000 | B95: 0 | C95: 0 | D95: 0 | E95: 0 | F95: 0 | G95: 0 | H95: 0 | I95: 0 | J95: 0 | K95: 0 | L95: 0 | M95: 0
A96: 15000000 | B96: 0 | C96: 0 | D96: 0 | E96: 0 | F96: 0 | G96: 0 | H96: 0 | I96: 0 | J96: 0 | K96: 0 | L96: 0 | M96: 0
A97: 18000000 | B97: 0 | C97: 0 | D97: 0 | E97: 0 | F97: 0 | G97: 0 | H97: 0 | I97: 0 | J97: 0 | K97: 0 | L97: 0 | M97: 0
A98: 22000000 | B98: 0 | C98: 0 | D98: 0 | E98: 0 | F98: 0 | G98: 0 | H98: 0 | I98: 0 | J98: 0 | K98: 0 | L98: 0 | M98: 0
A99: =A87*10 -> 27000000 | B99: 0 | C99: 0 | D99: 0 | E99: 0 | F99: 0 | G99: 33000000 | H99: 0 | I99: 0 | J99: 0 | K99: 0 | L99: 0 | M99: 0
A100: 33000000 | B100: 0 | C100: 0 | D100: 0 | E100: 0 | F100: 0 | G100: 0 | H100: 0 | I100: 0 | J100: 0 | K100: 0 | L100: 0 | M100: 0
A101: 39000000 | B101: 0 | C101: 0 | D101: 0 | E101: 0 | F101: 0 | G101: 0 | H101: 0 | I101: 0 | J101: 0 | K101: 0 | L101: 0 | M101: 0
A102: 47000000 | B102: 0 | C102: 0 | D102: 0 | E102: 0 | F102: 0 | G102: 0 | H102: 0 | I102: 0 | J102: 0 | K102: 0 | L102: 0 | M102: =IF(IF((M$3*10^12-$A103)*(M$3*10^12-$A102)*-1<0,0,1)*IF(ABS(M$3*10^12-$A103)>(M$3*10^12-$A102),$A102,$A103)=M103,0,IF((M$3*10^12-$A103)*(M$3*10^12-$A102)*-1<0,0,1)*IF(ABS(M$3*10^12-$A103)>(M$3*10^12-$A102),$A102,$A103)) -> 0 | N102: =IF(IF((N$3*10^12-$A103)*(N$3*10^12-$A102)*-1<0,0,1)*IF(ABS(N$3*10^12-$A103)>(N$3*10^12-$A102),$A102,$A103)=N103,0,IF((N$3*10^12-$A103)*(N$3*10^12-$A102)*-1<0,0,1)*IF(ABS(N$3*10^12-$A103)>(N$3*10^12-$A102),$A102,$A103)) -> 
A103: 56000000 | B103: 0 | C103: 0 | D103: 0 | E103: 0 | F103: 0 | G103: =IF(IF((G$3*10^12-$A104)*(G$3*10^12-$A103)*-1<0,0,1)*IF(ABS(G$3*10^12-$A104)>(G$3*10^12-$A103),$A103,$A104)=G104,0,IF((G$3*10^12-$A104)*(G$3*10^12-$A103)*-1<0,0,1)*IF(ABS(G$3*10^12-$A104)>(G$3*10^12-$A103),$A103,$A104)) -> 0 | H103: =IF(IF((H$3*10^12-$A104)*(H$3*10^12-$A103)*-1<0,0,1)*IF(ABS(H$3*10^12-$A104)>(H$3*10^12-$A103),$A103,$A104)=H104,0,IF((H$3*10^12-$A104)*(H$3*10^12-$A103)*-1<0,0,1)*IF(ABS(H$3*10^12-$A104)>(H$3*10^12-$A103),$A103,$A104)) -> 0 | I103: =IF(IF((I$3*10^12-$A104)*(I$3*10^12-$A103)*-1<0,0,1)*IF(ABS(I$3*10^12-$A104)>(I$3*10^12-$A103),$A103,$A104)=I104,0,IF((I$3*10^12-$A104)*(I$3*10^12-$A103)*-1<0,0,1)*IF(ABS(I$3*10^12-$A104)>(I$3*10^12-$A103),$A103,$A104)) -> 0 | J103: =IF(IF((J$3*10^12-$A104)*(J$3*10^12-$A103)*-1<0,0,1)*IF(ABS(J$3*10^12-$A104)>(J$3*10^12-$A103),$A103,$A104)=J104,0,IF((J$3*10^12-$A104)*(J$3*10^12-$A103)*-1<0,0,1)*IF(ABS(J$3*10^12-$A104)>(J$3*10^12-$A103),$A103,$A104)) -> 0 | K103: 0 | L103: 0 | M103: 0
A104: 68000000 | B104: 0 | C104: 0 | D104: 0 | E104: 0 | F104: 0 | G104: 0 | H104: 0 | I104: 0 | J104: 0 | K104: 0 | L104: 0 | M104: 0
A105: 82000000 | B105: 0 | C105: 0 | D105: 0 | E105: 0 | F105: 0 | G105: 0 | H105: 0 | I105: 0 | J105: 0 | K105: 0 | L105: 0 | M105: 0
A106: 100000000 | B106: 0 | C106: 0 | D106: 0 | E106: 0 | F106: 0 | G106: 0 | H106: 0 | I106: 0 | J106: 0 | K106: 0 | L106: 0 | M106: 0
A107: 120000000 | B107: 0 | C107: 0 | D107: 0 | E107: 0 | F107: 0 | G107: 0 | H107: 0 | I107: 0 | J107: 0 | K107: 0 | L107: 0 | M107: 0
A108: 150000000 | B108: 0 | C108: 0 | D108: 0 | E108: 0 | F108: 0 | G108: 0 | H108: 0 | I108: 0 | J108: 0 | K108: 0 | L108: 0 | M108: 0
A109: 180000000 | B109: 0 | C109: 0 | D109: 0 | E109: 0 | F109: 0 | G109: 0 | H109: 0 | I109: 0 | J109: 0 | K109: 0 | L109: 0 | M109: 0
A110: 220000000 | B110: 0 | C110: 0 | D110: 0 | E110: 0 | F110: 220000000 | G110: 0 | H110: 0 | I110: 0 | J110: 0 | K110: 0 | L110: 0 | M110: 0
A111: 270000000 | B111: 0 | C111: 0 | D111: 0 | E111: 0 | F111: 0 | G111: 0 | H111: 0 | I111: 0 | J111: 0 | K111: 0 | L111: 0 | M111: 0
A112: 330000000 | B112: 0 | C112: 0 | D112: 0 | E112: 0 | F112: 0 | G112: 0 | H112: 0 | I112: 0 | J112: 0 | K112: 0 | L112: 0 | M112: 0
A113: 390000000 | B113: 0 | C113: 0 | D113: 0 | E113: 0 | F113: 0 | G113: 0 | H113: 0 | I113: 0 | J113: 0 | K113: 0 | L113: 0 | M113: 0
A114: 470000000 | B114: 0 | C114: 0 | D114: 0 | E114: 0 | F114: 0 | G114: 0 | H114: 0 | I114: 0 | J114: 0 | K114: 0 | L114: 0 | M114: 0
A115: 560000000 | B115: 0 | C115: 0 | D115: 0 | E115: 0 | F115: 0 | G115: 0 | H115: 0 | I115: 0 | J115: 0 | K115: 0 | L115: 0 | M115: 0
A116: 680000000 | B116: 0 | C116: 0 | D116: 0 | E116: 0 | F116: 0 | G116: 0 | H116: 0 | I116: 0 | J116: 0 | K116: 0 | L116: 0 | M116: 0
A117: 820000000 | B117: 0 | C117: 0 | D117: 0 | E117: 0 | F117: 0 | G117: 0 | H117: 0 | I117: 0 | J117: 0 | K117: 0 | L117: 0 | M117: 0
A118: 1000000000 | B118: 0 | C118: 0 | D118: 0 | E118: 0 | F118: 0 | G118: 0 | H118: 0 | I118: 0 | J118: 0 | K118: 0 | L118: 0 | M118: 0
A119: 1200000000 | B119: 0 | C119: 0 | D119: 0 | E119: 0 | F119: 0 | G119: 0 | H119: 0 | I119: 0 | J119: 0 | K119: 0 | L119: 0 | M119: 0
A120: 1500000000 | B120: 0 | C120: 0 | D120: 0 | E120: 0 | F120: 0 | G120: 0 | H120: 0 | I120: 0 | J120: 0 | K120: 0 | L120: 0 | M120: 0
A121: 1800000000 | B121: 0 | C121: 0 | D121: 0 | E121: 0 | F121: 0 | G121: 0 | H121: 0 | I121: 0 | J121: 0 | K121: 0 | L121: 0 | M121: 0
A122: 2200000000 | B122: 0 | C122: 0 | D122: 0 | E122: 0 | F122: 0 | G122: 0 | H122: 0 | I122: 0 | J122: 0 | K122: 0 | L122: 0 | M122: 0
A123: 2700000000 | B123: 0 | C123: 0 | D123: 0 | E123: 0 | F123: 0 | G123: 0 | H123: 0 | I123: 0 | J123: 0 | K123: 0 | L123: 0 | M123: 0
A124: 3300000000 | B124: 0 | C124: 0 | D124: 0 | E124: 0 | F124: 0 | G124: 0 | H124: 0 | I124: 0 | J124: 0 | K124: 0 | L124: 0 | M124: 0
A125: 3900000000 | B125: 0 | C125: 0 | D125: 0 | E125: 0 | F125: 0 | G125: 0 | H125: 0 | I125: 0 | J125: 0 | K125: 0 | L125: 0 | M125: 0
A126: 4700000000 | B126: 0 | C126: 0 | D126: 0 | E126: 0 | F126: 0 | G126: 0 | H126: 0 | I126: 0 | J126: 0 | K126: 0 | L126: 0 | M126: 0
A127: 5600000000 | B127: 0 | C127: 0 | D127: 0 | E127: 0 | F127: 0 | G127: 0 | H127: 0 | I127: 0 | J127: 0 | K127: 0 | L127: 0 | M127: 0
A128: 6800000000 | B128: 0 | C128: 0 | D128: 0 | E128: 0 | F128: 0 | G128: 0 | H128: 0 | I128: 0 | J128: 0 | K128: 0 | L128: 0 | M128: 0
A129: 8200000000 | B129: 0 | C129: 0 | D129: 0 | E129: 0 | F129: 0 | G129: 0 | H129: 0 | I129: 0 | J129: 0 | K129: 0 | L129: 0 | M129: 0
A130: 10000000000 | B130: 0 | C130: 0 | D130: 0 | E130: 0 | F130: 0 | G130: 0 | H130: 0 | I130: 0 | J130: 0 | K130: 0 | L130: 0 | M130: 0
A131: 12000000000 | B131: 0 | C131: 0 | D131: 0 | E131: 0 | F131: 0 | G131: 0 | H131: 0 | I131: 0 | J131: 0 | K131: 0 | L131: 0 | M131: 0
A132: 15000000000 | B132: 0 | C132: 0 | D132: 0 | E132: 0 | F132: 0 | G132: 0 | H132: 0 | I132: 0 | J132: 0 | K132: 0 | L132: 0 | M132: 0
A133: 18000000000 | B133: 0 | C133: 0 | D133: 0 | E133: 0 | F133: 0 | G133: 0 | H133: 0 | I133: 0 | J133: 0 | K133: =IF(IF((K$3*10^12-$A134)*(K$3*10^12-$A133)*-1<0,0,1)*IF(ABS(K$3*10^12-$A134)>(K$3*10^12-$A133),$A133,$A134)=K134,0,IF((K$3*10^12-$A134)*(K$3*10^12-$A133)*-1<0,0,1)*IF(ABS(K$3*10^12-$A134)>(K$3*10^12-$A133),$A133,$A134)) -> 0 | L133: =IF(IF((L$3*10^12-$A134)*(L$3*10^12-$A133)*-1<0,0,1)*IF(ABS(L$3*10^12-$A134)>(L$3*10^12-$A133),$A133,$A134)=L134,0,IF((L$3*10^12-$A134)*(L$3*10^12-$A133)*-1<0,0,1)*IF(ABS(L$3*10^12-$A134)>(L$3*10^12-$A133),$A133,$A134)) -> 0 | M133: 0
A134: 22000000000 | B134: 0 | C134: 0 | D134: 0 | E134: 0 | F134: =IF(IF((F$3*10^12-$A135)*(F$3*10^12-$A134)*-1<0,0,1)*IF(ABS(F$3*10^12-$A135)>(F$3*10^12-$A134),$A134,$A135)=F135,0,IF((F$3*10^12-$A135)*(F$3*10^12-$A134)*-1<0,0,1)*IF(ABS(F$3*10^12-$A135)>(F$3*10^12-$A134),$A134,$A135)) -> 0 | G134: 0 | H134: 0 | I134: 0 | J134: 0 | K134: =IF(IF((K$3*10^12-$A135)*(K$3*10^12-$A134)*-1<0,0,1)*IF(ABS(K$3*10^12-$A135)>(K$3*10^12-$A134),$A134,$A135)=K135,0,IF((K$3*10^12-$A135)*(K$3*10^12-$A134)*-1<0,0,1)*IF(ABS(K$3*10^12-$A135)>(K$3*10^12-$A134),$A134,$A135)) -> 0 | L134: =IF(IF((L$3*10^12-$A135)*(L$3*10^12-$A134)*-1<0,0,1)*IF(ABS(L$3*10^12-$A135)>(L$3*10^12-$A134),$A134,$A135)=L135,0,IF((L$3*10^12-$A135)*(L$3*10^12-$A134)*-1<0,0,1)*IF(ABS(L$3*10^12-$A135)>(L$3*10^12-$A134),$A134,$A135)) -> 0 | M134: =IF(IF((M$3*10^12-$A135)*(M$3*10^12-$A134)*-1<0,0,1)*IF(ABS(M$3*10^12-$A135)>(M$3*10^12-$A134),$A134,$A135)=M135,0,IF((M$3*10^12-$A135)*(M$3*10^12-$A134)*-1<0,0,1)*IF(ABS(M$3*10^12-$A135)>(M$3*10^12-$A134),$A134,$A135)) -> 0 | N134: =IF(IF((N$3*10^12-$A135)*(N$3*10^12-$A134)*-1<0,0,1)*IF(ABS(N$3*10^12-$A135)>(N$3*10^12-$A134),$A134,$A135)=N135,0,IF((N$3*10^12-$A135)*(N$3*10^12-$A134)*-1<0,0,1)*IF(ABS(N$3*10^12-$A135)>(N$3*10^12-$A134),$A134,$A135)) -> 
A135: 27000000000 | B135: =IF(IF((B$3*10^12-$A136)*(B$3*10^12-$A135)*-1<0,0,1)*IF(ABS(B$3*10^12-$A136)>(B$3*10^12-$A135),$A135,$A136)=B136,0,IF((B$3*10^12-$A136)*(B$3*10^12-$A135)*-1<0,0,1)*IF(ABS(B$3*10^12-$A136)>(B$3*10^12-$A135),$A135,$A136)) -> 0 | C135: =IF(IF((C$3*10^12-$A136)*(C$3*10^12-$A135)*-1<0,0,1)*IF(ABS(C$3*10^12-$A136)>(C$3*10^12-$A135),$A135,$A136)=C136,0,IF((C$3*10^12-$A136)*(C$3*10^12-$A135)*-1<0,0,1)*IF(ABS(C$3*10^12-$A136)>(C$3*10^12-$A135),$A135,$A136)) -> 0 | D135: 0 | E135: 0 | F135: 0 | G135: 0 | H135: 0 | I135: 0 | J135: 0 | K135: 0 | L135: 0 | M135: 0
A136: 33000000000 | B136: 0 | C136: 0 | D136: 0 | E136: 0 | F136: 0 | G136: 0 | H136: 0 | I136: 0 | J136: 0 | K136: 0 | L136: 0 | M136: 0
A137: 39000000000 | B137: 0 | C137: 0 | D137: 0 | E137: 0 | F137: 0 | G137: 0 | H137: 0 | I137: 0 | J137: 0 | K137: 0 | L137: 0 | M137: 0
A138: 47000000000 | B138: 0 | C138: 0 | D138: 0 | E138: 0 | F138: 0 | G138: 0 | H138: 0 | I138: 0 | J138: 0 | K138: 0 | L138: 0 | M138: 0
A139: 56000000000 | B139: 0 | C139: 0 | D139: 0 | E139: 0 | F139: 0 | G139: 0 | H139: 0 | I139: 0 | J139: 0 | K139: 0 | L139: 0 | M139: 0
A140: 68000000000 | B140: 0 | C140: 0 | D140: 0 | E140: 0 | F140: 0 | G140: 0 | H140: 0 | I140: 0 | J140: 0 | K140: 0 | L140: 0 | M140: 0
A141: 82000000000 | B141: 0 | C141: 0 | D141: 0 | E141: 0 | F141: 0 | G141: 0 | H141: 0 | I141: 0 | J141: 0 | K141: 0 | L141: 0 | M141: 0
A142: 100000000000 | B142: 0 | C142: 0 | D142: 0 | E142: 0 | F142: 0 | G142: 0 | H142: 0 | I142: 0 | J142: 0 | K142: 0 | L142: 0 | M142: 0
A143: 120000000000 | B143: 0 | C143: 0 | D143: 0 | E143: 0 | F143: 0 | G143: 0 | H143: 0 | I143: 0 | J143: 0 | K143: 0 | L143: 0 | M143: 0
A144: 150000000000 | B144: 0 | C144: 0 | D144: 0 | E144: 0 | F144: 0 | G144: 0 | H144: 0 | I144: 0 | J144: 0 | K144: 0 | L144: 0 | M144: 0
A145: 180000000000 | B145: 0 | C145: 0 | D145: 0 | E145: 0 | F145: 0 | G145: 0 | H145: 0 | I145: 0 | J145: 0 | K145: 0 | L145: 0 | M145: 0
A146: 220000000000 | B146: 0 | C146: 0 | D146: 0 | E146: 0 | F146: 0 | G146: 0 | H146: 0 | I146: 0 | J146: 0 | K146: 0 | L146: 0 | M146: 0
A147: 270000000000 | B147: 0 | C147: 0 | D147: 0 | E147: 0 | F147: 0 | G147: 0 | H147: 0 | I147: 0 | J147: 0 | K147: 0 | L147: 0 | M147: 0
A148: 330000000000 | B148: 0 | C148: 0 | D148: 0 | E148: 0 | F148: 0 | G148: 0 | H148: 0 | I148: 0 | J148: 0 | K148: 0 | L148: 0 | M148: 0
A149: 390000000000 | B149: 0 | C149: 0 | D149: 0 | E149: 0 | F149: 0 | G149: 0 | H149: 0 | I149: 0 | J149: 0 | K149: 0 | L149: 0 | M149: 0
A150: 470000000000 | B150: 0 | C150: 0 | D150: 0 | E150: 0 | F150: 0 | G150: 0 | H150: 0 | I150: 0 | J150: 0 | K150: 0 | L150: 0 | M150: 0
A151: 560000000000 | B151: 0 | C151: 0 | D151: 0 | E151: 0 | F151: 0 | G151: 0 | H151: 0 | I151: 0 | J151: 0 | K151: 0 | L151: 0 | M151: 0
A152: 680000000000 | B152: 0 | C152: 0 | D152: 0 | E152: 0 | F152: 0 | G152: 0 | H152: 0 | I152: 0 | J152: 0 | K152: 0 | L152: 0 | M152: 0
A153: 820000000000 | B153: 0 | C153: 0 | D153: 0 | E153: 0 | F153: 0 | G153: 0 | H153: 0 | I153: 0 | J153: 0 | K153: 0 | L153: 0 | M153: 0
A154: 1000000000000 | B154: 0 | C154: 0 | D154: 0 | E154: 0 | F154: 0 | G154: 0 | H154: 0 | I154: 0 | J154: 0 | K154: 0 | L154: 0 | M154: 0
A155: 1200000000000 | B155: 0 | C155: 0 | D155: 0 | E155: 0 | F155: 0 | G155: 0 | H155: 0 | I155: 0 | J155: 0 | K155: 0 | L155: 0 | M155: 0
A156: 1500000000000 | B156: 0 | C156: 0 | D156: 0 | E156: 0 | F156: 0 | G156: 0 | H156: 0 | I156: 0 | J156: 0 | K156: 0 | L156: 0 | M156: 0
A157: 1800000000000 | B157: 0 | C157: 0 | D157: 0 | E157: 0 | F157: 0 | G157: 0 | H157: 0 | I157: 0 | J157: 0 | K157: 0 | L157: 0 | M157: 0
A158: 2200000000000 | B158: 0 | C158: 0 | D158: 0 | E158: 0 | F158: 0 | G158: 0 | H158: 0 | I158: 0 | J158: 0 | K158: 0 | L158: 0 | M158: 0
A159: 2700000000000 | B159: 2700000000000 | C159: 2700000000000 | D159: 2700000000000 | E159: 2700000000000 | F159: 2700000000000 | G159: 2700000000000 | H159: 2700000000000 | I159: 2700000000000 | J159: 2700000000000 | K159: 0 | L159: 2700000000000 | M159: 2700000000000

Sheet Bode Plots Calculations (hidden)
A1: Bode Plot Setup | AC1: EA MODELING
AT3: =AT9/10000000000000 -> -6.882820335e-05 | AU3: =AU9/10000000000000 -> -0.03959064434
AT4: =AT3*1000 -> -0.06882820335 | AU4: =AU3*1000 -> -39.59064434 | BJ4: XOVER SEARCH
AC5: a | AD5: b | AE5: c | AF5: d | AJ5: a | AK5: b | AL5: c | AM5: d | BJ5: xover | BK5: =SUM(BJ9:BJ626)/1000 -> 45
C6: Output Filter | J6: Pwm | M6: Compensation | X6: Design Output | AC6: Z1 | AJ6: Z3 | AQ6: Ea Gain BW | AT6: Complex EA | BA6: Actual EA Response | BF6: Actual Open Loop System Response | BJ6: phase margin | BK6: =SUM(BK10:BK627) -> 61.15536755 | BM6: Comp To Output
C7: Esr zero | F7: LC Double Pole | M7: Origin Pole | O7: Fz1 | Q7: Fz2 | S7: Fp1 | U7: Fp2 | AC7: Num | AE7: Den | AG7: Total | AJ7: Num | AL7: Den | AN7: Total | AQ7: A(s) | AT7: Num | AW7: Den
A8: Frequency | C8: Gain | D8: Phase | F8: Gain | H8: Phase | J8: Gain | M8: Gain | N8: Phase | O8: Gain | P8: Phase | Q8: Gain | R8: Phase | S8: Gain | T8: Phase | U8: Gain | V8: Phase | X8: Total Gain | Y8: Total Phase | Z8: Phase margin | AC8: Real | AD8: Imag | AE8: Real | AF8: Imag | AG8: Z1 Real | AH8: Z1 Imag | AJ8: Real | AK8: Imag | AL8: Real | AM8: Imag | AN8: Z3 Real | AO8: Z3 Imag | AQ8: Real | AR8: Imag | AT8: Real | AU8: Imag | AV8: Phase | AW8: Real | AX8: Imag | AY8: Phase | BA8: EAGain | BB8: Ea Gain (db) | BC8: Ea Phase | BF8: Total Gain | BG8: Total Phase | BH8: Total Phase Margin | BM8: Total Gain | BN8: Total Phase margin | BT8: Output to Comp 5V In @ 500kHz 0A Iout 25DegC
A9: 1 | B9: =A9/1000 -> 0.001 | C9: =SQRT((A9/Fesr)^2+1) -> 1.000000001 | D9: =ATAN(A9/Fesr) -> 3.455751914e-05 | F9: =(Ro/(Ro+Rdcr))/SQRT((A9/(Q*Fo))^2+(1-(A9^2/Fo^2))^2) -> 0.9845963912 | G9: =-ATAN(A9*Fo/(Q*(Fo^2-A9^2))) -> -0.000113133868 | H9: =IF(G9>0,G9-Pi,G9) -> -0.000113133868 | J9: =Vin/Vramp -> 15 | M9: =1/(2*Pi*_Rfb1*(Cc1ea_u+Cc2ea_u)*A9) -> 1885.275329 | N9: =-Pi/2 -> -1.570796325 | O9: =SQRT(1+(A9/Fz1_u)^2) -> 1.000000036 | P9: =ATAN2(Fz1_u,A9) -> 0.0002695486428 | Q9: =SQRT(1+(A9/Fz2_u)^2) -> 1.000000019 | R9: =ATAN2(Fz2_u,A9) -> 0.0001924916625 | S9: =1/SQRT(1+(A9/Fp1_u)^2) -> 0.9999999994 | T9: =-ATAN2(Fp1_u,A9) -> -3.415539528e-05 | U9: =1/SQRT(1+(A9/Fp2_u)^2) -> 1 | V9: =-ATAN2(Fp2_u,A9) -> -8.046228339e-06 | X9: =20*LOG(C9*J9*O9*Q9*F9*M9*S9*U9) -> 88.89448614 | Y9: =(180/Pi)*(D9+H9+N9+P9+R9+T9+V9) -> -89.98044711 | Z9: =Y9+180 -> 90.01955289 | AC9: 1 | AD9: =Rcea1_u*Cc1ea_u*A9*2*Pi -> 0.0002695486494 | AE9: =-Rcea1_u*Cc1ea_u*Cc2ea_u*(A9*2*Pi)^2 -> -2.032348934e-13 | AF9: =(Cc2ea_u+Cc1ea_u)*A9*2*Pi -> 2.525840491e-08 | AG9: =AC9*AE9/(AE9^2+AF9^2)+AD9*AF9/(AE9^2+AF9^2) -> 10353.08532 | AH9: =AD9*AE9/(AE9^2+AF9^2)-AC9*AF9/(AE9^2+AF9^2) -> -39590781.99 | AI9: =SQRT(AG9^2+AH9^2) -> 39590783.35 | AJ9: =_Rfb1 -> 21000 | AK9: =_Rfb1*Rcea2_u*Cc3ea_u*A9*2*Pi -> 0.7172633011 | AL9: 1 | AM9: =(_Rfb1+Rcea2_u)*Cc3ea_u*A9*2*Pi -> 0.0001924916649 | AN9: =AJ9*AL9/(AL9^2+AM9^2)+AK9*AM9/(AL9^2+AM9^2) -> 20999.99936 | AO9: =AK9*AL9/(AL9^2+AM9^2)-AJ9*AM9/(AL9^2+AM9^2) -> -3.325061538 | AP9: =SQRT(AN9^2+AO9^2) -> 20999.99962 | AQ9: =Eadcg/(1+(Eadcg*A9/GBP)^2) -> 9999.96 | AR9: =-(A9*Eadcg*Eadcg/GBP)/(1+(Eadcg*A9/GBP)^2) -> -19.99992 | AT9: =-AR9*AH9+AG9*AQ9 -> -688282033.5 | AU9: =AQ9*AH9+AG9*AR9 -> -3.959064434e+11 | AV9: =ATAN2(AT9,AU9) -> -1.572534822 | AW9: =AG9-AH9*AO9/_Rfb2+AG9*AN9/_Rfb2+AN9-AO9*AR9+AQ9*AN9 -> 210049330.7 | AX9: =AH9+AH9*AN9/_Rfb2+AG9*AO9/_Rfb2+AO9+AO9*AQ9+AN9*AR9 -> -223151402.8 | AY9: =ATAN2(AW9,AX9) -> -0.8156337523 | BA9: =SQRT(AT9^2+AU9^2)/SQRT(AW9^2+AX9^2) -> 1291.875008 | BB9: =20*LOG(BA9) -> 62.22440993 | BC9: =AV9-AY9 -> -0.7569010694 | BD9: =BC9*180/Pi-180 -> -223.3672368 | BF9: =20*LOG(BA9*J9*F9*C9) -> 85.61139991 | BG9: =(180/Pi)*(D9+H9+BC9) -> -43.37173893 | BH9: =IF(BG9>180,BG9-180,BG9+180) -> 136.6282611 | BI9: =IF(BH9>180,BH9-360,BH9) -> 136.6282611 | BJ9: =SUM((BF10<0)*(BF9>0))*A9 -> 0 | BK9: =IF(BJ9>0,BI9,0) -> 0 | BM9: =20*LOG(J9*F9*C9) -> 23.38698998 | BN9: =(H9+D9)*180/Pi -> -0.004502093167 | BQ9: =20*LOG(BA9*7) -> 79.12637073 | BT9: Frequency | BU9: Gain | BV9: Phase
A10: 2 | B10: =A10/1000 -> 0.002 | C10: 1.000000002 | D10: 6.911503819e-05 | F10: 0.984596463 | G10: -0.0002262677541 | H10: -0.0002262677541 | J10: 15 | M10: 942.6376645 | N10: -1.570796325 | O10: 1.000000145 | P10: 0.0005390972465 | Q10: 1.000000074 | R10: 0.0003849833107 | S10: 0.9999999977 | T10: -6.831079048e-05 | U10: 0.9999999999 | V10: -1.609245668e-05 | X10: =20*LOG(C10*J10*O10*Q10*F10*M10*S10*U10) -> 82.87388829 | Y10: -89.96089422 | Z10: =Y10+180 -> 90.03910578 | AC10: 1 | AD10: 0.0005390972987 | AE10: -8.129395735e-13 | AF10: 5.051680981e-08 | AG10: =AC10*AE10/(AE10^2+AF10^2)+AD10*AF10/(AE10^2+AF10^2) -> 10353.08532 | AH10: =AD10*AE10/(AE10^2+AF10^2)-AC10*AF10/(AE10^2+AF10^2) -> -19795391.12 | AJ10: 21000 | AK10: 1.434526602 | AL10: 1 | AM10: 0.0003849833297 | AN10: =AJ10*AL10/(AL10^2+AM10^2)+AK10*AM10/(AL10^2+AM10^2) -> 20999.99744 | AO10: =AK10*AL10/(AL10^2+AM10^2)-AJ10*AM10/(AL10^2+AM10^2) -> -6.650122336 | AQ10: 9999.840003 | AR10: -39.99936001 | AT10: =-AR10*AH10+AG10*AQ10 -> -688273779.3 | AU10: =AQ10*AH10+AG10*AR10 -> -1.979511581e+11 | AV10: =ATAN2(AT10,AU10) -> -1.574273301 | AW10: 210046592 | AX10: -112255572.3 | AY10: =ATAN2(AW10,AX10) -> -0.4908121218 | BA10: 831.1686908 | BB10: =20*LOG(BA10) -> 58.39378351 | BC10: =AV10-AY10 -> -1.083461179 | BD10: -242.0777529 | BF10: 81.78077414 | BG10: -62.08675707 | BH10: =IF(BG10>180,BG10-180,BG10+180) -> 117.9132429 | BI10: =IF(BH10>180,BH10-360,BH10) -> 117.9132429 | BJ10: 0 | BK10: =IF(BJ10>0,BI10,0) -> 0 | BM10: =20*LOG(J10*F10*C10) -> 23.38699063 | BN10: -0.009004187368 | BQ10: =20*LOG(BA10*7) -> 75.29574431 | BT10: 100 | BU10: 35.3593 | BV10: -267.6677
A11: 3 | B11: 0.003 | C11: 1.000000005 | D11: 0.0001036725571 | F11: 0.9845965828 | G11: -0.000339401676 | H11: -0.000339401676 | J11: 15 | M11: 628.4251097 | N11: -1.570796325 | O11: 1.000000327 | P11: 0.0008086457718 | Q11: 1.000000167 | R11: 0.0005774749304 | S11: 0.9999999948 | T11: -0.0001024661855 | U11: 0.9999999997 | V11: -2.413868501e-05 | X11: 79.35206654 | Y11: -89.94134134 | Z11: 90.05865866 | AC11: 1 | AD11: 0.0008086459481 | AE11: -1.82911404e-12 | AF11: 7.577521472e-08 | AG11: 10353.08531 | AH11: -13196927.55 | AJ11: 21000 | AK11: 2.151789903 | AL11: 1 | AM11: 0.0005774749946 | AN11: 20999.99424 | AO11: -9.975181656 | AQ11: 9999.640013 | AR11: -59.99784008 | AT11: -688260022.7 | AU11: -1.31965146e+11 | AV11: -1.576011748 | AW11: 210042027.7 | AX11: -75592435.98 | AY11: =ATAN2(AW11,AX11) -> -0.3454599283 | BA11: 591.168871 | BB11: 55.43423115 | BC11: -1.230551819 | BD11: -250.5054258 | BF11: 78.82122286 | BG11: -70.51893209 | BH11: 109.4810679 | BI11: 109.4810679 | BJ11: 0 | BK11: 0 | BM11: 23.38699171 | BN11: -0.01350628364 | BQ11: 72.33619195 | BT11: 102.329 | BU11: 34.9368 | BV11: -265.9149
A12: 4 | B12: 0.004 | C12: 1.00000001 | D12: 0.0001382300757 | F12: 0.9845967505 | G12: -0.0004525356518 | H12: -0.0004525356518 | J12: 15 | M12: 471.3188322 | N12: -1.570796325 | O12: 1.000000581 | P12: 0.00107819418 | Q12: 1.000000296 | R12: 0.0007699665072 | S12: 0.9999999907 | T12: -0.0001366215803 | U12: 0.9999999995 | V12: -3.218491335e-05 | X12: 76.85329662 | Y12: -89.92178848 | Z12: 90.07821152 | AC12: 1 | AD12: 0.001078194597 | AE12: -3.251758294e-12 | AF12: 1.010336196e-07 | AG12: 10353.08531 | AH12: -9897695.81 | AJ12: 21000 | AK12: 2.869053204 | AL12: 1 | AM12: 0.0007699666594 | AN12: 20999.98976 | AO12: -13.30023876 | AQ12: 9999.360041 | AR12: -79.99488033 | AT12: -688240764.3 | AU12: -9.897145218e+10 | AV12: -1.577750147 | AW12: 210035638.1 | AX12: -57487445.78 | AY12: -0.2671602735 | BA12: 454.5071246 | BB12: 53.15081391 | BC12: -1.310589873 | BD12: -255.0912685 | BF12: 76.53780713 | BG12: -75.10927689 | BH12: 104.8907231 | BI12: 104.8907231 | BJ12: 0 | BK12: 0 | BM12: 23.38699323 | BN12: -0.01800838301 | BQ12: 70.05277471 | BT12: 104.713 | BU12: 34.1908 | BV12: -264.9322
A13: 5 | B13: 0.005 | C13: 1.000000015 | D13: 0.000172787594 | F13: 0.9845969661 | G13: -0.0005656696995 | H13: -0.0005656696995 | J13: 15 | M13: 377.0550658 | N13: -1.570796325 | O13: 1.000000908 | P13: 0.001347742431 | Q13: 1.000000463 | R13: 0.0009624580271 | S13: 0.9999999854 | T13: -0.0001707769748 | U13: 0.9999999992 | V13: -4.023114168e-05 | X13: 74.91510255 | Y13: -89.90223562 | Z13: 90.09776438 | AC13: 1 | AD13: 0.001347743247 | AE13: -5.080872334e-12 | AF13: 1.262920245e-07 | AG13: 10353.0853 | AH13: -7918156.798 | AJ13: 21000 | AK13: 3.586316506 | AL13: 1 | AM13: 0.0009624583243 | AN13: 20999.984 | AO13: -16.6252929 | AQ13: 9999.0001 | AR13: -99.990001 | AT13: -688216005.2 | AU13: -7.917468582e+10 | AV13: -1.579488482 | AW13: 210027423.3 | AX13: -46805683.35 | AY13: -0.2192719645 | BA13: 367.9607686 | BB13: 51.31603035 | BC13: -1.360216518 | BD13: -257.9346658 | BF13: 74.70302552 | BG13: -77.95717626 | BH13: 102.0428237 | BI13: 102.0428237 | BJ13: 0 | BK13: 0 | BM13: 23.38699517 | BN13: -0.02251048651 | BQ13: 68.21799115 | BT13: 107.152 | BU13: 34.4777 | BV13: -262.3057
A14: 6 | B14: 0.006 | C14: 1.000000021 | D14: 0.0002073451119 | F14: 0.9845972296 | G14: -0.000678803837 | H14: -0.000678803837 | J14: 15 | M14: 314.2125548 | N14: -1.570796325 | O14: 1.000001308 | P14: 0.001617290486 | Q14: 1.000000667 | R14: 0.001154949476 | S14: 0.999999979 | T14: -0.0002049323689 | U14: 0.9999999988 | V14: -4.827737e-05 | X14: 73.3314852 | Y14: -89.88268279 | Z14: 90.11731721 | AC14: 1 | AD14: 0.001617291896 | AE14: -7.316456161e-12 | AF14: 1.515504294e-07 | AG14: 10353.0853 | AH14: -6598464.151 | AJ14: 21000 | AK14: 4.303579807 | AL14: 1 | AM14: 0.001154949989 | AN14: 20999.97696 | AO14: -19.95034335 | AQ14: 9998.560207 | AR14: -119.9827225 | AT14: -688185746.5 | AU14: -6.597638328e+10 | AV14: -1.581226738 | AW14: 210017383.8 | AX14: -39835501.92 | AY14: -0.1874503412 | BA14: 308.6609857 | BB14: 49.78963478 | BC14: -1.393776397 | BD14: -259.8575052 | BF14: 73.17663233 | BG14: -79.88451779 | BH14: 100.1154822 | BI14: 100.1154822 | BJ14: 0 | BK14: 0 | BM14: 23.38699756 | BN14: -0.02701259519 | BQ14: 66.69159558 | BT14: 109.648 | BU14: 34.1144 | BV14: -262.7662
A15: 7 | B15: 0.007 | C15: 1.000000029 | D15: 0.0002419026293 | F15: 0.984597541 | G15: -0.0007919380822 | H15: -0.0007919380822 | J15: 15 | M15: 269.325047 | N15: -1.570796325 | O15: 1.00000178 | P15: 0.001886838306 | Q15: 1.000000908 | R15: 0.001347440838 | S15: 0.9999999714 | T15: -0.0002390877625 | U15: 0.9999999984 | V15: -5.632359832e-05 | X15: 71.99255834 | Y15: -89.86312999 | Z15: 90.13687001 | AC15: 1 | AD15: 0.001886840546 | AE15: -9.958509775e-12 | AF15: 1.768088343e-07 | AG15: 10353.08529 | AH15: -5655826.57 | AJ15: 21000 | AK15: 5.020843108 | AL15: 1 | AM15: 0.001347441654 | AN15: 20999.96864 | AO15: -23.27538937 | AQ15: 9998.040384 | AR15: -139.9725654 | AT15: -688149989.5 | AU15: -5.65486316e+10 | AV15: -1.582964898 | AW15: 210005520.1 | AX15: -34986189.5 | AY15: -0.1650804289 | BA15: 265.6310699 | BB15: 48.48557743 | BC15: -1.417884469 | BD15: -261.238796 | BF15: 71.8725778 | BG15: -81.27031069 | BH15: 98.72968931 | BI15: 98.72968931 | BJ15: 0 | BK15: 0 | BM15: 23.38700037 | BN15: -0.03151471007 | BQ15: 65.38753823 | BT15: 112.202 | BU15: 34.2977 | BV15: -267.0128
A16: 8 | B16: 0.008 | C16: 1.000000038 | D16: 0.0002764601462 | F16: 0.9845979003 | G16: -0.0009050724532 | H16: -0.0009050724532 | J16: 15 | M16: 235.6594161 | N16: -1.570796325 | O16: 1.000002325 | P16: 0.002156385853 | Q16: 1.000001186 | R16: 0.001539932102 | S16: 0.9999999627 | T16: -0.0002732431555 | U16: 0.9999999979 | V16: -6.436982663e-05 | X16: 70.83272972 | Y16: -89.84357721 | Z16: 90.15642279 | AC16: 1 | AD16: 0.002156389195 | AE16: -1.300703318e-11 | AF16: 2.020672392e-07 | AG16: 10353.08528 | AH16: -4948848.405 | AJ16: 21000 | AK16: 5.738106409 | AL16: 1 | AM16: 0.001539933319 | AN16: 20999.95904 | AO16: -26.60043021 | AQ16: 9997.440655 | AR16: -159.9590505 | AT16: -688108736.2 | AU16: -4.947747431e+10 | AV16: -1.584702946 | AW16: 209991832.8 | AX16: -31462384.62 | AY16: -0.1487204627 | BA16: 233.0378638 | BB16: 47.34852981 | BC16: -1.435982483 | BD16: -262.2757358 | BF16: 70.73553343 | BG16: -82.31175265 | BH16: 97.68824735 | BI16: 97.68824735 | BJ16: 0 | BK16: 0 | BM16: 23.38700362 | BN16: -0.03601683219 | BQ16: 64.25049061 | BT16: 114.815 | BU16: 33.3465 | BV16: -266.2048
A17: 9 | B17: 0.009 | C17: 1.000000048 | D17: 0.0003110176623 | F17: 0.9845983075 | G17: -0.001018206968 | H17: -0.001018206968 | J17: 15 | M17: 209.4750366 | N17: -1.570796325 | O17: 1.000002943 | P17: 0.002425933085 | Q17: 1.000001501 | R17: 0.00173242325 | S17: 0.9999999528 | T17: -0.0003073985479 | U17: 0.9999999974 | V17: -7.241605493e-05 | X17: 69.80969096 | Y17: -89.82402447 | Z17: 90.17597553 | AC17: 1 | AD17: 0.002425937844 | AE17: -1.646202636e-11 | AF17: 2.273256442e-07 | AG17: 10353.08527 | AH17: -4398976.517 | AJ17: 21000 | AK17: 6.45536971 | AL17: 1 | AM17: 0.001732424984 | AN17: 20999.94816 | AO17: -29.92546513 | AQ17: 9996.761049 | AR17: -179.9416989 | AT17: -688061988.4 | AU17: -4.397738006e+10 | AV17: -1.586440866 | AW17: 209976322.4 | AX17: -28822214.91 | AY17: -0.136411651 | BA17: 207.5194831 | BB17: 46.34117754 | BC17: -1.450029215 | BD17: -263.0805543 | BF17: 69.72818484 | BG17: -83.12107325 | BH17: 96.87892675 | BI17: 96.87892675 | BJ17: 0 | BK17: 0 | BM17: 23.3870073 | BN17: -0.04051896257 | BQ17: 63.24313834 | BT17: 117.49 | BU17: 33.0246 | BV17: -264.9049
A18: 10 | B18: 0.01 | C18: 1.00000006 | D18: 0.0003455751777 | F18: 0.9845987626 | G18: -0.001131341644 | H18: -0.001131341644 | J18: 15 | M18: 188.5275329 | N18: -1.570796325 | O18: 1.000003633 | P18: 0.002695479966 | Q18: 1.000001853 | R18: 0.001924914271 | S18: 0.9999999417 | T18: -0.0003415539396 | U18: 0.9999999968 | V18: -8.046228322e-05 | X18: 68.89455421 | Y18: -89.80447176 | Z18: 90.19552824 | AC18: 1 | AD18: 0.002695486494 | AE18: -2.032348934e-11 | AF18: 2.525840491e-07 | AG18: 10353.08525 | AH18: -3959079.024 | AJ18: 21000 | AK18: 7.172633011 | AL18: 1 | AM18: 0.001924916649 | AN18: 20999.936 | AO18: -33.2504934 | AQ18: 9996.001599 | AR18: -199.920032 | AT18: -688009748.4 | AU18: -3.957703004e+10 | AV18: -1.588178643 | AW18: 209958989.8 | AX18: -26800552.63 | AY18: -0.1269600299 | BA18: 187.0099577 | BB18: 45.43729464 | BC18: -1.461218613 | BD18: -263.7216596 | BF18: 68.82430605 | BG18: -83.76668068 | BH18: 96.23331932 | BI18: 96.23331932 | BJ18: 0 | BK18: 0 | BM18: 23.38701141 | BN18: -0.04502110227 | BQ18: 62.33925544 | BT18: 120.226 | BU18: 33.736 | BV18: -269.9808
A19: =A10*10 -> 20 | B19: 0.02 | C19: 1.000000239 | D19: 0.0006911502729 | F19: 0.9846059488 | G19: -0.002262701251 | H19: -0.002262701251 | J19: 15 | M19: 94.26376645 | N19: -1.570796325 | O19: 1.000014531 | P19: 0.005390920763 | Q19: 1.000007411 | R19: 0.003849814277 | S19: 0.9999997667 | T19: -0.0006831077996 | U19: 0.9999999871 | V19: -0.0001609245654 | X19: 62.87416058 | Y19: -89.60894761 | Z19: 90.39105239 | AC19: 1 | AD19: 0.005390972987 | AE19: -8.129395735e-11 | AF19: 5.051680981e-07 | AG19: 10353.08505 | AH19: -1979540.762 | AJ19: 21000 | AK19: 14.34526602 | AL19: 1 | AM19: 0.003849833297 | AN19: 20999.74399 | AO19: -66.5002476 | AQ19: 9984.025559 | AR19: -399.3610224 | AT19: -687185956.6 | AU19: -1.976792018e+10 | AV19: -1.605545018 | AW19: 209685666.2 | AX19: -20185442.7 | AY19: -0.09596952743 | BA19: 93.89694244 | BB19: 39.45302901 | BC19: -1.50957549 | BD19: -266.4923045 | BF19: 62.84010538 | BG19: -86.58234779 | BH19: 93.41765221 | BI19: 93.41765221 | BJ19: 0 | BK19: 0 | BM19: 23.38707636 | BN19: -0.09004323844 | BQ19: 56.35498981 | BT19: 123.027 | BU19: 32.7649 | BV19: -265.7341
A20: =A11*10 -> 30 | B20: 0.03 | C20: 1.000000537 | D20: 0.001036725203 | F20: 0.9846179261 | G20: -0.003394096784 | H20: -0.003394096784 | J20: 15 | M20: 62.84251097 | N20: -1.570796325 | O20: 1.000032695 | P20: 0.008086283228 | Q20: 1.000016674 | R20: 0.005774685755 | S20: 0.999999475 | T20: -0.0010246615 | U20: 0.9999999709 | V20: -0.0002413868455 | X20: 59.3526792 | Y20: -89.41343165 | Z20: 90.58656835 | AC20: 1 | AD20: 0.008086459481 | AE20: -1.82911404e-10 | AF20: 7.577521472e-07 | AG20: 10353.08472 | AH20: -1319695.229 | AJ20: 21000 | AK20: 21.51789903 | AL20: 1 | AM20: 0.005774749946 | AN20: 20999.42398 | AO20: -99.74852344 | AQ20: 9964.129135 | AR20: -597.8477481 | AT20: -685817348 | AU20: -1.315580325e+10 | AV20: -1.622879586 | AW20: 209231580.4 | AX20: -20971810.94 | AY20: -0.09989887623 | BA20: 62.64822227 | BB20: 35.93817504 | BC20: -1.522980709 | BD20: -267.260367 | BF20: 59.32535965 | BG20: -87.39543447 | BH20: 92.60456553 | BI20: 92.60456553 | BJ20: 0 | BK20: 0 | BM20: 23.38718462 | BN20: -0.1350674425 | BQ20: 52.84013584 | BT20: 125.893 | BU20: 32.2472 | BV20: -266.3711
A21: 40 | B21: 0.04 | C21: 1.000000955 | D21: 0.001382299886 | F21: 0.9846346945 | G21: -0.004525546208 | H21: -0.004525546208 | J21: 15 | M21: 47.13188322 | N21: -1.570796325 | O21: 1.000058123 | P21: 0.0107815282 | Q21: 1.000029642 | R21: 0.007699514442 | S21: 0.9999990667 | T21: -0.001366214962 | U21: 0.9999999482 | V21: -0.0003218491225 | X21: 56.85438578 | Y21: -89.21792795 | Z21: 90.78207205 | AC21: 1 | AD21: 0.01078194597 | AE21: -3.251758294e-10 | AF21: 1.010336196e-06 | AG21: 10353.08425 | AH21: -989772.8799 | AJ21: 21000 | AK21: 28.69053204 | AL21: 1 | AM21: 0.007699666594 | AN21: 20998.97599 | AO21: -132.9945819 | AQ21: 9936.406995 | AR21: -794.9125596 | AT21: -683910434.6 | AU21: -9843015964 | AV21: -1.640166633 | AW21: 208598894.6 | AX21: -23581523.51 | AY21: -0.1125693027 | BA21: 47.00071908 | BB21: 33.44209005 | BC21: -1.527597331 | BD21: -267.5248799 | BF21: 56.82942622 | BG21: -87.7049747 | BH21: 92.2950253 | BI21: 92.2950253 | BJ21: 0 | BK21: 0 | BM21: 23.38733617 | BN21: -0.1800947484 | BQ21: 50.34405085 | BT21: 128.825 | BU21: 32.3142 | BV21: -268.0596
A22: 50 | B22: 0.05 | C22: 1.000001493 | D22: 0.001727874238 | F22: 0.9846562546 | G22: -0.00565706749 | H22: -0.00565706749 | J22: 15 | M22: 37.70550658 | N22: -1.570796325 | O22: 1.000090816 | P22: 0.01347661654 | Q22: 1.000046315 | R22: 0.009624286076 | S22: 0.9999985418 | T22: -0.001707768104 | U22: 0.9999999191 | V22: -0.0004023113953 | X22: 54.91680432 | Y22: -89.02244062 | Z22: 90.97755938 | AC22: 1 | AD22: 0.01347743247 | AE22: -5.080872334e-10 | AF22: 1.262920245e-06 | AG22: 10353.08364 | AH22: -791819.8033 | AJ22: 21000 | AK22: 35.86316506 | AL22: 1 | AM22: 0.009624583243 | AN22: 20998.40003 | AO22: -166.237684 | AQ22: 9900.990099 | AR22: -990.0990099 | AT22: =-AR22*AH22+AG22*AQ22 -> -681474224.7 | AU22: =AQ22*AH22+AG22*AR22 -> -7850050611 | AV22: -1.657390674 | AW22: 207790599.9 | AX22: -26890665.4 | AY22: -0.1286970559 | BA22: 37.6071418 | BB22: 31.50540655 | BC22: -1.528693618 | BD22: -267.5876926 | BF22: 54.89293758 | BG22: -87.81281878 | BH22: 92.18718122 | BI22: 92.18718122 | BJ22: 0 | BK22: 0 | BM22: 23.38753103 | BN22: -0.2251261905 | BQ22: 48.40736735 | BT22: 131.826 | BU22: 32.1558 | BV22: -263.3605
A23: 60 | B23: 0.06 | C23: 1.00000215 | D23: 0.002073448178 | F23: 0.9846826066 | G23: -0.006788678601 | H23: -0.006788678601 | J23: 15 | M23: 31.42125548 | N23: -1.570796325 | O23: 1.000130773 | P23: 0.0161715091 | Q23: 1.000066693 | R23: 0.0115489864 | S23: 0.9999979001 | T23: -0.002049320849 | U23: 0.9999998835 | V23: -0.0004827736629 | X23: 53.33393569 | Y23: -88.82697373 | Z23: 91.17302627 | AC23: 1 | AD23: 0.01617291896 | AE23: -7.316456161e-10 | AF23: 1.515504294e-06 | AG23: 10353.08291 | AH23: -659851.3633 | AJ23: 21000 | AK23: 43.03579807 | AL23: 1 | AM23: 0.01154949989 | AN23: 20997.69614 | AO23: -199.4770912 | AQ23: 9858.044164 | AR23: -1182.9653 | AT23: -678520117.3 | AU23: -6517091219 | AV23: -1.674536517 | AW23: 206810481.1 | AX23: -30517983.31 | AY23: -0.1465076578 | BA23: 31.34329696 | BB23: 29.92289355 | BC23: -1.52802886 | BD23: -267.5496047 | BF23: 53.31066273 | BG23: -87.81976753 | BH23: 92.18023247 | BI23: 92.18023247 | BJ23: 0 | BK23: 0 | BM23: 23.38776918 | BN23: -0.270162803 | BQ23: 46.82485435 | BT23: 134.896 | BU23: 32.8753 | BV23: -269.4654
A24: 70 | B24: 0.07 | C24: 1.000002926 | D24: 0.002419021622 | F24: 0.9847137512 | G24: -0.007920397516 | H24: -0.007920397516 | J24: 15 | M24: 26.9325047 | N24: -1.570796325 | O24: 1.000177993 | P24: 0.01886616678 | Q24: 1.000090776 | R24: 0.01347360116 | S24: 0.9999971419 | T24: -0.002390873115 | U24: 0.9999998414 | V24: -0.0005632359242 | X24: 51.99589365 | Y24: -88.63153139 | Z24: 91.36846861 | AC24: 1 | AD24: 0.01886840546 | AE24: -9.958509775e-10 | AF24: 1.768088343e-06 | AG24: 10353.08204 | AH24: -565588.4299 | AJ24: 21000 | AK24: 50.20843108 | AL24: 1 | AM24: 0.01347441654 | AN24: 20996.86434 | AO24: -232.7120651 | AQ24: 9807.767752 | AR24: -1373.087485 | AT24: -675061770.8 | AU24: -5561375651 | AV24: -1.691589337 | AW24: 205663073.2 | AX24: -34294725.2 | AY24: -0.1652316864 | BA24: 26.86868479 | BB24: 28.58492817 | BC24: -1.526357651 | BD24: -267.4538515 | BF24: 51.97297882 | BG24: -87.76905715 | BH24: 92.23094285 | BI24: 92.23094285 | BJ24: 0 | BK24: 0 | BM24: 23.38805065 | BN24: -0.3152056206 | BQ24: 45.48688897 | BT24: 138.038 | BU24: 32.5387 | BV24: -267.9507
A25: 80 | B25: 0.08 | C25: 1.000003822 | D25: 0.002764594489 | F25: 0.984749689 | G25: -0.009052242213 | H25: -0.009052242213 | J25: 15 | M25: 23.56594161 | N25: -1.570796325 | O25: 1.000232474 | P25: 0.02156055047 | Q25: 1.000118563 | R25: 0.0153981161 | S25: 0.9999962669 | T25: -0.002732424823 | U25: 0.9999997928 | V25: -0.0006436981782 | X25: 50.83708591 | Y25: -88.43611766 | Z25: 91.56388234 | AC25: 1 | AD25: 0.02156389195 | AE25: -1.300703318e-09 | AF25: 2.020672392e-06 | AG25: 10353.08103 | AH25: -494891.4381 | AJ25: 21000 | AK25: 57.38106409 | AL25: 1 | AM25: 0.01539933319 | AN25: 20995.90467 | AO25: -265.9418675 | AQ25: 9750.390016 | AR25: -1560.062402 | AT25: -671114948 | AU25: -4841535990 | AV25: -1.708534737 | AW25: 204353610 | AX25: -38132148.72 | AY25: -0.1844772637 | BA25: 23.51264072 | BB25: 27.42602815 | BC25: -1.524057473 | BD25: -267.322061 | BF25: 50.81440358 | BG25: -87.68231672 | BH25: 92.31768328 | BI25: 92.31768328 | BJ25: 0 | BK25: 0 | BM25: 23.38837542 | BN25: -0.3602556781 | BQ25: 44.32798895 | BT25: 141.254 | BU25: 32.377 | BV25: -263.1143
A26: 90 | B26: 0.09 | C26: 1.000004837 | D26: 0.003110166695 | F26: 0.9847904208 | G26: -0.01018423068 | H26: -0.01018423068 | J26: 15 | M26: 20.94750366 | N26: -1.570796325 | O26: 1.000294215 | P26: 0.0242546211 | Q26: 1.000150054 | R26: 0.01732251698 | S26: 0.9999952753 | T26: -0.003073975894 | U26: 0.9999997378 | V26: -0.000724160424 | X26: 49.81520408 | Y26: -88.24073665 | Z26: 91.75926335 | AC26: 1 | AD26: 0.02425937844 | AE26: -1.646202636e-09 | AF26: 2.273256442e-06 | AG26: 10353.07989 | AH26: -439905.0741 | AJ26: 21000 | AK26: 64.5536971 | AL26: 1 | AM26: 0.01732424984 | AN26: 20994.81718 | AO26: -299.165761 | AQ26: 9686.168152 | AR26: -1743.510267 | AT26: -666697340.6 | AU26: -4279045219 | AV26: -1.725358804 | AW26: 202887965.7 | AX26: -41977394.39 | AY26: -0.2040206922 | BA26: 20.90243517 | BB26: 26.4039377 | BC26: -1.521338112 | BD26: -267.1662531 | BF26: 49.7926812 | BG26: -87.57156715 | BH26: 92.42843285 | BI26: 92.42843285 | BJ26: 0 | BK26: 0 | BM26: 23.3887435 | BN26: -0.4053140106 | BQ26: 43.3058985 | BT26: 144.544 | BU26: 31.4991 | BV26: -266.2885
A27: 100 | B27: 0.1 | C27: 1.000005971 | D27: 0.003455738159 | F27: 0.9848359473 | G27: -0.0113163809 | H27: -0.0113163809 | J27: 15 | M27: 18.85275329 | N27: -1.570796325 | O27: 1.000363216 | P27: 0.02694833963 | Q27: 1.000185248 | R27: 0.01924678955 | S27: 0.9999941671 | T27: -0.003415526247 | U27: 0.9999996763 | V27: -0.0008046226603 | X27: 48.90136028 | Y27: -88.04539244 | Z27: 91.95460756 | AC27: 1 | AD27: 0.02695486494 | AE27: -2.032348934e-09 | AF27: 2.525840491e-06 | AG27: 10353.07862 | AH27: -395916.1494 | AJ27: 21000 | AK27: 71.72633011 | AL27: 1 | AM27: 0.01924916649 | AN27: 20993.6019 | AO27: -332.3830081 | AQ27: 9615.384615 | AR27: -1923.076923 | AT27: -661828377.6 | AU27: -3826795819 | AV27: -1.74204817 | AW27: 201272591.4 | AX27: -45795862.53 | AY27: -0.2237226876 | BA27: 18.81437653 | BB27: 25.48979662 | BC27: -1.518325482 | BD27: -266.9936421 | BF27: 48.87895152 | BG27: -87.4440238 | BH27: 92.5559762 | BI27: 92.5559762 | BJ27: 0 | BK27: 0 | BM27: 23.38915489 | BN27: -0.4503816539 | BQ27: 42.39175743 | BT27: 147.911 | BU27: 31.4819 | BV27: -266.3463
A28: 200 | B28: 0.2 | C28: 1.000023884 | D28: 0.006911393782 | F28: 0.9855551788 | G28: -0.02265074403 | H28: -0.02265074403 | J28: 15 | M28: 9.426376645 | N28: -1.570796325 | O28: 1.001452075 | P28: 0.05385759554 | Q28: 1.000740786 | R28: 0.03847933013 | S28: 0.999976669 | T28: -0.006830972807 | U28: 0.9999987052 | V28: -0.001609244279 | X28: 42.90136882 | Y28: -86.09487102 | Z28: 93.90512898 | AC28: 1 | AD28: 0.05390972987 | AE28: -8.129395735e-09 | AF28: 5.051680981e-06 | AG28: 10353.05851 | AH28: -197970.5702 | AJ28: 21000 | AK28: 143.4526602 | AL28: 1 | AM28: 0.03849833297 | AN28: 20974.43602 | AO28: -664.0281616 | AQ28: 8620.689655 | AR28: -3448.275862 | AT28: -593406634.1 | AU28: -1742343048 | AV28: -1.899054353 | AW28: 178574551.4 | AX28: -79164670.12 | AY28: -0.4172802886 | BA28: 9.422882132 | BB28: 19.48367517 | BC28: -1.481774064 | BD28: -264.8994002 | BF28: 42.87932669 | BG28: -85.8011985 | BH28: 94.1988015 | BI28: 94.1988015 | BJ28: 0 | BK28: 0 | BM28: 23.39565152 | BN28: -0.9017983426 | BQ28: 36.38563597 | BT28: 151.356 | BU28: 31.0519 | BV28: -267.0283
A29: 300 | B29: 0.3 | C29: 1.000053739 | D29: 0.01036688434 | F29: 0.9867555361 | G29: -0.03402115105 | H29: -0.03402115105 | J29: 15 | M29: 6.284251097 | N29: -1.570796325 | O29: 1.003264214 | P29: 0.08068902305 | Q29: 1.001665999 | R29: 0.05768343597 | S29: 0.9999475075 | T29: -0.01024626 | U29: 0.9999970866 | V29: -0.002413863813 | X29: 39.41383777 | Y29: -84.1525034 | Z29: 95.8474966 | AC29: 1 | AD29: 0.08086459481 | AE29: -1.82911404e-08 | AF29: 7.577521472e-06 | AG29: 10353.025 | AH29: -131994.2639 | AJ29: 21000 | AK29: 215.1789903 | AL29: 1 | AM29: 0.05774749946 | AN29: 20942.58726 | AO29: -994.203056 | AQ29: 7352.941176 | AR29: -4411.764706 | AT29: -506202450.9 | AU29: -1016221168 | AV29: -2.032940668 | AW29: 149653568 | AX29: -100448143.8 | AY29: -0.5911375833 | BA29: 6.29896467 | BB29: 15.98538345 | BC29: -1.441803085 | BD29: -262.6092317 | BF29: 39.39186682 | BG29: -83.96452138 | BH29: 96.03547862 | BI29: 96.03547862 | BJ29: 0 | BK29: 0 | BM29: 23.40648337 | BN29: -1.355289651 | BQ29: 32.88734425 | BT29: 154.882 | BU29: 31.2487 | BV29: -260.6973
A30: 400 | B30: 0.4 | C30: 1.000095533 | D30: 0.01382212735 | F30: 0.988439478 | G30: -0.045445823 | H30: -0.045445823 | J30: 15 | M30: 4.713188322 | N30: -1.570796325 | O30: 1.005795723 | P30: 0.1074045482 | Q30: 1.002959863 | R30: 0.076845047 | S30: 0.9999066858 | T30: -0.01366130818 | U30: 0.9999948207 | V30: -0.003218480223 | X30: 36.96296366 | Y30: -82.22232073 | Z30: 97.77767927 | AC30: 1 | AD30: 0.1078194597 | AE30: -3.251758294e-08 | AF30: 1.010336196e-05 | AG30: 10352.97808 | AH30: -99010.27574 | AJ30: 21000 | AK30: 286.9053204 | AL30: 1 | AM30: 0.07699666594 | AN30: 20898.19608 | AO30: -1322.186102 | AQ30: 6097.560976 | AR30: -4878.04878 | AT30: -419849039.7 | AU30: -654223525.6 | AV30: -2.141351201 | AW30: 121028406.8 | AX30: -110563580.1 | AY30: -0.7402423999 | BA30: 4.742073105 | BB30: 13.5193649 | BC30: -1.401108801 | BD30: -260.277621 | BF30: 36.94102148 | BG30: -82.08952533 | BH30: 97.91047467 | BI30: 97.91047467 | BJ30: 0 | BK30: 0 | BM30: 23.42165659 | BN30: -1.811904296 | BQ30: 30.4213257 | BT30: 158.489 | BU30: 31.0037 | BV30: -259.869
A31: 500 | B31: 0.5 | C31: 1.000149267 | D31: 0.01727704033 | F31: 0.9906104506 | G31: -0.05694322141 | H31: -0.05694322141 | J31: 15 | M31: 3.770550658 | N31: -1.570796325 | O31: 1.009041188 | P31: 0.1339670853 | Q31: 1.004620954 | R31: 0.09595028991 | S31: 0.999854208 | T31: -0.01707603771 | U31: 0.9999919074 | V31: -0.004023092465 | X31: 35.08616111 | Y31: -80.30830063 | Z31: 99.69169937 | AC31: 1 | AD31: 0.1347743247 | AE31: -5.080872334e-08 | AF31: 1.262920245e-05 | AG31: 10352.91775 | AH31: -79223.21479 | AJ31: 21000 | AK31: 358.6316506 | AL31: 1 | AM31: 0.09624583243 | AN31: 20841.45696 | AO31: -1647.271724 | AQ31: 5000 | AR31: -5000 | AT31: -344351485.2 | AU31: -447880662.7 | AV31: -2.226250497 | AW31: 96020899.77 | AX31: -112891911 | AY31: -0.8659795258 | BA31: 3.811999535 | BB31: 11.62305678 | BC31: -1.360270972 | BD31: -257.9377858 | BF31: 35.06423648 | BG31: -80.21049052 | BH31: 99.78950948 | BI31: 99.78950948 | BJ31: 0 | BK31: 0 | BM31: 23.4411797 | BN31: -2.272704768 | BQ31: 28.52501758 | BT31: 162.181 | BU31: 30.4293 | BV31: -262.3986
A32: 600 | B32: 0.6 | C32: 1.000214937 | D32: 0.02073154086 | F32: 0.9932728899 | G32: -0.06853213097 | H32: -0.06853213097 | J32: 15 | M32: 3.142125548 | N32: -1.570796325 | O32: 1.012993747 | P32: 0.1603408332 | Q32: 1.006647453 | R32: 0.1149855373 | S32: 0.9997900797 | T32: -0.02049036903 | U32: 0.9999883467 | V32: -0.004827699497 | X32: 33.57729273 | Y32: -78.41435151 | Z32: 101.5856485 | AC32: 1 | AD32: 0.1617291896 | AE32: -7.316456161e-08 | AF32: 1.515504294e-05 | AG32: 10352.84403 | AH32: -66034.61732 | AJ32: 21000 | AK32: 430.3579807 | AL32: 1 | AM32: 0.1154949989 | AN32: 20772.6163 | AO32: -1968.775316 | AQ32: 4098.360656 | AR32: -4918.032787 | AT32: -282330724.4 | AU32: -321549303.9 | AV32: -2.291341244 | AW32: 75501028.14 | AX32: -110603754.9 | AY32: -0.9718260012 | BA32: 3.195331567 | BB32: 10.0903186 | BC32: -1.319515243 | BD32: -255.6026545 | BF32: 33.55538214 | BG32: -78.34142656 | BH32: 101.6585734 | BI32: 101.6585734 | BJ32: 0 | BK32: 0 | BM32: 23.46506354 | BN32: -2.738772075 | BQ32: 26.9922794 | BT32: 165.959 | BU32: 29.9194 | BV32: -264.8295
A33: 700 | B33: 0.7 | C33: 1.000292542 | D33: 0.0241855466 | F33: 0.9964322258 | G33: -0.0802317445 | H33: -0.0802317445 | J33: 15 | M33: 2.69325047 | N33: -1.570796325 | O33: 1.01764516 | P33: 0.1864915456 | Q33: 1.00903716 | R33: 0.133937464 | S33: 0.9997143077 | T33: -0.02390422261 | U33: 0.9999841386 | V33: -0.005632300279 | X33: 32.32630699 | Y33: -76.5442988 | Z33: 103.4557012 | AC33: 1 | AD33: 0.1886840546 | AE33: -9.958509775e-08 | AF33: 1.768088343e-05 | AG33: 10352.75689 | AH33: -56616.57032 | AJ33: 21000 | AK33: 502.0843108 | AL33: 1 | AM33: 0.1347441654 | AN33: 20691.96973 | AO33: -2286.037881 | AQ33: 3378.378378 | AR33: -4729.72973 | AT33: -232805545.8 | AU33: -240237939.1 | AV33: -2.340483922 | AW33: 59142680.83 | AX33: -105912651.1 | AY33: -1.061519259 | BA33: 2.757747009 | BB33: 8.811088446 | BC33: -1.278964664 | BD33: -253.2792775 | BF33: 32.30440953 | BG33: -76.49048806 | BH33: 103.5095119 | BI33: 103.5095119 | BJ33: 0 | BK33: 0 | BM33: 23.49332109 | BN33: -3.211210601 | BQ33: 25.71304925 | BT33: 169.824 | BU33: 29.8089 | BV33: -267.7277
A34: 800 | B34: 0.8 | C34: 1.000382078 | D34: 0.02763897525 | F34: 1.000094884 | G34: -0.09206175061 | H34: -0.09206175061 | J34: 15 | M34: 2.356594161 | N34: -1.570796325 | O34: 1.022985896 | P34: 0.2123867701 | Q34: 1.011787501 | R34: 0.1527931003 | S34: 0.9996268998 | T34: -0.027317519 | U34: 0.9999792833 | V34: -0.006436893769 | X34: 31.26742116 | Y34: -74.70187317 | Z34: 105.2981268 | AC34: 1 | AD34: 0.2156389195 | AE34: -1.300703318e-07 | AF34: 2.020672392e-05 | AG34: 10352.65636 | AH34: -49555.11726 | AJ34: 21000 | AK34: 573.8106409 | AL34: 1 | AM34: 0.1539933319 | AN34: 20599.85906 | AO34: -2598.430292 | AQ34: 2808.988764 | AR34: -4494.382022 | AT34: -193639132.7 | AU34: -185728560.2 | AV34: -2.377043462 | AW34: 46235996.39 | AX34: -100165501.1 | AY34: -1.138341104 | BA34: 2.432083517 | BB34: 7.719569689 | BC34: -1.238702358 | BD34: -250.9724173 | BF34: 31.24553704 | BG34: -74.66357041 | BH34: 105.3364296 | BI34: 105.3364296 | BJ34: 0 | BK34: 0 | BM34: 23.52596735 | BN34: -3.691153137 | BQ34: 24.62153049 | BT34: 173.78 | BU34: 30.0709 | BV34: -269.952
A35: 900 | B35: 0.9 | C35: 1.000483543 | D35: 0.0310917446 | F35: 1.004268291 | G35: -0.1040424248 | H35: -0.1040424248 | J35: 15 | M35: 2.094750366 | N35: -1.570796325 | O35: 1.029005221 | P35: 0.2379960524 | Q35: 1.014895543 | R35: 0.1715398815 | S35: 0.9995278652 | T35: -0.03073017882 | U35: 0.9999737806 | V35: -0.007241478924 | X35: 30.35811352 | Y35: -72.89070122 | Z35: 107.1092988 | AC35: 1 | AD35: 0.2425937844 | AE35: -1.646202636e-07 | AF35: 2.273256442e-05 | AG35: 10352.54242 | AH35: -44064.7267 | AJ35: 21000 | AK35: 645.536971 | AL35: 1 | AM35: 0.1732424984 | AN35: 20496.66867 | AO35: -2905.357118 | AQ35: 2358.490566 | AR35: -4245.283019 | AT35: -162650862.4 | AU35: -147875714.8 | AV35: -2.403739576 | AW35: 36056522.87 | AX35: -94118925.85 | AY35: -1.204947321 | BA35: 2.181027867 | BB35: 6.773224293 | BC35: -1.198792255 | BD35: -248.6857368 | BF35: 30.33624347 | BG35: -72.8655029 | BH35: 107.1344971 | BI35: 107.1344971 | BJ35: 0 | BK35: 0 | BM35: 23.56301918 | BN35: -4.179766093 | BQ35: 23.67518509 | BT35: 177.828 | BU35: 29.7201 | BV35: -271.5601
A36: 1000 | B36: 1 | C36: 1.000596933 | D36: 0.03454377255 | F36: 1.008960872 | G36: -0.1161947244 | H36: -0.1161947244 | J36: 15 | M36: 1.885275329 | N36: -1.570796325 | O36: 1.035691303 | P36: 0.2632911038 | Q36: 1.018358012 | R36: 0.1901656933 | S36: 0.9994172143 | T36: -0.03414212279 | U36: 0.9999676307 | V36: -0.008046054704 | X36: 29.56926233 | Y36: -71.11429876 | Z36: 108.8857012 | AC36: 1 | AD36: 0.2695486494 | AE36: -2.032348934e-07 | AF36: 2.525840491e-05 | AG36: 10352.41509 | AH36: -39674.0798 | AJ36: 21000 | AK36: 717.2633011 | AL36: 1 | AM36: 0.1924916649 | AN36: 20382.82168 | AO36: -3206.259978 | AQ36: 2000 | AR36: -4000 | AT36: -137991489 | AU36: -120757820 | AV36: -2.422699995 | AW36: 27989795.96 | AX36: -88172097.15 | AY36: -1.263412722 | BA36: 1.982191533 | BB36: 5.942912333 | BC36: -1.159287274 | BD36: -246.4222681 | BF36: 29.54740735 | BG36: -71.10052305 | BH36: 108.8994769 | BI36: 108.8994769 | BJ36: 0 | BK36: 0 | BM36: 23.60449501 | BN36: -4.678254941 | BQ36: 22.84487313 | BT36: 181.97 | BU36: 30.0421 | BV36: -268.8459
A37: =A36+500 -> 1500 | B37: 1.5 | C37: 1.001342599 | D37: 0.05178992541 | F37: 1.040575639 | G37: -0.1803248283 | H37: -0.1803248283 | J37: 15 | M37: 1.256850219 | N37: -1.570796325 | O37: 1.078645942 | P37: 0.3842275147 | Q37: 1.040850298 | R37: 0.2810924661 | S37: 0.9986901631 | T37: -0.05118833735 | U37: 0.9999271734 | V37: -0.01206875652 | X37: 26.85794916 | Y37: -62.868845 | Z37: 117.131155 | AC37: 1 | AD37: 0.4043229741 | AE37: -4.572785101e-07 | AF37: 3.788760736e-05 | AG37: 10351.57742 | AH37: -26518.79134 | AJ37: 21000 | AK37: 1075.894952 | AL37: 1 | AM37: 0.2887374973 | AN37: 19670.71652 | AO37: -4603.778505 | AQ37: 1000 | AR37: -3000 | AT37: -69204796.6 | AU37: -57573523.59 | AV37: -2.447683341 | AW37: 5907360.696 | AX37: -63772432.17 | AY37: -1.478428032 | BA37: 1.405600181 | BB37: 2.95723609 | BC37: -0.9692553087 | BD37: -235.5342385 | BF37: 26.8361882 | BG37: -62.89874598 | BH37: 117.101254 | BI37: 117.101254 | BJ37: 0 | BK37: 0 | BM37: 23.87895211 | BN37: -7.364507462 | BQ37: 19.85919689 | BT37: 186.209 | BU37: 29.9018 | BV37: -265.3796
A38: =A37+500 -> 2000 | B38: 2 | C38: 1.002385599 | D38: 0.06900530104 | F38: 1.0869878 | G38: -0.2524716978 | H38: -0.2524716978 | J38: 15 | M38: 0.9426376645 | N38: -1.570796325 | O38: 1.136057172 | P38: 0.4944340981 | Q38: 1.071546622 | R38: 0.3674943238 | S38: 0.9976749519 | T38: -0.06820483275 | U38: 0.9998705416 | V38: -0.01609106776 | X38: 25.44079275 | Y38: -55.95678869 | Z38: 124.0432113 | AC38: 1 | AD38: 0.5390972987 | AE38: -8.129395735e-07 | AF38: 5.051680981e-05 | AG38: 10350.4049 | AH38: -19961.9544 | AJ38: 21000 | AK38: 1434.526602 | AL38: 1 | AM38: 0.3849833297 | AN38: 18770.28436 | AO38: -5791.719971 | AQ38: 588.2352941 | AR38: -2352.941176 | AT38: -40880830.99 | AU38: -36096220.01 | AV38: -2.41827096 | AW38: -2539786.722 | AX38: -47693746.63 | AY38: -1.623998061 | BA38: 1.14184521 | BB38: 1.152144687 | BC38: -0.7942728988 | BD38: -225.5084849 | BF38: 25.41915963 | BG38: -56.02033516 | BH38: 123.9796648 | BI38: 123.9796648 | BJ38: 0 | BK38: 0 | BM38: 24.26701495 | BN38: -10.51185023 | BQ38: 18.05410549 | BT38: 190.546 | BU38: 29.5667 | BV38: -265.8945
A39: 2500 | B39: 2.5 | C39: 1.003725006 | D39: 0.08617981081 | F39: 1.15019831 | G39: -0.3367330593 | H39: -0.3367330593 | J39: 15 | M39: 0.7541101316 | N39: -1.570796325 | O39: 1.205861918 | P39: 0.5929740775 | Q39: 1.10976642 | R39: 0.4485184899 | S39: 0.9963742182 | T39: -0.08518186339 | U39: 0.9997977433 | V39: -0.02011285834 | X39: 24.81554594 | Y39: -50.71545829 | Z39: 129.2845417 | AC39: 1 | AD39: 0.6738716234 | AE39: -1.270218084e-06 | AF39: 6.314601227e-05 | AG39: 10348.89778 | AH39: -16044.48675 | AJ39: 21000 | AK39: 1793.158253 | AL39: 1 | AM39: 0.4812291621 | AN39: 17751.90674 | AO39: -6749.576953 | AQ39: 384.6153846 | AR39: -1923.076923 | AT39: -26874436.91 | AU39: -26072682.94 | AV39: -2.371335875 | AW39: -6107588.262 | AX39: -36835179.43 | AY39: -1.735109979 | BA39: 1.002824678 | BB39: 0.02450025264 | BC39: -0.6362258956 | BD39: -216.4530587 | BF39: 24.79407482 | BG39: -50.80870238 | BH39: 129.1912976 | BI39: 129.1912976 | BJ39: 0 | BK39: 0 | BM39: 24.76957457 | BN39: -14.3556437 | BQ39: 16.92646105 | BT39: 194.984 | BU39: 29.6856 | BV39: -265.6327
A40: 3000 | B40: 3 | C40: 1.005359637 | D40: 0.1033035103 | F40: 1.232126081 | G40: -0.4386613193 | H40: -0.4386613193 | J40: 15 | M40: 0.6284251097 | N40: -1.570796325 | O40: 1.28604365 | P40: 0.6799906724 | Q40: 1.154762906 | R40: 0.5236923146 | S40: 0.9947913204 | T40: -0.1021098198 | U40: 0.9997087892 | V40: -0.02413399831 | X40: 24.73350833 | Y40: -47.48186997 | Z40: 132.51813 | AA40: =20*LOG(7) -> 16.9019608 | AC40: 1 | AD40: 0.8086459481 | AE40: -1.82911404e-06 | AF40: 7.577521472e-05 | AG40: 10347.05634 | AH40: -13446.69164 | AJ40: 21000 | AK40: 2151.789903 | AL40: 1 | AM40: 0.5774749946 | AN40: 16680.15174 | AO40: -7480.580632 | AQ40: 270.2702703 | AR40: -1621.621622 | AT40: -19008944.18 | AU40: -20413251.26 | AV40: -2.320587302 | AW40: -7579637.515 | AX40: -29158045.23 | AY40: -1.825117668 | BA40: 0.9258566893 | BB40: -0.6691246265 | BC40: -0.4954696338 | BD40: -208.3883189 | BF40: 24.71223247 | BG40: -47.60290603 | BH40: 132.397094 | BI40: 132.397094 | BJ40: 0 | BK40: 0 | BM40: 25.3813571 | BN40: -19.21458711 | BQ40: 16.23283617 | BT40: 199.526 | BU40: 29.051 | BV40: -267.8015
A41: 3500 | B41: 3.5 | C41: 1.007288053 | D41: 0.1203666327 | F41: 1.332921992 | G41: -0.5657537963 | H41: -0.5657537963 | J41: 15 | M41: 0.538650094 | N41: -1.570796325 | O41: 1.374787915 | P41: 0.7562929047 | Q41: 1.205777655 | R41: 0.5928703661 | S41: 0.9929303136 | T41: -0.1189792601 | U41: 0.9996036922 | V41: -0.02815435781 | X41: 25.03211948 | Y41: -46.64757871 | Z41: 133.3524213 | AC41: 1 | AD41: 0.9434202728 | AE41: -2.489627444e-06 | AF41: 8.840441717e-05 | AG41: 10344.88093 | AH41: -11602.98243 | AJ41: 21000 | AK41: 2510.421554 | AL41: 1 | AM41: 0.673720827 | AN41: 15607.21311 | AO41: -8004.482971 | AQ41: 200 | AR41: -1400 | AT41: -14175199.22 | AU41: -16803429.79 | AV41: -2.271557052 | AW41: -8043777.76 | AX41: -23528722.29 | AY41: -1.900210618 | BA41: 0.8841050399 | BB41: -1.069922674 | BC41: -0.3713464342 | BD41: -201.2765834 | BF41: 25.01107083 | BG41: -46.79538819 | BH41: 133.2046118 | BI41: 133.2046118 | BJ41: 0 | BK41: 0 | BM41: 26.08099351 | BN41: -25.51880475 | BQ41: 15.83203813 | BT41: 204.174 | BU41: 28.4243 | BV41: -264.1684
A42: 4000 | B42: 4 | C42: 1.009508571 | D42: 0.1373596215 | F42: 1.446676782 | G42: -0.7273795355 | H42: -0.7273795355 | J42: 15 | M42: 0.4713188322 | N42: -1.570796325 | O42: 1.470545338 | P42: 0.8230066376 | Q42: 1.262081082 | R42: 0.6561577869 | S42: 0.9907959219 | T42: -0.1357809411 | U42: 0.9994824677 | V42: -0.03217380715 | X42: 25.5642528 | Y42: -48.67887035 | Z42: 131.3211297 | AC42: 1 | AD42: 1.078194597 | AE42: -3.251758294e-06 | AF42: 0.0001010336196 | AG42: 10342.37198 | AH42: -10230.56382 | AJ42: 21000 | AK42: 2869.053204 | AL42: 1 | AM42: 0.7699666594 | AN42: 14570.79756 | AO42: -8349.975114 | AQ42: 153.8461538 | AR42: -1230.769231 | AT42: -11000329.02 | AU42: -14303006.1 | AV42: -2.226404829 | AW42: -7995942.811 | AX42: -19288331.17 | AY42: -1.963780999 | BA42: 0.8641722264 | BB42: -1.267993912 | BC42: -0.2626238298 | BD42: -195.0472371 | BF42: 25.54346171 | BG42: -48.852888 | BH42: 131.147112 | BI42: 131.147112 | BJ42: 0 | BK42: 0 | BM42: 26.81145562 | BN42: -33.80565094 | BQ42: 15.63396689 | BT42: 208.93 | BU42: 28.5109 | BV42: -267.6911
A43: 4500 | B43: 4.5 | C43: 1.012019268 | D43: 0.15427316 | F43: 1.553134562 | G43: -0.9324375212 | H43: -0.9324375212 | J43: 15 | M43: 0.4189500731 | N43: -1.570796325 | O43: 1.572034862 | P43: 0.8813394476 | Q43: 1.322998141 | R43: 0.7138312765 | S43: 0.988393505 | T43: -0.1525058461 | U43: 0.9993451332 | V43: -0.0361922168 | X43: 26.14636373 | Y43: -54.00058614 | Z43: 125.9994139 | AC43: 1 | AD43: 1.212968922 | AE43: -4.115506591e-06 | AF43: 0.0001136628221 | AG43: 10339.52998 | AH43: -9172.325521 | AJ43: 21000 | AK43: 3227.684855 | AL43: 1 | AM43: 0.8662124918 | AN43: 13595.11716 | AO43: -8548.575453 | AQ43: 121.9512195 | AR43: -1097.560976 | AT43: -8806268.258 | AU43: -12466840.89 | AV43: -2.185788202 | AW43: -7687017.754 | AX43: -16028630.05 | AY43: -2.017975267 | BA43: 0.8586255525 | BB43: -1.323923823 | BC43: -0.1678129348 | BD43: -189.6149729 | BF43: 26.12585866 | BG43: -54.20050664 | BH43: 125.7994934 | BI43: 125.7994934 | BJ43: 0 | BK43: 0 | BM43: 27.44978249 | BN43: -44.58553371 | BQ43: 15.57803698 | BT43: 213.796 | BU43: 28.179 | BV43: -266.9667
A44: 5000 | B44: 5 | C44: 1.01481799 | D44: 0.1710982003 | F44: 1.61061276 | G44: -1.181898788 | H44: -1.181898788 | J44: 15 | M44: 0.3770550658 | N44: -1.570796325 | O44: 1.678216869 | P44: 0.9324471066 | Q44: 1.387921477 | R44: 0.7662705739 | S44: 0.9857290218 | T44: -0.1691452126 | U44: 0.9991917087 | V44: -0.04020945745 | X44: 26.52989351 | Y44: -62.5803929 | Z44: 117.4196071 | AC44: 1 | AD44: 1.347743247 | AE44: -5.080872334e-06 | AF44: 0.0001262920245 | AG44: 10336.35547 | AH44: -8333.999763 | AJ44: 21000 | AK44: 3586.316506 | AL44: 1 | AM44: 0.9624583243 | AN44: 12693.42772 | AO44: -8630.578666 | AQ44: 99.00990099 | AR44: -990.0990099 | AT44: -7228083.383 | AU44: -11059163.8 | AV44: -2.149686352 | AW44: -7252267.635 | AX44: -13482173.03 | AY44: -2.064314167 | BA44: 0.8630073469 | BB44: -1.279710141 | BC44: -0.08537218491 | BD44: -184.8914659 | BF44: 26.5097009 | BG44: -62.80607355 | BH44: 117.1939265 | BI44: 117.1939265 | BJ44: 0 | BK44: 0 | BM44: 27.78941104 | BN44: -57.91460766 | BQ44: 15.62225066 | BT44: 218.776 | BU44: 27.7064 | BV44: -263.5369
A45: 5500 | B45: 5.5 | C45: 1.017902362 | D45: 0.1878259891 | F45: 1.572300445 | G45: -1.458025766 | H45: -1.458025766 | J45: 15 | M45: 0.3427773325 | N45: -1.570796325 | O45: 1.788255672 | P45: 0.9773708108 | Q45: 1.456315382 | R45: 0.8139055394 | S45: 0.9828089908 | T45: -0.1856905565 | U45: 0.9990222164 | V45: -0.04422540001 | X45: 26.46148657 | Y45: -73.31772546 | Z45: 106.6822745 | AC45: 1 | AD45: 1.482517572 | AE45: -6.147855524e-06 | AF45: 0.000138921227 | AG45: 10332.84906 | AH45: -7655.59653 | AJ45: 21000 | AK45: 3944.948156 | AL45: 1 | AM45: 1.058704157 | AN45: 11870.93839 | AO45: -8622.863666 | AQ45: 81.96721311 | AR45: -901.6393443 | AT45: -6055632.194 | AU45: -9944011.166 | AV45: -2.117787356 | AW45: -6767005.69 | AX45: -11466013.66 | AY45: -2.103963543 | BA45: 0.8744774426 | BB45: -1.165027776 | BC45: -0.01382381215 | BD45: -180.7920461 | BF45: 26.4416306 | BG45: -73.5691325 | BH45: 106.4308675 | BI45: 106.4308675 | BJ45: 0 | BK45: 0 | BM45: 27.60665837 | BN45: -72.77708641 | BQ45: 15.73693302 | BT45: 223.872 | BU45: 27.9371 | BV45: -265.1945
A46: 6000 | B46: 6 | C46: 1.021269796 | D46: 0.2044480914 | F46: 1.433050094 | G46: 1.41557551 | H46: -1.72601714 | J46: 15 | M46: 0.3142125548 | N46: -1.570796325 | O46: 1.901481811 | P46: 1.01701679 | Q46: 1.527713807 | R46: 0.8571788421 | S46: 0.9796404474 | T46: -0.2021336952 | U46: 0.9988366809 | V46: -0.04823991564 | X46: 25.84824046 | Y46: -84.1413362 | Z46: 95.8586638 | AC46: 1 | AD46: 1.617291896 | AE46: -7.316456161e-06 | AF46: 0.0001515504294 | AG46: 10329.01145 | AH46: -7097.121159 | AJ46: 21000 | AK46: 4303.579807 | AL46: 1 | AM46: 1.154949989 | AN46: 11127.43219 | AO46: -8548.047882 | AQ46: 68.96551724 | AR46: -827.5862069 | AT46: -5161133.963 | AU46: -9037604.036 | AV46: -2.089674547 | AW46: -6273428.896 | AX46: -9850913.374 | AY46: -2.137862596 | BA46: 0.8911360744 | BB46: -1.001119503 | BC46: 0.04818804922 | BD46: -177.2390282 | BF46: 25.82874288 | BG46: -84.41851299 | BH46: 95.58148701 | BI46: 95.58148701 | BJ46: 0 | BK46: 0 | BM46: 26.82986238 | BN46: -87.17948483 | BQ46: 15.9008413 | BT46: 229.087 | BU46: 27.6763 | BV46: -266.7544
A47: 6500 | B47: 6.5 | C47: 1.024917502 | D47: 0.2209564118 | F47: 1.240736167 | G47: 1.18546636 | H47: -1.95612629 | J47: 15 | M47: 0.2900423583 | N47: -1.570796325 | O47: 2.01735868 | P47: 1.052158368 | Q47: 1.601715013 | R47: 0.8965217745 | S47: 0.9762308989 | T47: -0.2184667676 | U47: 0.9986351291 | V47: -0.05225287577 | X47: 24.82497588 | Y47: -93.27785593 | Z47: 86.72214407 | AC47: 1 | AD47: 1.752066221 | AE47: -8.586674245e-06 | AF47: 0.0001641796319 | AG47: 10324.84336 | AH47: -6630.883831 | AJ47: 21000 | AK47: 4662.211457 | AL47: 1 | AM47: 1.251195822 | AN47: 10459.33884 | AO47: -8424.469597 | AQ47: 58.82352941 | AR47: -764.7058824 | AT47: -4463332.144 | AU47: -8285520.439 | AV47: -2.06491527 | AW47: -5794721.178 | AX47: -8543361.467 | AY47: -2.16679028 | BA47: 0.9116605958 | BB47: -0.8033363215 | BC47: 0.1018750108 | BD47: -174.1629918 | BF47: 24.80585588 | BG47: -93.58090269 | BH47: 86.41909731 | BI47: 86.41909731 | BJ47: 0 | BK47: 0 | BM47: 25.6091922 | BN47: -99.41791085 | BQ47: 16.09862448 | BT47: 234.423 | BU47: 27.6703 | BV47: -266.7612
A48: 7000 | B48: 7 | C48: 1.028842497 | D48: 0.2373432134 | F48: 1.047867961 | G48: 1.002516671 | H48: -2.139075979 | J48: 15 | M48: 0.269325047 | N48: -1.570796325 | O48: 2.13545481 | P48: 1.083448294 | Q48: 1.677974675 | R48: 0.9323400071 | S48: 0.9725882776 | T48: -0.2346822523 | U48: 0.9984175901 | V48: -0.05626415214 | X48: 23.61081004 | Y48: -100.1351003 | Z48: 79.86489974 | AC48: 1 | AD48: 1.886840546 | AE48: -9.958509775e-06 | AF48: 0.0001768088343 | AG48: 10320.34559 | AH48: -6237.104987 | AJ48: 21000 | AK48: 5020.843108 | AL48: 1 | AM48: 1.347441654 | AN48: 9861.23842 | AO48: -8266.600299 | AQ48: 50.76142132 | AR48: -710.6598985 | AT48: -3908584.986 | AU48: -7650860.067 | AV48: -2.043101047 | AW48: -5342930.73 | AX48: -7474450.083 | AY48: -2.191403432 | BA48: 0.93509878 | BB48: -0.5828501923 | BC48: 0.1483023845 | BD48: -171.5028993 | BF48: 23.59208412 | BG48: -100.4641606 | BH48: 79.53583936 | BI48: 79.53583936 | BJ48: 0 | BK48: 0 | BM48: 24.17493431 | BN48: -108.9612614 | BQ48: 16.31911061 | BT48: 239.883 | BU48: 27.2761 | BV48: -267.5957
A49: 7500 | B49: 7.5 | C49: 1.033041623 | D49: 0.2536011333 | F49: 0.8804303689 | G49: 0.8613704277 | H49: -2.280222222 | J49: 15 | M49: 0.2513700439 | N49: -1.570796325 | O49: 2.25542162 | P49: 1.11143461 | Q49: 1.75619861 | R49: 0.9650063219 | S49: 0.9687208933 | T49: -0.2507729827 | U49: 0.9981840954 | V49: -0.0602736168 | X49: 22.36856591 | Y49: -104.9671907 | Z49: 75.03280932 | AC49: 1 | AD49: 2.02161487 | AE49: -1.143196275e-05 | AF49: 0.0001894380368 | AG49: 10315.51903 | AH49: -5901.278583 | AJ49: 21000 | AK49: 5379.474758 | AL49: 1 | AM49: 1.443687486 | AN49: 9326.88133 | AO49: -8085.627104 | AQ49: 44.24778761 | AR49: -663.7168142 | AT49: -3460338.925 | AU49: -7107701.948 | AV49: -2.023863497 | AW49: -4923549.713 | AX49: -6592657.495 | AY49: -2.212261196 | BA49: 0.9607453581 | BB49: -0.3478341035 | BC49: 0.1883976987 | BD49: -169.205607 | BF49: 22.35024777 | BG49: -105.3224422 | BH49: 74.67755781 | BI49: 74.67755781 | BJ49: 0 | BK49: 0 | BM49: 22.69808188 | BN49: -116.1168352 | BQ49: 16.5541267 | BT49: 245.471 | BU49: 27.0755 | BV49: -266.8096
A50: 8000 | B50: 8 | C50: 1.03751155 | D50: 0.2697231963 | F50: 0.7435437056 | G50: 0.7525303214 | H50: -2.389062329 | J50: 15 | M50: 0.2356594161 | N50: -1.570796325 | O50: 2.376975885 | P50: 1.136576644 | Q50: 1.836135786 | R50: 0.9948579493 | S50: 0.9646373844 | T50: -0.2667321604 | U50: 0.9979346787 | V50: -0.06428114217 | X50: 21.18142546 | Y50: -108.2726464 | Z50: 71.72735362 | AC50: 1 | AD50: 2.156389195 | AE50: -1.300703318e-05 | AF50: 0.0002020672392 | AG50: 10310.36459 | AH50: -5612.52412 | AJ50: 21000 | AK50: 5738.106409 | AL50: 1 | AM50: 1.539933319 | AN50: 8849.839474 | AO50: -7890.056263 | AQ50: 38.91050584 | AR50: -622.5680934 | AT50: -3092996.939 | AU50: -6637290.175 | AV50: -2.006878342 | AW50: -4538242.541 | AX50: -5858991.788 | AY50: -2.22984231 | BA50: 0.9880651801 | BB50: -0.1042881039 | BC50: 0.222963968 | BD50: -167.2251056 | BF50: 21.16352591 | BG50: -108.6542934 | BH50: 71.34570659 | BI50: 71.34570659 | BJ50: 0 | BK50: 0 | BM50: 21.26781401 | BN50: -121.4291878 | BQ50: 16.7976727 | BT50: 251.189 | BU50: 27.0434 | BV50: -265.9205
A51: 8500 | B51: 8.5 | C51: 1.042248794 | D51: 0.2857028257 | F51: 0.6337821779 | G51: 0.6674737023 | H51: -2.474118948 | J51: 15 | M51: 0.2217970975 | N51: -1.570796325 | O51: 2.499886052 | P51: 1.159259587 | Q51: 1.917571958 | R51: 1.022196757 | S51: 0.9603466692 | T51: -0.2825533656 | U51: 0.9976693759 | V51: -0.06828660103 | X51: 20.08090202 | Y51: -110.5004153 | Z51: 69.49958472 | AC51: 1 | AD51: 2.29116352 | AE51: -1.468372105e-05 | AF51: 0.0002146964417 | AG51: 10304.88326 | AH51: -5362.520319 | AJ51: 21000 | AK51: 6096.738059 | AL51: 1 | AM51: 1.636179151 | AN51: 8423.895331 | AO51: -7686.263854 | AQ51: 34.48275862 | AR51: -586.2068966 | AT51: -2788205.592 | AU51: -6225708.127 | AV51: -1.991863845 | AW51: -4186492.405 | AX51: -5243630.978 | AY51: -2.244558269 | BA51: 1.016643675 | BB51: 0.1433752615 | BC51: 0.2526944245 | BD51: -165.521676 | BF51: 20.06342892 | BG51: -110.9086837 | BH51: 69.0913163 | BI51: 69.0913163 | BJ51: 0 | BK51: 0 | BM51: 19.92005366 | BN51: -125.3870077 | BQ51: 17.04533606 | BT51: 257.04 | BU51: 26.6776 | BV51: -267.6031
A52: 9000 | B52: 9 | C52: 1.047249728 | D52: 0.3015338511 | F52: 0.5458334996 | G52: 0.5997850984 | H52: -2.541807552 | J52: 15 | M52: 0.2094750366 | N52: -1.570796325 | O52: 2.62396159 | P52: 1.179807137 | Q52: 2.000324055 | R52: 1.04729108 | S52: 0.9558578972 | T52: -0.2982305648 | U52: 0.9973882253 | V52: -0.07228986655 | X52: 19.07298754 | Y52: -111.9841566 | Z52: 68.01584344 | AC52: 1 | AD52: 2.425937844 | AE52: -1.646202636e-05 | AF52: 0.0002273256442 | AG52: 10299.07609 | AH52: -5144.794229 | AJ52: 21000 | AK52: 6455.36971 | AL52: 1 | AM52: 1.732424984 | AN52: 8043.254275 | AO52: -7478.964946 | AQ52: 30.76923077 | AR52: -553.8461538 | AT52: -2532529.847 | AU52: -5862405.041 | AV52: -1.978576878 | AW52: -3866599.054 | AX52: -4723549.004 | AY52: -2.256763838 | BA52: 1.046153915 | BB52: 0.3919116969 | BC52: 0.2781869603 | BD52: -164.0610612 | BF52: 19.05594573 | BG52: -112.4192894 | BH52: 67.58071062 | BI52: 67.58071062 | BJ52: 0 | BK52: 0 | BM52: 18.66403403 | BN52: -128.3582281 | BQ52: 17.2938725 | BT52: 263.027 | BU52: 26.2703 | BV52: -267.3229
A53: 9500 | B53: 9.5 | C53: 1.052510592 | D53: 0.317210514 | F53: 0.4748434763 | G53: 0.5448999623 | H53: -2.596692688 | J53: 15 | M53: 0.1984500346 | N53: -1.570796325 | O53: 2.749044709 | P53: 1.198492139 | Q53: 2.08423534 | R53: 1.070378394 | S53: 0.9511804014 | T53: -0.313758117 | U53: 0.9970912672 | V53: -0.07629081232 | X53: 18.15291507 | Y53: -112.9561597 | Z53: 67.0438403 | AC53: 1 | AD53: 2.560712169 | AE53: -1.834194913e-05 | AF53: 0.0002399548466 | AG53: 10292.9442 | AH53: -4954.234831 | AJ53: 21000 | AK53: 6814.001361 | AL53: 1 | AM53: 1.828670816 | AN53: 7702.642907 | AO53: -7271.59693 | AQ53: 27.62430939 | AR53: -524.8618785 | AT53: -2315953.524 | AU53: -5539231.342 | AV53: -1.966808265 | AW53: -3576281.258 | AX53: -4280810.712 | AY53: -2.266765692 | BA53: 1.076334121 | BB53: 0.6389421647 | BC53: 0.2999574272 | BD53: -162.8137054 | BF53: 18.13630637 | BG53: -113.4184135 | BH53: 66.58158645 | BI53: 66.58158645 | BJ53: 0 | BK53: 0 | BM53: 17.4973642 | BN53: -130.6047082 | BQ53: 17.54090296 | BT53: 269.153 | BU53: 26.2359 | BV53: -265.677
A54: 10000 | B54: 10 | C54: 1.058027511 | D54: 0.3327274709 | F54: 0.4169417329 | G54: 0.4996084668 | H54: -2.641984183 | J54: 15 | M54: 0.1885275329 | N54: -1.570796325 | O54: 2.875003902 | P54: 1.215545421 | Q54: 2.169171294 | R54: 1.091668319 | S54: 0.9463236519 | T54: -0.3291307767 | U54: 0.9967785443 | V54: -0.0802893124 | X54: 17.31218067 | Y54: -113.5750969 | Z54: 66.42490315 | AC54: 1 | AD54: 2.695486494 | AE54: -2.032348934e-05 | AF54: 0.0002525840491 | AG54: 10286.48875 | AH54: -4786.752564 | AJ54: 21000 | AK54: 7172.633011 | AL54: 1 | AM54: 1.924916649 | AN54: 7397.337118 | AO54: -7066.624362 | AQ54: 24.93765586 | AR54: -498.7531172 | AT54: -2130886.846 | AU54: -5249788.717 | AV54: -1.956378149 | AW54: -3313036.174 | AX54: -3901331.102 | AY54: -2.274829609 | BA54: 1.106971923 | BB54: 0.8827321103 | BC54: 0.3184514602 | BD54: -161.7540753 | BF54: 17.29600384 | BG54: -114.0647389 | BH54: 65.93526109 | BI54: 65.93526109 | BJ54: 0 | BK54: 0 | BM54: 16.41327173 | BN54: -132.3106636 | BQ54: 17.78469291 | BT54: 275.423 | BU54: 25.8456 | BV54: -266.4657
A55: 10500 | B55: 10.5 | C55: 1.063796498 | D55: 0.3480797941 | F55: 0.3691827772 | G55: 0.461638057 | H55: -2.679954593 | J55: 15 | M55: 0.1795500313 | N55: -1.570796325 | O55: 3.001728885 | P55: 1.231163044 | Q55: 2.255016136 | R55: 1.111345662 | S55: 0.94129721 | T55: -0.3443436952 | U55: 0.9964501013 | V55: -0.08428524128 | X55: 16.54160357 | Y55: -113.9493511 | Z55: 66.05064892 | AC55: 1 | AD55: 2.830260818 | AE55: -2.240664699e-05 | AF55: 0.0002652132515 | AG55: 10279.71098 | AH55: -4639.036127 | AJ55: 21000 | AK55: 7531.264662 | AL55: 1 | AM55: 2.021162481 | AN55: 7123.149087 | AO55: -6865.777019 | AQ55: 22.62443439 | AR55: -475.1131222 | AT55: -1971494.292 | AU55: -4988981.147 | AV55: -1.947131748 | AW55: -3074348.694 | AX55: -3573962.414 | AY55: -2.281186509 | BA55: 1.137893112 | BB55: 1.122029372 | BC55: 0.3340547613 | BD55: -160.860072 | BF55: 16.52585433 | BG55: -114.4666565 | BH55: 65.53334349 | BI55: 65.53334349 | BJ55: 0 | BK55: 0 | BM55: 15.40382496 | BN55: -133.6065845 | BQ55: 18.02399017 | BT55: 281.838 | BU55: 26.1068 | BV55: -266.6757
A56: 11000 | B56: 11 | C56: 1.069813478 | D56: 0.3632629701 | F56: 0.3293551739 | G56: 0.4293564761 | H56: -2.712236174 | J56: 15 | M56: 0.1713886663 | N56: -1.570796325 | O56: 3.129126619 | P56: 1.245512236 | Q56: 2.34166991 | R56: 1.129573311 | S56: 0.9361106859 | T56: -0.3593924195 | U56: 0.9961059854 | V56: -0.08827847396 | X56: 15.83254957 | Y56: -114.1535258 | Z56: 65.84647424 | AC56: 1 | AD56: 2.965035143 | AE56: -2.45914221e-05 | AF56: 0.000277842454 | AG56: 10272.61218 | AH56: -4508.375607 | AJ56: 21000 | AK56: 7889.896312 | AL56: 1 | AM56: 2.117408313 | AN56: 6876.392112 | AO56: -6670.233511 | AQ56: 20.6185567 | AR56: -453.6082474 | AT56: -1833229.921 | AU56: -4752697.804 | AV56: -1.938935612 | AW56: -2857808.339 | AX56: -3289815.925 | AY56: -2.286037539 | BA56: 1.16895345 | BB56: 1.355944341 | BC56: 0.3471019277 | BD56: -160.1125245 | BF56: 15.81722063 | BG56: -114.6987754 | BH56: 65.30122462 | BI56: 65.30122462 | BJ56: 0 | BK56: 0 | BM56: 14.46127629 | BN56: -134.5862509 | BQ56: 18.25790514 | BT56: 288.403 | BU56: 25.7844 | BV56: -268.0599
A57: 11500 | B57: 11.5 | C57: 1.07607429 | D57: 0.378272896 | F57: 0.2957975446 | G57: 0.4015711818 | H57: -2.740021468 | J57: 15 | M57: 0.1639369851 | N57: -1.570796325 | O57: 3.257118164 | P57: 1.258736246 | Q57: 2.429046043 | R57: 1.146494904 | S57: 0.9307736965 | T57: -0.3742728896 | U57: 0.9957462455 | V57: -0.09226888595 | X57: 15.17734127 | Y57: -114.2395065 | Z57: 65.76049345 | AC57: 1 | AD57: 3.099809468 | AE57: -2.687781465e-05 | AF57: 0.0002904716564 | AG57: 10265.19369 | AH57: -4392.53175 | AJ57: 21000 | AK57: 8248.527963 | AL57: 1 | AM57: 2.213654146 | AN57: 6653.835085 | AO57: -6480.761659 | AQ57: 18.86792453 | AR57: -433.9622642 | AT57: -1712510.124 | AU57: -4537584.652 | AV57: -1.931674398 | AW57: -2661169.521 | AX57: -3041753.713 | AY57: -2.289558364 | BA57: 1.200032585 | BB57: 1.583860778 | BC57: 0.3578839662 | BD57: -159.4947592 | BF57: 15.16242235 | BG57: -114.8129848 | BH57: 65.18701523 | BI57: 65.18701523 | BJ57: 0 | BK57: 0 | BM57: 13.57856157 | BN57: -135.3182256 | BQ57: 18.48582158 | BT57: 295.121 | BU57: 25.5811 | BV57: -265.88
A58: 12000 | B58: 12 | C58: 1.082574703 | D58: 0.3931058742 | F58: 0.2672529156 | G58: 0.3773955032 | H58: -2.764197147 | J58: 15 | M58: 0.1571062774 | N58: -1.570796325 | O58: 3.385636175 | P58: 1.2709583 | Q58: 2.51706931 | R58: 1.162237231 | S58: 0.9252958271 | T58: -0.3889814337 | U58: 0.995370933 | V58: -0.0962563533 | X58: 14.56932285 | Y58: -114.2437654 | Z58: 65.75623462 | AC58: 1 | AD58: 3.234583792 | AE58: -2.926582464e-05 | AF58: 0.0003031008589 | AG58: 10257.45692 | AH58: -4289.637912 | AJ58: 21000 | AK58: 8607.159613 | AL58: 1 | AM58: 2.309899978 | AN58: 6452.653764 | AO58: -6297.825176 | AQ58: 17.33102253 | AR58: -415.9445407 | AT58: -1606479.254 | AU58: -4340877.018 | AV58: -1.925248128 | AW58: -2482377.541 | AX58: -2824004.719 | AY58: -2.291902787 | BA58: 1.231029477 | BB58: 1.805369043 | BC58: 0.3666546593 | BD58: -158.9922355 | BF58: 14.55480075 | BG58: -114.8457584 | BH58: 65.15424163 | BI58: 65.15424163 | BJ58: 0 | BK58: 0 | BM58: 12.74943171 | BN58: -135.8535229 | BQ58: 18.70732984 | BT58: 301.995 | BU58: 24.917 | BV58: -267.1358
A59: 12500 | B59: 12.5 | C59: 1.089310428 | D59: 0.4077586049 | F59: 0.2427608488 | G59: 0.3561589354 | H59: -2.785433715 | J59: 15 | M59: 0.1508220263 | N59: -1.570796325 | O59: 3.514622899 | P59: 1.282284844 | Q59: 2.605674128 | R59: 1.176912371 | S59: 0.9196865951 | T59: -0.4035147615 | U59: 0.9949801013 | V59: -0.1002407526 | X59: 14.00278851 | Y59: -114.1921923 | Z59: 65.80780769 | AC59: 1 | AD59: 3.369358117 | AE59: -3.175545209e-05 | AF59: 0.0003157300613 | AG59: 10249.40333 | AH59: -4198.125547 | AJ59: 21000 | AK59: 8965.791264 | AL59: 1 | AM59: 2.406145811 | AN59: 6270.382934 | AO59: -6121.664365 | AQ59: 15.97444089 | AR59: -399.3610224 | AT59: -1512839.223 | AU59: -4160274.902 | AV59: -1.919569875 | AW59: -2319574.312 | AX59: -2631872.499 | AY59: -2.293205819 | BA59: 1.261858888 | BB59: 2.020215819 | BC59: 0.3736359439 | BD59: -158.5922373 | BF59: 13.98864717 | BG59: -114.8229863 | BH59: 65.17701368 | BI59: 65.17701368 | BJ59: 0 | BK59: 0 | BM59: 11.96843135 | BN59: -136.230749 | BQ59: 18.92217662 | BT59: 309.03 | BU59: 24.8252 | BV59: -265.0361
A60: 13000 | B60: 13 | C60: 1.096277127 | D60: 0.4222281775 | F60: 0.2215794285 | G60: 0.337346309 | H60: -2.804246341 | J60: 15 | M60: 0.1450211792 | N60: -1.570796325 | O60: 3.644028563 | P60: 1.29280821 | Q60: 2.694803135 | R60: 1.19061956 | S60: 0.9139554157 | T60: -0.4178699567 | U60: 0.9945738058 | V60: -0.1042219611 | X60: 13.47286652 | Y60: -114.103321 | Z60: 65.89667901 | AC60: 1 | AD60: 3.504132442 | AE60: -3.434669698e-05 | AF60: 0.0003283592638 | AG60: 10241.03445 | AH60: -4116.666883 | AJ60: 21000 | AK60: 9324.422914 | AL60: 1 | AM60: 2.502391643 | AN60: 6104.871681 | AO60: -5952.356962 | AQ60: 14.77104874 | AR60: -384.0472674 | AT60: -1429723.848 | AU60: -3993848.782 | AV60: -1.914563815 | AW60: -2171092.518 | AX60: -2461511.166 | AY60: -2.293586266 | BA60: 1.292448668 | BB60: 2.228266065 | BC60: 0.3790224517 | BD60: -158.2836132 | BF60: 13.45908707 | BG60: -114.7632008 | BH60: 65.2367992 | BI60: 65.2367992 | BJ60: 0 | BK60: 0 | BM60: 11.230821 | BN60: -136.4795876 | BQ60: 19.13022687 | BT60: 316.228 | BU60: 24.722 | BV60: -265.2184
A61: 13500 | B61: 13.5 | C61: 1.103470427 | D61: 0.4365120603 | F61: 0.2031291594 | G61: 0.3205559284 | H61: -2.821036722 | J61: 15 | M61: 0.1396500244 | N61: -1.570796325 | O61: 3.773810071 | P61: 1.302608802 | Q61: 2.784405992 | R61: 1.20344683 | S61: 0.9081115717 | T61: -0.4320444676 | U61: 0.9941521041 | V61: -0.1081998564 | X61: 12.97539779 | Y61: -113.990508 | Z61: 66.00949198 | AC61: 1 | AD61: 3.638906766 | AE61: -3.703955932e-05 | AF61: 0.0003409884662 | AG61: 10232.35184 | AH61: -4044.130343 | AJ61: 21000 | AK61: 9683.054565 | AL61: 1 | AM61: 2.598637475 | AN61: 5954.242782 | AO61: -5789.863865 | AQ61: 13.69863014 | AR61: -369.8630137 | AT61: -1355605.033 | AU61: -3839967.536 | AV61: -1.910163592 | AW61: -2035443.595 | AX61: -2309752.421 | AY61: -2.293148935 | BA61: 1.322737616 | BB61: 2.429474084 | BC61: 0.3829853432 | BD61: -158.0565562 | BF61: 12.96195866 | BG61: -114.6797556 | BH61: 65.32024441 | BI61: 65.32024441 | BJ61: 0 | BK61: 0 | BM61: 10.53248458 | BN61: -136.6231994 | BQ61: 19.33143488 | BT61: 323.594 | BU61: 24.5962 | BV61: -266.9949
A62: 14000 | B62: 14 | C62: 1.110885925 | D62: 0.4506080892 | F62: 0.1869524991 | G62: 0.3054703025 | H62: -2.836122347 | J62: 15 | M62: 0.1346625235 | N62: -1.570796325 | O62: 3.90392994 | P62: 1.311756908 | Q62: 2.874438387 | R62: 1.215472432 | S62: 0.902164185 | T62: -0.4460360967 | U62: 0.9937150558 | V62: -0.1121743171 | X62: 12.50682436 | Y62: -113.8634248 | Z62: 66.13657523 | AC62: 1 | AD62: 3.773681091 | AE62: -3.98340391e-05 | AF62: 0.0003536176687 | AG62: 10223.35714 | AH62: -3979.545517 | AJ62: 21000 | AK62: 10041.68622 | AL62: 1 | AM62: 2.694883308 | AN62: 5816.856553 | AO62: -5634.063413 | AQ62: 12.7388535 | AR62: -356.6878981 | AT62: -1289221.877 | AU62: -3697242.619 | AV62: -1.90631095 | AW62: -1911302.825 | AX62: -2173971.128 | AY62: -2.291986498 | BA62: 1.352673779 | BB62: 2.623861431 | BC62: 0.3856755473 | BD62: -157.9024189 | BF62: 12.49370139 | BG62: -114.582318 | BH62: 65.41768202 | BI62: 65.41768202 | BJ62: 0 | BK62: 0 | BM62: 9.869839964 | BN62: -136.6798991 | BQ62: 19.52582223 | BT62: 331.131 | BU62: 24.3868 | BV62: -265.0934
A63: 14500 | B63: 14.5 | C63: 1.118519201 | D63: 0.464514455 | F63: 0.1726844595 | G63: 0.291835356 | H63: -2.849757294 | J63: 15 | M63: 0.1300189882 | N63: -1.570796325 | O63: 4.03435543 | P63: 1.320314198 | Q63: 2.96486119 | R63: 1.226766068 | S63: 0.8961221913 | T63: -0.4598429888 | U63: 0.9932627225 | V63: -0.1161452222 | X63: 12.06409264 | Y63: -113.729092 | Z63: 66.27090801 | AC63: 1 | AD63: 3.908455416 | AE63: -4.273013633e-05 | AF63: 0.0003662468711 | AG63: 10214.05204 | AH63: -3922.075379 | AJ63: 21000 | AK63: 10400.31787 | AL63: 1 | AM63: 2.79112914 | AN63: 5691.279074 | AO63: -5484.777005 | AQ63: 11.87648456 | AR63: -344.4180523 | AT63: -1229526.532 | AU63: -3564484.376 | AV63: -1.902954576 | AW63: -1797493.526 | AX63: -2051980.182 | AY63: -2.290181081 | BA63: 1.382213082 | BB63: 2.811499983 | BC63: 0.3872265046 | BD63: -157.8135555 | BF63: 12.05125915 | BG63: -114.4779035 | BH63: 65.52209651 | BI63: 65.52209651 | BJ63: 0 | BK63: 0 | BM63: 9.239759168 | BN63: -136.6643479 | BQ63: 19.71346078 | BT63: 338.844 | BU63: 24.1369 | BV63: -266.4201
A64: 15000 | B64: 15 | C64: 1.126365828 | D64: 0.4782296905 | F64: 0.1600310497 | G64: 0.279445435 | H64: -2.862147215 | J64: 15 | M64: 0.1256850219 | N64: -1.570796325 | O64: 4.165057831 | P64: 1.328334979 | Q64: 3.055639742 | R64: 1.237389959 | S64: 0.8899943177 | T64: -0.4734636194 | U64: 0.9927951678 | V64: -0.1201124514 | X64: 11.64457158 | Y64: -113.5926062 | Z64: 66.40739375 | AC64: 1 | AD64: 4.043229741 | AE64: -4.572785101e-05 | AF64: 0.0003788760736 | AG64: 10204.43826 | AH64: -3870.994065 | AJ64: 21000 | AK64: 10758.94952 | AL64: 1 | AM64: 2.887374973 | AN64: 5576.254503 | AO64: -5341.788179 | AQ64: 11.09877913 | AR64: -332.963374 | AT64: -1175642.438 | AU64: -3440667.501 | AV64: -1.90004913 | AW64: -1692971.487 | AX64: -1941947.772 | AY64: -2.287805624 | BA64: 1.411318212 | BB64: 2.992498919 | BC64: 0.3877564937 | BD64: -157.7831894 | BF64: 11.63199851 | BG64: -114.3716024 | BH64: 65.62839758 | BI64: 65.62839758 | BJ64: 0 | BK64: 0 | BM64: 8.639499589 | BN64: -136.588413 | BQ64: 19.89445972 | BT64: 346.737 | BU64: 24.0404 | BV64: -265.8794
A65: 15500 | B65: 15.5 | C65: 1.13442138 | D65: 0.4917526557 | F65: 0.1487533092 | G65: 0.2681323336 | H65: -2.873460316 | J65: 15 | M65: 0.1216306664 | N65: -1.570796325 | O65: 4.296011868 | P65: 1.335867229 | Q65: 3.146743254 | R65: 1.247399766 | S65: 0.883789063 | T65: -0.486896781 | U65: 0.9923124573 | V65: -0.124075885 | X65: 11.24598465 | Y65: -113.457656 | Z65: 66.54234403 | AC65: 1 | AD65: 4.178004065 | AE65: -4.882718313e-05 | AF65: 0.000391505276 | AG65: 10194.5176 | AH65: -3825.668949 | AJ65: 21000 | AK65: 11117.58117 | AL65: 1 | AM65: 2.983620805 | AN65: 5470.681092 | AO65: -5204.856757 | AQ65: 10.3950104 | AR65: -322.2453222 | AT65: -1126831.807 | AU65: -3324903.477 | AV65: -1.897554427 | AW65: -1596810.262 | AX65: -1842331.878 | AY65: -2.284925037 | BA65: 1.4399577 | BB65: 3.166994688 | BC65: 0.3873706105 | BD65: -157.8052989 | BF65: 11.23364065 | BG65: -114.267096 | BH65: 65.73290396 | BI65: 65.73290396 | BJ65: 0 | BK65: 0 | BM65: 8.066645957 | BN65: -136.4617972 | BQ65: 20.06895549 | BT65: 354.813 | BU65: 23.629 | BV65: -265.9549
A66: 16000 | B66: 16 | C66: 1.142681436 | D66: 0.5050825236 | F66: 0.1386553576 | G66: 0.2577571526 | H66: -2.883835497 | J66: 15 | M66: 0.1178297081 | N66: -1.570796325 | O66: 4.427195211 | P66: 1.342953482 | Q66: 3.2381443 | R66: 1.256845395 | S66: 0.877514681 | T66: -0.5001415696 | U66: 0.9918146587 | V66: -0.1280354043 | X66: 10.86635344 | Y66: -113.326892 | Z66: 66.67310796 | AC66: 1 | AD66: 4.31277839 | AE66: -5.20281327e-05 | AF66: 0.0004041344785 | AG66: 10184.2919 | AH66: -3785.546079 | AJ66: 21000 | AK66: 11476.21282 | AL66: 1 | AM66: 3.079866638 | AN66: 5373.590494 | AO66: -5073.72927 | AQ66: 9.756097561 | AR66: -312.195122 | AT66: -1082470.074 | AU66: -3216418.409 | AV66: -1.895434742 | AW66: -1508187.652 | AX66: -1751828.108 | AY66: -2.281597196 | BA66: 1.468105152 | BB66: 3.335143256 | BC66: 0.386162454 | BD66: -157.8745212 | BF66: 10.85420498 | BG66: -114.1670272 | BH66: 65.83297279 | BI66: 65.83297279 | BJ66: 0 | BK66: 0 | BM66: 7.519061725 | BN66: -136.2925061 | BQ66: 20.23710406 | BT66: 363.078 | BU66: 23.6126 | BV66: -265.3916
A67: 16500 | B67: 16.5 | C67: 1.151141596 | D67: 0.5182187654 | F67: 0.1295753584 | G67: 0.2482041808 | H67: -2.893388469 | J67: 15 | M67: 0.1142591108 | N67: -1.570796325 | O67: 4.558588065 | P67: 1.349631559 | Q67: 3.329818377 | R67: 1.265771685 | S67: 0.8711791655 | T67: -0.5131973709 | U67: 0.9913018413 | V67: -0.1319908909 | X67: 10.50395107 | Y67: -113.2021965 | Z67: 66.79780349 | AC67: 1 | AD67: 4.447552715 | AE67: -5.533069972e-05 | AF67: 0.0004167636809 | AG67: 10173.76306 | AH67: -3750.138268 | AJ67: 21000 | AK67: 11834.84447 | AL67: 1 | AM67: 3.17611247 | AN67: 5284.129955 | AO67: -4948.146576 | AQ67: 9.174311927 | AR67: -302.7522936 | AT67: -1042025.686 | AU67: -3114535.038 | AV67: -1.893658226 | AW67: -1426373.478 | AX67: -1669327.94 | AY67: -2.277873795 | BA67: 1.495738615 | BB67: 3.497114117 | BC67: 0.3842155691 | BD67: -157.9860694 | BF67: 10.49196262 | BG67: -114.0732693 | BH67: 65.92673075 | BI67: 65.92673075 | BJ67: 0 | BK67: 0 | BM67: 6.994848503 | BN67: -136.0871998 | BQ67: 20.39907492 | BT67: 371.535 | BU67: 23.316 | BV67: -265.2439
A68: 17000 | B68: 17 | C68: 1.15979748 | D68: 0.5311611344 | F68: 0.1213786189 | G68: 0.239376241 | H68: -2.902216409 | J68: 15 | M68: 0.1108985488 | N68: -1.570796325 | O68: 4.690172821 | P68: 1.355935191 | Q68: 3.421743541 | R68: 1.274219007 | S68: 0.8647902389 | T68: -0.5260638453 | U68: 0.9907740767 | V68: -0.1359422276 | X68: 10.1572638 | Y68: -113.0848792 | Z68: 66.91512077 | AC68: 1 | AD68: 4.582327039 | AE68: -5.873488418e-05 | AF68: 0.0004293928834 | AG68: 10162.93301 | AH68: -3719.015277 | AJ68: 21000 | AK68: 12193.47612 | AL68: 1 | AM68: 3.272358302 | AN68: 5201.546996 | AO68: -4827.849381 | AQ68: 8.643042351 | AR68: -293.8634399 | AT68: -1005043.962 | AU68: -3018658.06 | AV68: -1.892196402 | AW68: -1350718.656 | AX68: -1593885.096 | AY68: -2.273801084 | BA68: 1.522840025 | BB68: 3.653085657 | BC68: 0.381604682 | BD68: -158.1356623 | BF68: 10.14539789 | BG68: -113.9871226 | BH68: 66.01287737 | BI68: 66.01287737 | BJ68: 0 | BK68: 0 | BM68: 6.492312231 | BN68: -135.8514604 | BQ68: 20.55504646 | BT68: 380.189 | BU68: 23.2133 | BV68: -265.4987
A69: 17500 | B69: 17.5 | C69: 1.16864474 | D69: 0.5439096511 | F69: 0.1139522693 | G69: 0.2311911099 | H69: -2.91040154 | J69: 15 | M69: 0.1077300188 | N69: -1.570796325 | O69: 4.82193377 | P69: 1.361894551 | Q69: 3.513900086 | R69: 1.282223793 | S69: 0.8583553427 | T69: -0.5387409141 | U69: 0.9902314379 | V69: -0.1398892976 | X69: 9.824959118 | Y69: -112.9758229 | Z69: 67.02417715 | AC69: 1 | AD69: 4.717101364 | AE69: -6.224068609e-05 | AF69: 0.0004420220859 | AG69: 10151.80375 | AH69: -3691.795687 | AJ69: 21000 | AK69: 12552.10777 | AL69: 1 | AM69: 3.368604135 | AN69: 5125.176256 | AO69: -4712.582158 | AQ69: 8.156606852 | AR69: -285.4812398 | AT69: -971134.1379 | AU69: -2928262.046 | AV69: -1.891023742 | AW69: -1280645.507 | AX69: -1524688.334 | AY69: -2.269420506 | BA69: 1.549394745 | BB69: 3.803241572 | BC69: 0.3783967637 | BD69: -158.3194624 | BF69: 9.813176487 | BG69: -113.9094601 | BH69: 66.09053992 | BI69: 66.09053992 | BJ69: 0 | BK69: 0 | BM69: 6.009934915 | BN69: -135.5899976 | BQ69: 20.70520237 | BT69: 389.045 | BU69: 22.9552 | BV69: -266.0672
A70: 18000 | B70: 18 | C70: 1.177679061 | D70: 0.5564645873 | F70: 0.1072011231 | G70: 0.2235787357 | H70: -2.918013914 | J70: 15 | M70: 0.1047375183 | N70: -1.570796325 | O70: 4.953856851 | P70: 1.367536703 | Q70: 3.606270275 | R70: 1.289818979 | S70: 0.8518816298 | T70: -0.5512287441 | U70: 0.9896740002 | V70: -0.1438319851 | X70: 9.505859317 | Y70: -112.8755906 | Z70: 67.12440939 | AC70: 1 | AD70: 4.851875689 | AE70: -6.584810545e-05 | AF70: 0.0004546512883 | AG70: 10140.37732 | AH70: -3668.140128 | AJ70: 21000 | AK70: 12910.73942 | AL70: 1 | AM70: 3.464849967 | AN70: 5054.428181 | AO70: -4602.095897 | AQ70: 7.710100231 | AR70: -277.5636083 | AT70: -939958.8842 | AU70: -2842881.446 | AV70: -1.890117299 | AW70: -1215639.217 | AX70: -1461039.321 | AY70: -2.264769245 | BA70: 1.575391164 | BB70: 3.947768103 | BC70: 0.3746519461 | BD70: -158.5340247 | BF70: 9.494119053 | BG70: -113.8408344 | BH70: 66.15916562 | BI70: 66.15916562 | BJ70: 0 | BK70: 0 | BM70: 5.54635095 | BN70: -135.3068097 | BQ70: 20.8497289 | BT70: 398.107 | BU70: 22.7385 | BV70: -265.2319
A71: 18500 | B71: 18.5 | C71: 1.186896172 | D71: 0.5688264507 | F71: 0.1010444287 | G71: 0.2164790539 | H71: -2.925113596 | J71: 15 | M71: 0.1019067745 | N71: -1.570796325 | O71: 5.085929449 | P71: 1.372885984 | Q71: 3.698838101 | R71: 1.297034408 | S71: 0.8453759597 | T71: -0.5635277331 | U71: 0.9891018404 | V71: -0.147770175 | X71: 9.198919487 | Y71: -112.7845068 | Z71: 67.2154932 | AC71: 1 | AD71: 4.986650013 | AE71: -6.955714225e-05 | AF71: 0.0004672804908 | AG71: 10128.6558 | AH71: -3647.745596 | AJ71: 21000 | AK71: 13269.37107 | AL71: 1 | AM71: 3.5610958 | AN71: 4988.779302 | AO71: -4496.149949 | AQ71: 7.299270073 | AR71: -270.0729927 | AT71: -911225.7757 | AU71: -2762102.265 | AV71: -1.889456395 | AW71: -1155240.324 | AX71: -1402334.546 | AY71: -2.25988071 | BA71: 1.600820347 | BB71: 4.086851914 | BC71: 0.3704243145 | BD71: -158.7762501 | BF71: 9.187179135 | BG71: -113.781559 | BH71: 66.21844097 | BI71: 66.21844097 | BJ71: 0 | BK71: 0 | BM71: 5.100327221 | BN71: -135.0053089 | BQ71: 20.98881271 | BT71: 407.38 | BU71: 22.7593 | BV71: -265.7319
A72: 19000 | B72: 19 | C72: 1.196291849 | D72: 0.5809959695 | F72: 0.09541329903 | G72: 0.2098402572 | H72: -2.931752393 | J72: 15 | M72: 0.09922501732 | N72: -1.570796325 | O72: 5.21814021 | P72: 1.377964338 | Q72: 3.791589088 | R72: 1.303897167 | S72: 0.8388448951 | T72: -0.5756384959 | U72: 0.9885150373 | V72: -0.151703753 | X72: 8.903209075 | Y72: -112.7027174 | Z72: 67.2972826 | AC72: 1 | AD72: 5.121424338 | AE72: -7.33677965e-05 | AF72: 0.0004799096932 | AG72: 10116.64134 | AH72: -3630.340682 | AJ72: 21000 | AK72: 13628.00272 | AL72: 1 | AM72: 3.657341632 | AN72: 4927.763865 | AO72: -4394.513215 | AQ72: 6.920415225 | AR72: -262.9757785 | AT72: -884680.3086 | AU72: -2685555.097 | AV72: -1.889022351 | AW72: -1099038.141 | AX72: -1348050.472 | AY72: -2.254784946 | BA72: 1.625675734 | BB72: 4.220678462 | BC72: 0.3657625953 | BD72: -159.043347 | BF72: 8.891424767 | BG72: -113.7317688 | BH72: 66.26823117 | BI72: 66.26823117 | BJ72: 0 | BK72: 0 | BM72: 4.670746304 | BN72: -134.6884219 | BQ72: 21.12263926 | BT72: 416.869 | BU72: 22.4206 | BV72: -265.2494
A73: 19500 | B73: 19.5 | C73: =SQRT((A73/Fesr)^2+1) -> 1.205861918 | D73: =ATAN(A73/Fesr) -> 0.5929740775 | F73: =(Ro/(Ro+Rdcr))/SQRT((A73/(Q*Fo))^2+(1-(A73^2/Fo^2))^2) -> 0.09024866217 | G73: =-ATAN(A73*Fo/(Q*(Fo^2-A73^2))) -> 0.2036174134 | H73: =IF(G73>0,G73-Pi,G73) -> -2.937975237 | J73: =Vin/Vramp -> 15 | M73: =1/(2*Pi*_Rfb1*(Cc1ea_u+Cc2ea_u)*A73) -> 0.0966807861 | N73: =-Pi/2 -> -1.570796325 | O73: =SQRT(1+(A73/Fz1_u)^2) -> 5.350478893 | P73: =ATAN2(Fz1_u,A73) -> 1.382791596 | Q73: =SQRT(1+(A73/Fz2_u)^2) -> 3.884510118 | R73: =ATAN2(Fz2_u,A73) -> 1.310431894 | S73: =1/SQRT(1+(A73/Fp1_u)^2) -> 0.8322947001 | T73: =-ATAN2(Fp1_u,A73) -> -0.587561849 | U73: =1/SQRT(1+(A73/Fp2_u)^2) -> 0.9879136714 | V73: =-ATAN2(Fp2_u,A73) -> -0.1556326057 | X73: 8.617896429 | Y73: =(180/Pi)*(D73+H73+N73+P73+R73+T73+V73) -> -112.6302357 | Z73: 67.36976425 | AC73: 1 | AD73: =Rcea1_u*Cc1ea_u*A73*2*Pi -> 5.256198663 | AE73: =-Rcea1_u*Cc1ea_u*Cc2ea_u*(A73*2*Pi)^2 -> -7.72800682e-05 | AF73: =(Cc2ea_u+Cc1ea_u)*A73*2*Pi -> 0.0004925388957 | AG73: 10104.33611 | AH73: -3615.681521 | AJ73: =_Rfb1 -> 21000 | AK73: =_Rfb1*Rcea2_u*Cc3ea_u*A73*2*Pi -> 13986.63437 | AL73: 1 | AM73: =(_Rfb1+Rcea2_u)*Cc3ea_u*A73*2*Pi -> 3.753587465 | AN73: 4870.966613 | AO73: -4296.964847 | AQ73: =Eadcg/(1+(Eadcg*A73/GBP)^2) -> 6.570302234 | AR73: =-(A73*Eadcg*Eadcg/GBP)/(1+(Eadcg*A73/GBP)^2) -> -256.2417871 | AT73: -860100.1526 | AU73: -2612909.262 | AV73: -1.888798255 | AW73: -1046664.993 | AX73: -1297731.29 | AY73: -2.249509009 | BA73: =SQRT(AT73^2+AU73^2)/SQRT(AW73^2+AX73^2) -> 1.649952868 | BB73: 4.349430769 | BC73: 0.3607107537 | BD73: =BC73*180/Pi-180 -> -159.3327962 | BF73: =20*LOG(BA73*J73*F73*C73) -> 8.606023004 | BG73: =(180/Pi)*(D73+H73+BC73) -> -113.6914657 | BH73: 66.30853431 | BI73: 66.30853431 | BJ73: =SUM((BF74<0)*(BF73>0))*A73 -> 0 | BK73: 0 | BM73: 4.256592235 | BN73: =(H73+D73)*180/Pi -> -134.3586695 | BQ73: 21.25139157 | BT73: 426.58 | BU73: 22.3737 | BV73: -265.1406
A74: 20000 | B74: =A74/1000 -> 20 | C74: 1.215602259 | D74: 0.6047618987 | F74: 0.08549961562 | G74: 0.1977713526 | H74: -2.943821297 | J74: 15 | M74: 0.09426376645 | N74: -1.570796325 | O74: 5.482936234 | P74: 1.387385721 | Q74: 3.977589272 | R74: 1.316661041 | S74: 0.8257313408 | T74: -0.5992987972 | U74: 0.9872978247 | V74: -0.1595566206 | X74: =20*LOG(C74*J74*O74*Q74*F74*M74*S74*U74) -> 8.34223576 | Y74: -112.5669772 | Z74: =Y74+180 -> 67.43302276 | AC74: 1 | AD74: 5.390972987 | AE74: -8.129395735e-05 | AF74: 0.0005051680981 | AG74: =AC74*AE74/(AE74^2+AF74^2)+AD74*AF74/(AE74^2+AF74^2) -> 10091.74233 | AH74: =AD74*AE74/(AE74^2+AF74^2)-AC74*AF74/(AE74^2+AF74^2) -> -3603.548358 | AJ74: 21000 | AK74: 14345.26602 | AL74: 1 | AM74: 3.849833297 | AN74: =AJ74*AL74/(AL74^2+AM74^2)+AK74*AM74/(AL74^2+AM74^2) -> 4818.016566 | AO74: =AK74*AL74/(AL74^2+AM74^2)-AJ74*AM74/(AL74^2+AM74^2) -> -4203.294581 | AQ74: 6.24609619 | AR74: -249.8438476 | AT74: -837290.3935 | AU74: -2543867.843 | AV74: =ATAN2(AT74,AU74) -> -1.88876876 | AW74: =AG74-AH74*AO74/_Rfb2+AG74*AN74/_Rfb2+AN74-AO74*AR74+AQ74*AN74 -> -997791.177 | AX74: =AH74+AH74*AN74/_Rfb2+AG74*AO74/_Rfb2+AO74+AO74*AQ74+AN74*AR74 -> -1250978.77 | AY74: -2.244077275 | BA74: 1.673649163 | BB74: =20*LOG(BA74) -> 4.473288492 | BC74: =AV74-AY74 -> 0.3553085152 | BD74: -159.6423216 | BF74: 8.330226887 | BG74: -113.6605534 | BH74: =IF(BG74>180,BG74-180,BG74+180) -> 66.33944664 | BI74: =IF(BH74>180,BH74-360,BH74) -> 66.33944664 | BJ74: 0 | BK74: =IF(BJ74>0,BI74,0) -> 0 | BM74: =20*LOG(J74*F74*C74) -> 3.856938396 | BN74: -134.0182317 | BQ74: =20*LOG(BA74*7) -> 21.37524929 | BT74: 436.516 | BU74: 22.0741 | BV74: -264.9151
A75: 20500 | B75: 20.5 | C75: 1.225508813 | D75: 0.6163607335 | F75: 0.08112209552 | G75: 0.1922677637 | H75: -2.949324886 | J75: 15 | M75: 0.09196465019 | N75: -1.570796325 | O75: 5.615503838 | P75: 1.391763024 | Q75: 4.070815704 | R75: 1.3226051 | S75: 0.8191604864 | T75: -0.6108505196 | U75: 0.9866675814 | V75: -0.163475686 | X75: 8.075556109 | Y75: -112.5127857 | Z75: 67.48721427 | AC75: 1 | AD75: 5.525747312 | AE75: -8.540946394e-05 | AF75: 0.0005177973006 | AG75: 10078.86228 | AH75: -3593.742614 | AJ75: 21000 | AK75: 14703.89767 | AL75: 1 | AM75: 3.946079129 | AN75: 4768.581638 | AO75: -4113.302807 | AQ75: 5.94530321 | AR75: -243.7574316 | AT75: -816079.5773 | AU75: -2478163.473 | AV75: -1.888919906 | AW75: -952120.5567 | AX75: -1207443.824 | AY75: =ATAN2(AW75,AX75) -> -2.238511728 | BA75: 1.69676369 | BB75: 4.592427236 | BC75: 0.3495918219 | BD75: -159.969864 | BF75: 8.063364403 | BG75: -113.6388639 | BH75: 66.36113611 | BI75: 66.36113611 | BJ75: 0 | BK75: 0 | BM75: 3.470937167 | BN75: -133.6689999 | BQ75: 21.49438804 | BT75: 446.684 | BU75: 21.7611 | BV75: -265.3082
A76: 21000 | B76: 21 | C76: 1.235577581 | D76: 0.6277720442 | F76: 0.07707779346 | G76: 0.1870764569 | H76: -2.954516193 | J76: 15 | M76: 0.08977501567 | N76: -1.570796325 | O76: 5.748174075 | P76: 1.395938344 | Q76: 4.164179523 | R76: 1.328282812 | S76: 0.8125875123 | T76: -0.622218356 | U76: 0.9860230269 | V76: -0.167389691 | X76: 7.817251975 | Y76: -112.4674536 | Z76: 67.5325464 | AC76: 1 | AD76: 5.660521637 | AE76: -8.962658797e-05 | AF76: 0.000530426503 | AG76: 10065.69826 | AH76: -3586.084368 | AJ76: 21000 | AK76: 15062.52932 | AL76: 1 | AM76: 4.042324962 | AN76: 4722.363977 | AO76: -4026.800462 | AQ76: 5.66572238 | AR76: -237.9603399 | AT76: -796316.4034 | AU76: -2415554.739 | AV76: -1.889238974 | AW76: -909386.704 | AX76: -1166819.456 | AY76: -2.232832207 | BA76: 1.719296992 | BB76: 4.707018067 | BC76: 0.3435932324 | BD76: -160.3135579 | BF76: 7.80482911 | BG76: -113.6261778 | BH76: 66.37382221 | BI76: 66.37382221 | BJ76: 0 | BK76: 0 | BM76: 3.097811043 | BN76: -133.3126199 | BQ76: 21.60897887 | BT76: 457.088 | BU76: 21.6126 | BV76: -265.6514
A77: 21500 | B77: 21.5 | C77: 1.245804631 | D77: 0.6389974415 | F77: 0.07333326961 | G77: 0.182170757 | H77: -2.959421893 | J77: 15 | M77: 0.0876872246 | N77: -1.570796325 | O77: 5.88094 | P77: 1.39992521 | Q77: 4.25767169 | R77: 1.333711345 | S77: 0.806017504 | T77: -0.6334037939 | U77: 0.9853642484 | V77: -0.1712985259 | X77: 7.566775316 | Y77: -112.4307371 | Z77: 67.56926287 | AC77: 1 | AD77: 5.795295961 | AE77: -9.394532946e-05 | AF77: 0.0005430557055 | AG77: 10052.25263 | AH77: -3580.410197 | AJ77: 21000 | AK77: 15421.16097 | AL77: 1 | AM77: 4.138570794 | AN77: 4679.095926 | AO77: -3943.608769 | AQ77: 5.405405405 | AR77: -232.4324324 | AT77: -777866.9505 | AU77: -2355823.1 | AV77: -1.889714346 | AW77: -869349.5248 | AX77: -1128834.85 | AY77: -2.22705662 | BA77: 1.741250917 | BB77: 4.817227163 | BC77: 0.3373422733 | BD77: -160.6717115 | BF77: 7.554072139 | BG77: -113.6222394 | BH77: 66.37776063 | BI77: 66.37776063 | BJ77: 0 | BK77: 0 | BM77: 2.736844976 | BN77: -132.9505279 | BQ77: 21.71918796 | BT77: 467.735 | BU77: 21.3672 | BV77: -265.0501
A78: 22000 | B78: 22 | C78: 1.256186097 | D78: 0.6500386716 | F78: 0.06985922221 | G78: 0.1775270007 | H78: -2.964065649 | J78: 15 | M78: 0.08569433314 | N78: -1.570796325 | O78: 6.013795274 | P78: 1.403735981 | Q78: 4.351283933 | R78: 1.338906449 | S78: 0.7994552622 | T78: -0.6444084564 | U78: 0.9846913348 | V78: -0.1752020816 | X78: 7.323628706 | Y78: -112.4023682 | Z78: 67.5976318 | AC78: 1 | AD78: 5.930070286 | AE78: -9.836568839e-05 | AF78: 0.0005556849079 | AG78: 10038.52778 | AH78: -3576.571304 | AJ78: 21000 | AK78: 15779.79262 | AL78: 1 | AM78: 4.234816627 | AN78: 4638.536509 | AO78: -3863.558906 | AQ78: 5.162622612 | AR78: -227.1553949 | AT78: -760612.3366 | AU78: -2298770.231 | AV78: -1.890335393 | AW78: -831792.3023 | AX78: -1093250.394 | AY78: -2.221201143 | BA78: 1.762628465 | BB78: 4.923215586 | BC78: 0.3308657498 | BD78: -161.0427889 | BF78: 7.310595339 | BG78: -113.6267686 | BH78: 66.37323142 | BI78: 66.37323142 | BJ78: 0 | BK78: 0 | BM78: 2.387379753 | BN78: -132.5839797 | BQ78: 21.82517639 | BT78: 478.63 | BU78: 21.1958 | BV78: -264.3513
A79: 22500 | B79: 22.5 | C79: 1.266718182 | D79: 0.6608976035 | F79: 0.06662988267 | G79: 0.173124119 | H79: -2.968468531 | J79: 15 | M79: 0.08379001462 | N79: -1.570796325 | O79: 6.146734105 | P79: 1.407381968 | Q79: 4.445008664 | R79: 1.343882602 | S79: 0.7929053088 | T79: -0.6552340892 | U79: 0.9840043764 | V79: -0.17910025 | X79: 7.087359448 | Y79: -112.3820633 | Z79: 67.61793674 | AC79: 1 | AD79: 6.064844611 | AE79: -0.0001028876648 | AF79: 0.0005683141104 | AG79: 10024.52615 | AH79: -3574.431901 | AJ79: 21000 | AK79: 16138.42427 | AL79: 1 | AM79: 4.331062459 | AN79: 4600.468376 | AO79: -3786.491601 | AQ79: 4.935834156 | AR79: -222.112537 | AT79: -744446.7393 | AU79: -2244215.738 | AV79: -1.891092371 | AW79: -796519.1035 | AX79: -1059853.479 | AY79: -2.21528039 | BA79: 1.783433654 | BB79: 5.025139155 | BC79: 0.3241880192 | BD79: -161.4253947 | BF79: 7.073945394 | BG79: -113.6394699 | BH79: 66.36053007 | BI79: 66.36053007 | BJ79: 0 | BK79: 0 | BM79: 2.048806239 | BN79: -132.2140752 | BQ79: 21.92709996 | BT79: 489.779 | BU79: 20.9448 | BV79: -263.9108
A80: 23000 | B80: 23 | C80: 1.277397161 | D80: 0.671576217 | F80: 0.06362251203 | G80: 0.1689432871 | H80: -2.972649363 | J80: 15 | M80: 0.08196849256 | N80: -1.570796325 | O80: 6.279751185 | P80: 1.410873541 | Q80: 4.538838916 | R80: 1.348653127 | S80: 0.7863718932 | T80: -0.66588255 | U80: 0.9833034652 | V80: -0.1829929242 | X80: 6.857554499 | Y80: -112.3695301 | Z80: 67.63046992 | AC80: 1 | AD80: 6.199618936 | AE80: -0.0001075112586 | AF80: 0.0005809433128 | AG80: 10010.2502 | AH80: -3573.867796 | AJ80: 21000 | AK80: 16497.05593 | AL80: 1 | AM80: 4.427308292 | AN80: 4564.695136 | AO80: -3712.256699 | AQ80: 4.723665564 | AR80: -217.288616 | AT80: -729275.713 | AU80: -2191995.167 | AV80: -1.89197633 | AW80: -763352.5034 | AX80: -1028454.936 | AY80: -2.209307563 | BA80: 1.8036714 | BB80: 5.123148377 | BC80: 0.3173312337 | BD80: -161.8182596 | BF80: 6.84370874 | BG80: -113.6600393 | BH80: 66.33996065 | BI80: 66.33996065 | BJ80: 0 | BK80: 0 | BM80: 1.720560363 | BN80: -131.8417798 | BQ80: 22.02510918 | BT80: 501.187 | BU80: 20.7819 | BV80: -264.7826
A81: 23500 | B81: 23.5 | C81: 1.28821938 | D81: 0.6820765909 | F81: 0.06081697974 | G81: 0.1649676297 | H81: -2.97662502 | J81: 15 | M81: 0.08022448208 | N81: -1.570796325 | O81: 6.412841646 | P81: 1.414220228 | Q81: 4.632768277 | R81: 1.353230309 | S81: 0.7798590002 | T81: -0.6763557966 | U81: 0.9825886947 | V81: -0.186879998 | X81: 6.633836076 | Y81: -112.3644729 | Z81: 67.63552706 | AC81: 1 | AD81: 6.33439326 | AE81: -0.0001122364699 | AF81: 0.0005935725153 | AG81: 9995.702435 | AH81: -3574.765173 | AJ81: 21000 | AK81: 16855.68758 | AL81: 1 | AM81: 4.523554124 | AN81: 4531.039028 | AO81: -3640.712705 | AQ81: 4.524886878 | AR81: -212.6696833 | AT81: -715014.7542 | AU81: -2141958.279 | AV81: -1.892979038 | AW81: -732131.5831 | AX81: -998886.001 | AY81: -2.203294594 | BA81: 1.823347401 | BB81: 5.217388446 | BC81: 0.3103155561 | BD81: -162.2202283 | BF81: 6.619507168 | BG81: -113.6881693 | BH81: 66.31183066 | BI81: 66.31183066 | BJ81: 0 | BK81: 0 | BM81: 1.402118722 | BN81: -131.467941 | BQ81: 22.11934925 | BT81: 512.861 | BU81: 20.6348 | BV81: -265.043
A82: 24000 | B82: 24 | C82: 1.29918126 | D82: 0.692400893 | F82: 0.05819540965 | G82: 0.1611819724 | H82: -2.980410678 | J82: 15 | M82: 0.07855313871 | N82: -1.570796325 | O82: 6.546001011 | P82: 1.417430792 | Q82: 4.726790839 | R82: 1.357625485 | S82: 0.7733703572 | T82: -0.6866558769 | U82: 0.9818601597 | V82: -0.1907613662 | X82: 6.415857844 | Y82: -112.3665965 | Z82: 67.63340352 | AC82: 1 | AD82: 6.469167585 | AE82: -0.0001170632986 | AF82: 0.0006062017177 | AG82: 9980.885414 | AH82: -3577.019506 | AJ82: 21000 | AK82: 17214.31923 | AL82: 1 | AM82: 4.619799956 | AN82: 4499.338878 | AO82: -3571.726325 | AQ82: 4.338394794 | AR82: -208.2429501 | AT82: -701588.0733 | AU82: -2093967.546 | AV82: -1.894092908 | AW82: -702710.1688 | AX82: -970995.7331 | AY82: -2.197252259 | BA82: 1.842468044 | BB82: 5.307999281 | BC82: 0.3031593508 | BD82: -162.6302487 | BF82: 6.400994005 | BG82: -113.723553 | BH82: 66.27644705 | BI82: 66.27644705 | BJ82: 0 | BK82: 0 | BM82: 1.092994724 | BN82: -131.0933043 | BQ82: 22.20996008 | BT82: 524.807 | BU82: 20.2436 | BV82: -263.9557
A83: 24500 | B83: 24.5 | C83: 1.310279296 | D83: 0.7025513686 | F83: 0.05574188122 | G83: 0.15757263 | H83: -2.98402002 | J83: 15 | M83: 0.07695001343 | N83: -1.570796325 | O83: 6.679225161 | P83: 1.42051331 | Q83: 4.820901148 | R83: 1.361849142 | S83: 0.7669094431 | T83: -0.6967849185 | U83: 0.9811179567 | V83: -0.1946369248 | X83: 6.203301588 | Y83: -112.3756086 | Z83: 67.62439136 | AC83: 1 | AD83: 6.60394191 | AE83: -0.0001219917447 | AF83: 0.0006188309202 | AG83: 9965.801711 | AH83: -3580.534628 | AJ83: 21000 | AK83: 17572.95088 | AL83: 1 | AM83: 4.716045789 | AN83: 4469.448311 | AO83: -3505.172008 | AQ83: 4.163197336 | AR83: -203.9966694 | AT83: -688927.5397 | AU83: -2047896.83 | AV83: -1.895310938 | AW83: -674955.2791 | AX83: -944648.7964 | AY83: -2.191190293 | BA83: 1.86104031 | BB83: 5.395115599 | BC83: 0.2958793556 | BD83: -163.0473617 | BF83: 6.187850784 | BG83: -113.7658866 | BH83: 66.23411337 | BI83: 66.23411337 | BJ83: 0 | BK83: 0 | BM83: 0.7927351852 | BN83: -130.718525 | BQ83: 22.2970764 | BT83: 537.032 | BU83: 20.2926 | BV83: -264.5682
A84: 25000 | B84: 25 | C84: 1.321510057 | D84: 0.7125303317 | F84: 0.0534421762 | G84: 0.1541272257 | H84: -2.987465424 | J84: 15 | M84: 0.07541101316 | N84: -1.570796325 | O84: 6.812510293 | P84: 1.423475238 | Q84: 4.915094165 | R84: 1.365910985 | S84: 0.7604794963 | T84: -0.7067451193 | U84: 0.9803621834 | V84: -0.1985065706 | X84: 5.995874312 | Y84: -112.3912227 | Z84: 67.60877728 | AC84: 1 | AD84: 6.738716234 | AE84: -0.0001270218084 | AF84: 0.0006314601227 | AG84: 9950.453942 | AH84: -3585.221889 | AJ84: 21000 | AK84: 17931.58253 | AL84: 1 | AM84: 4.812291621 | AN84: 4441.234179 | AO84: -3440.931499 | AQ84: 3.99840064 | AR84: -199.920032 | AT84: -676971.7733 | AU84: -2003630.224 | AV84: -1.896626652 | AW84: -648745.7544 | AX84: -919723.5593 | AY84: -2.185117485 | BA84: 1.879071695 | BB84: 5.478867013 | BC84: 0.2884908335 | BD84: -163.4706928 | BF84: 5.979784338 | BG84: -113.8148724 | BH84: 66.18512759 | BI84: 66.18512759 | BJ84: 0 | BK84: 0 | BM84: 0.5009173254 | BN84: -130.3441796 | BQ84: 22.38082781 | BT84: 549.541 | BU84: 19.992 | BV84: -264.4762
A85: 25500 | B85: 25.5 | C85: 1.332870189 | D85: 0.7223401554 | F85: 0.05128356305 | G85: 0.1508345369 | H85: -2.990758113 | J85: 15 | M85: 0.07393236584 | N85: -1.570796325 | O85: 6.945852897 | P85: 1.426323468 | Q85: 5.009365223 | R85: 1.36982001 | S85: 0.7540835238 | T85: -0.7165387388 | U85: 0.979592939 | V85: -0.2023702016 | X85: 5.793305686 | Y85: -112.413159 | Z85: 67.58684099 | AC85: 1 | AD85: 6.873490559 | AE85: -0.0001321534894 | AF85: 0.0006440893251 | AG85: 9934.844755 | AH85: -3590.999433 | AJ85: 21000 | AK85: 18290.21418 | AL85: 1 | AM85: 4.908537454 | AN85: 4414.575174 | AO85: -3378.893404 | AQ85: 3.84319754 | AR85: -196.0030746 | AT85: -665665.3586 | AU85: -1961061.037 | AV85: -1.898034056 | AW85: -623971.0447 | AX85: -896110.4556 | AY85: -2.179041766 | BA85: 1.896570134 | BB85: 5.559378147 | BC85: 0.28100771 | BD85: -163.8994442 | BF85: 5.776524244 | BG85: -113.8702195 | BH85: 66.12978051 | BI85: 66.12978051 | BJ85: 0 | BK85: 0 | BM85: 0.2171460965 | BN85: -129.9707753 | BQ85: 22.46133895 | BT85: 562.341 | BU85: 19.6823 | BV85: -264.604
A86: 26000 | B86: 26 | C86: 1.344356411 | D86: 0.7319832631 | F86: 0.04925461274 | G86: 0.1476843618 | H86: -2.993908288 | J86: 15 | M86: 0.07251058958 | N86: -1.570796325 | O86: 7.079249726 | P86: 1.429064379 | Q86: 5.103709998 | R86: 1.37358457 | S86: 0.7477243103 | T86: -0.726168089 | U86: 0.9788103239 | V86: -0.2062277165 | X86: 5.595345813 | Y86: -112.4411458 | Z86: 67.55885421 | AC86: 1 | AD86: 7.008264884 | AE86: -0.0001373867879 | AF86: 0.0006567185276 | AG86: 9918.976831 | AH86: -3597.791546 | AJ86: 21000 | AK86: 18648.84583 | AL86: 1 | AM86: 5.004783286 | AN86: 4389.360608 | AO86: -3318.952778 | AQ86: 3.696857671 | AR86: -192.2365989 | AT86: =-AR86*AH86+AG86*AQ86 -> -654958.1646 | AU86: =AQ86*AH86+AG86*AR86 -> -1920090.894 | AV86: -1.899527592 | AW86: -600530.1375 | AX86: -873710.5696 | AY86: -2.172970287 | BA86: 1.913543938 | BB86: 5.636768774 | BC86: 0.2734426951 | BD86: -164.3328876 | BF86: 5.577820582 | BG86: -113.9316453 | BH86: 66.06835472 | BI86: 66.06835472 | BJ86: 0 | BK86: 0 | BM86: -0.05894819114 | BN86: -129.5987577 | BQ86: 22.53872957 | BT86: 575.44 | BU86: 19.596 | BV86: -264.9076
A87: 26500 | B87: 26.5 | C87: 1.35596552 | D87: 0.7414621206 | F87: 0.04734504082 | G87: 0.1446674044 | H87: -2.996925246 | J87: 15 | M87: 0.07114246525 | N87: -1.570796325 | O87: 7.212697771 | P87: 1.431703885 | Q87: 5.198124476 | R87: 1.377212428 | S87: 0.7414044271 | T87: -0.7356355273 | U87: 0.9780144401 | V87: -0.2100790156 | X87: 5.401763252 | Y87: -112.4749201 | Z87: 67.52507988 | AC87: 1 | AD87: 7.143039208 | AE87: -0.0001427217039 | AF87: 0.00066934773 | AG87: 9902.852882 | AH87: -3605.528081 | AJ87: 21000 | AK87: 19007.47748 | AL87: 1 | AM87: 5.101029119 | AN87: 4365.489333 | AO87: -3261.010726 | AQ87: 3.558718861 | AR87: -188.6120996 | AT87: -644804.7523 | AU87: -1880628.935 | AV87: -1.901102098 | AW87: -578330.6056 | AX87: -852434.4096 | AY87: -2.166909492 | BA87: 1.930001726 | BB87: 5.711153948 | BC87: 0.2658073939 | BD87: -164.7703582 | BF87: 5.383441959 | BG87: -113.9988762 | BH87: 66.00112379 | BI87: 66.00112379 | BJ87: 0 | BK87: 0 | BM87: -0.3277119896 | BN87: -129.2285181 | BQ87: 22.61311475 | BT87: 588.844 | BU87: 19.3732 | BV87: -263.8817
A88: 27000 | B88: 27 | C88: 1.367694386 | D88: 0.7507792287 | F88: 0.04554557154 | G88: 0.1417751753 | H88: -2.999817475 | J88: 15 | M88: 0.06982501218 | N88: -1.570796325 | O88: 7.346194241 | P88: 1.434247477 | Q88: 5.292604927 | R88: 1.380710805 | S88: 0.7351262416 | T88: -0.7449434484 | U88: 0.9772053905 | V88: -0.2139239997 | X88: 5.212343273 | Y88: -112.5142283 | Z88: 67.48577173 | AC88: 1 | AD88: 7.277813533 | AE88: -0.0001481582373 | AF88: 0.0006819769325 | AG88: 9886.475649 | AH88: -3614.143951 | AJ88: 21000 | AK88: 19366.10913 | AL88: 1 | AM88: 5.197274951 | AN88: 4342.868785 | AO88: -3204.974024 | AQ88: 3.428179637 | AR88: -185.1217004 | AT88: -635163.859 | AU88: -1842591.118 | AV88: -1.902752774 | AW88: -557287.763 | AX88: -832200.8432 | AY88: -2.160865179 | BA88: 1.945952379 | BB88: 5.782644162 | BC88: 0.2581124052 | BD88: -165.2112485 | BF88: 5.193173751 | BG88: -114.0716481 | BH88: 65.92835187 | BI88: 65.92835187 | BJ88: 0 | BK88: 0 | BM88: -0.5894704105 | BN88: -128.8603996 | BQ88: 22.68460496 | BT88: 602.56 | BU88: 19.198 | BV88: -264.0026
A89: 27500 | B89: 27.5 | C89: 1.379539954 | D89: 0.7599371158 | F89: 0.04384782052 | G89: 0.1389999043 | H89: -3.002592746 | J89: 15 | M89: 0.06855546651 | N89: -1.570796325 | O89: 7.479736543 | P89: 1.436700259 | Q89: 5.38714788 | R89: 1.384086432 | S89: 0.7288919257 | T89: -0.7540942776 | U89: 0.9763832795 | V89: -0.217762571 | X89: 5.026886307 | Y89: -112.5588259 | Z89: 67.44117406 | AC89: 1 | AD89: 7.412587858 | AE89: -0.0001536963881 | AF89: 0.0006946061349 | AG89: 9869.847903 | AH89: -3623.578669 | AJ89: 21000 | AK89: 19724.74078 | AL89: 1 | AM89: 5.293520783 | AN89: 4321.414138 | AO89: -3150.754771 | AQ89: 3.304692664 | AR89: -181.7580965 | AT89: -625997.9474 | AU89: -1805899.581 | AV89: -1.90447515 | AW89: -537323.9128 | AX89: -812936.1699 | AY89: -2.154842562 | BA89: 1.961404984 | BB89: 5.851345492 | BC89: 0.2503674111 | BD89: -165.655004 | BF89: 5.006816563 | BG89: -114.1497066 | BH89: 65.85029336 | BI89: 65.85029336 | BJ89: 0 | BK89: 0 | BM89: -0.8445289287 | BN89: -128.4947026 | BQ89: 22.75330629 | BT89: 616.595 | BU89: 18.9837 | BV89: -264.1331
A90: 28000 | B90: 28 | C90: 1.391499245 | D90: 0.7689383315 | F90: 0.04224419319 | G90: 0.1363344654 | H90: -3.005258185 | J90: 15 | M90: 0.06733126175 | N90: -1.570796325 | O90: 7.613322265 | P90: 1.43906698 | Q90: 5.481750101 | R90: 1.387345584 | S90: 0.7227034657 | T90: -0.7630904642 | U90: 0.9755482126 | V90: -0.2215946326 | X90: 4.845206577 | Y90: -112.6084784 | Z90: 67.3915216 | AC90: 1 | AD90: 7.547362182 | AE90: -0.0001593361564 | AF90: 0.0007072353374 | AG90: 9852.972443 | AH90: -3633.775947 | AJ90: 21000 | AK90: 20083.37243 | AL90: 1 | AM90: 5.389766616 | AN90: 4301.047546 | AO90: -3098.270045 | AQ90: 3.187759005 | AR90: -178.5145043 | AT90: -617272.8104 | AU90: -1770482.094 | AV90: -1.906265061 | AW90: -518367.6783 | AX90: -794573.3112 | AY90: -2.148846319 | BA90: 1.976368793 | BB90: 5.917359755 | BC90: 0.2425812575 | BD90: -166.1011177 | BF90: 4.82418484 | BG90: -114.2328071 | BH90: 65.76719289 | BI90: 65.76719289 | BJ90: 0 | BK90: 0 | BM90: -1.093174915 | BN90: -128.1316894 | BQ90: 22.81932056 | BT90: 630.957 | BU90: 18.8029 | BV90: -263.7485
A91: 28500 | B91: 28.5 | C91: 1.403569352 | D91: 0.7777854404 | F91: 0.04072779645 | G91: 0.1337723104 | H91: -3.00782034 | J91: 15 | M91: 0.06615001154 | N91: -1.570796325 | O91: 7.746949162 | P91: 1.441352066 | Q91: 5.576408574 | R91: 1.390494121 | S91: 0.7165626705 | T91: -0.7719344757 | U91: 0.9747002965 | V91: -0.225420089 | X91: 4.667130868 | Y91: -112.6629604 | Z91: 67.3370396 | AC91: 1 | AD91: 7.682136507 | AE91: -0.0001650775421 | AF91: 0.0007198645398 | AG91: 9835.852093 | AH91: -3644.68333 | AJ91: 21000 | AK91: 20442.00408 | AL91: 1 | AM91: 5.486012448 | AN91: 4281.69748 | AO91: -3047.441594 | AQ91: 3.076923077 | AR91: -175.3846154 | AT91: -608957.2238 | AU91: -1736271.547 | AV91: -1.908118616 | AW91: -500353.4055 | AX91: -777051.1019 | AY91: -2.142880643 | BA91: 1.990853181 | BB91: 5.980784666 | BC91: 0.2347620267 | BD91: -166.5491267 | BF91: 4.645105645 | BG91: -114.3207147 | BH91: 65.6792853 | BI91: 65.6792853 | BJ91: 0 | BK91: 0 | BM91: -1.335679021 | BN91: -127.771588 | BQ91: 22.88274547 | BT91: 645.654 | BU91: 18.5986 | BV91: -263.7636
A92: 29000 | B92: 29 | C92: 1.415747439 | D92: 0.7864810168 | F92: 0.03929236185 | G92: 0.1313074107 | H92: -3.010285239 | J92: 15 | M92: 0.0650094941 | N92: -1.570796325 | O92: 7.880615138 | P92: 1.443559648 | Q92: 5.671120481 | R92: 1.393537521 | S92: 0.710471181 | T92: -0.780628792 | U92: 0.9738396391 | V92: -0.2292388454 | X92: 4.492497436 | Y92: -112.7220561 | Z92: 67.27794393 | AC92: 1 | AD92: 7.816910832 | AE92: -0.0001709205453 | AF92: 0.0007324937423 | AG92: 9818.489706 | AH92: -3656.25187 | AJ92: 21000 | AK92: 20800.63573 | AL92: 1 | AM92: 5.582258281 | AN92: 4263.298127 | AO92: -2998.195539 | AQ92: 2.971768202 | AR92: -172.3625557 | AT92: -601022.6411 | AU92: -1703205.512 | AV92: -1.91003218 | AW92: -483220.6296 | AX92: -760313.6685 | AY92: -2.136949284 | BA92: 2.004867609 | BB92: 6.041713986 | BC92: 0.2269171035 | BD92: -166.9986077 | BF92: 4.469417559 | BG92: -114.4132042 | BH92: 65.58679579 | BI92: 65.58679579 | BJ92: 0 | BK92: 0 | BM92: -1.572296427 | BN92: -127.4145966 | BQ92: 22.94367479 | BT92: 660.693 | BU92: 18.468 | BV92: -263.6098
A93: 29500 | B93: 29.5 | C93: 1.428030745 | D93: 0.795027639 | F93: 0.0379321784 | G93: 0.1289342061 | H93: -3.012658444 | J93: 15 | M93: 0.06390763827 | N93: -1.570796325 | O93: 8.014318238 | P93: 1.445693581 | Q93: 5.76588319 | R93: 1.396480912 | S93: 0.7044304784 | T93: -0.7891759004 | U93: 0.9729663492 | V93: -0.2330508085 | X93: 4.321155028 | Y93: -112.7855587 | Z93: 67.21444127 | AC93: 1 | AD93: 7.951685156 | AE93: -0.0001768651659 | AF93: 0.0007451229447 | AG93: 9800.888156 | AH93: -3668.435833 | AJ93: 21000 | AK93: 21159.26738 | AL93: 1 | AM93: 5.678504113 | AN93: 4245.788855 | AO93: -2950.462095 | AQ93: 2.871912694 | AR93: -169.4428489 | AT93: -593442.9235 | AU93: -1671225.839 | AV93: -1.912002352 | AW93: -466913.5979 | AX93: -744309.8822 | AY93: -2.131055587 | BA93: 2.018421594 | BB93: 6.100237677 | BC93: 0.2190532352 | BD93: -167.4491741 | BF93: 4.296969701 | BG93: -114.5100599 | BH93: 65.4899401 | BI93: 65.4899401 | BJ93: 0 | BK93: 0 | BM93: -1.803267976 | BN93: -127.0608858 | BQ93: 23.00219848 | BT93: 676.083 | BU93: 18.2744 | BV93: -263.3252
A94: 30000 | B94: 30 | C94: 1.440416578 | D94: 0.8034278849 | F94: 0.03664203367 | G94: 0.1266475598 | H94: -3.01494509 | J94: 15 | M94: 0.06284251097 | N94: -1.570796325 | O94: 8.148056636 | P94: 1.447757472 | Q94: 5.860694236 | R94: 1.399329093 | S94: 0.6984418926 | T94: -0.7975782907 | U94: 0.9720805368 | V94: -0.2368558857 | X94: 4.152962007 | Y94: -112.8532706 | Z94: 67.14672939 | AC94: 1 | AD94: 8.086459481 | AE94: -0.000182911404 | AF94: 0.0007577521472 | AG94: 9783.050344 | AH94: -3681.192438 | AJ94: 21000 | AK94: 21517.89903 | AL94: 1 | AM94: 5.774749946 | AN94: 4229.113742 | AO94: -2904.175318 | AQ94: 2.777006387 | AR94: -166.6203832 | AT94: -586194.1014 | AU94: -1640278.292 | AV94: -1.914025943 | AW94: -451380.842 | AX94: -728992.8774 | AY94: -2.125202529 | BA94: 2.031524679 | BB94: 6.156442052 | BC94: 0.2111765855 | BD94: -167.9004729 | BF94: 4.127620842 | BG94: -114.6110752 | BH94: 65.38892476 | BI94: 65.38892476 | BJ94: 0 | BK94: 0 | BM94: -2.02882121 | BN94: -126.7106023 | BQ94: 23.05840285 | BT94: 691.831 | BU94: 18.0926 | BV94: -263.5782
A95: 30500 | B95: 30.5 | C95: 1.452902315 | D95: 0.8116843276 | F95: 0.0354171622 | G95: 0.1244427178 | H95: -3.017149932 | J95: 15 | M95: 0.06181230587 | N95: -1.570796325 | O95: 8.28182862 | P95: 1.449754698 | Q95: 5.955551312 | R95: 1.402086567 | S95: 0.6925066105 | T95: -0.8058384507 | U95: 0.971182313 | V95: -0.2406539858 | X95: 3.987785559 | Y95: -112.9250026 | Z95: 67.07499739 | AC95: 1 | AD95: 8.221233806 | AE95: -0.0001890592596 | AF95: 0.0007703813496 | AG95: 9764.979189 | AH95: -3694.481618 | AJ95: 21000 | AK95: 21876.53068 | AL95: 1 | AM95: 5.870995778 | AN95: 4213.221142 | AO95: -2859.272855 | AQ95: 2.686727566 | AR95: -163.8903815 | AT95: -579254.1631 | AU95: -1610312.23 | AV95: -1.916099967 | AW95: -436574.7938 | AX95: -714319.6258 | AY95: -2.119392751 | BA95: 2.044186406 | BB95: 6.210409918 | BC95: 0.2032927837 | BD95: -168.3521815 | BF95: 3.96123862 | BG95: -114.7160526 | BH95: 65.28394738 | BI95: 65.28394738 | BJ95: 0 | BK95: 0 | BM95: -2.249171298 | BN95: -126.3638711 | BQ95: 23.11237072 | BT95: 707.946 | BU95: 17.887 | BV95: -262.8499
A96: 31000 | B96: 31 | C96: 1.465485403 | D96: 0.8197995311 | F96: 0.03425319989 | G96: 0.1223152744 | H96: -3.019277376 | J96: 15 | M96: 0.06081533319 | N96: -1.570796325 | O96: 8.415632589 | P96: 1.451688422 | Q96: 6.050452251 | R96: 1.404757559 | S96: 0.6866256839 | T96: -0.8139588627 | U96: 0.9702717898 | V96: -0.2444450188 | X96: 3.825500987 | Y96: -113.000574 | Z96: 66.99942604 | AC96: 1 | AD96: 8.35600813 | AE96: -0.0001953087325 | AF96: 0.0007830105521 | AG96: 9746.677635 | AH96: -3708.265805 | AJ96: 21000 | AK96: 22235.16233 | AL96: 1 | AM96: 5.96724161 | AN96: 4198.063309 | AO96: -2815.695725 | AQ96: 2.600780234 | AR96: -161.2483745 | AT96: -572602.8668 | AU96: -1581280.31 | AV96: -1.918221617 | AW96: -422451.4408 | AX96: -700250.5596 | AY96: -2.113628587 | BA96: 2.056416292 | BB96: 6.26222072 | BC96: 0.1954069698 | BD96: -168.8040053 | BF96: 3.79769882 | BG96: -114.8248031 | BH96: 65.1751969 | BI96: 65.1751969 | BJ96: 0 | BK96: 0 | BM96: -2.4645219 | BN96: -126.0207978 | BQ96: 23.16418152 | BT96: 724.436 | BU96: 17.7536 | BV96: -262.8169
A97: 31500 | B97: 31.5 | C97: 1.478163356 | D97: 0.8277760471 | F97: 0.03314614392 | G97: 0.1202611394 | H97: -3.021331511 | J97: 15 | M97: 0.05985001044 | N97: -1.570796325 | O97: 8.549467042 | P97: 1.453561611 | Q97: 6.145395021 | R97: 1.407346039 | S97: 0.6808000372 | T97: -0.8219419991 | U97: 0.96934908 | V97: -0.2482288958 | X97: 3.665991066 | Y97: -113.0798119 | Z97: 66.92018807 | AC97: 1 | AD97: 8.490782455 | AE97: -0.0002016598229 | AF97: 0.0007956397545 | AG97: 9728.148646 | AH97: -3722.509737 | AJ97: 21000 | AK97: 22593.79398 | AL97: 1 | AM97: 6.063487443 | AN97: 4183.596046 | AO97: -2773.388106 | AQ97: 2.518891688 | AR97: -158.6901763 | AT97: -566221.5738 | AU97: -1553138.223 | AV97: -1.920388256 | AW97: -408970.0159 | AX97: -686749.238 | AY97: -2.107912091 | BA97: 2.068223812 | BB97: 6.31195068 | BC97: 0.1875238352 | BD97: -169.2556757 | BF97: 3.636884735 | BG97: -114.937146 | BH97: 65.062854 | BI97: 65.062854 | BJ97: 0 | BK97: 0 | BM97: -2.675065944 | BN97: -125.6814703 | BQ97: 23.21391148 | BT97: 741.31 | BU97: 17.4164 | BV97: -262.1972
A98: 32000 | B98: 32 | C98: 1.490933755 | D98: 0.8356164112 | F98: 0.03209231722 | G98: 0.1182765108 | H98: -3.023316139 | J98: 15 | M98: 0.05891485403 | N98: -1.570796325 | O98: 8.683330569 | P98: 1.455377051 | Q98: 6.240377715 | R98: 1.409855739 | S98: 0.675030475 | T98: -0.8297903196 | U98: 0.9684142977 | V98: -0.2520055288 | X98: 3.509145467 | Y98: -113.1625515 | Z98: 66.83744849 | AC98: 1 | AD98: 8.62555678 | AE98: -0.0002081125308 | AF98: 0.000808268957 | AG98: 9709.395203 | AH98: -3737.180281 | AJ98: 21000 | AK98: 22952.42564 | AL98: 1 | AM98: 6.159733275 | AN98: 4169.778402 | AO98: -2732.297138 | AQ98: 2.440810349 | AR98: -156.2118623 | AT98: -560093.0994 | AU98: -1525844.455 | AV98: -1.922597403 | AW98: -396092.7175 | AX98: -673782.0496 | AY98: -2.102245062 | BA98: 2.079618376 | BB98: 6.359672927 | BC98: 0.1796476599 | BD98: -169.7069473 | BF98: 3.47868658 | BG98: -115.0529087 | BH98: 64.94709133 | BI98: 64.94709133 | BJ98: 0 | BK98: 0 | BM98: -2.880986346 | BN98: -125.3459614 | BQ98: 23.26163373 | BT98: 758.578 | BU98: 17.2832 | BV98: -262.5669
A99: 32500 | B99: 32.5 | C99: 1.503794243 | D99: 0.8433231403 | F99: 0.03108833692 | G99: 0.1163578493 | H99: -3.025234801 | J99: 15 | M99: 0.05800847166 | N99: -1.570796325 | O99: 8.817221845 | P99: 1.457137362 | Q99: 6.335398535 | R99: 1.41229017 | S99: 0.669317689 | T99: -0.8375062679 | U99: 0.9674675576 | V99: -0.2557748312 | X99: 3.354860228 | Y99: -113.2486351 | Z99: 66.75136495 | AC99: 1 | AD99: 8.760331105 | AE99: -0.0002146668561 | AF99: 0.0008208981594 | AG99: 9690.420306 | AH99: -3752.246276 | AJ99: 21000 | AK99: 23311.05729 | AL99: 1 | AM99: 6.255979108 | AN99: 4156.572389 | AO99: -2692.37274 | AQ99: 2.366303833 | AR99: -153.8097492 | AT99: -554201.5798 | AU99: -1499360.071 | AV99: -1.924846721 | AW99: -383784.4577 | AX99: -661317.9484 | AY99: -2.096629068 | BA99: 2.090609317 | BB99: 6.40545763 | BC99: 0.1717823462 | BD99: -170.1575966 | BF99: 3.323000967 | BG99: -115.1719261 | BH99: 64.82807389 | BI99: 64.82807389 | BJ99: 0 | BK99: 0 | BM99: -3.082456663 | BN99: -125.0143296 | BQ99: 23.30741843 | BT99: 776.247 | BU99: 17.0071 | BV99: -262.7177
A100: 33000 | B100: 33 | C100: 1.516742529 | D100: 0.8508987298 | F100: 0.03013108645 | G100: 0.1145018554 | H100: -3.027090795 | J100: 15 | M100: 0.05712955542 | N100: -1.570796325 | O100: 8.951139626 | P100: 1.458845006 | Q100: 6.430455792 | R100: 1.414652642 | S100: 0.6636622649 | T100: -0.8450922692 | U100: 0.9665089753 | V100: -0.2595367177 | X100: 3.203037283 | Y100: -113.337912 | Z100: 66.66208801 | AC100: 1 | AD100: 8.895105429 | AE100: -0.0002213227989 | AF100: 0.0008335273619 | AG100: 9671.226972 | AH100: -3767.678382 | AJ100: 21000 | AK100: 23669.68894 | AL100: 1 | AM100: 6.35222494 | AN100: 4143.942733 | AO100: -2653.567439 | AQ100: 2.295157218 | AR100: -151.4803764 | AT100: -548532.3531 | AU100: -1473648.516 | AV100: -1.92713401 | AW100: -372012.6342 | AX100: -649328.2181 | AY100: -2.09106546 | BA100: 2.101205874 | BB100: 6.449372123 | BC100: 0.16393145 | BD100: -170.6074198 | BF100: 3.169730423 | BG100: -115.2940406 | BH100: 64.70595936 | BI100: 64.70595936 | BJ100: 0 | BK100: 0 | BM100: -3.2796417 | BN100: -124.6866209 | BQ100: 23.35133292 | BT100: 794.328 | BU100: 16.8354 | BV100: -262.7938
A101: 33500 | B101: 33.5 | C101: 1.529776384 | D101: 0.858345651 | F101: 0.02921769058 | G101: 0.1127054498 | H101: -3.0288872 | J101: 15 | M101: 0.05627687549 | N101: -1.570796325 | O101: 9.085082739 | P101: 1.460502302 | Q101: 6.525547893 | R101: 1.416946273 | S101: 0.6580646894 | T101: -0.8525507274 | U101: 0.9655386672 | V101: -0.2632911038 | X101: 3.053584023 | Y101: -113.4302385 | Z101: 66.56976151 | AC101: 1 | AD101: 9.029879754 | AE101: -0.0002280803591 | AF101: 0.0008461565644 | AG101: 9651.818235 | AH101: -3783.448955 | AJ101: 21000 | AK101: 24028.32059 | AL101: 1 | AM101: 6.448470773 | AN101: 4131.856643 | AO101: -2615.836212 | AQ101: 2.227171492 | AR101: -149.22049 | AT101: -543071.8524 | AU101: -1448675.436 | AV101: -1.929457191 | AW101: -360746.924 | AX101: -637786.2609 | AY101: -2.0855554 | BA101: 2.111417181 | BB101: 6.491481022 | BC101: 0.156098209 | BD101: -171.0562314 | BF101: 3.018782959 | BG101: -115.4191016 | BH101: 64.5808984 | BI101: 64.5808984 | BJ101: 0 | BK101: 0 | BM101: -3.472698063 | BN101: -124.3628702 | BQ101: 23.39344182 | BT101: 812.831 | BU101: 16.6614 | BV101: -262.2369
A102: =A101+500 -> 34000 | B102: 34 | C102: 1.542893639 | D102: 0.8656663492 | F102: 0.02834549324 | G102: 0.1109657545 | H102: -3.030626895 | J102: 15 | M102: 0.05544927438 | N102: -1.570796325 | O102: 9.21905008 | P102: 1.462111436 | Q102: 6.620673337 | R102: 1.419174006 | S102: 0.652525356 | T102: -0.859884023 | U102: 0.9645567506 | V102: -0.2670379066 | X102: 2.906412905 | Y102: -113.5254771 | Z102: 66.47452285 | AC102: 1 | AD102: 9.164654079 | AE102: -0.0002349395367 | AF102: 0.0008587857668 | AG102: 9632.197143 | AH102: -3799.531921 | AJ102: 21000 | AK102: 24386.95224 | AL102: 1 | AM102: 6.544716605 | AN102: 4120.283612 | AO102: -2579.136333 | AQ102: 2.162162162 | AR102: -147.027027 | AT102: -537807.5103 | AU102: -1424408.514 | AV102: -1.931814302 | AW102: -349959.0971 | AX102: -626667.4093 | AY102: -2.08009987 | BA102: 2.121252256 | BB102: 6.531846344 | BC102: 0.1482855683 | BD102: -171.5038628 | BF102: 2.870071669 | BG102: -115.546965 | BH102: 64.45303498 | BI102: 64.45303498 | BJ102: 0 | BK102: 0 | BM102: -3.661774675 | BN102: -124.0431023 | BQ102: 23.43380714 | BT102: 831.764 | BU102: 16.5098 | BV102: -262.3432
A103: 34500 | B103: 34.5 | C103: 1.556092186 | D103: 0.8728632414 | F103: 0.02751203764 | G103: 0.109280077 | H103: -3.032312573 | J103: 15 | M103: 0.05464566171 | N103: -1.570796325 | O103: 9.353040609 | P103: 1.46367447 | Q103: 6.715830708 | R103: 1.42133862 | S103: 0.6470445714 | T103: -0.8670945113 | U103: 0.9635633434 | V103: -0.270777044 | X103: 2.761441093 | Y103: -113.6234967 | Z103: 66.37650332 | AC103: 1 | AD103: 9.299428403 | AE103: -0.0002419003318 | AF103: 0.0008714149693 | AG103: 9612.366756 | AH103: -3815.90267 | AJ103: 21000 | AK103: 24745.58389 | AL103: 1 | AM103: 6.640962437 | AN103: 4109.195224 | AO103: -2543.427242 | AQ103: 2.099958001 | AR103: -144.8971021 | AT103: -532727.6721 | AU103: -1400817.322 | AV103: -1.934203489 | AW103: -339622.847 | AX103: -615948.7563 | AY103: -2.074699693 | BA103: 2.130719992 | BB103: 6.570527616 | BC103: 0.1404962046 | BD103: -171.9501604 | BF103: 2.723514371 | BG103: -115.6774933 | BH103: 64.32250666 | BI103: 64.32250666 | BJ103: 0 | BK103: 0 | BM103: -3.847013245 | BN103: -123.7273329 | BQ103: 23.47248842 | BT103: 851.138 | BU103: 16.2768 | BV103: -262.197
A104: 35000 | B104: 35 | C104: 1.569369972 | D104: 0.8799387152 | F104: 0.0267150485 | G104: 0.1076458948 | H104: -3.033946755 | J104: 15 | M104: 0.0538650094 | N104: -1.570796325 | O104: 9.487053342 | P104: 1.465193349 | Q104: 6.811018666 | R104: 1.423442739 | S104: 0.6416225611 | T104: -0.8741845202 | U104: 0.9625585642 | V104: -0.2745084353 | X104: 2.618590129 | Y104: -113.7241717 | Z104: 66.27582833 | AC104: 1 | AD104: 9.434202728 | AE104: -0.0002489627444 | AF104: 0.0008840441717 | AG104: 9592.330149 | AH104: -3832.537951 | AJ104: 21000 | AK104: 25104.21554 | AL104: 1 | AM104: 6.73720827 | AN104: 4098.56499 | AO104: -2508.670407 | AQ104: 2.040399918 | AR104: -142.8279943 | AT104: -527821.519 | AU104: -1377873.186 | AV104: -1.936622998 | AW104: -329713.6371 | AX104: -605609.0039 | AY104: -2.069355545 | BA104: 2.139829149 | BB104: 6.607581984 | BC104: 0.1327325476 | BD104: -172.3949852 | BF104: 2.579033276 | BG104: -115.8105551 | BH104: 64.18944492 | BI104: 64.18944492 | BJ104: 0 | BK104: 0 | BM104: -4.028548708 | BN104: -123.4155699 | BQ104: 23.50954278 | BT104: 870.964 | BU104: 16.1061 | BV104: -261.768
A105: 35500 | B105: 35.5 | C105: 1.582725004 | D105: 0.8868951266 | F105: 0.02595241612 | G105: 0.1060608425 | H105: -3.035531807 | J105: 15 | M105: 0.0531063473 | N105: -1.570796325 | O105: 9.621087352 | P105: 1.466669911 | Q105: 6.906235948 | R105: 1.425488848 | S105: 0.6362594751 | T105: -0.8811563493 | U105: 0.9615425325 | V105: -0.278232001 | X105: 2.477785631 | Y105: -113.8273822 | Z105: 66.17261776 | AC105: 1 | AD105: 9.568977053 | AE105: -0.0002561267744 | AF105: 0.0008966733742 | AG105: 9572.090409 | AH105: -3849.415785 | AJ105: 21000 | AK105: 25462.84719 | AL105: 1 | AM105: 6.833454102 | AN105: 4088.368193 | AO105: -2474.829209 | AQ105: 1.983339944 | AR105: -140.8171361 | AT105: -523078.997 | AU105: -1355549.058 | AV105: -1.939071168 | AW105: -320208.5611 | AX105: -595628.326 | AY105: -2.064067967 | BA105: 2.148588346 | BB105: 6.643064316 | BC105: 0.1249967999 | BD105: -172.8382109 | BF105: 2.436554688 | BG105: -115.9460246 | BH105: 64.05397543 | BI105: 64.05397543 | BJ105: 0 | BK105: 0 | BM105: -4.206509628 | BN105: -123.1078137 | BQ105: 23.54502512 | BT105: 891.251 | BU105: 15.8824 | BV105: -261.3831
A106: 36000 | B106: 36 | C106: 1.596155343 | D106: 0.8937347995 | F106: 0.02522218205 | G106: 0.1045226995 | H106: -3.03706995 | J106: 15 | M106: 0.05236875914 | N106: -1.570796325 | O106: 9.755141762 | P106: 1.468105895 | Q106: 7.001481356 | R106: 1.427479296 | S106: 0.6309553927 | T106: -0.8880122677 | U106: 0.9605153682 | V106: -0.2819476628 | X106: 2.338957019 | Y106: -113.9330138 | Z106: 66.06698622 | AC106: 1 | AD106: 9.703751377 | AE106: -0.0002633924218 | AF106: 0.0009093025766 | AG106: 9551.65063 | AH106: -3866.515374 | AJ106: 21000 | AK106: 25821.47884 | AL106: 1 | AM106: 6.929699935 | AN106: 4078.581747 | AO106: -2441.868827 | AQ106: 1.928640309 | AR106: -138.8621022 | AT106: -518490.7546 | AU106: -1333819.404 | AV106: -1.941546425 | AW106: -311086.2154 | AX106: -585988.2453 | AY106: -2.058837381 | BA106: 2.157006058 | BB106: 6.677027297 | BC106: 0.1172909552 | BD106: -173.2797233 | BF106: 2.296008721 | BG106: -116.0837817 | BH106: 63.91621834 | BI106: 63.91621834 | BJ106: 0 | BK106: 0 | BM106: -4.381018576 | BN106: -122.8040584 | BQ106: 23.5789881 | BT106: 912.011 | BU106: 15.6715 | BV106: -261.7487
A107: 36500 | B107: 36.5 | C107: 1.609659104 | D107: 0.9004600237 | F107: 0.02452252618 | G107: 0.1030293789 | H107: -3.038563271 | J107: 15 | M107: 0.05165137888 | N107: -1.570796325 | O107: 9.889215742 | P107: 1.469502945 | Q107: 7.096753759 | R107: 1.429416309 | S107: 0.6257103282 | T107: -0.8947545136 | U107: 0.9594771919 | V107: -0.2856553435 | X107: 2.202037264 | Y107: -114.0409568 | Z107: 65.95904324 | AC107: 1 | AD107: 9.838525702 | AE107: -0.0002707596867 | AF107: 0.0009219317791 | AG107: 9531.013921 | AH107: -3883.817029 | AJ107: 21000 | AK107: 26180.11049 | AL107: 1 | AM107: 7.025945767 | AN107: 4069.184075 | AO107: -2409.756136 | AQ107: 1.876172608 | AR107: -136.9606004 | AT107: -514048.0848 | AU107: -1312660.1 | AV107: -1.944047279 | AW107: -302326.5841 | AX107: -576671.5217 | AY107: -2.053664094 | BA107: 2.165090609 | BB107: 6.709521527 | BC107: 0.1096168153 | BD107: -173.7194191 | BF107: 2.157329052 | BG107: -116.2237115 | BH107: 63.77628851 | BI107: 63.77628851 | BJ107: 0 | BK107: 0 | BM107: -4.552192475 | BN107: -122.5042924 | BQ107: 23.61148233 | BT107: 933.254 | BU107: 15.4714 | BV107: -261.2073
A108: 37000 | B108: 37 | C108: 1.623234455 | D108: 0.9070730548 | F108: 0.02385175513 | G108: 0.1015789175 | H108: -3.040013733 | J108: 15 | M108: 0.05095338727 | N108: -1.570796325 | O108: 10.02330851 | P108: 1.470862617 | Q108: 7.192052084 | R108: 1.431301996 | S108: 0.6205242349 | T108: -0.901385293 | U108: 0.9584281247 | V108: -0.2893549672 | X108: 2.066962653 | Y108: -114.1511064 | Z108: 65.84889362 | AC108: 1 | AD108: 9.973300027 | AE108: -0.000278228569 | AF108: 0.0009345609815 | AG108: 9510.183394 | AH108: -3901.302097 | AJ108: 21000 | AK108: 26538.74214 | AL108: 1 | AM108: 7.122191599 | AN108: 4060.154988 | AO108: -2378.459604 | AQ108: 1.825817053 | AR108: -135.1104619 | AT108: -509742.8734 | AU108: -1292048.335 | AV108: -1.946572312 | AW108: -293910.9326 | AX108: -567662.0519 | AY108: -2.048548317 | BA108: 2.172850171 | BB108: 6.74059561 | BC108: 0.1019760051 | BD108: -174.1572053 | BF108: 2.020452683 | BG108: -116.3657042 | BH108: 63.63429579 | BI108: 63.63429579 | BJ108: 0 | BK108: 0 | BM108: -4.720142927 | BN108: -122.2084989 | BQ108: 23.64255641 | BT108: 954.993 | BU108: 15.3525 | BV108: -261.2661
A109: 37500 | B109: 37.5 | C109: 1.636879614 | D109: 0.9135761128 | F109: 0.02320829175 | G109: 0.1001694666 | H109: -3.041423183 | J109: 15 | M109: 0.05027400877 | N109: -1.570796325 | O109: 10.15741931 | P109: 1.472186388 | Q109: 7.287375313 | R109: 1.433138358 | S109: 0.61539701 | T109: -0.9079067784 | U109: 0.9573682884 | V109: -0.2930464592 | X109: 1.933672577 | Y109: -114.2633624 | Z109: 65.73663756 | AC109: 1 | AD109: 10.10807435 | AE109: -0.0002857990688 | AF109: 0.000947190184 | AG109: 9489.162172 | AH109: -3918.952894 | AJ109: 21000 | AK109: 26897.37379 | AL109: 1 | AM109: 7.218437432 | AN109: 4051.475582 | AO109: -2347.949203 | AQ109: 1.777461785 | AR109: -133.3096338 | AT109: -505567.5522 | AU109: -1271962.524 | AV109: -1.949120181 | AW109: -285821.7116 | AX109: -558944.7784 | AY109: -2.043490168 | BA109: 2.180292757 | BB109: 6.770296241 | BC109: 0.09436998709 | BD109: -174.592998 | BF109: 1.885319727 | BG109: -116.5096548 | BH109: 63.49034525 | BI109: 63.49034525 | BJ109: 0 | BK109: 0 | BM109: -4.884976514 | BN109: -121.9166567 | BQ109: 23.67225704 | BT109: 977.237 | BU109: 15.0807 | BV109: -260.9324
A110: 38000 | B110: 38 | C110: 1.65059285 | D110: 0.9199713819 | F110: 0.02259066565 | G110: 0.09879928376 | H110: -3.042793366 | J110: 15 | M110: 0.04961250866 | N110: -1.570796325 | O110: 10.29154745 | P110: 1.473475656 | Q110: 7.382722483 | R110: 1.434927293 | S110: 0.6103284986 | T110: -0.9143211088 | U110: 0.9562978051 | V110: -0.296729746 | X110: 1.802109336 | Y110: -114.377629 | Z110: 65.62237097 | AC110: 1 | AD110: 10.24284868 | AE110: -0.000293471186 | AF110: 0.0009598193864 | AG110: 9467.953384 | AH110: -3936.752646 | AJ110: 21000 | AK110: 27256.00544 | AL110: 1 | AM110: 7.314683264 | AN110: 4043.128143 | AO110: -2318.196324 | AQ110: 1.73100225 | AR110: -131.556171 | AT110: -501515.0557 | AU110: -1252382.222 | AV110: -1.951689608 | AW110: -278042.4689 | AX110: -550505.6065 | AY110: -2.038489682 | BA110: 2.187426224 | BB110: 6.798668286 | BC110: 0.086800074 | BD110: -175.0267221 | BF110: 1.751873212 | BG110: -116.6554626 | BH110: 63.34453741 | BI110: 63.34453741 | BJ110: 0 | BK110: 0 | BM110: -5.046795074 | BN110: -121.6287405 | BQ110: 23.70062909 | BT110: 1000 | BU110: 14.8838 | BV110: -260.5154
A111: 38500 | B111: 38.5 | C111: 1.66437248 | D111: 0.9262610096 | F111: 0.02199750455 | G111: 0.09746672529 | H111: -3.044125925 | J111: 15 | M111: 0.04896819036 | N111: -1.570796325 | O111: 10.42569226 | P111: 1.474731749 | Q111: 7.478092676 | R111: 1.436670603 | S111: 0.605318498 | T111: -0.9206303888 | U111: 0.9552167975 | V111: -0.3004047553 | X111: 1.672217955 | Y111: -114.4938144 | Z111: 65.50618563 | AC111: 1 | AD111: 10.377623 | AE111: -0.0003012449207 | AF111: 0.0009724485889 | AG111: 9446.560164 | AH111: -3954.685432 | AJ111: 21000 | AK111: 27614.63709 | AL111: 1 | AM111: 7.410929097 | AN111: 4035.096058 | AO111: -2289.173695 | AQ111: 1.686340641 | AR111: -129.8482293 | AT111: -497578.7826 | AU111: -1233288.057 | AV111: -1.954279377 | AW111: -270557.7685 | AX111: -542331.3299 | AY111: -2.033546818 | BA111: 2.194258267 | BB111: 6.825754865 | BC111: 0.07926744098 | BD111: -175.4583102 | BF111: 1.620058896 | BG111: -116.8030315 | BH111: 63.19696847 | BI111: 63.19696847 | BJ111: 0 | BK111: 0 | BM111: -5.205695969 | BN111: -121.3447214 | BQ111: 23.72771567 | BT111: 1023.293 | BU111: 14.7437 | BV111: -261.1239
A112: 39000 | B112: 39 | C112: 1.678216869 | D112: 0.9324471066 | F112: 0.02142752658 | G112: 0.09617023906 | H112: -3.045422411 | J112: 15 | M112: 0.04834039305 | N112: -1.570796325 | O112: 10.5598531 | P112: 1.475955927 | Q112: 7.573485025 | R112: 1.438370003 | S112: 0.6003667611 | T112: -0.9268366878 | U112: 0.9541253887 | V112: -0.3040714161 | X112: 1.543946017 | Y112: -114.6118306 | Z112: 65.38816941 | AC112: 1 | AD112: 10.51239733 | AE112: -0.0003091202728 | AF112: 0.0009850777913 | AG112: 9424.985651 | AH112: -3972.736133 | AJ112: 21000 | AK112: 27973.26874 | AL112: 1 | AM112: 7.507174929 | AN112: 4027.363733 | AO112: -2260.855305 | AQ112: 1.643385374 | AR112: -128.1840592 | AT112: -493752.56 | AU112: -1214661.655 | AV112: -1.956888332 | AW112: -263353.1171 | AX112: -534409.562 | AY112: -2.028661469 | BA112: 2.200796422 | BB112: 6.851597427 | BC112: 0.07177313645 | BD112: -175.8877022 | BF112: 1.4898251 | BG112: -116.9522695 | BH112: 63.04773051 | BI112: 63.04773051 | BJ112: 0 | BK112: 0 | BM112: -5.361772327 | BN112: -121.0645673 | BQ112: 23.75355823 | BT112: 1047.129 | BU112: 14.5866 | BV112: -260.4077
A113: 39500 | B113: 39.5 | C113: 1.692124427 | D113: 0.9385317463 | F113: 0.02087953308 | G113: 0.09490835827 | H113: -3.046684292 | J113: 15 | M113: 0.04772848934 | N113: -1.570796325 | O113: 10.69402937 | P113: 1.477149387 | Q113: 7.6688987 | R113: 1.440027121 | S113: 0.5954730004 | T113: -0.9329420401 | U113: 0.9530237022 | V113: -0.3077296585 | X113: 1.417243511 | Y113: -114.7315935 | Z113: 65.26840646 | AC113: 1 | AD113: 10.64717165 | AE113: -0.0003170972424 | AF113: 0.0009977069938 | AG113: 9403.232986 | AH113: -3990.890386 | AJ113: 21000 | AK113: 28331.90039 | AL113: 1 | AM113: 7.603420762 | AN113: 4019.916521 | AO113: -2233.216339 | AQ113: 1.602050625 | AR113: -126.5619994 | AT113: -490030.6111 | AU113: -1196485.576 | AV113: -1.959515373 | AW113: -256414.8958 | AX113: -526728.6741 | AY113: -2.023833465 | BA113: 2.207048063 | BB113: 6.876235818 | BC113: 0.06431809226 | BD113: -176.3148448 | BF113: 1.36112255 | BG113: -117.1030883 | BH113: 62.89691167 | BI113: 62.89691167 | BJ113: 0 | BK113: 0 | BM113: -5.515113268 | BN113: -120.7882436 | BQ113: 23.77819662 | BT113: 1071.519 | BU113: 14.3581 | BV113: -260.5301
A114: 40000 | B114: 40 | C114: 1.70609361 | D114: 0.9445169647 | F114: 0.02035240229 | G114: 0.09367969559 | H114: -3.047912954 | J114: 15 | M114: 0.04713188322 | N114: -1.570796325 | O114: 10.82822049 | P114: 1.478313269 | Q114: 7.764332918 | R114: 1.441643506 | S114: 0.5906368909 | T114: -0.9389484446 | U114: 0.9519118618 | V114: -0.3113794139 | X114: 1.292062685 | Y114: -114.8530226 | Z114: 65.1469774 | AC114: 1 | AD114: 10.78194597 | AE114: -0.0003251758294 | AF114: 0.001010336196 | AG114: 9381.305315 | AH114: -4009.134535 | AJ114: 21000 | AK114: 28690.53204 | AL114: 1 | AM114: 7.699666594 | AN114: 4012.740652 | AO114: -2206.233106 | AQ114: 1.562255898 | AR114: -124.9804718 | AT114: -486407.5261 | AU114: -1178743.258 | AV114: -1.96215945 | AW114: -249730.2986 | AX114: -519277.7386 | AY114: -2.019062583 | BA114: 2.213020402 | BB114: 6.899708356 | BC114: 0.05690313297 | BD114: -176.7396906 | BF114: 1.233904237 | BG114: -117.2554036 | BH114: 62.74459637 | BI114: 62.74459637 | BJ114: 0 | BK114: 0 | BM114: -5.665804119 | BN114: -120.515713 | BQ114: 23.80166916 | BT114: 1096.478 | BU114: 14.1501 | BV114: -260.5471
A115: 40500 | B115: 40.5 | C115: 1.720122917 | D115: 0.9504047604 | F115: 0.01984508339 | G115: 0.09248293779 | H115: -3.049109712 | J115: 15 | M115: 0.04655000812 | N115: -1.570796325 | O115: 10.96242592 | P115: 1.479448655 | Q115: 7.859786928 | R115: 1.443220635 | S115: 0.5858580736 | T115: -0.9448578643 | U115: 0.9507899919 | V115: -0.315020615 | X115: 1.168357914 | Y115: -114.9760405 | Z115: 65.02395946 | AC115: 1 | AD115: 10.9167203 | AE115: -0.0003333560338 | AF115: 0.001022965399 | AG115: 9359.205783 | AH115: -4027.455596 | AJ115: 21000 | AK115: 29049.16369 | AL115: 1 | AM115: 7.795912426 | AN115: 4005.823176 | AO115: -2179.882982 | AQ115: 1.523925632 | AR115: -123.4379762 | AT115: -482878.2346 | AU115: -1161418.964 | AV115: -1.964819562 | AW115: -243287.2748 | AX115: -512046.4776 | AY115: -2.014348546 | BA115: 2.218720493 | BB115: 6.922051895 | BC115: 0.04952898443 | BD115: -177.1621982 | BF115: 1.108125278 | BG115: -117.4091345 | BH115: 62.59086545 | BI115: 62.59086545 | BJ115: 0 | BK115: 0 | BM115: -5.813926617 | BN115: -120.2469363 | BQ115: 23.8240127 | BT115: 1122.018 | BU115: 13.9679 | BV115: -259.931
A116: 41000 | B116: 41 | C116: 1.734210887 | D116: 0.9561970944 | F116: 0.01935659121 | G116: 0.09131684078 | H116: -3.050275809 | J116: 15 | M116: 0.0459823251 | N116: -1.570796325 | O116: 11.09664514 | P116: 1.480556576 | Q116: 7.95526002 | R116: 1.444759913 | S116: 0.5811361586 | T116: -0.9506722265 | U116: 0.9496582167 | V116: -0.3186531954 | X116: 1.04608558 | Y116: -115.1005733 | Z116: 64.89942669 | AC116: 1 | AD116: 11.05149462 | AE116: -0.0003416378557 | AF116: 0.001035594601 | AG116: 9336.937539 | AH116: -4045.841216 | AJ116: 21000 | AK116: 29407.79535 | AL116: 1 | AM116: 7.892158259 | AN116: 3999.1519 | AO116: -2154.144347 | AQ116: 1.486988848 | AR116: -121.9330855 | AT116: -479437.9809 | AU116: -1144497.724 | AV116: -1.967494756 | AW116: -237074.4766 | AX116: -505025.2157 | AY116: -2.009691037 | BA116: 2.224155228 | BB116: 6.943301885 | BC116: 0.04219628168 | BD116: -177.5823311 | BF116: 0.9837427961 | BG116: -117.5642036 | BH116: 62.43579639 | BI116: 62.43579639 | BJ116: 0 | BK116: 0 | BM116: -5.959559089 | BN116: -119.9818725 | BQ116: 23.84526269 | BT116: 1148.154 | BU116: 13.7508 | BV116: -259.948
A117: 41500 | B117: 41.5 | C117: 1.748356103 | D117: 0.9618958904 | F117: 0.01888600131 | G117: 0.09018022512 | H117: -3.051412425 | J117: 15 | M117: 0.04542832118 | N117: -1.570796325 | O117: 11.23087766 | P117: 1.481638015 | Q117: 8.050751513 | R117: 1.446262679 | S117: 0.5764707273 | T117: -0.9563934228 | U117: 0.9485166612 | V117: -0.3222770904 | X117: 0.925203953 | Y117: -115.2265499 | Z117: 64.77345009 | AC117: 1 | AD117: 11.18626895 | AE117: -0.0003500212951 | AF117: 0.001048223804 | AG117: 9314.503729 | AH117: -4064.279635 | AJ117: 21000 | AK117: 29766.427 | AL117: 1 | AM117: 7.988404091 | AN117: 3992.715337 | AO117: -2128.996539 | AQ117: 1.45137881 | AR117: -120.4644412 | AT117: -476082.3019 | AU117: -1127965.296 | AV117: -1.97018412 | AW117: -231081.2109 | AX117: -498204.8367 | AY117: -2.005089696 | BA117: 2.229331342 | BB117: 6.963492437 | BC117: 0.03490557623 | BD117: -178.0000578 | BF117: 0.8607158033 | BG117: -117.7205366 | BH117: 62.27946342 | BI117: 62.27946342 | BJ117: 0 | BK117: 0 | BM117: -6.102776634 | BN117: -119.7204788 | BQ117: 23.86545324 | BT117: 1174.898 | BU117: 13.6038 | BV117: -260.1987
A118: 42000 | B118: 42 | C118: 1.762557187 | D118: 0.9675030347 | F118: 0.01843244556 | G118: 0.0890719718 | H118: -3.052520678 | J118: 15 | M118: 0.04488750783 | N118: -1.570796325 | O118: 11.365123 | P118: 1.482693906 | Q118: 8.146260761 | R118: 1.44773021 | S118: 0.5718613357 | T118: -0.9620233089 | U118: 0.9473654504 | V118: -0.3258922361 | X118: 0.8056730868 | Y118: -115.3539023 | Z118: 64.64609773 | AC118: 1 | AD118: 11.32104327 | AE118: -0.0003585063519 | AF118: 0.001060853006 | AG118: 9291.907499 | AH118: -4082.759661 | AJ118: 21000 | AK118: 30125.05865 | AL118: 1 | AM118: 8.084649924 | AN118: 3986.502662 | AO118: -2104.419795 | AQ118: 1.417032733 | AR118: -119.0307496 | AT118: -472807.0059 | AU118: -1111808.119 | AV118: -1.972886784 | AW118: -225297.3947 | AX118: -491576.7437 | AY118: -2.000544127 | BA118: 2.234255413 | BB118: 6.982656377 | BC118: 0.02765734275 | BD118: -178.415351 | BF118: 0.7390050935 | BG118: -117.8780623 | BH118: 62.12193769 | BI118: 62.12193769 | BJ118: 0 | BK118: 0 | BM118: -6.243651284 | BN118: -119.4627113 | BQ118: 23.88461718 | BT118: 1202.264 | BU118: 13.4128 | BV118: -259.341
A119: 42500 | B119: 42.5 | C119: 1.776812799 | D119: 0.9730203763 | F119: 0.01799510806 | G119: 0.08799101838 | H119: -3.053601632 | J119: 15 | M119: 0.04435941951 | N119: -1.570796325 | O119: 11.49938072 | P119: 1.483725144 | Q119: 8.241787147 | R119: 1.449163725 | S119: 0.5673075164 | T119: -0.967563705 | U119: 0.9462047094 | V119: -0.3294985701 | X119: 0.6874547203 | Y119: -115.482565 | Z119: 64.51743495 | AC119: 1 | AD119: 11.4558176 | AE119: -0.0003670930261 | AF119: 0.001073482209 | AG119: 9269.151992 | AH119: -4101.270631 | AJ119: 21000 | AK119: 30483.6903 | AL119: 1 | AM119: 8.180895756 | AN119: 3980.503661 | AO119: -2080.395209 | AQ119: 1.383891503 | AR119: -117.6307777 | AT119: -469608.1534 | AU119: -1096013.271 | AV119: -1.975601917 | AW119: -219713.5139 | AX119: -485132.8237 | AY119: -1.996053902 | BA119: 2.238933865 | BB119: 7.000825305 | BC119: 0.02045198528 | BD119: -178.8281876 | BF119: 0.6185731433 | BG119: -118.0367126 | BH119: 61.96328744 | BI119: 61.96328744 | BJ119: 0 | BK119: 0 | BM119: -6.382252161 | BN119: -119.208525 | BQ119: 23.9027861 | BT119: 1230.269 | BU119: 13.1837 | BV119: -259.551
A120: 43000 | B120: 43 | C120: 1.791121637 | D120: 0.9784497275 | F120: 0.01757322136 | G120: 0.08693635544 | H120: -3.054656295 | J120: 15 | M120: 0.0438436123 | N120: -1.570796325 | O120: 11.63365038 | P120: 1.484732578 | Q120: 8.337330081 | R120: 1.450564388 | S120: 0.5628087814 | T120: -0.9730163958 | U120: 0.9450345637 | V120: -0.3330960311 | X120: 0.5705121845 | Y120: -115.6124755 | Z120: 64.38752445 | AC120: 1 | AD120: 11.59059192 | AE120: -0.0003757813178 | AF120: 0.001086111411 | AG120: 9246.24035 | AH120: -4119.802387 | AJ120: 21000 | AK120: 30842.32195 | AL120: 1 | AM120: 8.277141589 | AN120: 3974.708694 | AO120: -2056.904684 | AQ120: 1.351899419 | AR120: -116.26335 | AT120: -466482.04 | AU120: -1080568.437 | AV120: -1.978328724 | AW120: -214320.5856 | AX120: -478865.4133 | AY120: -1.991618567 | BA120: 2.243372966 | BB120: 7.01802964 | BC120: 0.01328984293 | BD120: -179.2385481 | BF120: 0.4993840187 | BG120: -118.1964219 | BH120: 61.80357809 | BI120: 61.80357809 | BJ120: 0 | BK120: 0 | BM120: -6.518645621 | BN120: -118.9578738 | BQ120: 23.91999044 | BT120: 1258.925 | BU120: 13.0792 | BV120: -259.272
A121: 43500 | B121: 43.5 | C121: 1.805482436 | D121: 0.9837928642 | F121: 0.01716606306 | G121: 0.08590702329 | H121: -3.055685627 | J121: 15 | M121: 0.04333966274 | N121: -1.570796325 | O121: 11.76793158 | P121: 1.485717022 | Q121: 8.432889001 | R121: 1.45193331 | S121: 0.5583646235 | T121: -0.978383131 | U121: 0.9438551388 | V121: -0.336684559 | X121: 0.4548103166 | Y121: -115.7435736 | Z121: 64.25642641 | AC121: 1 | AD121: 11.72536625 | AE121: -0.000384571227 | AF121: 0.001098740613 | AG121: 9223.17571 | AH121: -4138.345251 | AJ121: 21000 | AK121: 31200.9536 | AL121: 1 | AM121: 8.373387421 | AN121: 3969.108656 | AO121: -2033.930892 | AQ121: 1.321003963 | AR121: -114.9273448 | AT121: -463425.1798 | AU121: -1065461.865 | AV121: -1.981066444 | AW121: -209110.1229 | AX121: -472767.2689 | AY121: -1.987237639 | BA121: 2.247578836 | BB121: 7.03429868 | BC121: 0.006171195167 | BD121: -179.6464166 | BF121: 0.3814032891 | BG121: -118.3571276 | BH121: 61.64287241 | BI121: 61.64287241 | BJ121: 0 | BK121: 0 | BM121: -6.652895391 | BN121: -118.710711 | BQ121: 23.93625948 | BT121: 1288.25 | BU121: 12.807 | BV121: -258.861
A122: 44000 | B122: 44 | C122: 1.819893965 | D122: 0.9890515256 | F122: 0.01677295267 | G122: 0.08490210887 | H122: -3.056690541 | J122: 15 | M122: 0.04284716657 | N122: -1.570796325 | O122: 11.90222393 | P122: 1.486679252 | Q122: 8.52846337 | R122: 1.453271553 | S122: 0.5539745192 | T122: -0.9836656252 | U122: 0.9426665604 | V122: -0.340264095 | X122: 0.3403153798 | Y122: -115.8758014 | Z122: 64.12419863 | AC122: 1 | AD122: 11.86014057 | AE122: -0.0003934627536 | AF122: 0.001111369816 | AG122: 9199.961204 | AH122: -4156.889994 | AJ122: 21000 | AK122: 31559.58525 | AL122: 1 | AM122: 8.469633253 | AN122: 3963.694941 | AO122: -2011.457232 | AQ122: 1.291155584 | AR122: -113.6216914 | AT122: -460434.2909 | AU122: -1050682.345 | AV122: -1.983814349 | AW122: -204074.103 | AX122: -466831.5379 | AY122: -1.982910615 | BA122: 2.251557446 | BB122: 7.049660641 | BC122: -0.0009037333679 | BD122: -180.0517801 | BF122: 0.2645979459 | BG122: -118.5187694 | BH122: 61.48123061 | BI122: 61.48123061 | BJ122: 0 | BK122: 0 | BM122: -6.785062695 | BN122: -118.4669893 | BQ122: 23.95162144 | BT122: 1318.257 | BU122: 12.6826 | BV122: -258.683
A123: 44500 | B123: 44.5 | C123: 1.834355029 | D123: 0.9942274154 | F123: 0.01639324868 | G123: 0.08392074298 | H123: -3.057671907 | J123: 15 | M123: 0.04236573773 | N123: -1.570796325 | O123: 12.03652705 | P123: 1.48762001 | Q123: 8.624052673 | R123: 1.454580132 | S123: 0.54963793 | T123: -0.9888655583 | U123: 0.9414689541 | V123: -0.3438345814 | X123: 0.2269949881 | Y123: -116.0091034 | Z123: 63.99089662 | AC123: 1 | AD123: 11.9949149 | AE123: -0.0004024558976 | AF123: 0.001123999018 | AG123: 9176.599959 | AH123: -4175.427822 | AJ123: 21000 | AK123: 31918.2169 | AL123: 1 | AM123: 8.565879086 | AN123: 3958.459413 | AO123: -1989.467796 | AQ123: 1.262307498 | AR123: -112.3453673 | AT123: -457506.2815 | AU123: -1036219.167 | AV123: -1.986571742 | AW123: -199204.9367 | AX123: -461051.7332 | AY123: -1.978636974 | BA123: 2.255314621 | BB123: 7.064142709 | BC123: -0.007934768332 | BD123: -180.4546287 | BF123: 0.1489363271 | BG123: -118.6812895 | BH123: 61.3187105 | BI123: 61.3187105 | BJ123: 0 | BK123: 0 | BM123: -6.915206382 | BN123: -118.2266608 | BQ123: 23.96610351 | BT123: 1348.963 | BU123: 12.4759 | BV123: -258.797
A124: 45000 | B124: 45 | C124: 1.848864466 | D124: 0.9993222017 | F124: 0.01602634596 | G124: 0.08296209763 | H124: -3.058630552 | J124: 15 | M124: 0.04189500731 | N124: -1.570796325 | O124: 12.17084059 | P124: 1.488540005 | Q124: 8.719656421 | R124: 1.455860018 | S124: 0.5453543043 | T124: -0.9939845763 | U124: 0.9402624459 | V124: -0.3473959618 | X124: 0.1148180365 | Y124: -116.1434263 | Z124: 63.85657374 | AC124: 1 | AD124: 12.12968922 | AE124: -0.0004115506591 | AF124: 0.001136628221 | AG124: 9153.095096 | AH124: -4193.950345 | AJ124: 21000 | AK124: 32276.84855 | AL124: 1 | AM124: 8.662124918 | AN124: 3953.39437 | AO124: -1967.947333 | AQ124: 1.234415504 | AR124: -111.0973954 | AT124: -454638.2372 | AU124: -1022062.102 | AV124: -1.989337956 | AW124: -194495.4409 | AX124: -455421.709 | AY124: -1.974416175 | BA124: 2.258856042 | BB124: 7.07777108 | BC124: -0.01492178156 | BD124: -180.8549551 | BF124: 0.03438804707 | BG124: -118.8446325 | BH124: 61.15536755 | BI124: 61.15536755 | BJ124: 45000 | BK124: 61.15536755 | BM124: -7.043383033 | BN124: -117.9896773 | BQ124: 23.97973188 | BT124: 1380.384 | BU124: 12.2584 | BV124: -258.41
A125: 45500 | B125: 45.5 | C125: 1.863421145 | D125: 1.004337518 | F125: 0.01567167324 | G125: 0.08202538358 | H125: -3.059567266 | J125: 15 | M125: 0.04143462262 | N125: -1.570796325 | O125: 12.3051642 | P125: 1.489439916 | Q125: 8.815274142 | R125: 1.45711214 | S125: 0.5411230792 | T125: -0.9990242911 | U125: 0.9390471614 | V125: -0.3509481811 | X125: 0.003754634769 | Y125: -116.2787188 | Z125: 63.72128125 | AC125: 1 | AD125: 12.26446355 | AE125: -0.000420747038 | AF125: 0.001149257423 | AG125: 9129.449728 | AH125: -4212.449564 | AJ125: 21000 | AK125: 32635.4802 | AL125: 1 | AM125: 8.758370751 | AN125: 3948.492522 | AO125: -1946.881214 | AQ125: 1.207437817 | AR125: -109.8768413 | AT125: -451827.4096 | AU125: -1008201.37 | AV125: -1.99211235 | AW125: -189938.8132 | AX125: -449935.6388 | AY125: -1.970247663 | BA125: 2.262187249 | BB125: 7.090571003 | BC125: -0.02186468722 | BD125: -181.2527543 | BF125: -0.07907606981 | BG125: -119.008745 | BH125: 60.99125502 | BI125: 60.99125502 | BJ125: 0 | BK125: 0 | BM125: -7.169647072 | BN125: -117.7559907 | BQ125: 23.9925318 | BT125: 1412.538 | BU125: 12.0929 | BV125: -258.136
A126: 46000 | B126: 46 | C126: 1.878023969 | D126: 1.009274961 | F126: 0.0153286909 | G126: 0.08110984814 | H126: -3.060482802 | J126: 15 | M126: 0.04098424628 | N126: -1.570796325 | O126: 12.43949757 | P126: 1.490320391 | Q126: 8.910905388 | R126: 1.45833739 | S126: 0.5369436819 | T126: -1.003986281 | U126: 0.9378232266 | V126: -0.3544911852 | X126: -0.1062239536 | Y126: -116.4149315 | Z126: 63.58506845 | AC126: 1 | AD126: 12.39923787 | AE126: -0.0004300450344 | AF126: 0.001161886626 | AG126: 9105.666961 | AH126: -4230.917847 | AJ126: 21000 | AK126: 32994.11185 | AL126: 1 | AM126: 8.854616583 | AN126: 3943.746963 | AO126: -1926.255403 | AQ126: 1.181334908 | AR126: -108.6828116 | AT126: -449071.205 | AU126: -994627.6176 | AV126: -1.994894311 | AW126: -185528.6075 | AX126: -444587.9951 | AY126: -1.966130873 | BA126: 2.265313645 | BB126: 7.102566818 | BC126: -0.0287634383 | BD126: -181.6480236 | BF126: -0.1914840509 | BG126: -119.1735759 | BH126: 60.82642408 | BI126: 60.82642408 | BJ126: 0 | BK126: 0 | BM126: -7.294050869 | BN126: -117.5255523 | BQ126: 24.00452762 | BT126: 1445.44 | BU126: 11.9189 | BV126: -257.929
A127: 46500 | B127: 46.5 | C127: 1.892671868 | D127: 1.014136098 | F127: 0.01499688884 | G127: 0.08021477298 | H127: -3.061377877 | J127: 15 | M127: 0.04054355546 | N127: -1.570796325 | O127: 12.57384037 | P127: 1.491182052 | Q127: 9.006549727 | R127: 1.459536618 | S127: 0.5328155311 | T127: -1.008872092 | U127: 0.9365907671 | V127: -0.3580249213 | X127: -0.2151453694 | Y127: -116.5520172 | Z127: 63.44798275 | AC127: 1 | AD127: 12.5340122 | AE127: -0.0004394446482 | AF127: 0.001174515828 | AG127: 9081.749893 | AH127: -4249.347916 | AJ127: 21000 | AK127: 33352.7435 | AL127: 1 | AM127: 8.950862416 | AN127: 3939.151145 | AO127: -1906.056429 | AQ127: 1.156069364 | AR127: -107.5144509 | AT127: -446367.1749 | AU127: -981331.8936 | AV127: -1.997683249 | AW127: -181258.7126 | AX127: -439373.5303 | AY127: -1.962065226 | BA127: 2.268240496 | BB127: 7.113781997 | BC127: -0.03561802336 | BD127: -182.0407624 | BF127: -0.3028628335 | BG127: -119.3390761 | BH127: 60.66092387 | BI127: 60.66092387 | BJ127: 0 | BK127: 0 | BM127: -7.41664483 | BN127: -117.2983137 | BQ127: 24.0157428 | BT127: 1479.108 | BU127: 11.7147 | BV127: -257.745
A128: 47000 | B128: 47 | C128: 1.907363805 | D128: 1.018922458 | F128: 0.01467578461 | G128: 0.07933947226 | H128: -3.062253178 | J128: 15 | M128: 0.04011224104 | N128: -1.570796325 | O128: 12.70819231 | P128: 1.492025494 | Q128: 9.102206746 | R128: 1.460710641 | S128: 0.5287380383 | T128: -1.013683237 | U128: 0.9353499088 | V128: -0.3615493379 | X128: -0.3230362115 | Y128: -116.6899302 | Z128: 63.31006976 | AC128: 1 | AD128: 12.66878652 | AE128: -0.0004489458794 | AF128: 0.001187145031 | AG128: 9057.701609 | AH128: -4267.732825 | AJ128: 21000 | AK128: 33711.37515 | AL128: 1 | AM128: 9.047108248 | AN128: 3934.69886 | AO128: -1886.271356 | AQ128: 1.131605749 | AR128: -106.3709404 | AT128: -443713.0066 | AU128: -968305.6287 | AV128: -2.000478601 | AW128: -177123.331 | AX128: -434287.2594 | AY128: -1.958050137 | BA128: 2.270972938 | BB128: 7.124239178 | BC128: -0.04242846348 | BD128: -182.4309719 | BF128: -0.4132383189 | BG128: -119.5051984 | BH128: 60.49480158 | BI128: 60.49480158 | BJ128: 0 | BK128: 0 | BM128: -7.537477497 | BN128: -117.0742265 | BQ128: 24.02619998 | BT128: 1513.561 | BU128: 11.5252 | BV128: -257.61
A129: 47500 | B129: 47.5 | C129: 1.92209877 | D129: 1.023635539 | F129: 0.01436492157 | G129: 0.07848329072 | H129: -3.063109359 | J129: 15 | M129: 0.03969000693 | N129: -1.570796325 | O129: 12.84255311 | P129: 1.492851289 | Q129: 9.19787605 | R129: 1.461860244 | S129: 0.5247106095 | T129: -1.018421197 | U129: 0.9341007772 | V129: -0.3650643846 | X129: -0.4299220879 | Y129: -116.8286267 | Z129: 63.17137334 | AC129: 1 | AD129: 12.80356085 | AE129: -0.0004585487281 | AF129: 0.001199774233 | AG129: 9033.525189 | AH129: -4286.065949 | AJ129: 21000 | AK129: 34070.0068 | AL129: 1 | AM129: 9.14335408 | AN129: 3930.384216 | AO129: -1866.887756 | AQ129: 1.107910481 | AR129: -105.2514957 | AT129: -441106.5144 | AU129: -955540.6148 | AV129: -2.003279822 | AW129: -173116.9603 | AX129: -429324.4438 | AY129: -1.954085013 | BA129: 2.273515974 | BB129: 7.133960201 | BC129: -0.04919480948 | BD129: -182.818655 | BF129: -0.5226354236 | BG129: -119.6718974 | BH129: 60.32810259 | BI129: 60.32810259 | BJ129: 0 | BK129: 0 | BM129: -7.656595624 | BN129: -116.8532425 | BQ129: 24.035921 | BT129: 1548.817 | BU129: 11.3354 | BV129: -257.471
A130: 48000 | B130: 48 | C130: 1.93687578 | D130: 1.028276807 | F130: 0.01406386728 | G130: 0.07764560202 | H130: -3.063947048 | J130: 15 | M130: 0.03927656935 | N130: -1.570796325 | O130: 12.97692248 | P130: 1.493659983 | Q130: 9.29355726 | R130: 1.462986177 | S130: 0.5207326455 | T130: -1.02308742 | U130: 0.9328434979 | V130: -0.3685700121 | X130: -0.5358276635 | Y130: -116.9680642 | Z130: 63.03193575 | AC130: 1 | AD130: 12.93833517 | AE130: -0.0004682531943 | AF130: 0.001212403435 | AG130: 9009.223698 | AH130: -4304.340966 | AJ130: 21000 | AK130: 34428.63845 | AL130: 1 | AM130: 9.239599913 | AN130: 3926.20162 | AO130: -1847.89369 | AQ130: 1.08495172 | AR130: -104.1553651 | AT130: -438545.632 | AU130: -943028.9856 | AV130: -2.006086393 | AW130: -169234.3752 | AX130: -424480.5764 | AY130: -1.950169254 | BA130: 2.275874485 | BB130: 7.142966138 | BC130: -0.05591713939 | BD130: -183.2038161 | BF130: -0.6310781275 | BG130: -119.8391295 | BH130: 60.1608705 | BI130: 60.1608705 | BJ130: 0 | BK130: 0 | BM130: -7.774044266 | BN130: -116.6353134 | BQ130: 24.04492694 | BT130: 1584.893 | BU130: 11.1604 | BV130: -256.942
A131: 48500 | B131: 48.5 | C131: 1.951693881 | D131: 1.032847695 | F131: 0.01377221196 | G131: 0.07682580717 | H131: -3.064766843 | J131: 15 | M131: 0.03887165627 | N131: -1.570796325 | O131: 13.11130016 | P131: 1.4944521 | Q131: 9.389250012 | R131: 1.464089161 | S131: 0.5168035438 | T131: -1.027683326 | U131: 0.9315781962 | V131: -0.3720661725 | X131: -0.6407767048 | Y131: -117.1082024 | Z131: 62.89179764 | AC131: 1 | AD131: 13.07310949 | AE131: -0.0004780592779 | AF131: 0.001225032638 | AG131: 8984.800191 | AH131: -4322.551847 | AJ131: 21000 | AK131: 34787.2701 | AL131: 1 | AM131: 9.335845745 | AN131: 3922.145758 | AO131: -1829.27768 | AQ131: 1.062699256 | AR131: -103.0818278 | AT131: -436028.4048 | AU131: -930763.1992 | AV131: -2.008897813 | AW131: -165470.6111 | AX131: -419751.3672 | AY131: -1.946302256 | BA131: 2.278053223 | BB131: 7.15127733 | BC131: -0.06259555605 | BD131: -183.5864612 | BF131: -0.7385895188 | BG131: -120.0068528 | BH131: 59.99314723 | BI131: 59.99314723 | BJ131: 0 | BK131: 0 | BM131: -7.889866849 | BN131: -116.4203916 | BQ131: 24.05323813 | BT131: 1621.81 | BU131: 10.9787 | BV131: -256.753
A132: 49000 | B132: 49 | C132: 1.966552144 | D132: 1.037349606 | F132: 0.01348956708 | G132: 0.07602333298 | H132: -3.065569317 | J132: 15 | M132: 0.03847500671 | N132: -1.570796325 | O132: 13.2456859 | P132: 1.495228146 | Q132: 9.484953955 | R132: 1.465169887 | S132: 0.512922699 | T132: -1.032210302 | U132: 0.9303049974 | V132: -0.3755528189 | X132: -0.7447921224 | Y132: -117.2490018 | Z132: 62.75099817 | AC132: 1 | AD132: 13.20788382 | AE132: -0.000487966979 | AF132: 0.00123766184 | AG132: 8960.257711 | AH132: -4340.692837 | AJ132: 21000 | AK132: 35145.90175 | AL132: 1 | AM132: 9.432091578 | AN132: 3918.21158 | AO132: -1811.028686 | AQ132: 1.041124414 | AR132: -102.0301926 | AT132: -433552.9832 | AU132: -918736.0213 | AV132: -2.011713599 | AW132: -161820.9487 | AX132: -415132.731 | AY132: -1.942483415 | BA132: 2.280056823 | BB132: 7.158913411 | BC132: -0.0692301849 | BD132: -183.9665974 | BF132: -0.8451918366 | BG132: -120.1750269 | BH132: 59.82497309 | BI132: 59.82497309 | BJ132: 0 | BK132: 0 | BM132: -8.004105248 | BN132: -116.2084295 | BQ132: 24.06087421 | BT132: 1659.587 | BU132: 10.7578 | BV132: -256.857
A133: 49500 | B133: 49.5 | C133: 1.981449665 | D133: 1.04178391 | F133: 0.01321556406 | G133: 0.07523763072 | H133: -3.066355019 | J133: 15 | M133: 0.03808637028 | N133: -1.570796325 | O133: 13.38007946 | P133: 1.495988602 | Q133: 9.580668755 | R133: 1.466229022 | S133: 0.5090895041 | T133: -1.036669706 | U133: 0.9290240264 | V133: -0.3790299057 | X133: -0.8478960108 | Y133: -117.3904249 | Z133: 62.60957506 | AC133: 1 | AD133: 13.34265814 | AE133: -0.0004979762975 | AF133: 0.001250291043 | AG133: 8935.599286 | AH133: -4358.75845 | AJ133: 21000 | AK133: 35504.5334 | AL133: 1 | AM133: 9.52833741 | AN133: 3914.394284 | AO133: -1793.136093 | AQ133: 1.020199959 | AR133: -100.999796 | AT133: -431117.6161 | AU133: -906940.5098 | AV133: -2.014533291 | AW133: -158280.8994 | AX133: -410620.7751 | AY133: -1.938712119 | BA133: 2.2818898 | BB133: 7.165893341 | BC133: -0.07582117196 | BD133: -184.3442332 | BF133: -0.9509065107 | BG133: -120.3436132 | BH133: 59.65638683 | BI133: 59.65638683 | BJ133: 0 | BK133: 0 | BM133: -8.116799852 | BN133: -115.99938 | BQ133: 24.06785414 | BT133: 1698.244 | BU133: 10.5805 | BV133: -256.313
A134: 50000 | B134: 50 | C134: 1.996385565 | D134: 1.046151949 | F134: 0.01294985299 | G134: 0.07446817482 | H134: -3.067124475 | J134: 15 | M134: 0.03770550658 | N134: -1.570796325 | O134: 13.5144806 | P134: 1.496733932 | Q134: 9.67639409 | R134: 1.467267201 | S134: 0.5053033509 | T134: -1.041062867 | U134: 0.927735408 | V134: -0.3824973884 | X134: -0.9501096858 | Y134: -117.5324353 | Z134: 62.46756466 | AC134: 1 | AD134: 13.47743247 | AE134: -0.0005080872334 | AF134: 0.001262920245 | AG134: 8910.827932 | AH134: -4376.74345 | AJ134: 21000 | AK134: 35863.16506 | AL134: 1 | AM134: 9.624583243 | AN134: 3910.689303 | AO134: -1775.589682 | AQ134: 0.99990001 | AR134: -99.990001 | AT134: -428720.645 | AU134: -895369.9997 | AV134: -2.017356443 | AW134: -154846.1925 | AX134: -406211.7878 | AY134: -1.934987761 | BA134: 2.283556553 | BB134: 7.172235432 | BC134: -0.08236868199 | BD134: -184.7193778 | BF134: -1.055754199 | BG134: -120.5125743 | BH134: 59.48742575 | BI134: 59.48742575 | BJ134: 0 | BK134: 0 | BM134: -8.227989631 | BN134: -115.7931964 | BQ134: 24.07419623 | BT134: 1737.801 | BU134: 10.4643 | BV134: -256.379
A135: 50500 | B135: 50.5 | C135: 2.01135899 | D135: 1.050455034 | F135: 0.0126921016 | G135: 0.07371446161 | H135: -3.067878188 | J135: 15 | M135: 0.03733218473 | N135: -1.570796325 | O135: 13.6488891 | P135: 1.497464584 | Q135: 9.77212965 | R135: 1.468285041 | S135: 0.5015636314 | T135: -1.045391082 | U135: 0.9264392669 | V135: -0.3859552237 | X135: -1.05145372 | Y135: -117.674998 | Z135: 62.32500197 | AC135: 1 | AD135: 13.61220679 | AE135: -0.0005182997868 | AF135: 0.001275549448 | AG135: 8885.946651 | AH135: -4394.642846 | AJ135: 21000 | AK135: 36221.79671 | AL135: 1 | AM135: 9.720829075 | AN135: 3907.092289 | AO135: -1758.379618 | AQ135: 0.9801999608 | AR135: -99.00019604 | AT135: -426360.4987 | AU135: -884018.0892 | AV135: -2.020182626 | AW135: -151512.7619 | AX135: -401902.2284 | AY135: -1.93130973 | BA135: 2.285061371 | BB135: 7.177957374 | BC135: -0.08887289671 | BD135: -185.0920419 | BF135: -1.159754825 | BG135: -120.6818743 | BH135: 59.3181257 | BI135: 59.3181257 | BJ135: 0 | BK135: 0 | BM135: -8.337712199 | BN135: -115.5898324 | BQ135: 24.07991817 | BT135: 1778.279 | BU135: 10.2137 | BV135: -256.015
A136: 51000 | B136: 51 | C136: 2.026369107 | D136: 1.054694446 | F136: 0.01244199412 | G136: 0.07297600823 | H136: -3.068616642 | J136: 15 | M136: 0.03696618292 | N136: -1.570796325 | O136: 13.78330475 | P136: 1.498180986 | Q136: 9.867875138 | R136: 1.46928313 | S136: 0.4978697379 | T136: -1.049655624 | U136: 0.9251357272 | V136: -0.3894033696 | X136: -1.151947976 | Y136: -117.8180792 | Z136: 62.18192076 | AC136: 1 | AD136: 13.74698112 | AE136: -0.0005286139576 | AF136: 0.00128817865 | AG136: 8860.958429 | AH136: -4412.451877 | AJ136: 21000 | AK136: 36580.42836 | AL136: 1 | AM136: 9.817074907 | AN136: 3903.599101 | AO136: -1741.496429 | AQ136: 0.9610764056 | AR136: -98.02979337 | AT136: -424035.6877 | AU136: -872878.6272 | AV136: -2.02301143 | AW136: -148276.7353 | AX136: -397688.7175 | AY136: -1.927677416 | BA136: 2.286408432 | BB136: 7.183076261 | BC136: -0.09533401324 | BD136: -185.4622366 | BF136: -1.262927608 | BG136: -120.8514788 | BH136: 59.1485212 | BI136: 59.1485212 | BJ136: 0 | BK136: 0 | BM136: -8.446003869 | BN136: -115.3892422 | BQ136: 24.08503706 | BT136: 1819.701 | BU136: 10.0452 | BV136: -255.833
A137: 51500 | B137: 51.5 | C137: =SQRT((A137/Fesr)^2+1) -> 2.041415108 | D137: =ATAN(A137/Fesr) -> 1.058871441 | F137: =(Ro/(Ro+Rdcr))/SQRT((A137/(Q*Fo))^2+(1-(A137^2/Fo^2))^2) -> 0.01219923032 | G137: =-ATAN(A137*Fo/(Q*(Fo^2-A137^2))) -> 0.07225235154 | H137: =IF(G137>0,G137-Pi,G137) -> -3.069340298 | J137: =Vin/Vramp -> 15 | M137: =1/(2*Pi*_Rfb1*(Cc1ea_u+Cc2ea_u)*A137) -> 0.03660728794 | N137: =-Pi/2 -> -1.570796325 | O137: =SQRT(1+(A137/Fz1_u)^2) -> 13.91772733 | P137: =ATAN2(Fz1_u,A137) -> 1.498883549 | Q137: =SQRT(1+(A137/Fz2_u)^2) -> 9.963630267 | R137: =ATAN2(Fz2_u,A137) -> 1.470262035 | S137: =1/SQRT(1+(A137/Fp1_u)^2) -> 0.4942210641 | T137: =-ATAN2(Fp1_u,A137) -> -1.053857736 | U137: =1/SQRT(1+(A137/Fp2_u)^2) -> 0.9238249129 | V137: =-ATAN2(Fp2_u,A137) -> -0.3928417849 | X137: -1.251611639 | Y137: =(180/Pi)*(D137+H137+N137+P137+R137+T137+V137) -> -117.9616464 | Z137: 62.03835359 | AC137: 1 | AD137: =Rcea1_u*Cc1ea_u*A137*2*Pi -> 13.88175544 | AE137: =-Rcea1_u*Cc1ea_u*Cc2ea_u*(A137*2*Pi)^2 -> -0.0005390297459 | AF137: =(Cc2ea_u+Cc1ea_u)*A137*2*Pi -> 0.001300807853 | AG137: 8835.866236 | AH137: -4430.166008 | AJ137: =_Rfb1 -> 21000 | AK137: =_Rfb1*Rcea2_u*Cc3ea_u*A137*2*Pi -> 36939.06001 | AL137: 1 | AM137: =(_Rfb1+Rcea2_u)*Cc3ea_u*A137*2*Pi -> 9.91332074 | AN137: 3900.205795 | AO137: -1724.930995 | AQ137: =Eadcg/(1+(Eadcg*A137/GBP)^2) -> 0.9425070688 | AR137: =-(A137*Eadcg*Eadcg/GBP)/(1+(Eadcg*A137/GBP)^2) -> -97.07822809 | AT137: -421744.7998 | AU137: -861945.7006 | AV137: -2.025842456 | AW137: -145134.4227 | AX137: -393568.0274 | AY137: -1.924090214 | BA137: =SQRT(AT137^2+AU137^2)/SQRT(AW137^2+AX137^2) -> 2.287601806 | BB137: 7.187608614 | BC137: -0.1017522426 | BD137: =BC137*180/Pi-180 -> -185.8299741 | BF137: =20*LOG(BA137*J137*F137*C137) -> -1.365291097 | BG137: =(180/Pi)*(D137+H137+BC137) -> -121.0213546 | BH137: 58.97864545 | BI137: 58.97864545 | BJ137: =SUM((BF138<0)*(BF137>0))*A137 -> 0 | BK137: 0 | BM137: -8.552899711 | BN137: =(H137+D137)*180/Pi -> -115.1913805 | BQ137: 24.08956941 | BT137: 1862.087 | BU137: 9.87672 | BV137: -255.47
A138: 52000 | B138: =A138/1000 -> 52 | C138: 2.056496204 | D138: 1.062987244 | F138: 0.01196352464 | G138: 0.07154304711 | H138: -3.070049603 | J138: 15 | M138: 0.03625529479 | N138: -1.570796325 | O138: 14.05215666 | P138: 1.499572671 | Q138: 10.05939476 | R138: 1.471222303 | S138: 0.4906170054 | T138: -1.057998633 | U138: 0.9225069478 | V138: -0.3962704299 | X138: =20*LOG(C138*J138*O138*Q138*F138*M138*S138*U138) -> -1.350463244 | Y138: -118.1056682 | Z138: =Y138+180 -> 61.89433184 | AC138: 1 | AD138: 14.01652977 | AE138: -0.0005495471517 | AF138: 0.001313437055 | AG138: =AC138*AE138/(AE138^2+AF138^2)+AD138*AF138/(AE138^2+AF138^2) -> 8810.673027 | AH138: =AD138*AE138/(AE138^2+AF138^2)-AC138*AF138/(AE138^2+AF138^2) -> -4447.780915 | AJ138: 21000 | AK138: 37297.69166 | AL138: 1 | AM138: 10.00956657 | AN138: =AJ138*AL138/(AL138^2+AM138^2)+AK138*AM138/(AL138^2+AM138^2) -> 3896.908612 | AO138: =AK138*AL138/(AL138^2+AM138^2)-AJ138*AM138/(AL138^2+AM138^2) -> -1708.674523 | AQ138: 0.9244707405 | AR138: -96.14495701 | AT138: -419486.4954 | AU138: -851213.6228 | AV138: =ATAN2(AT138,AU138) -> -2.028675324 | AW138: =AG138-AH138*AO138/_Rfb2+AG138*AN138/_Rfb2+AN138-AO138*AR138+AQ138*AN138 -> -142082.3065 | AX138: =AH138+AH138*AN138/_Rfb2+AG138*AO138/_Rfb2+AO138+AO138*AQ138+AN138*AR138 -> -389537.0743 | AY138: -1.920547516 | BA138: 2.28864546 | BB138: =20*LOG(BA138) -> 7.191570405 | BC138: =AV138-AY138 -> -0.1081278084 | BD138: -186.1952671 | BF138: -1.4668632 | BG138: -121.1914696 | BH138: =IF(BG138>180,BG138-180,BG138+180) -> 58.80853041 | BI138: =IF(BH138>180,BH138-360,BH138) -> 58.80853041 | BJ138: 0 | BK138: =IF(BJ138>0,BI138,0) -> 0 | BM138: =20*LOG(J138*F138*C138) -> -8.658433604 | BN138: -114.9962025 | BQ138: =20*LOG(BA138*7) -> 24.0935312 | BT138: 1905.461 | BU138: 9.71342 | BV138: -255.059
A139: 52500 | B139: 52.5 | C139: 2.07161163 | D139: 1.067043053 | F139: 0.01173460529 | G139: 0.07084766826 | H139: -3.070744982 | J139: 15 | M139: 0.03591000627 | N139: -1.570796325 | O139: 14.18659253 | P139: 1.500248732 | Q139: 10.15516836 | R139: 1.47216446 | S139: 0.4870569596 | T139: -1.062079504 | U139: 0.9211819551 | V139: -0.399689266 | X139: -1.448520709 | Y139: -118.2501142 | Z139: 61.7498858 | AC139: 1 | AD139: 14.15130409 | AE139: -0.0005601661748 | AF139: 0.001326066258 | AG139: 8785.38174 | AH139: -4465.292477 | AJ139: 21000 | AK139: 37656.32331 | AL139: 1 | AM139: 10.1058124 | AN139: 3893.703967 | AO139: -1692.718541 | AQ139: 0.9069472157 | AR139: -95.22945765 | AT139: -417259.5033 | AU139: -840676.9229 | AV139: -2.031509666 | AW139: -139117.0316 | AX139: -385592.91 | AY139: =ATAN2(AW139,AX139) -> -1.91704872 | BA139: 2.28954326 | BB139: 7.194977076 | BC139: -0.1144609454 | BD139: -186.5581291 | BF139: -1.567661213 | BG139: -121.3617931 | BH139: 58.63820685 | BI139: 58.63820685 | BJ139: 0 | BK139: 0 | BM139: -8.762638289 | BN139: -114.803664 | BQ139: 24.09693788 | BT139: 1949.845 | BU139: 9.52685 | BV139: -254.971
A140: 53000 | B140: 53 | C140: 2.086760639 | D140: 1.07104004 | F140: 0.01151221347 | G140: 0.07016580523 | H140: -3.071426845 | J140: 15 | M140: 0.03557123262 | N140: -1.570796325 | O140: 14.32103476 | P140: 1.500912101 | Q140: 10.2509508 | R140: 1.47308901 | S140: 0.4835403276 | T140: -1.066101512 | U140: 0.9198500577 | V140: -0.4030982554 | X140: -1.545801354 | Y140: -118.3949553 | Z140: 61.60504466 | AC140: 1 | AD140: 14.28607842 | AE140: -0.0005708868155 | AF140: 0.00133869546 | AG140: 8759.995295 | AH140: -4482.696772 | AJ140: 21000 | AK140: 38014.95496 | AL140: 1 | AM140: 10.20205824 | AN140: 3890.58844 | AO140: -1677.054881 | AQ140: 0.8899172377 | AR140: -94.3312272 | AT140: -415062.6169 | AU140: -830330.3356 | AV140: -2.034345126 | AW140: -136235.3971 | AX140: -381732.7147 | AY140: -1.913593227 | BA140: 2.290298972 | BB140: 7.197843564 | BC140: -0.1207518987 | BD140: -186.9185742 | BF140: -1.667701847 | BG140: -121.5322956 | BH140: 58.4677044 | BI140: 58.4677044 | BJ140: 0 | BK140: 0 | BM140: -8.865545411 | BN140: -114.6137214 | BQ140: 24.09980436 | BT140: 1995.262 | BU140: 9.33494 | BV140: -254.804
A141: 53500 | B141: 53.5 | C141: 2.101942504 | D141: 1.074979351 | F141: 0.01129610265 | G141: 0.06949706429 | H141: -3.072095586 | J141: 15 | M141: 0.0352387912 | N141: -1.570796325 | O141: 14.45548317 | P141: 1.501563129 | Q141: 10.34674184 | R141: 1.473996443 | S141: 0.4800665133 | T141: -1.070065794 | U141: 0.9185113783 | V141: -0.406497362 | X141: -1.642321934 | Y141: -118.5401634 | Z141: 61.45983664 | AC141: 1 | AD141: 14.42085274 | AE141: -0.0005817090735 | AF141: 0.001351324662 | AG141: 8734.516595 | AH141: -4499.990065 | AJ141: 21000 | AK141: 38373.58661 | AL141: 1 | AM141: 10.29830407 | AN141: 3887.558767 | AO141: -1661.675662 | AQ141: 0.8733624454 | AR141: -93.44978166 | AT141: -412894.6903 | AU141: -820168.791 | AV141: -2.037181364 | AW141: -133434.3473 | AX141: -377953.7898 | AY141: -1.910180442 | BA141: 2.290916267 | BB141: 7.20018432 | BC141: -0.1270009223 | BD141: -187.2766169 | BF141: -1.76700125 | BG141: -121.7029484 | BH141: 58.29705155 | BI141: 58.29705155 | BJ141: 0 | BK141: 0 | BM141: -8.96718557 | BN141: -114.4263316 | BQ141: 24.10214512 | BT141: 2041.738 | BU141: 9.08847 | BV141: -254.411
A142: 54000 | B142: 54 | C142: 2.11715652 | D142: 1.078862104 | F142: 0.01108603784 | G142: 0.06884106698 | H142: -3.072751583 | J142: 15 | M142: 0.03491250609 | N142: -1.570796325 | O142: 14.5899376 | P142: 1.502202159 | Q142: 10.44254125 | R142: 1.474887226 | S142: 0.4766349247 | T142: -1.073973463 | U142: 0.9171660391 | V142: -0.4098865502 | X142: -1.73809866 | Y142: -118.6857111 | Z142: 61.31428893 | AC142: 1 | AD142: 14.55562707 | AE142: -0.000592632949 | AF142: 0.001363953865 | AG142: 8708.948523 | AH142: -4517.168802 | AJ142: 21000 | AK142: 38732.21826 | AL142: 1 | AM142: 10.3945499 | AN142: 3884.611833 | AO142: -1646.573284 | AQ142: 0.8572653236 | AR142: -92.58465495 | AT142: -410754.6353 | AU142: -810187.4062 | AV142: -2.04001805 | AW142: -130710.9642 | AX142: -374253.5519 | AY142: -1.906809772 | BA142: 2.291398721 | BB142: 7.202013325 | BC142: -0.1332082783 | BD142: -187.6322722 | BF142: -1.865575035 | BG142: -121.8737242 | BH142: 58.12627578 | BI142: 58.12627578 | BJ142: 0 | BK142: 0 | BM142: -9.06758836 | BN142: -114.2414521 | BQ142: 24.10397413 | BT142: 2089.296 | BU142: 8.96986 | BV142: -254.113
A143: 54500 | B143: 54.5 | C143: 2.132401998 | D143: 1.082689396 | F143: 0.01088179499 | G143: 0.06819744938 | H143: -3.073395201 | J143: 15 | M143: 0.03459220787 | N143: -1.570796325 | O143: 14.72439788 | P143: 1.502829518 | Q143: 10.53834879 | R143: 1.475761814 | S143: 0.4732449737 | T143: -1.077825604 | U143: 0.9158141616 | V143: -0.4132657861 | X143: -1.833147219 | Y143: -118.8315722 | Z143: 61.1684278 | AC143: 1 | AD143: 14.69040139 | AE143: -0.000603658442 | AF143: 0.001376583067 | AG143: 8683.293945 | AH143: -4534.229602 | AJ143: 21000 | AK143: 39090.84991 | AL143: 1 | AM143: 10.49079573 | AN143: 3881.74466 | AO143: -1631.740411 | AQ143: 0.8416091567 | AR143: -91.73539808 | AT143: -408641.4179 | AU143: -800381.4758 | AV143: -2.042854867 | AW143: -128062.4602 | AX143: -370629.5262 | AY143: -1.903480631 | BA143: 2.291749818 | BB143: 7.203344111 | BC143: -0.1393742359 | BD143: -187.9855555 | BF143: -1.963438302 | BG143: -122.0445965 | BH143: 57.95540353 | BI143: 57.95540353 | BJ143: 0 | BK143: 0 | BM143: -9.166782413 | BN143: -114.059041 | BQ143: 24.10530491 | BT143: 2137.962 | BU143: 8.68736 | BV143: -254.34
A144: 55000 | B144: 55 | C144: 2.147678268 | D144: 1.086462296 | F144: 0.01068316034 | G144: 0.0675658614 | H144: -3.074026789 | J144: 15 | M144: 0.03427773325 | N144: -1.570796325 | O144: 14.85886385 | P144: 1.503445523 | Q144: 10.63416424 | R144: 1.476620641 | S144: 0.4698960769 | T144: -1.081623283 | U144: 0.9144558673 | V144: -0.4166350364 | X144: -1.927482801 | Y144: -118.9777214 | Z144: 61.02227862 | AC144: 1 | AD144: 14.82517572 | AE144: -0.0006147855524 | AF144: 0.00138921227 | AG144: 8657.555705 | AH144: -4551.169252 | AJ144: 21000 | AK144: 39449.48156 | AL144: 1 | AM144: 10.58704157 | AN144: 3878.954405 | AO144: -1617.169961 | AQ144: 0.8263779853 | AR144: -90.90157838 | AT144: -406554.055 | AU144: -790746.4646 | AV144: -2.045691508 | AW144: -125486.171 | AX144: -367079.3413 | AY144: -1.900192438 | BA144: 2.291972956 | BB144: 7.204189778 | BC144: -0.1454990707 | BD144: -188.3364827 | BF144: -2.060605658 | BG144: -122.2155397 | BH144: 57.78446026 | BI144: 57.78446026 | BJ144: 0 | BK144: 0 | BM144: -9.264795436 | BN144: -113.8790571 | BQ144: 24.10615058 | BT144: 2187.762 | BU144: 8.53088 | BV144: -253.785
A145: 55500 | B145: 55.5 | C145: 2.162984678 | D145: 1.09018185 | F145: 0.01048992989 | G145: 0.06694596611 | H145: -3.074646684 | J145: 15 | M145: 0.03396892485 | N145: -1.570796325 | O145: 14.99333536 | P145: 1.504050478 | Q145: 10.7299874 | R145: 1.47746413 | S145: 0.4665876556 | T145: -1.085367538 | U145: 0.913091277 | V145: -0.4199942694 | X145: -2.021120113 | Y145: -119.1241341 | Z145: 60.87586587 | AC145: 1 | AD145: 14.95995004 | AE145: -0.0006260142803 | AF145: 0.001401841472 | AG145: 8631.736631 | AH145: -4567.984698 | AJ145: 21000 | AK145: 39808.11321 | AL145: 1 | AM145: 10.6832874 | AN145: 3876.238349 | AO145: -1602.855096 | AQ145: 0.8115565655 | AR145: -90.08277877 | AT145: -404491.6124 | AU145: -781277.9993 | AV145: -2.048527679 | AW145: -122979.5491 | AX145: -363600.7235 | AY145: -1.896944615 | BA145: 2.292071444 | BB145: 7.204563011 | BC145: -0.1515830638 | BD145: -188.6850698 | BF145: -2.157091237 | BG145: -122.3865295 | BH145: 57.61347051 | BI145: 57.61347051 | BJ145: 0 | BK145: 0 | BM145: -9.361654249 | BN145: -113.7014597 | BQ145: 24.10652381 | BT145: 2238.721 | BU145: 8.34969 | BV145: -253.783
A146: 56000 | B146: 56 | C146: 2.178320591 | D146: 1.093849082 | F146: 0.01030190885 | G146: 0.06633743916 | H146: -3.075255211 | J146: 15 | M146: 0.03366563087 | N146: -1.570796325 | O146: 15.12781226 | P146: 1.504644679 | Q146: 10.82581806 | R146: 1.478292687 | S146: 0.4633191363 | T146: -1.089059385 | U146: 0.911720511 | V146: -0.423343454 | X146: -2.114073404 | Y146: -119.2707868 | Z146: 60.72921322 | AC146: 1 | AD146: 15.09472436 | AE146: -0.0006373446256 | AF146: 0.001414470675 | AG146: 8605.839526 | AH146: -4584.673042 | AJ146: 21000 | AK146: 40166.74486 | AL146: 1 | AM146: 10.77953323 | AN146: 3873.593891 | AO146: -1588.789212 | AQ146: 0.7971303308 | AR146: -89.27859705 | AT146: -402453.2014 | AU146: -771971.8613 | AV146: -2.051363095 | AW146: -120540.1579 | AX146: -360191.4921 | AY146: -1.893736594 | BA146: 2.292048509 | BB146: 7.204476095 | BC146: -0.1576265011 | BD146: -189.0313333 | BF146: -2.252908724 | BG146: -122.5575421 | BH146: 57.4424579 | BI146: 57.4424579 | BJ146: 0 | BK146: 0 | BM146: -9.457384819 | BN146: -113.5262088 | BQ146: 24.1064369 | BT146: 2290.868 | BU146: 8.28183 | BV146: -253.62
A147: 56500 | B147: 56.5 | C147: 2.193685391 | D147: 1.09746499 | F147: 0.01011891116 | G147: 0.06573996818 | H147: -3.075852682 | J147: 15 | M147: 0.03336770494 | N147: -1.570796325 | O147: 15.2622944 | P147: 1.505228408 | Q147: 10.92165602 | R147: 1.479106702 | S147: 0.4600899509 | T147: -1.09269982 | U147: 0.910343689 | V147: -0.4266825605 | X147: -2.206356481 | Y147: -119.4176565 | Z147: 60.58234353 | AC147: 1 | AD147: 15.22949869 | AE147: -0.0006487765883 | AF147: 0.001427099877 | AG147: 8579.867176 | AH147: -4601.231533 | AJ147: 21000 | AK147: 40525.37651 | AL147: 1 | AM147: 10.87577906 | AN147: 3871.018544 | AO147: -1574.965927 | AQ147: 0.7830853563 | AR147: -88.48864526 | AT147: -400437.9765 | AU147: -762823.98 | AV147: -2.05419748 | AW147: -118165.6659 | AX147: -356849.5544 | AY147: -1.890567807 | BA147: 2.291907293 | BB147: 7.203940932 | BC147: -0.1636296727 | BD147: -189.3752897 | BF147: -2.348071365 | BG147: -122.7285548 | BH147: 57.27144521 | BI147: 57.27144521 | BJ147: 0 | BK147: 0 | BM147: -9.552012297 | BN147: -113.3532651 | BQ147: 24.10590173 | BT147: 2344.229 | BU147: 8.06623 | BV147: -253.171
A148: 57000 | B148: 57 | C148: 2.209078473 | D148: 1.101030552 | F148: 0.009940758999 | G148: 0.06515325222 | H148: -3.076439398 | J148: 15 | M148: 0.03307500577 | N148: -1.570796325 | O148: 15.39678165 | P148: 1.505801939 | Q148: 11.01750109 | R148: 1.479906556 | S148: 0.4568995367 | T148: -1.096289814 | U148: 0.9089609305 | V148: -0.4300115603 | X148: -2.297982727 | Y148: -119.5647211 | Z148: 60.43527886 | AC148: 1 | AD148: 15.36427301 | AE148: -0.0006603101685 | AF148: 0.00143972908 | AG148: 8553.822344 | AH148: -4617.657563 | AJ148: 21000 | AK148: 40884.00816 | AL148: 1 | AM148: 10.9720249 | AN148: 3868.509928 | AO148: -1561.379074 | AQ148: 0.769408325 | AR148: -87.71254905 | AT148: -398445.1334 | AU148: -753830.4261 | AV148: -2.05703057 | AW148: -115853.8413 | AX148: -353572.9015 | AY148: -1.887437698 | BA148: 2.291650862 | BB148: 7.202969052 | BC148: -0.1695928722 | BD148: -189.7169558 | BF148: -2.442591995 | BG148: -122.8995456 | BH148: 57.10045436 | BI148: 57.10045436 | BJ148: 0 | BK148: 0 | BM148: -9.645561047 | BN148: -113.1825898 | BQ148: 24.10492985 | BT148: 2398.833 | BU148: 7.81402 | BV148: -252.658
A149: 57500 | B149: 57.5 | C149: 2.224499251 | D149: 1.104546723 | F149: 0.00976728237 | G149: 0.06457700121 | H149: -3.077015649 | J149: 15 | M149: 0.03278739703 | N149: -1.570796325 | O149: 15.53127388 | P149: 1.506365538 | Q149: 11.11335309 | R149: 1.480692612 | S149: 0.4537473369 | T149: -1.099830318 | U149: 0.9075723541 | V149: -0.4333304256 | X149: -2.388965117 | Y149: -119.7119594 | Z149: 60.28804057 | AC149: 1 | AD149: 15.49904734 | AE149: -0.0006719453662 | AF149: 0.001452358282 | AG149: 8527.70777 | AH149: -4633.948664 | AJ149: 21000 | AK149: 41242.63981 | AL149: 1 | AM149: 11.06827073 | AN149: 3866.065762 | AO149: -1548.022691 | AQ149: 0.7560864963 | AR149: -86.94994707 | AT149: -396473.9063 | AU149: -744987.4053 | AV149: -2.059862108 | AW149: -113602.547 | AX149: -350359.6042 | AY149: -1.884345712 | BA149: 2.291282201 | BB149: 7.201571631 | BC149: -0.1755163961 | BD149: -190.0563487 | BF149: -2.536483047 | BG149: -123.0704935 | BH149: 56.92950647 | BI149: 56.92950647 | BJ149: 0 | BK149: 0 | BM149: -9.738054678 | BN149: -113.0141448 | BQ149: 24.10353243 | BT149: 2454.709 | BU149: 7.64239 | BV149: -251.974
A150: 58000 | B150: 58 | C150: 2.239947152 | D150: 1.108014438 | F150: 0.009598318684 | G150: 0.06401093552 | H150: -3.077581714 | J150: 15 | M150: 0.03250474705 | N150: -1.570796325 | O150: 15.66577096 | P150: 1.50691946 | Q150: 11.20921184 | R150: 1.481465225 | S150: 0.4506328007 | T150: -1.10332226 | U150: 0.9061780779 | V150: -0.4366391299 | X150: -2.479316235 | Y150: -119.8593507 | Z150: 60.14064928 | AC150: 1 | AD150: 15.63382166 | AE150: -0.0006836821813 | AF150: 0.001464987485 | AG150: 8501.526175 | AH150: -4650.102497 | AJ150: 21000 | AK150: 41601.27146 | AL150: 1 | AM150: 11.16451656 | AN150: 3863.683863 | AO150: -1534.891013 | AQ150: 0.7431076763 | AR150: -86.20049045 | AT150: =-AR150*AH150+AG150*AQ150 -> -394523.5665 | AU150: =AQ150*AH150+AG150*AR150 -> -736291.2527 | AV150: -2.062691847 | AW150: -111409.7356 | AX150: -347207.8086 | AY150: -1.881291304 | BA150: 2.290804224 | BB150: 7.199759504 | BC150: -0.1814005435 | BD150: -190.3934856 | BF150: -2.629756569 | BG150: -123.2413781 | BH150: 56.75862192 | BI150: 56.75862192 | BJ150: 0 | BK150: 0 | BM150: -9.829516073 | BN150: -112.8478925 | BQ150: 24.1017203 | BT150: 2511.886 | BU150: 7.45716 | BV150: -252.252
A151: 58500 | B151: 58.5 | C151: 2.25542162 | D151: 1.11143461 | F151: 0.009433712377 | G151: 0.06345478545 | H151: -3.078137865 | J151: 15 | M151: 0.0322269287 | N151: -1.570796325 | O151: 15.80027276 | P151: 1.507463951 | Q151: 11.30507716 | R151: 1.482224734 | S151: 0.4475553834 | T151: -1.106766551 | U151: 0.9047782197 | V151: -0.4399376477 | X151: -2.569048286 | Y151: -120.0068751 | Z151: 59.99312492 | AC151: 1 | AD151: 15.76859599 | AE151: -0.0006955206138 | AF151: 0.001477616687 | AG151: 8475.280254 | AH151: -4666.116852 | AJ151: 21000 | AK151: 41959.90311 | AL151: 1 | AM151: 11.26076239 | AN151: 3861.36214 | AO151: -1521.978465 | AQ151: 0.7304601899 | AR151: -85.46384222 | AT151: -392593.4196 | AU151: -727738.427 | AV151: -2.06551955 | AW151: -109273.4453 | AX151: -344115.7333 | AY151: -1.878273934 | BA151: 2.290219767 | BB151: 7.197543174 | BC151: -0.1872456155 | BD151: -190.7283835 | BF151: -2.722424241 | BG151: -123.4121797 | BH151: 56.5878203 | BI151: 56.5878203 | BJ151: 0 | BK151: 0 | BM151: -9.919967416 | BN151: -112.6837962 | BQ151: 24.09950397 | BT151: 2570.396 | BU151: 7.31271 | BV151: -251.702
A152: 59000 | B152: 59 | C152: 2.270922111 | D152: 1.114808131 | F152: 0.009273314545 | G152: 0.06290829082 | H152: -3.078684359 | J152: 15 | M152: 0.03195381914 | N152: -1.570796325 | O152: 15.93477917 | P152: 1.50799925 | Q152: 11.4009489 | R152: 1.482971471 | S152: 0.4445145464 | T152: -1.110164078 | U152: 0.9033728965 | V152: -0.4432259546 | X152: -2.658173117 | Y152: -120.1545132 | Z152: 59.84548677 | AC152: 1 | AD152: 15.90337031 | AE152: -0.0007074606638 | AF152: 0.001490245889 | AG152: 8448.972683 | AH152: -4681.989645 | AJ152: 21000 | AK152: 42318.53477 | AL152: 1 | AM152: 11.35700823 | AN152: 3859.098589 | AO152: -1509.279651 | AQ152: 0.7181328546 | AR152: -84.73967684 | AT152: -390682.8046 | AU152: -719325.5054 | AV152: -2.068344985 | AW152: -107191.7953 | AX152: -341081.6649 | AY152: -1.87529307 | BA152: 2.289531597 | BB152: 7.19493283 | BC152: -0.1930519149 | BD152: -191.06106 | BF152: -2.814497391 | BG152: -123.5828795 | BH152: 56.41712053 | BI152: 56.41712053 | BJ152: 0 | BK152: 0 | BM152: -10.00943022 | BN152: -112.5218195 | BQ152: 24.09689363 | BT152: 2630.268 | BU152: 7.13504 | BV152: -251.401
A153: 59500 | B153: 59.5 | C153: 2.286448096 | D153: 1.118135874 | F153: 0.009116982605 | G153: 0.06237120052 | H153: -3.079221449 | J153: 15 | M153: 0.03168529965 | N153: -1.570796325 | O153: 16.06929007 | P153: 1.508525588 | Q153: 11.49682689 | R153: 1.483705753 | S153: 0.4415097579 | T153: -1.113515711 | U153: 0.9019622245 | V153: -0.446504027 | X153: -2.746702223 | Y153: -120.3022465 | Z153: 59.69775347 | AC153: 1 | AD153: 16.03814464 | AE153: -0.0007195023312 | AF153: 0.001502875092 | AG153: 8422.606111 | AH153: -4697.718906 | AJ153: 21000 | AK153: 42677.16642 | AL153: 1 | AM153: 11.45325406 | AN153: 3856.891285 | AO153: -1496.789351 | AQ153: 0.7061149555 | AR153: -84.02767971 | AT153: -388791.0914 | AU153: -711049.1782 | AV153: -2.071167929 | AW153: -105162.9821 | AX153: -338103.9556 | AY153: -1.872348184 | BA153: 2.288742413 | BB153: 7.191938352 | BC153: -0.1988197452 | BD153: -191.3915323 | BF153: -2.905987003 | BG153: -123.7534592 | BH153: 56.24654082 | BI153: 56.24654082 | BJ153: 0 | BK153: 0 | BM153: -10.09792536 | BN153: -112.3619269 | BQ153: 24.09389915 | BT153: 2691.535 | BU153: 6.88093 | BV153: -251.244
A154: 60000 | B154: 60 | C154: 2.301999059 | D154: 1.121418692 | F154: 0.008964579975 | G154: 0.06184327214 | H154: -3.079749378 | J154: 15 | M154: 0.03142125548 | N154: -1.570796325 | O154: 16.20380535 | P154: 1.509043187 | Q154: 11.59271097 | R154: 1.484427889 | S154: 0.438540492 | T154: -1.116822299 | U154: 0.9005463196 | V154: -0.4497718425 | X154: -2.834646766 | Y154: -120.450057 | Z154: 59.54994303 | AC154: 1 | AD154: 16.17291896 | AE154: -0.0007316456161 | AF154: 0.001515504294 | AG154: 8396.183166 | AH154: -4713.302781 | AJ154: 21000 | AK154: 43035.79807 | AL154: 1 | AM154: 11.54949989 | AN154: 3854.738387 | AO154: -1484.502513 | AQ154: 0.6943962225 | AR154: -83.3275467 | AT154: -386917.6797 | AU154: -702906.2445 | AV154: -2.073988169 | AW154: -103185.2756 | AX154: -335181.0196 | AY154: -1.869438757 | BA154: 2.287854843 | BB154: 7.188569329 | BC154: -0.2045494113 | BD154: -191.719818 | BF154: -2.996903735 | BG154: -123.9239013 | BH154: 56.0760987 | BI154: 56.0760987 | BJ154: 0 | BK154: 0 | BM154: -10.18547306 | BN154: -112.2040833 | BQ154: 24.09053013 | BT154: 2754.229 | BU154: 6.70094 | BV154: -251.051
A155: 60500 | B155: 60.5 | C155: 2.317574497 | D155: 1.12465742 | F155: 0.008815975772 | G155: 0.06132427157 | H155: -3.080268378 | J155: 15 | M155: 0.03116157569 | N155: -1.570796325 | O155: 16.33832489 | P155: 1.509552263 | Q155: 11.68860101 | R155: 1.485138177 | S155: 0.4356062299 | T155: -1.120084674 | U155: 0.8991252968 | V155: -0.4530293798 | X155: -2.922017584 | Y155: -120.5979271 | Z155: 59.40207289 | AC155: 1 | AD155: 16.30769329 | AE155: -0.0007438905184 | AF155: 0.001528133497 | AG155: 8369.706452 | AH155: -4728.739529 | AJ155: 21000 | AK155: 43394.42972 | AL155: 1 | AM155: 11.64574572 | AN155: 3852.638124 | AO155: -1472.414243 | AQ155: 0.6829668078 | AR155: -82.63898375 | AT155: -385061.9973 | AU155: -694893.6076 | AV155: -2.076805496 | AW155: -101257.0154 | AX155: -332311.3304 | AY155: -1.866564278 | BA155: 2.286871453 | BB155: 7.184835065 | BC155: -0.2102412181 | BD155: -192.0459345 | BF155: -3.08725793 | BG155: -124.0941889 | BH155: 55.9058111 | BI155: 55.9058111 | BJ155: 0 | BK155: 0 | BM155: -10.27209299 | BN155: -112.0482544 | BQ155: 24.08679587 | BT155: 2818.383 | BU155: 6.53562 | BV155: -250.48
A156: 61000 | B156: 61 | C156: 2.333173921 | D156: 1.127852873 | F156: 0.008671044531 | G156: 0.06081397268 | H156: -3.080778677 | J156: 15 | M156: 0.03090615293 | N156: -1.570796325 | O156: 16.4728486 | P156: 1.510053024 | Q156: 11.78449684 | R156: 1.485836906 | S156: 0.432706459 | T156: -1.123303648 | U156: 0.8976992706 | V156: -0.4562766185 | X156: -3.008825203 | Y156: -120.7458401 | Z156: 59.25415989 | AC156: 1 | AD156: 16.44246761 | AE156: -0.0007562370382 | AF156: 0.001540762699 | AG156: 8343.178546 | AH156: -4744.027511 | AJ156: 21000 | AK156: 43753.06137 | AL156: 1 | AM156: 11.74199156 | AN156: 3850.5888 | AO156: -1460.519804 | AQ156: 0.6718172657 | AR156: -81.96170642 | AT156: -383223.4987 | AU156: -687008.2702 | AV156: -2.07961971 | AW156: -99376.60776 | AX156: -329493.418 | AY156: -1.863724239 | BA156: 2.285794743 | BB156: 7.180744592 | BC156: -0.2158954709 | BD156: -192.3698993 | BF156: -3.177059626 | BG156: -124.2643057 | BH156: 55.73569429 | BI156: 55.73569429 | BJ156: 0 | BK156: 0 | BM156: -10.35780422 | BN156: -111.8944064 | BQ156: 24.08270539 | BT156: 2884.032 | BU156: 6.32652 | BV156: -250.202
A157: 61500 | B157: 61.5 | C157: 2.348796852 | D157: 1.13100585 | F157: 0.008529665935 | G157: 0.06031215696 | H157: -3.081280493 | J157: 15 | M157: 0.0306548834 | N157: -1.570796325 | O157: 16.60737638 | P157: 1.510545673 | Q157: 11.88039833 | R157: 1.486524354 | S157: 0.4298406736 | T157: -1.126480017 | U157: 0.8962683549 | V157: -0.4595135391 | X157: -3.095079853 | Y157: -120.8937796 | Z157: 59.10622036 | AC157: 1 | AD157: 16.57724194 | AE157: -0.0007686851754 | AF157: 0.001553391902 | AG157: 8316.602005 | AH157: -4759.165194 | AJ157: 21000 | AK157: 44111.69302 | AL157: 1 | AM157: 11.83823739 | AN157: 3848.588783 | AO157: -1448.814604 | AQ157: 0.6609385327 | AR157: -81.29543952 | AT157: -381401.6635 | AU157: -679247.331 | AV157: -2.082430617 | AW157: -97542.52228 | AX157: -326725.8662 | AY157: -1.860918142 | BA157: 2.284627152 | BB157: 7.176306678 | BC157: -0.2215124749 | BD157: -192.6917299 | BF157: -3.266318572 | BG157: -124.434236 | BH157: 55.56576399 | BI157: 55.56576399 | BJ157: 0 | BK157: 0 | BM157: -10.44262525 | BN157: -111.7425061 | BQ157: 24.07826748 | BT157: 2951.209 | BU157: 6.18308 | BV157: -249.926
A158: 62000 | B158: 62 | C158: 2.364442824 | D158: 1.134117129 | F158: 0.008391724565 | G158: 0.05981861318 | H158: -3.081774037 | J158: 15 | M158: 0.0304076666 | N158: -1.570796325 | O158: 16.74190812 | P158: 1.511030405 | Q158: 11.97630535 | R158: 1.487200792 | S158: 0.4270083747 | T158: -1.129614558 | U158: 0.8948326626 | V158: -0.4627401233 | X158: -3.18079147 | Y158: -121.0417299 | Z158: 58.95827005 | AC158: 1 | AD158: 16.71201626 | AE158: -0.0007812349301 | AF158: 0.001566021104 | AG158: 8289.979357 | AH158: -4774.151143 | AJ158: 21000 | AK158: 44470.32467 | AL158: 1 | AM158: 11.93448322 | AN158: 3846.636508 | AO158: -1437.294198 | AQ158: 0.6503219093 | AR158: -80.63991676 | AT158: -379595.9955 | AU158: -671607.9804 | AV158: -2.085238031 | AW158: -95753.28885 | AX158: -324007.3104 | AY158: -1.858145496 | BA158: 2.283371057 | BB158: 7.171529837 | BC158: -0.2270925346 | BD158: -193.0114438 | BF158: -3.355044233 | BG158: -124.6039647 | BH158: 55.3960353 | BI158: 55.3960353 | BJ158: 0 | BK158: 0 | BM158: -10.52657407 | BN158: -111.5925209 | BQ158: 24.07349064 | BT158: 3019.952 | BU158: 6.01306 | BV158: -249.651
A159: 62500 | B159: 62.5 | C159: 2.380111383 | D159: 1.137187474 | F159: 0.00825710966 | G159: 0.05933313714 | H159: -3.082259513 | J159: 15 | M159: 0.03016440526 | N159: -1.570796325 | O159: 16.87644373 | P159: 1.511507408 | Q159: 12.07221776 | R159: 1.487866482 | S159: 0.4242090701 | T159: -1.132708031 | U159: 0.8933923061 | V159: -0.4659563536 | X159: -3.265969718 | Y159: -121.1896758 | Z159: 58.81032424 | AC159: 1 | AD159: 16.84679059 | AE159: -0.0007938863022 | AF159: 0.001578650307 | AG159: 8263.313109 | AH159: -4788.984018 | AJ159: 21000 | AK159: 44828.95632 | AL159: 1 | AM159: 12.03072905 | AN159: 3844.730472 | AO159: -1425.954275 | AQ159: 0.6399590426 | AR159: -79.99488033 | AT159: -377806.0214 | AU159: -664087.4969 | AV159: -2.08804177 | AW159: -94007.49489 | AX159: -321336.4351 | AY159: -1.855405816 | BA159: 2.282028779 | BB159: 7.166422341 | BC159: -0.2326359544 | BD159: -193.3290584 | BF159: -3.443245804 | BG159: -124.7734772 | BH159: 55.22652282 | BI159: 55.22652282 | BJ159: 0 | BK159: 0 | BM159: -10.60966814 | BN159: -111.4444188 | BQ159: 24.06838314 | BT159: 3090.295 | BU159: 5.85449 | BV159: -248.418
A160: 63000 | B160: 63 | C160: 2.395802086 | D160: 1.14021763 | F160: 0.008125714893 | G160: 0.05885553133 | H160: -3.082737119 | J160: 15 | M160: 0.02992500522 | N160: -1.570796325 | O160: 17.01098312 | P160: 1.511976866 | Q160: 12.16813543 | R160: 1.488521677 | S160: 0.4214422743 | T160: -1.13576118 | U160: 0.8919473972 | V160: -0.4691622136 | X160: -3.350623986 | Y160: -121.3376023 | Z160: 58.66239768 | AC160: 1 | AD160: 16.98156491 | AE160: -0.0008066392918 | AF160: 0.001591279509 | AG160: 8236.605738 | AH160: -4803.662572 | AJ160: 21000 | AK160: 45187.58797 | AL160: 1 | AM160: 12.12697489 | AN160: 3842.869229 | AO160: -1414.790657 | AQ160: 0.6298419097 | AR160: -79.36008062 | AT160: -376031.2895 | AU160: -656683.2434 | AV160: -2.09084166 | AW160: -92303.78267 | AX160: -318711.9716 | AY160: -1.852698622 | BA160: 2.280602579 | BB160: 7.160992222 | BC160: -0.2381430375 | BD160: -193.644591 | BF160: -3.53093222 | BG160: -124.9427594 | BH160: 55.05724056 | BI160: 55.05724056 | BJ160: 0 | BK160: 0 | BM160: -10.69192444 | BN160: -111.2981685 | BQ160: 24.06295302 | BT160: 3162.278 | BU160: 5.60993 | BV160: -248.626
A161: 63500 | B161: 63.5 | C161: 2.4115145 | D161: 1.143208327 | F161: 0.007997438163 | G161: 0.05838560467 | H161: -3.083207045 | J161: 15 | M161: 0.02968937526 | N161: -1.570796325 | O161: 17.1455262 | P161: 1.512438956 | Q161: 12.26405825 | R161: 1.489166624 | S161: 0.4187075085 | T161: -1.138774733 | U161: 0.8904980467 | V161: -0.4723576878 | X161: -3.434763409 | Y161: -121.4854953 | Z161: 58.51450467 | AC161: 1 | AD161: 17.11633923 | AE161: -0.0008194938988 | AF161: 0.001603908712 | AG161: 8209.8597 | AH161: -4818.185648 | AJ161: 21000 | AK161: 45546.21962 | AL161: 1 | AM161: 12.22322072 | AN161: 3841.051389 | AO161: -1403.799294 | AQ161: 0.6199628022 | AR161: -78.73527588 | AT161: -374271.3686 | AU161: -649392.6643 | AV161: -2.093637532 | AW161: -90640.84679 | AX161: -316132.6962 | AY161: -1.850023446 | BA161: 2.279094664 | BB161: 7.155247288 | BC161: -0.2436140861 | BD161: -193.958059 | BF161: -3.618112164 | BG161: -125.1117979 | BH161: 54.88820206 | BI161: 54.88820206 | BJ161: 0 | BK161: 0 | BM161: -10.77335945 | BN161: -111.153739 | BQ161: 24.05720809 | BT161: 3235.937 | BU161: 5.43209 | BV161: -248.575
A162: 64000 | B162: 64 | C162: 2.427248204 | D162: 1.146160278 | F162: 0.007872181389 | G162: 0.05792317226 | H162: -3.083669478 | J162: 15 | M162: 0.02945742702 | N162: -1.570796325 | O162: 17.28007289 | P162: 1.512893851 | Q162: 12.35998609 | R162: 1.48980156 | S162: 0.4160043009 | T162: -1.141749402 | U162: 0.8890443649 | V162: -0.4755427616 | X162: -3.518396871 | Y162: -121.633341 | Z162: 58.36665904 | AC162: 1 | AD162: 17.25111356 | AE162: -0.0008324501232 | AF162: 0.001616537914 | AG162: 8183.077423 | AH162: -4832.552173 | AJ162: 21000 | AK162: 45904.85127 | AL162: 1 | AM162: 12.31946655 | AN162: 3839.275616 | AO162: -1392.976255 | AQ162: 0.6103143119 | AR162: -78.12023192 | AT162: -372525.8473 | AU162: -642213.2819 | AV162: -2.096429223 | AW162: -89017.43173 | AX162: -313597.4279 | AY162: -1.847379822 | BA162: 2.277507188 | BB162: 7.149195126 | BC162: -0.2490494014 | BD162: -194.2694796 | BF162: -3.704794076 | BG162: -125.2805797 | BH162: 54.71942033 | BI162: 54.71942033 | BJ162: 0 | BK162: 0 | BM162: -10.8539892 | BN162: -111.0111001 | BQ162: 24.05115593 | BT162: 3311.311 | BU162: 5.23561 | BV162: -247.758
A163: 64500 | B163: 64.5 | C163: 2.443002787 | D163: 1.14907418 | F163: 0.007749850325 | G163: 0.05746805514 | H163: -3.084124595 | J163: 15 | M163: 0.02922907487 | N163: -1.570796325 | O163: 17.41462309 | P163: 1.513341716 | Q163: 12.45591883 | R163: 1.490426715 | S163: 0.4133321863 | T163: -1.144685881 | U163: 0.8875864612 | V163: -0.4787174213 | X163: -3.601533013 | Y163: -121.7811258 | Z163: 58.21887415 | AC163: 1 | AD163: 17.38588788 | AE163: -0.0008455079651 | AF163: 0.001629167116 | AG163: 8156.26131 | AH163: -4846.76116 | AJ163: 21000 | AK163: 46263.48292 | AL163: 1 | AM163: 12.41571238 | AN163: 3837.540625 | AO163: -1382.317731 | AQ163: 0.6008893162 | AR163: -77.51472179 | AT163: -370794.3326 | AU163: -635142.6932 | AV163: -2.099216576 | AW163: -87432.32963 | AX163: -311105.0269 | AY163: -1.844767293 | BA163: 2.27584225 | BB163: 7.142843112 | BC163: -0.254449283 | BD163: -194.57887 | BF163: -3.790986161 | BG163: -125.4490921 | BH163: 54.55090793 | BI163: 54.55090793 | BJ163: 0 | BK163: 0 | BM163: -10.93382927 | BN163: -110.870222 | BQ163: 24.04480391 | BT163: 3388.442 | BU163: 5.05282 | BV163: -247.756
A164: 65000 | B164: 65 | C164: 2.458777846 | D164: 1.151950717 | F164: 0.00763035438 | G164: 0.05702008 | H164: -3.08457257 | J164: 15 | M164: 0.02900423583 | N164: -1.570796325 | O164: 17.54917674 | P164: 1.513782714 | Q164: 12.55185637 | R164: 1.491042315 | S164: 0.4106907063 | T164: -1.147584853 | U164: 0.8861244442 | V164: -0.4818816544 | X164: -3.684180244 | Y164: -121.928837 | Z164: 58.07116297 | AC164: 1 | AD164: 17.52066221 | AE164: -0.0008586674245 | AF164: 0.001641796319 | AG164: 8129.413736 | AH164: -4860.811699 | AJ164: 21000 | AK164: 46622.11457 | AL164: 1 | AM164: 12.51195822 | AN164: 3835.845179 | AO164: -1371.820024 | AQ164: 0.5916809656 | AR164: -76.91852553 | AT164: -369076.4494 | AU164: -628178.5678 | AV164: -2.101999438 | AW164: -85884.37815 | AX164: -308654.3925 | AY164: -1.842185409 | BA164: 2.274101899 | BB164: 7.136198415 | BC164: -0.2598140293 | BD164: -194.8862474 | BF164: -3.876696402 | BG164: -125.6173231 | BH164: 54.38267694 | BI164: 54.38267694 | BJ164: 0 | BK164: 0 | BM164: -11.01289482 | BN164: -110.7310757 | BQ164: 24.03815922 | BT164: 3467.369 | BU164: 4.9029 | BV164: -247.513
A165: 65500 | B165: 65.5 | C165: 2.474572992 | D165: 1.154790555 | F165: 0.00751360645 | G165: 0.05657907902 | H165: -3.085013571 | J165: 15 | M165: 0.02878282945 | N165: -1.570796325 | O165: 17.68373375 | P165: 1.514217001 | Q165: 12.6477986 | R165: 1.491648575 | S165: 0.4080794092 | T165: -1.150446984 | U165: 0.8846584219 | V165: -0.4850354491 | X165: -3.766346751 | Y165: -122.076462 | Z165: 57.92353802 | AC165: 1 | AD165: 17.65543653 | AE165: -0.0008719285012 | AF165: 0.001654425521 | AG165: 8102.537052 | AH165: -4874.702961 | AJ165: 21000 | AK165: 46980.74622 | AL165: 1 | AM165: 12.60820405 | AN165: 3834.188088 | AO165: -1361.479545 | AQ165: 0.582682671 | AR165: -76.3314299 | AT165: -367371.8395 | AU165: -621318.644 | AV165: -2.104777662 | AW165: -84372.45835 | AX165: -306244.4616 | AY165: -1.839633726 | BA165: 2.272288134 | BB165: 7.129268011 | BC165: -0.2651439367 | BD165: -195.1916286 | BF165: -3.961932561 | BG165: -125.785261 | BH165: 54.21473898 | BI165: 54.21473898 | BJ165: 0 | BK165: 0 | BM165: -11.09120057 | BN165: -110.5936325 | BQ165: 24.03122881 | BT165: 3548.134 | BU165: 4.65226 | BV165: -246.726
A166: =A165+500 -> 66000 | B166: 66 | C166: 2.490387841 | D166: 1.157594347 | F166: 0.007399522756 | G166: 0.05614488962 | H166: -3.08544776 | J166: 15 | M166: 0.02856477771 | N166: -1.570796325 | O166: 17.81829404 | P166: 1.514644728 | Q166: 12.7437454 | R166: 1.492245706 | S166: 0.4054978502 | T166: -1.153272925 | U166: 0.8831885014 | V166: -0.4881787944 | X166: -3.848040499 | Y166: -122.2239886 | Z166: 57.77601143 | AC166: 1 | AD166: 17.79021086 | AE166: -0.0008852911955 | AF166: 0.001667054724 | AG166: 8075.633582 | AH166: -4888.43419 | AJ166: 21000 | AK166: 47339.37787 | AL166: 1 | AM166: 12.70444988 | AN166: 3832.568206 | AO166: -1351.292811 | AQ166: 0.5738880918 | AR166: -75.75322812 | AT166: -365680.1604 | AU166: -614560.7271 | AV166: -2.107551107 | AW166: -82895.49287 | AX166: -303874.2071 | AY166: -1.837111807 | BA166: 2.270402906 | BB166: 7.12205868 | BC166: -0.2704393001 | BD166: -195.4950305 | BF166: -4.046702192 | BG166: -125.9528947 | BH166: 54.04710527 | BI166: 54.04710527 | BJ166: 0 | BK166: 0 | BM166: -11.16876087 | BN166: -110.4578642 | BQ166: 24.02401948 | BT166: 3630.781 | BU166: 4.4951 | BV166: -246.212
A167: 66500 | B167: 66.5 | C167: 2.50622202 | D167: 1.160362733 | F167: 0.007288022692 | G167: 0.05571735426 | H167: -3.085875296 | J167: 15 | M167: 0.02835000495 | N167: -1.570796325 | O167: 17.95285754 | P167: 1.515066044 | Q167: 12.83969668 | R167: 1.492833913 | S167: 0.4029455909 | T167: -1.156063315 | U167: 0.881714789 | V167: -0.4913116804 | X167: -3.929269246 | Y167: -122.371405 | Z167: 57.62859495 | AC167: 1 | AD167: 17.92498518 | AE167: -0.0008987555072 | AF167: 0.001679683926 | AG167: 8048.705623 | AH167: -4902.004702 | AJ167: 21000 | AK167: 47698.00952 | AL167: 1 | AM167: 12.80069571 | AN167: 3830.98443 | AO167: -1341.256441 | AQ167: 0.5652911249 | AR167: -75.18371962 | AT167: -364001.0852 | AU167: -607902.6865 | AV167: -2.110319635 | AW167: -81452.444 | AX167: -301542.6364 | AY167: -1.834619223 | BA167: 2.268448119 | BB167: 7.114577023 | BC167: -0.2757004124 | BD167: -195.7964701 | BF167: -4.131012643 | BG167: -126.1202134 | BH167: 53.87978657 | BI167: 53.87978657 | BJ167: 0 | BK167: 0 | BM167: -11.24558967 | BN167: -110.3237434 | BQ167: 24.01653782 | BT167: 3715.352 | BU167: 4.3437 | BV167: -245.97
A168: 67000 | B168: 67 | C168: 2.522075166 | D168: 1.163096337 | F168: 0.007179028686 | G168: 0.05529632026 | H168: -3.08629633 | J168: 15 | M168: 0.02813843775 | N168: -1.570796325 | O168: 18.08742418 | P168: 1.51548109 | Q168: 12.93565233 | R168: 1.493413394 | S168: 0.4004221996 | T168: -1.158818777 | U168: 0.8802373902 | V168: -0.4944340981 | X168: -4.010040547 | Y168: -122.5187001 | Z168: 57.48129994 | AC168: 1 | AD168: 18.05975951 | AE168: -0.0009123214363 | AF168: 0.001692313129 | AG168: 8021.755444 | AH168: -4915.413884 | AJ168: 21000 | AK168: 48056.64117 | AL168: 1 | AM168: 12.89694155 | AN168: 3829.435696 | AO168: -1331.36715 | AQ168: 0.5568858941 | AR168: -74.62270981 | AT168: -362334.3014 | AU168: -601342.4533 | AV168: -2.113083113 | AW168: -80042.312 | AX168: -299248.7897 | AY168: -1.832155549 | BA168: 2.266425631 | BB168: 7.10682946 | BC168: -0.2809275648 | BD168: -196.0959638 | BF168: -4.21487107 | BG168: -126.2872067 | BH168: 53.71279328 | BI168: 53.71279328 | BJ168: 0 | BK168: 0 | BM168: -11.32170053 | BN168: -110.1912429 | BQ168: 24.00879026 | BT168: 3801.894 | BU168: 4.14374 | BV168: -245.169
A169: 67500 | B169: 67.5 | C169: 2.537946922 | D169: 1.16579577 | F169: 0.007072466059 | G169: 0.05488163959 | H169: -3.08671101 | J169: 15 | M169: 0.02793000487 | N169: -1.570796325 | O169: 18.22199389 | P169: 1.515890007 | Q169: 13.03161226 | R169: 1.49398434 | S169: 0.3979272513 | T169: -1.161539922 | U169: 0.8787564098 | V169: -0.4975460393 | X169: -4.090361761 | Y169: -122.6658626 | Z169: 57.33413739 | AC169: 1 | AD169: 18.19453383 | AE169: -0.0009259889829 | AF169: 0.001704942331 | AG169: 7994.78529 | AH169: -4928.66119 | AJ169: 21000 | AK169: 48415.27282 | AL169: 1 | AM169: 12.99318738 | AN169: 3827.920981 | AO169: -1321.621748 | AQ169: 0.5486667398 | AR169: -74.07000988 | AT169: -360679.5103 | AU169: -594878.0179 | AV169: -2.115841414 | AW169: -78664.13343 | AX169: -296991.7392 | AY169: -1.829720368 | BA169: 2.264337254 | BB169: 7.098822239 | BC169: -0.2861210462 | BD169: -196.3935284 | BF169: -4.298284438 | BG169: -126.4538646 | BH169: 53.54613538 | BI169: 53.54613538 | BJ169: 0 | BK169: 0 | BM169: -11.39710668 | BN169: -110.0603362 | BQ169: 24.00078304 | BT169: 3890.451 | BU169: 3.9573 | BV169: -244.768
A170: 68000 | B170: 68 | C170: 2.553836942 | D170: 1.16846163 | F170: 0.006968262898 | G170: 0.0544731687 | H170: -3.087119481 | J170: 15 | M170: 0.02772463719 | N170: -1.570796325 | O170: 18.3565666 | P170: 1.516292928 | Q170: 13.12757639 | R170: 1.49454694 | S170: 0.3954603275 | T170: -1.164227347 | U170: 0.8772719515 | V170: -0.5006474966 | X170: -4.170240056 | Y170: -122.812882 | Z170: 57.18711796 | AC170: 1 | AD170: 18.32930816 | AE170: -0.0009397581469 | AF170: 0.001717571534 | AG170: 7967.797377 | AH170: -4941.746141 | AJ170: 21000 | AK170: 48773.90448 | AL170: 1 | AM170: 13.08943321 | AN170: 3826.439297 | AO170: -1312.017138 | AQ170: 0.54062821 | AR170: -73.52543656 | AT170: -359036.4264 | AU170: -588507.4279 | AV170: -2.118594414 | AW170: -77316.97955 | AX170: -294770.587 | AY170: -1.82731327 | BA170: 2.262184759 | BB170: 7.090561443 | BC170: -0.2912811434 | BD170: -196.6891802 | BF170: -4.38125953 | BG170: -126.6201775 | BH170: 53.37982247 | BI170: 53.37982247 | BJ170: 0 | BK170: 0 | BM170: -11.47182097 | BN170: -109.9309973 | BQ170: 23.99252224 | BT170: 3981.072 | BU170: 3.89809 | BV170: -244.315
A171: 68500 | B171: 68.5 | C171: 2.569744888 | D171: 1.171094503 | F171: 0.006866349935 | G171: 0.05407076837 | H171: -3.087521882 | J171: 15 | M171: 0.02752226758 | N171: -1.570796325 | O171: 18.49114226 | P171: 1.516689984 | Q171: 13.2235446 | R171: 1.495101373 | S171: 0.393021016 | T171: -1.166881638 | U171: 0.8757841186 | V171: -0.5037384635 | X171: -4.249682417 | Y171: -122.9597481 | Z171: 57.04025194 | AC171: 1 | AD171: 18.46408248 | AE171: -0.0009536289284 | AF171: 0.001730200736 | AG171: 7940.793895 | AH171: -4954.668319 | AJ171: 21000 | AK171: 49132.53613 | AL171: 1 | AM171: 13.18567904 | AN171: 3824.989693 | AO171: -1302.550309 | AQ171: 0.5327650506 | AR171: -72.98881193 | AT171: -357404.7767 | AU171: -582228.7863 | AV171: -2.121341993 | AW171: -75999.95491 | AX171: -292584.4648 | AY171: -1.824933852 | BA171: 2.259969873 | BB171: 7.082052995 | BC171: -0.2964081411 | BD171: -196.9829355 | BF171: -4.46380295 | BG171: -126.7861362 | BH171: 53.2138638 | BI171: 53.2138638 | BJ171: 0 | BK171: 0 | BM171: -11.54585594 | BN171: -109.8032007 | BQ171: 23.9840138 | BT171: 4073.803 | BU171: 3.5601 | BV171: -244.142
A172: 69000 | B172: 69 | C172: 2.585670428 | D172: 1.173694961 | F172: 0.006766660428 | G172: 0.05367430351 | H172: -3.087918346 | J172: 15 | M172: 0.02732283085 | N172: -1.570796325 | O172: 18.62572078 | P172: 1.517081302 | Q172: 13.31951682 | R172: 1.495647817 | S172: 0.3906089113 | T172: -1.169503367 | U172: 0.8742930131 | V172: -0.5068189345 | X172: -4.328695653 | Y172: -123.1064507 | Z172: 56.89354931 | AC172: 1 | AD172: 18.59885681 | AE172: -0.0009676013273 | AF172: 0.001742829939 | AG172: 7913.777006 | AH172: -4967.427368 | AJ172: 21000 | AK172: 49491.16778 | AL172: 1 | AM172: 13.28192487 | AN172: 3823.571251 | AO172: -1293.218333 | AQ172: 0.5250721974 | AR172: -72.45996324 | AT172: -355784.3002 | AU172: -576040.249 | AV172: -2.124084036 | AW172: -74712.19584 | AX172: -290432.5318 | AY172: -1.822581714 | BA172: 2.257694282 | BB172: 7.073302661 | BC172: -0.3015023218 | BD172: -197.2748106 | BF172: -4.545921134 | BG172: -126.9517317 | BH172: 53.04826825 | BI172: 53.04826825 | BJ172: 0 | BK172: 0 | BM172: -11.61922379 | BN172: -109.6769212 | BQ172: 23.97526346 | BT172: 4168.694 | BU172: 3.40988 | BV172: -243.709
A173: 69500 | B173: 69.5 | C173: 2.601613238 | D173: 1.176263565 | F173: 0.006669130055 | G173: 0.05328364306 | H173: -3.088309007 | J173: 15 | M173: 0.02712626373 | N173: -1.570796325 | O173: 18.76030211 | P173: 1.517467007 | Q173: 13.41549296 | R173: 1.496186443 | S173: 0.3882236139 | T173: -1.172093094 | U173: 0.8727987365 | V173: -0.5098889046 | X173: -4.4072864 | Y173: -123.2529803 | Z173: 56.74701972 | AC173: 1 | AD173: 18.73363113 | AE173: -0.0009816753437 | AF173: 0.001755459141 | AG173: 7886.748844 | AH173: -4980.022991 | AJ173: 21000 | AK173: 49849.79943 | AL173: 1 | AM173: 13.37817071 | AN173: 3822.183086 | AO173: -1284.018368 | AQ173: 0.5175447676 | AR173: -71.9387227 | AT173: -354174.7474 | AU173: -569940.0229 | AV173: -2.126820431 | AW173: -73452.86916 | AX173: -288313.9744 | AY173: -1.820256466 | BA173: 2.255359632 | BB173: 7.064316058 | BC173: -0.3065639657 | BD173: -197.5648214 | BF173: -4.627620351 | BG173: -127.1169556 | BH173: 52.88304439 | BI173: 52.88304439 | BJ173: 0 | BK173: 0 | BM173: -11.69193641 | BN173: -109.5521342 | BQ173: 23.96627686 | BT173: 4265.795 | BU173: 3.2245 | BV173: -243.324
A174: 70000 | B174: 70 | C174: 2.617573005 | D174: 1.178800863 | F174: 0.006573696804 | G174: 0.05289865978 | H174: -3.08869399 | J174: 15 | M174: 0.0269325047 | N174: -1.570796325 | O174: 18.8948862 | P174: 1.517847216 | Q174: 13.51147294 | R174: 1.496717416 | S174: 0.3858647311 | T174: -1.174651366 | U174: 0.8713013892 | V174: -0.5129483701 | X174: -4.485461127 | Y174: -123.3993275 | Z174: 56.60067253 | AC174: 1 | AD174: 18.86840546 | AE174: -0.0009958509775 | AF174: 0.001768088343 | AG174: 7859.711517 | AH174: -4992.454947 | AJ174: 21000 | AK174: 50208.43108 | AL174: 1 | AM174: 13.47441654 | AN174: 3820.824343 | AO174: -1274.947647 | AQ174: 0.5101780521 | AR174: -71.4249273 | AT174: -352575.8793 | AU174: -563926.3647 | AV174: -2.129551072 | AW174: -72221.17091 | AX174: -286228.0046 | AY174: -1.817957721 | BA174: 2.252967531 | BB174: 7.055098656 | BC174: -0.3115933506 | BD174: -197.8529839 | BF174: -4.708906712 | BG174: -127.2817996 | BH174: 52.71820042 | BI174: 52.71820042 | BJ174: 0 | BK174: 0 | BM174: -11.76400537 | BN174: -109.4288156 | BQ174: 23.95705946 | BT174: 4365.158 | BU174: 3.07782 | BV174: -242.172
A175: 70500 | B175: 70.5 | C175: 2.633549419 | D175: 1.181307392 | F175: 0.00648030088 | G175: 0.05251923017 | H175: -3.08907342 | J175: 15 | M175: 0.02674149403 | N175: -1.570796325 | O175: 19.02947298 | P175: 1.518222048 | Q175: 13.60745668 | R175: 1.497240899 | S175: 0.3835318758 | T175: -1.177178722 | U175: 0.869801071 | V175: -0.5159973276 | X175: -4.563226143 | Y175: -123.5454832 | Z175: 56.45451676 | AC175: 1 | AD175: 19.00317978 | AE175: -0.001010128229 | AF175: 0.001780717546 | AG175: 7832.667107 | AH175: -5004.723052 | AJ175: 21000 | AK175: 50567.06273 | AL175: 1 | AM175: 13.57066237 | AN175: 3819.494199 | AO175: -1266.003481 | AQ175: 0.5029675083 | AR175: -70.91841867 | AT175: -350987.4677 | AU175: -557997.5783 | AV175: -2.132275854 | AW175: -71016.32507 | AX175: -284173.859 | AY175: -1.815685102 | BA175: 2.250519547 | BB175: 7.045655788 | BC175: -0.3165907518 | BD175: -198.1393139 | BF175: -4.789786172 | BG175: -127.4462558 | BH175: 52.55374424 | BI175: 52.55374424 | BJ175: 0 | BK175: 0 | BM175: -11.83544196 | BN175: -109.3069418 | BQ175: 23.94761659 | BT175: 4466.836 | BU175: 2.92332 | BV175: -240.903
A176: 71000 | B176: 71 | C176: 2.649542179 | D176: 1.183783677 | F176: 0.006388884607 | G176: 0.05214523428 | H176: -3.089447416 | J176: 15 | M176: 0.02655317365 | N176: -1.570796325 | O176: 19.16406239 | P176: 1.518591614 | Q176: 13.70344409 | R176: 1.497757048 | S176: 0.3812246676 | T176: -1.179675685 | U176: 0.8682978805 | V176: -0.5190357749 | X176: -4.640587601 | Y176: -123.6914388 | Z176: 56.30856117 | AC176: 1 | AD176: 19.13795411 | AE176: -0.001024507097 | AF176: 0.001793346748 | AG176: 7805.617666 | AH176: -5016.827173 | AJ176: 21000 | AK176: 50925.69438 | AL176: 1 | AM176: 13.6669082 | AN176: 3818.191858 | AO176: -1257.183255 | AQ176: 0.4959087528 | AR176: -70.4190429 | AT176: -349409.2938 | AU176: -552152.0137 | AV176: -2.134994677 | AW176: -69837.58249 | AX176: -282150.7982 | AY176: -1.813438234 | BA176: 2.248017213 | BB176: 7.035992646 | BC176: -0.3215564426 | BD176: -198.4238271 | BF176: -4.870264538 | BG176: -127.6103166 | BH176: 52.38968343 | BI176: 52.38968343 | BJ176: 0 | BK176: 0 | BM176: -11.90625718 | BN176: -109.1864895 | BQ176: 23.93795345 | BT176: 4570.882 | BU176: 2.72669 | BV176: -241.252
A177: 71500 | B177: 71.5 | C177: 2.665550991 | D177: 1.186230233 | F177: 0.006299392338 | G177: 0.05177655561 | H177: -3.089816094 | J177: 15 | M177: 0.02636748712 | N177: -1.570796325 | O177: 19.29865439 | P177: 1.518956026 | Q177: 13.7994351 | R177: 1.498266016 | S177: 0.3789427318 | T177: -1.182142772 | U177: 0.8667919158 | V177: -0.5220637103 | X177: -4.717551504 | Y177: -123.8371858 | Z177: 56.16281423 | AC177: 1 | AD177: 19.27272843 | AE177: -0.001038987584 | AF177: 0.001805975951 | AG177: 7778.565219 | AH177: -5028.767231 | AJ177: 21000 | AK177: 51284.32603 | AL177: 1 | AM177: 13.76315404 | AN177: 3816.916552 | AO177: -1248.484425 | AQ177: 0.488997555 | AR177: -69.92665037 | AT177: -347841.1485 | AU177: -546388.0653 | AV177: -2.137707445 | AW177: -68684.21968 | AX177: -280158.1056 | AY177: -1.811216751 | BA177: 2.245462025 | BB177: 7.026114294 | BC177: -0.3264906936 | BD177: -198.7065388 | BF177: -4.950347472 | BG177: -127.7739747 | BH177: 52.22602528 | BI177: 52.22602528 | BJ177: 0 | BK177: 0 | BM177: -11.97646177 | BN177: -109.0674359 | BQ177: 23.92807509 | BT177: 4677.351 | BU177: 2.54392 | BV177: -240.638
A178: 72000 | B178: 72 | C178: 2.681575567 | D178: 1.188647563 | F178: 0.006211770371 | G178: 0.051413081 | H178: -3.090179569 | J178: 15 | M178: 0.02618437957 | N178: -1.570796325 | O178: 19.43324891 | P178: 1.51931539 | Q178: 13.89542963 | R178: 1.498767953 | S178: 0.3766857 | T178: -1.184580484 | U178: 0.8652832738 | V178: -0.5250811332 | X178: -4.794123706 | Y178: -123.9827159 | Z178: 56.01728413 | AC178: 1 | AD178: 19.40750275 | AE178: -0.001053569687 | AF178: 0.001818605153 | AG178: 7751.511764 | AH178: -5040.543192 | AJ178: 21000 | AK178: 51642.95768 | AL178: 1 | AM178: 13.85939987 | AN178: 3815.667539 | AO178: -1239.904514 | AQ178: 0.4822298307 | AR178: -69.44109563 | AT178: -346282.8316 | AU178: -540704.17 | AV178: -2.140414064 | AW178: -67555.53787 | AX178: -278195.0865 | AY178: -1.809020291 | BA178: 2.242855444 | BB178: 7.016025668 | BC178: -0.3313937728 | BD178: -198.9874646 | BF178: -5.030040494 | BG178: -127.9372232 | BH178: 52.06277678 | BI178: 52.06277678 | BJ178: 0 | BK178: 0 | BM178: -12.04606616 | BN178: -108.9497587 | BQ178: 23.91798647 | BT178: 4786.301 | BU178: 2.53075 | BV178: -240.031
A179: 72500 | B179: 72.5 | C179: 2.697615627 | D179: 1.19103616 | F179: 0.006125966868 | G179: 0.05105470048 | H179: -3.09053795 | J179: 15 | M179: 0.02600379764 | N179: -1.570796325 | O179: 19.56784591 | P179: 1.519669811 | Q179: 13.99142762 | R179: 1.499263001 | S179: 0.3744532096 | T179: -1.186989316 | U179: 0.8637720507 | V179: -0.5280880435 | X179: -4.870309921 | Y179: -124.1280212 | Z179: 55.87197881 | AC179: 1 | AD179: 19.54227708 | AE179: -0.001068253408 | AF179: 0.001831234356 | AG179: 7724.459273 | AH179: -5052.155076 | AJ179: 21000 | AK179: 52001.58933 | AL179: 1 | AM179: 13.9556457 | AN179: 3814.444103 | AO179: -1231.441115 | AQ179: 0.4756016361 | AR179: -68.96223723 | AT179: -344734.1514 | AU179: -535098.8061 | AV179: -2.143114444 | AW179: -66450.86192 | AX179: -276261.0675 | AY179: -1.806848498 | BA179: 2.240198897 | BB179: 7.00573158 | BC179: -0.336265946 | BD179: -199.2666195 | BF179: -5.109348992 | BG179: -128.1000554 | BH179: 51.89994464 | BI179: 51.89994464 | BJ179: 0 | BK179: 0 | BM179: -12.11508057 | BN179: -108.8334358 | BQ179: 23.90769238 | BT179: 4897.788 | BU179: 2.17956 | BV179: -239.481
A180: 73000 | B180: 73 | C180: 2.713670896 | D180: 1.193396506 | F180: 0.006041931776 | G180: 0.05070130717 | H180: -3.090891343 | J180: 15 | M180: 0.02582568944 | N180: -1.570796325 | O180: 19.70244533 | P180: 1.520019389 | Q180: 14.08742899 | R180: 1.499751303 | S180: 0.3722449038 | T180: -1.189369749 | U180: 0.8622583418 | V180: -0.5310844419 | X180: -4.946115727 | Y180: -124.2730941 | Z180: 55.72690593 | AC180: 1 | AD180: 19.6770514 | AE180: -0.001083038747 | AF180: 0.001843863558 | AG180: 7697.409689 | AH180: -5063.602945 | AJ180: 21000 | AK180: 52360.22098 | AL180: 1 | AM180: 14.05189153 | AN180: 3813.24555 | AO180: -1223.091881 | AQ180: 0.4691091617 | AR180: -68.48993761 | AT180: -343194.9243 | AU180: -529570.4919 | AV180: -2.145808499 | AW180: -65369.5394 | AX180: -274355.3953 | AY180: -1.804701022 | BA180: 2.237493777 | BB180: 6.995236721 | BC180: -0.3411074765 | BD180: -199.5440188 | BF180: -5.188278221 | BG180: -128.2624647 | BH180: 51.73753532 | BI180: 51.73753532 | BJ180: 0 | BK180: 0 | BM180: -12.18351494 | BN180: -108.7184459 | BQ180: 23.89719752 | BT180: 5011.872 | BU180: 2.08934 | BV180: -238.507
A181: 73500 | B181: 73.5 | C181: 2.729741105 | D181: 1.195729074 | F181: 0.005959616757 | G181: 0.05035279717 | H181: -3.091239853 | J181: 15 | M181: 0.02565000448 | N181: -1.570796325 | O181: 19.83704713 | P181: 1.520364223 | Q181: 14.18343368 | R181: 1.500232994 | S181: 0.3700604317 | T181: -1.191722257 | U181: 0.8607422414 | V181: -0.53407033 | X181: -5.021546567 | Y181: -124.4179271 | Z181: 55.58207292 | AC181: 1 | AD181: 19.81182573 | AE181: -0.001097925703 | AF181: 0.001856492761 | AG181: 7670.364926 | AH181: -5074.886906 | AJ181: 21000 | AK181: 52718.85263 | AL181: 1 | AM181: 14.14813737 | AN181: 3812.071212 | AO181: -1214.854531 | AQ181: 0.4627487274 | AR181: -68.02406293 | AT181: -341664.9747 | AU181: -524117.7839 | AV181: -2.148496145 | AW181: -64310.93971 | AX181: -272477.4364 | AY181: -1.80257752 | BA181: 2.234741445 | BB181: 6.984545668 | BC181: -0.345918625 | BD181: -199.8196773 | BF181: -5.266833307 | BG181: -128.424445 | BH181: 51.57555496 | BI181: 51.57555496 | BJ181: 0 | BK181: 0 | BM181: -12.25137898 | BN181: -108.6047677 | BQ181: 23.88650647 | BT181: 5128.614 | BU181: 1.79547 | BV181: -237.881
A182: 74000 | B182: 74 | C182: 2.745825993 | D182: 1.198034327 | F182: 0.005878975115 | G182: 0.05000906949 | H182: -3.091583581 | J182: 15 | M182: 0.02547669364 | N182: -1.570796325 | O182: 19.97165125 | P182: 1.520704409 | Q182: 14.27944161 | R182: 1.500708208 | S182: 0.3678994481 | T182: -1.194047303 | U182: 0.859223843 | V182: -0.5370457099 | X182: -5.096607754 | Y182: -124.562513 | Z182: 55.43748696 | AC182: 1 | AD182: 19.94660005 | AE182: -0.001112914276 | AF182: 0.001869121963 | AG182: 7643.326874 | AH182: -5086.007111 | AJ182: 21000 | AK182: 53077.48428 | AL182: 1 | AM182: 14.2443832 | AN182: 3810.920443 | AO182: -1206.726842 | AQ182: 0.456516777 | AR182: -67.56448299 | AT182: -340144.134 | AU182: -518739.2762 | AV182: -2.151177301 | AW182: -63274.45315 | AX182: -270626.5761 | AY182: -1.800477651 | BA182: 2.231943231 | BB182: 6.973662886 | BC182: -0.3506996497 | BD182: -200.0936098 | BF182: -5.345019258 | BG182: -128.5859905 | BH182: 51.41400951 | BI182: 51.41400951 | BJ182: 0 | BK182: 0 | BM182: -12.31868214 | BN182: -108.4923807 | BQ182: 23.87562369 | BT182: 5248.075 | BU182: 1.60241 | BV182: -238.28
A183: 74500 | B183: 74.5 | C183: 2.761925302 | D183: 1.200312716 | F183: 0.00579996173 | G183: 0.04967002587 | H183: -3.091922624 | J183: 15 | M183: 0.02530570911 | N183: -1.570796325 | O183: 20.10625766 | P183: 1.521040039 | Q183: 14.37545272 | R183: 1.501177075 | S183: 0.3657616133 | T183: -1.19634534 | U183: 0.8577032393 | V183: -0.5400105848 | X183: -5.171304477 | Y183: -124.706845 | Z183: 55.29315499 | AC183: 1 | AD183: 20.08137438 | AE183: -0.001128004467 | AF183: 0.001881751165 | AG183: 7616.297394 | AH183: -5096.963752 | AJ183: 21000 | AK183: 53436.11593 | AL183: 1 | AM183: 14.34062903 | AN183: 3809.792615 | AO183: -1198.70665 | AQ183: 0.450409873 | AR183: -67.11107107 | AT183: -338632.2411 | AU183: -513433.5985 | AV183: -2.15385189 | AW183: -62259.49015 | AX183: -268802.2177 | AY183: -1.798401084 | BA183: 2.229100434 | BB183: 6.96259273 | BC183: -0.3554508064 | BD183: -200.3658311 | BF183: -5.422840957 | BG183: -128.7470954 | BH183: 51.25290462 | BI183: 51.25290462 | BJ183: 0 | BK183: 0 | BM183: -12.38543369 | BN183: -108.3812643 | BQ183: 23.86455353 | BT183: 5370.318 | BU183: 1.48515 | BV183: -237.347
A184: 75000 | B184: 75 | C184: 2.778038783 | D184: 1.202564687 | F184: 0.005722532994 | G184: 0.04933557078 | H184: -3.092257079 | J184: 15 | M184: 0.02513700439 | N184: -1.570796325 | O184: 20.24086629 | P184: 1.521371206 | Q184: 14.47146696 | R184: 1.50163972 | S184: 0.3636465933 | T184: -1.198616811 | U184: 0.8561805219 | V184: -0.5429649581 | X184: -5.245641804 | Y184: -124.8509163 | Z184: 55.14908372 | AC184: 1 | AD184: 20.2161487 | AE184: -0.001143196275 | AF184: 0.001894380368 | AG184: 7589.278319 | AH184: -5107.757063 | AJ184: 21000 | AK184: 53794.74758 | AL184: 1 | AM184: 14.43687486 | AN184: 3808.687126 | AO184: -1190.791846 | AQ184: 0.4444246922 | AR184: -66.66370384 | AT184: -337129.1414 | AU184: -508199.4155 | AV184: -2.156519838 | AW184: -61265.48044 | AX184: -267003.7822 | AY184: -1.796347489 | BA184: 2.226214322 | BB184: 6.951339449 | BC184: -0.3601723484 | BD184: -200.6363555 | BF184: -5.500303175 | BG184: -128.9077543 | BH184: 51.09224574 | BI184: 51.09224574 | BJ184: 0 | BK184: 0 | BM184: -12.45164262 | BN184: -108.2713988 | BQ184: 23.85330025 | BT184: 5495.409 | BU184: 1.35836 | BV184: -235.612
A185: 75500 | B185: 75.5 | C185: 2.79416619 | D185: 1.204790673 | F185: 0.005646646753 | G185: 0.04900561125 | H185: -3.092587039 | J185: 15 | M185: 0.02497053416 | N185: -1.570796325 | O185: 20.37547712 | P185: 1.521697997 | Q185: 14.56748424 | R185: 1.502096266 | S185: 0.3615540595 | T185: -1.200862153 | U185: 0.8546557814 | V185: -0.5459088345 | X185: -5.319624684 | Y185: -124.9947203 | Z185: 55.00527966 | AC185: 1 | AD185: 20.35092303 | AE185: -0.001158489701 | AF185: 0.00190700957 | AG185: 7562.271454 | AH185: -5118.387315 | AJ185: 21000 | AK185: 54153.37923 | AL185: 1 | AM185: 14.5331207 | AN185: 3807.603389 | AO185: -1182.980378 | AQ185: 0.4385580212 | AR185: -66.22226121 | AT185: -335634.6869 | AU185: -503035.4254 | AV185: -2.159181071 | AW185: -60291.87233 | AX185: -265230.7073 | AY185: -1.794316545 | BA185: 2.223286135 | BB185: 6.939907191 | BC185: -0.3648645264 | BD185: -200.9051975 | BF185: -5.57741057 | BG185: -129.067962 | BH185: 50.93203804 | BI185: 50.93203804 | BJ185: 0 | BK185: 0 | BM185: -12.51731776 | BN185: -108.1627645 | BQ185: 23.84186799 | BT185: 5623.413 | BU185: 1.07298 | BV185: -235.138
A186: 76000 | B186: 76 | C186: 2.810307282 | D186: 1.206991099 | F186: 0.005572262246 | G186: 0.04868005683 | H186: -3.092912593 | J186: 15 | M186: 0.02480625433 | N186: -1.570796325 | O186: 20.5100901 | P186: 1.522020499 | Q186: 14.66350453 | R186: 1.502546833 | S186: 0.3594836887 | T186: -1.203081791 | U186: 0.853129108 | V186: -0.5488422189 | X186: -5.393257953 | Y186: -125.1382509 | Z186: 54.86174908 | AC186: 1 | AD186: 20.48569735 | AE186: -0.001173884744 | AF186: 0.001919638773 | AG186: 7535.278581 | AH186: -5128.854817 | AJ186: 21000 | AK186: 54512.01088 | AL186: 1 | AM186: 14.62936653 | AN186: 3806.540838 | AO186: -1175.270243 | AQ186: 0.4328067518 | AR186: -65.78662627 | AT186: -334148.7356 | AU186: -497940.3588 | AV186: -2.161835521 | AW186: -59338.13196 | AX186: -263482.4469 | AY186: -1.792307932 | BA186: 2.220317082 | BB186: 6.928300005 | BC186: -0.3695275886 | BD186: -201.1723713 | BF186: -5.654167692 | BG186: -129.2277135 | BH186: 50.77228652 | BI186: 50.77228652 | BJ186: 0 | BK186: 0 | BM186: -12.5824677 | BN186: -108.0553422 | BQ186: 23.83026081 | BT186: 5754.399 | BU186: 0.869153 | BV186: -234.689
A187: 76500 | B187: 76.5 | C187: 2.826461827 | D187: 1.209166383 | F187: 0.005499340053 | G187: 0.0483588195 | H187: -3.093233831 | J187: 15 | M187: 0.02464412195 | N187: -1.570796325 | O187: 20.64470518 | P187: 1.522338795 | Q187: 14.75952775 | R187: 1.502991538 | S187: 0.357435163 | T187: -1.205276142 | U187: 0.8516005903 | V187: -0.5517651171 | X187: -5.466546334 | Y187: -125.281502 | Z187: 54.71849804 | AC187: 1 | AD187: 20.62047168 | AE187: -0.001189381405 | AF187: 0.001932267975 | AG187: 7508.301449 | AH187: -5139.159915 | AJ187: 21000 | AK187: 54870.64253 | AL187: 1 | AM187: 14.72561236 | AN187: 3805.498926 | AO187: -1167.659494 | AQ187: 0.427167877 | AR187: -65.35668518 | AT187: -332671.1515 | AU187: -492912.978 | AV187: -2.164483121 | AW187: -58403.74262 | AX187: -261758.4707 | AY187: -1.79032134 | BA187: 2.217308348 | BB187: 6.916521842 | BC187: -0.3741617809 | BD187: -201.4378909 | BF187: -5.730578984 | BG187: -129.3870041 | BH187: 50.6129959 | BI187: 50.6129959 | BJ187: 0 | BK187: 0 | BM187: -12.64710083 | BN187: -107.9491132 | BQ187: 23.81848264 | BT187: 5888.437 | BU187: 0.803236 | BV187: -233.954
A188: 77000 | B188: 77 | C188: 2.842629594 | D188: 1.211316933 | F188: 0.005427842039 | G188: 0.04804181356 | H188: -3.093550836 | J188: 15 | M188: 0.02448409518 | N188: -1.570796325 | O188: 20.77932233 | P188: 1.522652967 | Q188: 14.85555385 | R188: 1.503430494 | S188: 0.3554081699 | T188: -1.207445616 | U188: 0.8500703166 | V188: -0.5546775355 | X188: -5.539494443 | Y188: -125.4244676 | Z188: 54.57553243 | AC188: 1 | AD188: 20.755246 | AE188: -0.001204979683 | AF188: 0.001944897178 | AG188: 7481.341784 | AH188: -5149.302988 | AJ188: 21000 | AK188: 55229.27419 | AL188: 1 | AM188: 14.82185819 | AN188: 3804.477123 | AO188: -1160.146228 | AQ188: 0.4216384872 | AR188: -64.93232702 | AT188: -331201.8039 | AU188: -487952.0756 | AV188: -2.167123807 | AW188: -57488.20413 | AX188: -260058.2634 | AY188: -1.788356461 | BA188: 2.214261088 | BB188: 6.904576562 | BC188: -0.3787673467 | BD188: -201.7017704 | BF188: -5.806648789 | BG188: -129.5458293 | BH188: 50.45417075 | BI188: 50.45417075 | BJ188: 0 | BK188: 0 | BM188: -12.71122535 | BN188: -107.8440588 | BQ188: 23.80653736 | BT188: 6025.596 | BU188: 0.769928 | BV188: -234.147
A189: 77500 | B189: 77.5 | C189: 2.858810359 | D189: 1.213443148 | F189: 0.005357731307 | G189: 0.04772895558 | H189: -3.093863694 | J189: 15 | M189: 0.02432613328 | N189: -1.570796325 | O189: 20.9139415 | P189: 1.522963094 | Q189: 14.95158278 | R189: 1.503863811 | S189: 0.3534024017 | T189: -1.209590612 | U189: 0.8485383738 | V189: -0.5575794814 | X189: -5.612106793 | Y189: -125.5671421 | Z189: 54.4328579 | AC189: 1 | AD189: 20.89002033 | AE189: -0.001220679578 | AF189: 0.00195752638 | AG189: 7454.401283 | AH189: -5159.28445 | AJ189: 21000 | AK189: 55587.90584 | AL189: 1 | AM189: 14.91810403 | AN189: 3803.474914 | AO189: -1152.728594 | AQ189: 0.4162157663 | AR189: -64.51344377 | AT189: -329740.5679 | AU189: -483056.4735 | AV189: -2.169757518 | AW189: -56591.03214 | AX189: -258381.3243 | AY189: -1.786412991 | BA189: 2.211176431 | BB189: 6.892467933 | BC189: -0.3833445266 | BD189: -201.9640235 | BF189: -5.88238135 | BG189: -129.7041846 | BH189: 50.29581538 | BI189: 50.29581538 | BJ189: 0 | BK189: 0 | BM189: -12.77484928 | BN189: -107.7401611 | BQ189: 23.79442873 | BT189: 6165.95 | BU189: 0.469478 | BV189: -232.056
A190: 78000 | B190: 78 | C190: 2.875003902 | D190: 1.215545421 | F190: 0.005288972149 | G190: 0.04742016433 | H190: -3.094172486 | J190: 15 | M190: 0.02417019653 | N190: -1.570796325 | O190: 21.04856266 | P190: 1.523269254 | Q190: 15.04761448 | R190: 1.504291598 | S190: 0.351417556 | T190: -1.211711524 | U190: 0.8470048483 | V190: -0.5604709624 | X190: -5.684387793 | Y190: -125.7095201 | Z190: 54.29047993 | AC190: 1 | AD190: 21.02479465 | AE190: -0.001236481091 | AF190: 0.001970155583 | AG190: 7427.481617 | AH190: -5169.104747 | AJ190: 21000 | AK190: 55946.53749 | AL190: 1 | AM190: 15.01434986 | AN190: 3802.491804 | AO190: -1145.404787 | AQ190: 0.4108969881 | AR190: -64.09993015 | AT190: -328287.3234 | AU190: -478225.0224 | AV190: -2.172384193 | AW190: -55711.75761 | AX190: -256727.1667 | AY190: -1.784490634 | BA190: 2.208055482 | BB190: 6.880199635 | BC190: -0.3878935593 | BD190: -202.2246639 | BF190: -5.957780813 | BG190: -129.8620661 | BH190: 50.13793394 | BI190: 50.13793394 | BJ190: 0 | BK190: 0 | BM190: -12.83798045 | BN190: -107.6374022 | BQ190: 23.78216044 | BT190: 6309.573 | BU190: 0.369853 | BV190: -231.369
A191: 78500 | B191: 78.5 | C191: 2.89121001 | D191: 1.217624136 | F191: 0.005221529998 | G191: 0.04711536067 | H191: -3.094477289 | J191: 15 | M191: 0.02401624623 | N191: -1.570796325 | O191: 21.18318577 | P191: 1.523571523 | Q191: 15.1436489 | R191: 1.504713959 | S191: 0.3494533355 | T191: -1.213808735 | U191: 0.8454698253 | V191: -0.563351987 | X191: -5.756341754 | Y191: -125.8515962 | Z191: 54.14840382 | AC191: 1 | AD191: 21.15956898 | AE191: -0.001252384222 | AF191: 0.001982784785 | AG191: 7400.58443 | AH191: -5178.764356 | AJ191: 21000 | AK191: 56305.16914 | AL191: 1 | AM191: 15.11059569 | AN191: 3801.527309 | AO191: -1138.173044 | AQ191: 0.4056795132 | AR191: -63.69168357 | AT191: -326841.9552 | AU191: -473456.6003 | AV191: -2.175003777 | AW191: -54849.92618 | AX191: -255095.3175 | AY191: -1.782589096 | BA191: 2.204899318 | BB191: 6.867775263 | BC191: -0.3924146806 | BD191: -202.483705 | BF191: -6.032851232 | BG191: -130.0194696 | BH191: 49.98053036 | BI191: 49.98053036 | BJ191: 0 | BK191: 0 | BM191: -12.90062649 | BN191: -107.5357646 | BQ191: 23.76973606 | BT191: 6456.542 | BU191: 0.127676 | BV191: -230.779
A192: 79000 | B192: 79 | C192: 2.907428471 | D192: 1.219679667 | F192: 0.00515537139 | G192: 0.04681446755 | H192: -3.094778182 | J192: 15 | M192: 0.02386424467 | N192: -1.570796325 | O192: 21.31781078 | P192: 1.523869974 | Q192: 15.23968599 | R192: 1.505130996 | S192: 0.3475094476 | T192: -1.215882624 | U192: 0.8439333892 | V192: -0.5662225642 | X192: -5.827972892 | Y192: -125.9933653 | Z192: 54.00663468 | AC192: 1 | AD192: 21.2943433 | AE192: -0.001268388969 | AF192: 0.001995413988 | AG192: 7373.711339 | AH192: -5188.263784 | AJ192: 21000 | AK192: 56663.80079 | AL192: 1 | AM192: 15.20684152 | AN192: 3800.580965 | AO192: -1131.031648 | AQ192: 0.4005607851 | AR192: -63.28860405 | AT192: -325404.3527 | AU192: -468750.1123 | AV192: -2.177616214 | AW192: -54005.09764 | AX192: -253485.3166 | AY192: -1.78070809 | BA192: 2.201708994 | BB192: 6.855198328 | BC192: -0.3969081242 | BD192: -202.7411604 | BF192: -6.107596571 | BG192: -130.1763916 | BH192: 49.8236084 | BI192: 49.8236084 | BJ192: 0 | BK192: 0 | BM192: -12.9627949 | BN192: -107.4352312 | BQ192: 23.75715913 | BT192: 6606.934 | BU192: 0.0369381 | BV192: -229.609
A193: 79500 | B193: 79.5 | C193: 2.92365908 | D193: 1.221712385 | F193: 0.005090463916 | G193: 0.04651740985 | H193: -3.09507524 | J193: 15 | M193: 0.02371415508 | N193: -1.570796325 | O193: 21.45243767 | P193: 1.524164679 | Q193: 15.3357257 | R193: 1.505542811 | S193: 0.3455856046 | T193: -1.217933559 | U193: 0.8423956233 | V193: -0.5690827038 | X193: -5.89928533 | Y193: -126.1348226 | Z193: 53.86517744 | AC193: 1 | AD193: 21.42911762 | AE193: -0.001284495335 | AF193: 0.00200804319 | AG193: 7346.863934 | AH193: -5197.603568 | AJ193: 21000 | AK193: 57022.43244 | AL193: 1 | AM193: 15.30308736 | AN193: 3799.652319 | AO193: -1123.978925 | AQ193: 0.3955383277 | AR193: -62.8905941 | AT193: -323974.41 | AU193: -464104.489 | AV193: -2.180221453 | AW193: -53176.84541 | AX193: -251896.7167 | AY193: -1.778847332 | BA193: 2.198485538 | BB193: 6.842472264 | BC193: -0.4013741211 | BD193: -202.9970432 | BF193: -6.182020704 | BG193: -130.3328284 | BH193: 49.66717162 | BI193: 49.66717162 | BJ193: 0 | BK193: 0 | BM193: -13.02449297 | BN193: -107.3357852 | BQ193: 23.74443306 | BT193: 6760.83 | BU193: -0.0490191 | BV193: -229.1
A194: 80000 | B194: 80 | C194: 2.939901636 | D194: 1.22372265 | F194: 0.005026776185 | G194: 0.04622411441 | H194: -3.095368536 | J194: 15 | M194: 0.02356594161 | N194: -1.570796325 | O194: 21.58706641 | P194: 1.524455709 | Q194: 15.43176797 | R194: 1.505949499 | S194: 0.3436815236 | T194: -1.219961902 | U194: 0.8408566103 | V194: -0.5719324159 | X194: -5.970283098 | Y194: -126.2759631 | Z194: 53.72403686 | AC194: 1 | AD194: 21.56389195 | AE194: -0.001300703318 | AF194: 0.002020672392 | AG194: 7320.043779 | AH194: -5206.78427 | AJ194: 21000 | AK194: 57381.06409 | AL194: 1 | AM194: 15.39933319 | AN194: 3798.740933 | AO194: -1117.013241 | AQ194: 0.3906097418 | AR194: -62.49755869 | AT194: -322552.0251 | AU194: -459518.6863 | AV194: -2.182819442 | AW194: -52364.75605 | AX194: -250329.0826 | AY194: -1.777006542 | BA194: 2.195229959 | BB194: 6.829600422 | BC194: -0.4058129003 | BD194: -203.2513665 | BF194: -6.256127421 | BG194: -130.4887766 | BH194: 49.51122342 | BI194: 49.51122342 | BJ194: 0 | BK194: 0 | BM194: -13.08572784 | BN194: -107.2374101 | BQ194: 23.73156122 | BT194: 6918.31 | BU194: -0.217983 | BV194: -228.376
A195: 80500 | B195: 80.5 | C195: 2.956155943 | D195: 1.225710817 | F195: 0.004964277786 | G195: 0.04593450991 | H195: -3.09565814 | J195: 15 | M195: 0.0234195693 | N195: -1.570796325 | O195: 21.72169694 | P195: 1.524743131 | Q195: 15.52781276 | R195: 1.506351157 | S195: 0.3417969264 | T195: -1.221968009 | U195: 0.8393164318 | V195: -0.5747717115 | X195: -6.040970142 | Y195: -126.4167825 | Z195: 53.58321755 | AC195: 1 | AD195: 21.69866627 | AE195: -0.001317012918 | AF195: 0.002033301595 | AG195: 7293.252412 | AH195: -5215.806482 | AJ195: 21000 | AK195: 57739.69574 | AL195: 1 | AM195: 15.49557902 | AN195: 3797.846383 | AO195: -1110.132999 | AQ195: 0.3857727027 | AR195: -62.10940514 | AT195: -321137.1002 | AU195: -454991.6846 | AV195: -2.185410134 | AW195: -51568.42873 | AX195: -248781.9909 | AY195: -1.775185446 | BA195: 2.19194324 | BB195: 6.81658608 | BC195: -0.4102246882 | BD195: -203.5041433 | BF195: -6.32992043 | BG195: -130.644233 | BH195: 49.35576702 | BI195: 49.35576702 | BJ195: 0 | BK195: 0 | BM195: -13.14650651 | BN195: -107.1400897 | BQ195: 23.71854688 | BT195: 7079.458 | BU195: -0.384014 | BV195: -227.044
A196: 81000 | B196: 81 | C196: 2.972421806 | D196: 1.227677231 | F196: 0.004902939251 | G196: 0.04564852683 | H196: -3.095944123 | J196: 15 | M196: 0.02327500406 | N196: -1.570796325 | O196: 21.85632925 | P196: 1.525027012 | Q196: 15.62386003 | R196: 1.506747876 | S196: 0.3399315394 | T196: -1.223952226 | U196: 0.8377751684 | V196: -0.5776006021 | X196: -6.111350318 | Y196: -126.5572761 | Z196: 53.44272393 | AC196: 1 | AD196: 21.8334406 | AE196: -0.001333424135 | AF196: 0.002045930797 | AG196: 7266.491343 | AH196: -5224.67082 | AJ196: 21000 | AK196: 58098.32739 | AL196: 1 | AM196: 15.59182485 | AN196: 3796.968257 | AO196: -1103.336646 | AQ196: 0.3810249571 | AR196: -61.72604306 | AT196: -319729.5414 | AU196: -450522.4875 | AV196: -2.187993483 | AW196: -50787.47482 | AX196: -247255.0296 | AY196: -1.773383774 | BA196: 2.188626343 | BB196: 6.803432443 | BC196: -0.4146097087 | BD196: -203.7553865 | BF196: -6.403403358 | BG196: -130.7991945 | BH196: 49.20080547 | BI196: 49.20080547 | BJ196: 0 | BK196: 0 | BM196: -13.2068358 | BN196: -107.043808 | BQ196: 23.70539324 | BT196: 7244.36 | BU196: -0.57486 | BV196: -226.239
A197: 81500 | B197: 81.5 | C197: 2.988699038 | D197: 1.229622234 | F197: 0.004842732021 | G197: 0.04536609739 | H197: -3.096226553 | J197: 15 | M197: 0.02313221263 | N197: -1.570796325 | O197: 21.9909633 | P197: 1.525307417 | Q197: 15.71990973 | R197: 1.507139748 | S197: 0.3380850933 | T197: -1.225914895 | U197: 0.8362328998 | V197: -0.5804190996 | X197: -6.181427403 | Y197: -126.6974397 | Z197: 53.30256029 | AC197: 1 | AD197: 21.96821492 | AE197: -0.00134993697 | AF197: 0.00205856 | AG197: 7239.762059 | AH197: -5233.377925 | AJ197: 21000 | AK197: 58456.95904 | AL197: 1 | AM197: 15.68807069 | AN197: 3796.106156 | AO197: -1096.622662 | AQ197: 0.3763643207 | AR197: -61.34738427 | AT197: -318329.2585 | AU197: -446110.1218 | AV197: -2.190569444 | AW197: -50021.51745 | AX197: -245747.7977 | AY197: -1.771601261 | BA197: 2.185280206 | BB197: 6.79014264 | BC197: -0.4189681838 | BD197: -204.0051087 | BF197: -6.476579753 | BG197: -130.9536583 | BH197: 49.04634168 | BI197: 49.04634168 | BJ197: 0 | BK197: 0 | BM197: -13.26672239 | BN197: -106.9485496 | BQ197: 23.69210344 | BT197: 7413.102 | BU197: -0.7333 | BV197: -225.834
A198: 82000 | B198: 82 | C198: 3.004987454 | D198: 1.231546158 | F198: 0.00478362841 | G198: 0.04508715549 | H198: -3.096505495 | J198: 15 | M198: 0.02299116255 | N198: -1.570796325 | O198: 22.12559906 | P198: 1.525584409 | Q198: 15.81596181 | R198: 1.507526859 | S198: 0.3362573237 | T198: -1.22785635 | U198: 0.834689705 | V198: -0.5832272169 | X198: -6.25120509 | Y198: -126.8372693 | Z198: 53.16273074 | AC198: 1 | AD198: 22.10298925 | AE198: -0.001366551423 | AF198: 0.002071189202 | AG198: 7213.066017 | AH198: -5241.928462 | AJ198: 21000 | AK198: 58815.59069 | AL198: 1 | AM198: 15.78431652 | AN198: 3795.259693 | AO198: -1089.989566 | AQ198: 0.3717886753 | AR198: -60.97334275 | AT198: -316936.1645 | AU198: -441753.6362 | AV198: -2.193137976 | AW198: -49270.19103 | AX198: -244259.9048 | AY198: -1.769837643 | BA198: 2.18190575 | BB198: 6.776719736 | BC198: -0.4233003329 | BD198: -204.2533226 | BF198: -6.549453089 | BG198: -131.1076216 | BH198: 48.89237837 | BI198: 48.89237837 | BJ198: 0 | BK198: 0 | BM198: -13.32617282 | BN198: -106.8542991 | BQ198: 23.67868054 | BT198: 7585.776 | BU198: -0.870902 | BV198: -224.429
A199: 82500 | B199: 82.5 | C199: 3.021286873 | D199: 1.233449331 | F199: 0.004725601577 | G199: 0.04481163669 | H199: -3.096781013 | J199: 15 | M199: 0.02285182217 | N199: -1.570796325 | O199: 22.26023649 | P199: 1.525858051 | Q199: 15.91201623 | R199: 1.507909297 | S199: 0.3344479701 | T199: -1.229776919 | U199: 0.8331456619 | V199: -0.586024967 | X199: -6.320686995 | Y199: -126.9767607 | Z199: 53.02323928 | AC199: 1 | AD199: 22.23776357 | AE199: -0.001383267493 | AF199: 0.002083818405 | AG199: 7186.404651 | AH199: -5250.323118 | AJ199: 21000 | AK199: 59174.22234 | AL199: 1 | AM199: 15.88056235 | AN199: 3794.428492 | AO199: -1083.435909 | AQ199: 0.3672959671 | AR199: -60.60383457 | AT199: -315550.1763 | AU199: -437452.1011 | AV199: -2.195699038 | AW199: -48533.14092 | AX199: -242790.971 | AY199: -1.768092665 | BA199: 2.178503872 | BB199: 6.763166723 | BC199: -0.4276063733 | BD199: -204.5000405 | BF199: -6.622026764 | BG199: -131.2610819 | BH199: 48.73891813 | BI199: 48.73891813 | BJ199: 0 | BK199: 0 | BM199: -13.38519349 | BN199: -106.7610414 | BQ199: 23.66512752 | BT199: 7762.471 | BU199: -1.03486 | BV199: -223.255
A200: 83000 | B200: 83 | C200: 3.037597118 | D200: 1.235332072 | F200: 0.004668625491 | G200: 0.04453947811 | H200: -3.097053172 | J200: 15 | M200: 0.02271416059 | N200: -1.570796325 | O200: 22.39487557 | P200: 1.526128402 | Q200: 16.00807295 | R200: 1.508287146 | S200: 0.3326567767 | T200: -1.231676923 | U200: 0.8316008475 | V200: -0.5888123636 | X200: -6.389876657 | Y200: -127.1159103 | Z200: 52.88408972 | AC200: 1 | AD200: 22.3725379 | AE200: -0.00140008518 | AF200: 0.002096447607 | AG200: 7159.779369 | AH200: -5258.562604 | AJ200: 21000 | AK200: 59532.85399 | AL200: 1 | AM200: 15.97680818 | AN200: 3793.61219 | AO200: -1076.96028 | AQ200: 0.3628842037 | AR200: -60.23877781 | AT200: -314171.2135 | AU200: -433204.6078 | AV200: -2.198252592 | AW200: -47810.02298 | AX200: -241340.6261 | AY200: -1.766366072 | BA200: 2.17507545 | BB200: 6.74948653 | BC200: -0.4318865197 | BD200: -204.7452748 | BF200: -6.694304107 | BG200: -131.4140366 | BH200: 48.5859634 | BI200: 48.5859634 | BJ200: 0 | BK200: 0 | BM200: -13.44379064 | BN200: -106.6687618 | BQ200: 23.65144733 | BT200: 7943.282 | BU200: -1.2308 | BV200: -223.135
A201: =A200+500 -> 83500 | B201: 83.5 | C201: =SQRT((A201/Fesr)^2+1) -> 3.053918015 | D201: =ATAN(A201/Fesr) -> 1.237194697 | F201: =(Ro/(Ro+Rdcr))/SQRT((A201/(Q*Fo))^2+(1-(A201^2/Fo^2))^2) -> 0.004612674905 | G201: =-ATAN(A201*Fo/(Q*(Fo^2-A201^2))) -> 0.04427061842 | H201: =IF(G201>0,G201-Pi,G201) -> -3.097322032 | J201: =Vin/Vramp -> 15 | M201: =1/(2*Pi*_Rfb1*(Cc1ea_u+Cc2ea_u)*A201) -> 0.02257814765 | N201: =-Pi/2 -> -1.570796325 | O201: =SQRT(1+(A201/Fz1_u)^2) -> 22.52951627 | P201: =ATAN2(Fz1_u,A201) -> 1.526395522 | Q201: =SQRT(1+(A201/Fz2_u)^2) -> 16.10413193 | R201: =ATAN2(Fz2_u,A201) -> 1.508660487 | S201: =1/SQRT(1+(A201/Fp1_u)^2) -> 0.3308834917 | T201: =-ATAN2(Fp1_u,A201) -> -1.233556677 | U201: =1/SQRT(1+(A201/Fp2_u)^2) -> 0.8300553379 | V201: =-ATAN2(Fp2_u,A201) -> -0.5915894212 | X201: -6.458777542 | Y201: =(180/Pi)*(D201+H201+N201+P201+R201+T201+V201) -> -127.2547142 | Z201: 52.74528577 | AC201: 1 | AD201: =Rcea1_u*Cc1ea_u*A201*2*Pi -> 22.50731222 | AE201: =-Rcea1_u*Cc1ea_u*Cc2ea_u*(A201*2*Pi)^2 -> -0.001417004485 | AF201: =(Cc2ea_u+Cc1ea_u)*A201*2*Pi -> 0.00210907681 | AG201: 7133.191552 | AH201: -5266.64765 | AJ201: =_Rfb1 -> 21000 | AK201: =_Rfb1*Rcea2_u*Cc3ea_u*A201*2*Pi -> 59891.48564 | AL201: 1 | AM201: =(_Rfb1+Rcea2_u)*Cc3ea_u*A201*2*Pi -> 16.07305402 | AN201: 3792.810432 | AO201: -1070.561298 | AQ201: =Eadcg/(1+(Eadcg*A201/GBP)^2) -> 0.3585514521 | AR201: =-(A201*Eadcg*Eadcg/GBP)/(1+(Eadcg*A201/GBP)^2) -> -59.87809251 | AT201: -312799.199 | AU201: -429010.2678 | AV201: -2.2007986 | AW201: -47100.50325 | AX201: -239908.5097 | AY201: -1.764657615 | BA201: =SQRT(AT201^2+AU201^2)/SQRT(AW201^2+AX201^2) -> 2.171621342 | BB201: 6.735682022 | BC201: -0.4361409851 | BD201: =BC201*180/Pi-180 -> -204.9890377 | BF201: =20*LOG(BA201*J201*F201*C201) -> -6.766288374 | BG201: =(180/Pi)*(D201+H201+BC201) -> -131.5664835 | BH201: 48.43351648 | BI201: 48.43351648 | BJ201: =SUM((BF202<0)*(BF201>0))*A201 -> 0 | BK201: 0 | BM201: -13.5019704 | BN201: =(H201+D201)*180/Pi -> -106.5774458 | BQ201: 23.63764282 | BT201: 8128.305 | BU201: -1.35261 | BV201: -221.982
... 491 more rows

Sheet Schematic Management (hidden)
A2: =IF(RDSON_sense=1, "SCH_RDSON", "SCH_SHUNT") -> SCH_RDSON

Sheet Power Calculations (hidden)
A1: BUCK CONTROLLER POWER TOOL
AG3: =VsdBot -> 0.75
A6: Enter the values of your design and FET datasheet specifications below. Note that thermal resistance ("Theta JA") will change when components are placed on the PCB | BH6: 80 | BI6: 100 | BJ6: 120 | BK6: 140 | BL6: 160 | BM6: 180 | BN6: 20 | BO6: 30 | BP6: 40 | BQ6: 50
G7: Currents | N7: INDUCTOR | R7: Cout | U7: Cin | X7: HIGH SIDE FET losses | AD7: LOW SIDE FET Losses | AH7: Shunt | AI7: External Diode | AJ7: Diod/eFET | AK7: Part Losses | AO7: RESULSTS
A8: Input Parameters | G8: Step | H8: Iout | I8: Duty Cycle | J8: Current Ripple p-p | K8: Peak Inductor Current | L8: Valley Inductor Current | M8: SW node voltage at Q1 turn-on | N8: IRMS | O8: DCR Loss | P8: Core | Q8: Total Inductor Loss/Diss | R8: Irms | S8: Cout Esr Loss | T8: Total Cout Loss/Diss | U8: Irms | V8: Cin Esr Loss | W8: Total Cin Loss/Diss | X8: Irms | Y8: RDSON Loss | Z8: Transitional Loss (not including capacitive loss) | AA8: MOSFET Output Capacitance Loss | AB8: Dead Time Loss | AC8: Total Top FET Loss/Diss | AD8: Irms | AE8: RDSON Loss | AF8: DeadTime Loss | AG8: Total Bottom FET Diss/Loss | AH8: Shunt Loss (if applicable) | AI8: DeadTime Loss | AJ8: Reverse Recovery Loss | AK8: IQ Loss | AL8: Switching Current Loss | AM8: Switching Current Diss | AN8: Total Part Loss | AO8: Total Loss | AP8: OUTPUT POWER | AQ8: EFF | AR8: Top FET Temp Rise | AS8: Bottom FET Temp Rise | BF8: Qg | BH8: θJA=80 | BI8: θJA=100 | BJ8: θJA=120 | BK8: θJA=140 | BL8: θJA=160 | BM8: θJA=180 | BN8: θJA=20 | BO8: θJA=30 | BP8: θJA=40 | BQ8: θJA=50
A9: Design | B9: Input Value | C9: Units | D9: Description | G9: 0 | H9: =Iout*(G9/200) -> 0 | I9: =(Vout+Rdcr*H9+RdsonBot*H9)/(Vin-RdsonTop*H9+RdsonBot*H9) -> 0.1636363636 | J9: =(Vin-Vout)*I9/(Fsw*Lout2) -> 4.561983471 | K9: =H9+J9/2 -> 2.280991736 | L9: =H9-J9/2 -> -2.280991736 | M9: =IF(MIN(Vin, -L9/(CossTop+CossBot)*0.00000002)<0, 0, MIN(Vin, -L9/(CossTop+CossBot)*0.00000002)) -> 27.5 | N9: =SQRT(H9^2+(J9^2)/12) -> 1.316931193 | O9: =(N9^2*Rdcr*(1+Ltc*Ta-Ltc*25))/(1-N9^2*Rdcr*Ltc*ThetaCa) -> 0.007635615532 | P9: =Core_Loss -> 0.2 | Q9: =O9+P9 -> 0.2076356155 | R9: =J9/(2*SQRT(3)) -> 1.316931193 | S9: =RCoutEsr*R9^2 -> 0.04335769415 | T9: =S9 -> 0.04335769415 | U9: =SQRT(I9)*SQRT(H9^2+(J9^2)/12) -> 0.5327248973 | V9: =RCinEsr*U9^2 -> 0.0002837958162 | W9: =V9 -> 0.0002837958162 | X9: =SQRT(I9)*SQRT(H9^2+(J9^2)/12) -> 0.5327248973 | Y9: =RdsonTop*X9^2 -> 0.001078424102 | Z9: =IF(L9<0, (Vin*K9*Tf/2)*Fsw, (Vin*L9*Tr/2+Vin*K9*Tf/2)*Fsw) -> 0.05991638079 | AA9: =(0.5*CossTop*(Vin-M9)^2-0.5*CossBot*(Vin-M9)^2+(QossBot*(Vin-M9)/Vin)*Vin)*Fsw -> 0 | AB9: =IF(L9>0,0,-L9*VsdTop*Deadtime*Fsw) -> 0.01197520661 | AC9: =(AB9+AA9+Z9+Y9*(1+RdsonTopTc*Ta-RdsonTopTc*25))/(1-Y9*RdsonTopTc*ThetaJaTop) -> 0.07298890262 | AD9: =SQRT(1-I9)*SQRT(H9^2+(J9^2)/12) -> 1.204372015 | AE9: =RdsonBot*AD9^2 -> 0.003191126289 | AF9: =IF(L9<0, Deadtime*Fsw*IF(VfdSky>0,0,VsdBot)*K9, Deadtime*Fsw*IF(VfdSky>0,0,VsdBot)*(K9+L9)) -> 0.01283057851 | AG9: =(AF9+AE9*(1+RdsonBotTc*Ta-RdsonBotTc*25))/(1-AE9*RdsonBotTc*ThetaJaBot) -> 0.01603398475 | AH9: =IF(RDSON_sense=1, 0, AD9^2*Rshunt) -> 0 | AI9: =2*Deadtime*Fsw*IF(VfdSky>0,VfdSky,0)*H9 -> 0 | AJ9: =IF(QrrSky>0,QrrSky,QrrBot)*Fsw*(Vin-H9*RdsonTop) -> 0.22825 | AK9: =Iq*Vin -> 0.0825 | AL9: =Vin*(QgTop+QgBot)*Fsw -> 0.636625 | AM9: =(Vin-Vdd)*Fsw*(QgTop+QgBot)+(RdsonDRT+RdsonDRT2)*Fsw*QgTop*Vdd/(RdsonDRT+2*RGateTop+RdsonDRT2)+(RdsonDRB+RdsonDRB2)*Fsw*QgBot*Vdd/(RdsonDRB+2*RGateBot+RdsonDRB2) -> 0.5343955346 | AN9: =SUM(AK9:AL9) -> 0.719125 | AO9: =SUM(Q9,T9,W9,AC9,AJ9,AI9,AG9,AN9, AH9) -> 1.287674993 | AP9: =Vout*H9 -> 0 | AQ9: =AP9/(AP9+AO9) -> 0 | AR9: =ThetaJaTop*AC9 -> 4.379334157 | AS9: =AG9*ThetaJaBot -> 0.9620390853 | AU9: =AQ9*100 -> 0 | BC9: 250kHz / 5-1.2V /25A | BD9: 70 | BE9: 70 | BF9: 70 | BG9: =250000*(5-Vdd)*BF9/1000000000+((250000*BF9/1000000000*Vdd)*2.5/(2*4)) -> -0.002734375 | BH9: =BH$6*$BG9 -> -0.21875 | BI9: -0.2734375 | BJ9: -0.328125 | BK9: -0.3828125 | BL9: -0.4375 | BM9: -0.4921875 | BN9: -0.0546875 | BO9: -0.08203125 | BP9: -0.109375 | BQ9: -0.13671875
G10: 1 | H10: 0.08 | I10: =(Vout+Rdcr*H10+RdsonBot*H10)/(Vin-RdsonTop*H10+RdsonBot*H10) -> 0.1636563254 | J10: 4.56253998 | K10: =H10+J10/2 -> 2.36126999 | L10: =H10-J10/2 -> -2.20126999 | M10: 27.5 | N10: 1.319519201 | O10: =(N10^2*Rdcr*(1+Ltc*Ta-Ltc*25))/(1-N10^2*Rdcr*Ltc*ThetaCa) -> 0.007665674184 | P10: 0.2 | Q10: =O10+P10 -> 0.2076656742 | R10: =J10/(2*SQRT(3)) -> 1.317091843 | S10: =RCoutEsr*R10^2 -> 0.04336827307 | T10: =S10 -> 0.04336827307 | U10: 0.5338043544 | V10: =RCinEsr*U10^2 -> 0.0002849470888 | W10: =V10 -> 0.0002849470888 | X10: 0.5338043544 | Y10: =RdsonTop*X10^2 -> 0.001082798938 | Z10: 0.06202510499 | AA10: 0 | AB10: 0.01155666745 | AC10: 0.07468397963 | AD10: 1.206724423 | AE10: =RdsonBot*AD10^2 -> 0.003203604435 | AF10: 0.01328214369 | AG10: 0.0164984332 | AH10: 0 | AI10: 0 | AJ10: 0.2282474768 | AK10: 0.0825 | AL10: 0.636625 | AM10: 0.5343955346 | AN10: =SUM(AK10:AL10) -> 0.719125 | AO10: 1.289873784 | AP10: 0.36 | AQ10: =AP10/(AP10+AO10) -> 0.2181985092 | AR10: 4.481038778 | AS10: =AG10*ThetaJaBot -> 0.9899059919 | AU10: =AQ10*100 -> 21.81985092
A11: Vin | B11: =Vin -> 27.5 | C11: V | D11: Vin | G11: 2 | H11: 0.16 | I11: 0.1636762873 | J11: 4.563096495 | K11: 2.441548247 | L11: -2.121548247 | M11: 27.5 | N11: 1.326934111 | O11: 0.007752122847 | P11: 0.2 | Q11: 0.2077521228 | R11: =J11/(2*SQRT(3)) -> 1.317252495 | S11: 0.04337885338 | T11: =S11 -> 0.04337885338 | U11: 0.5368367533 | V11: 0.0002881936997 | W11: =V11 -> 0.0002881936997 | X11: 0.5368367533 | Y11: 0.001095136059 | Z11: 0.06413382926 | AA11: 0 | AB11: 0.0111381283 | AC11: 0.07638717066 | AD11: 1.213491012 | AE11: 0.003239632958 | AF11: 0.01373370889 | AG11: 0.01698654909 | AH11: 0 | AI11: 0 | AJ11: 0.2282449536 | AK11: 0.0825 | AL11: 0.636625 | AM11: 0.5343955346 | AN11: =SUM(AK11:AL11) -> 0.719125 | AO11: 1.292162843 | AP11: 0.72 | AQ11: =AP11/(AP11+AO11) -> 0.3578239219 | AR11: 4.58323024 | AS11: =AG11*ThetaJaBot -> 1.019192946 | AU11: =AQ11*100 -> 35.78239219 | BC11: 250kHz / 12-5V / 30A | BD11: 90 | BE11: 90 | BF11: 90 | BG11: =250000*(12-Vdd)*BF11/1000000000+((250000*BF9/1000000000*Vdd)*2.5/(2*4)) -> 0.142265625 | BH11: 11.38125 | BI11: 14.2265625 | BJ11: 17.071875 | BK11: 19.9171875 | BL11: 22.7625 | BM11: 25.6078125 | BN11: 2.8453125 | BO11: 4.26796875 | BP11: 5.690625 | BQ11: 7.11328125
